Workbook

Sheet Kalkulator (hidden)
A1: Podaj Datę | C1: Typ kontraktu | F1: typ
A2: ='Kalkulator Depozytów'!F12 -> 00:00:00 | C2: ='Kalkulator Depozytów'!J13 -> 0
AA3: ile < 0 | AB3: ile > 0 | AC3: minimalne >0 | AD3: maksymalne <0
AA4: =COUNTIF(Y8:Y35,"<0") -> 28 | AB4: =COUNTIF(Z8:Z35,"<0") -> 28 | AC4: =SMALL(Y8:Y36,AA4+1) -> -279 | AD4: =SMALL(Z8:Z36,AB4) -> -798
P5: Suma Depozytów | AF5: różnica | AG5: ile dodać?
P6: =SUM(P8:P29) -> 0 | Q6: =SUM(Q8:Q29)*'Kalkulator Depozytów'!F14 ->  | Y6: miejsce na date początkową | Z6: miejsce na datę końcową | AC6: =VLOOKUP(AC4,Y8:AB39,4,0) -> 29 | AD6: =VLOOKUP(AD4,Z8:AB35,3,0) -> 28 | AF6: =AC6-AD6+1 -> 2
A7: Początek | B7: Koniec | C7: Nominał | D7: Wolumen Kupna | E7: ŚWKK | F7: Wolumen Sprzedaży | G7: ŚWWS | H7: Kurs Rozliczeniowy | I7: Współczynnik Ryzyka | J7: Zmiana czasu | K7: Dni | L7: profil dostawy | M7: Liczba dni roboczych | N7: Liczba dnia świątecznych | O7: PEAK | P7: Depozyt uzupełniający | Q7: Depozyt wstępny | R7: L/H-PEAK | S7: VAT | Y7: 2028-01-01 | Z7: 2028-12-31 | AD7: 10 | AJ7: data koniec | AO7: czy święto | AT7: sum jeżeli | BB7: data koniec | BG7: czy święto | BL7: sum jeżeli
A8: 2024-11-28 | B8: 2024-11-28 | C8: =IF(L8="BASE",(B8-A8+1)*24+J8,IF(L8="OFFPEAK",M8*9+(N8)*24+J8,IF(L8="L-PEAK5",M8*10,IF(L8="H-PEAK5",M8*5,M8*15)))) -> 24 | D8: ='Kalkulator Depozytów'!M13 -> 0 | E8: ='Kalkulator Depozytów'!N13 -> 0 | F8: ='Kalkulator Depozytów'!O13 -> 0 | G8: ='Kalkulator Depozytów'!P13 -> 0 | H8: ='Kalkulator Depozytów'!Q13 -> 0 | I8: =ROUND(IF(OR(AND(K8>0,L8="L-PEAK5"),AND(K8>0,L8="H-PEAK5")),R8,IF(AND(K8>0,L8="PEAK5"),O8,IF(K8>0,IF(OR(L8="BASE"),AVERAGE(INDIRECT("krzywa!B"&MATCH(A8-$A$2,krzywa!A:A,0)&":B"&MATCH(B8-$A$2,krzywa!A:A,0),TRUE)),IF(OR(L8="OFFPEAK"),AVERAGE(INDIRECT("krzywa!F"&MATCH(A8-$A$2,krzywa!A:A,0)&":F"&MATCH(B8-$A$2,krzywa!A:A,0)))))))),4) ->  | J8: 0 | K8: =B8-$A$2 -> 45624 | L8: BASE | M8: =NETWORKDAYS(A8,B8,koszyki!$M$20:$M$898) -> 1 | N8: =B8-A8+1- NETWORKDAYS(A8,B8,koszyki!$M$20:$M$898) -> 0 | O8: =ROUND(IF((B8-A8+1)>2,IF(C8=75,AVERAGE(INDIRECT("krzywa!C"&MATCH(K8-6,krzywa!A:A,0)&":C"&MATCH(K8-2,krzywa!A:A,0))),AVERAGE(INDIRECT("krzywa!C"&MATCH(A8-$A$2+BQ8,krzywa!A:A,0)&":C"&MATCH(B8-$A$2-AY8,krzywa!A:A,0)))),INDIRECT("krzywa!C"&MATCH(K8,krzywa!A:A,0))),4) ->  | P8: =C8*(D8*(H8-E8)-F8*(H8-G8))*U8 -> 0 | Q8: =-C8*ABS(D8-F8)*H8*I8*U8+'kompensacja międzyproduktowa'!X8*U8 ->  | R8: =ROUND(IF((B8-A8+1)>2,IF(C8=75,AVERAGE(INDIRECT("krzywa!D"&MATCH(K8-6,krzywa!A:A,0)&":D"&MATCH(K8-2,krzywa!A:A,0))),AVERAGE(INDIRECT("krzywa!D"&MATCH(A8-$A$2+BQ8,krzywa!A:A,0)&":D"&MATCH(B8-$A$2-AY8,krzywa!A:A,0)))),INDIRECT("krzywa!D"&MATCH(K8,krzywa!A:A,0))),4) ->  | S8: =VLOOKUP(A8,krzywa!L:N,3,1) -> 0 | T8: =VLOOKUP(B8,krzywa!L:N,3,1) -> 0 | U8: =IF('Kalkulator Depozytów'!$B$35=TRUE,1,(1+S8/100)*W8+(1+T8/100)*(1-W8)) -> 1 | V8: =IF(S8<>T8,VLOOKUP(A8,krzywa!L:M,2,1)) -> FALSE | W8: =IF(V8<>FALSE,IF(L8="BASE",(V8-A8+1)*24+J8,IF(L8="OFFPEAK",NETWORKDAYS(A8,V8,koszyki!$M$20:$M$898)*9+(N8)*24+J8,IF(L8="L-PEAK5",NETWORKDAYS(A8,V8,koszyki!$M$20:$M$898)*10,IF(L8="H-PEAK5",NETWORKDAYS(A8,V8,koszyki!$M$20:$M$898)*5,NETWORKDAYS(A8,V8,koszyki!$M$20:$M$898)*15))))/C8,1) -> 1 | Y8: =AC8-$Y$7 -> -5389 | Z8: =AC8-$Z$7 -> -5754 | AB8: 1 | AC8: 2013-03-31 | AD8: -1 | AJ8: =B8 -> 2024-11-28 | AK8: =AJ8-1 -> 2024-11-27 | AL8: 2024-11-26 | AM8: 2024-11-25 | AO8: =NETWORKDAYS(AJ8,AJ8,koszyki!$M$20:$M$89) -> 1 | AP8: =NETWORKDAYS(AK8,AK8,koszyki!$M$20:$M$89) -> 1 | AQ8: =NETWORKDAYS(AL8,AL8,koszyki!$M$20:$M$89) -> 1 | AR8: =NETWORKDAYS(AM8,AM8,koszyki!$M$20:$M$89) -> 1 | AT8: =SUM(AO8) -> 1 | AU8: =SUM(AO8:AP8) -> 2 | AV8: =SUM(AO8:AQ8) -> 3 | AW8: =SUM(AO8:AR8) -> 4 | AY8: =COUNTIF(AT8:AW8,"=0") -> 0 | BB8: =A8 -> 2024-11-28 | BC8: =BB8+1 -> 2024-11-29 | BD8: =BC8+1 -> 2024-11-30 | BE8: =BD8+1 -> 2024-12-01 | BG8: =NETWORKDAYS(BB8,BB8,koszyki!$M$20:$M$89) -> 1 | BH8: =NETWORKDAYS(BC8,BC8,koszyki!$M$20:$M$89) -> 1 | BI8: =NETWORKDAYS(BD8,BD8,koszyki!$M$20:$M$89) -> 0 | BJ8: =NETWORKDAYS(BE8,BE8,koszyki!$M$20:$M$89) -> 0 | BL8: =SUM(BG8) -> 1 | BM8: =SUM(BG8:BH8) -> 2 | BN8: =SUM(BG8:BI8) -> 2 | BO8: =SUM(BG8:BJ8) -> 2 | BQ8: =COUNTIF(BL8:BO8,"=0") -> 0
A9: 2024-11-29 | B9: 2024-11-29 | C9: =IF(L9="BASE",(B9-A9+1)*24+J9,IF(L9="OFFPEAK",M9*9+(N9)*24+J9,IF(L9="L-PEAK5",M9*10,IF(L9="H-PEAK5",M9*5,M9*15)))) -> 24 | D9: ='Kalkulator Depozytów'!M14 -> 0 | E9: ='Kalkulator Depozytów'!N14 -> 0 | F9: ='Kalkulator Depozytów'!O14 -> 0 | G9: ='Kalkulator Depozytów'!P14 -> 0 | H9: ='Kalkulator Depozytów'!Q14 -> 0 | I9: =ROUND(IF(OR(AND(K9>0,L9="L-PEAK5"),AND(K9>0,L9="H-PEAK5")),R9,IF(AND(K9>0,L9="PEAK5"),O9,IF(K9>0,IF(OR(L9="BASE"),AVERAGE(INDIRECT("krzywa!B"&MATCH(A9-$A$2,krzywa!A:A,0)&":B"&MATCH(B9-$A$2,krzywa!A:A,0),TRUE)),IF(OR(L9="OFFPEAK"),AVERAGE(INDIRECT("krzywa!F"&MATCH(A9-$A$2,krzywa!A:A,0)&":F"&MATCH(B9-$A$2,krzywa!A:A,0)))))))),4) ->  | J9: 0 | K9: =B9-$A$2 -> 45625 | L9: BASE | M9: =NETWORKDAYS(A9,B9,koszyki!$M$20:$M$898) -> 1 | N9: =B9-A9+1- NETWORKDAYS(A9,B9,koszyki!$M$20:$M$898) -> 0 | O9: =ROUND(IF((B9-A9+1)>2,IF(C9=75,AVERAGE(INDIRECT("krzywa!C"&MATCH(K9-6,krzywa!A:A,0)&":C"&MATCH(K9-2,krzywa!A:A,0))),AVERAGE(INDIRECT("krzywa!C"&MATCH(A9-$A$2+BQ9,krzywa!A:A,0)&":C"&MATCH(B9-$A$2-AY9,krzywa!A:A,0)))),INDIRECT("krzywa!C"&MATCH(K9,krzywa!A:A,0))),4) ->  | P9: =C9*(D9*(H9-E9)-F9*(H9-G9))*U9 -> 0 | Q9: =-C9*ABS(D9-F9)*H9*I9*U9+'kompensacja międzyproduktowa'!X9*U9 ->  | R9: =ROUND(IF((B9-A9+1)>2,IF(C9=75,AVERAGE(INDIRECT("krzywa!D"&MATCH(K9-6,krzywa!A:A,0)&":D"&MATCH(K9-2,krzywa!A:A,0))),AVERAGE(INDIRECT("krzywa!D"&MATCH(A9-$A$2+BQ9,krzywa!A:A,0)&":D"&MATCH(B9-$A$2-AY9,krzywa!A:A,0)))),INDIRECT("krzywa!D"&MATCH(K9,krzywa!A:A,0))),4) ->  | S9: =VLOOKUP(A9,krzywa!L:N,3,1) -> 0 | T9: =VLOOKUP(B9,krzywa!L:N,3,1) -> 0 | U9: =IF('Kalkulator Depozytów'!$B$35=TRUE,1,(1+S9/100)*W9+(1+T9/100)*(1-W9)) -> 1 | V9: =IF(S9<>T9,VLOOKUP(A9,krzywa!L:M,2,1)) -> FALSE | W9: =IF(V9<>FALSE,IF(L9="BASE",(V9-A9+1)*24+J9,IF(L9="OFFPEAK",NETWORKDAYS(A9,V9,koszyki!$M$20:$M$898)*9+(N9)*24+J9,IF(L9="L-PEAK5",NETWORKDAYS(A9,V9,koszyki!$M$20:$M$898)*10,IF(L9="H-PEAK5",NETWORKDAYS(A9,V9,koszyki!$M$20:$M$898)*5,NETWORKDAYS(A9,V9,koszyki!$M$20:$M$898)*15))))/C9,1) -> 1 | Y9: =AC9-$Y$7 -> -5179 | Z9: -5544 | AB9: 2 | AC9: 2013-10-27 | AD9: 1 | AJ9: 2024-11-29 | AK9: 2024-11-28 | AL9: 2024-11-27 | AM9: 2024-11-26 | AO9: =NETWORKDAYS(AJ9,AJ9,koszyki!$M$20:$M$89) -> 1 | AP9: =NETWORKDAYS(AK9,AK9,koszyki!$M$20:$M$89) -> 1 | AQ9: =NETWORKDAYS(AL9,AL9,koszyki!$M$20:$M$89) -> 1 | AR9: =NETWORKDAYS(AM9,AM9,koszyki!$M$20:$M$89) -> 1 | AT9: =SUM(AO9) -> 1 | AU9: =SUM(AO9:AP9) -> 2 | AV9: =SUM(AO9:AQ9) -> 3 | AW9: =SUM(AO9:AR9) -> 4 | AY9: =COUNTIF(AT9:AW9,"=0") -> 0 | BB9: 2024-11-29 | BC9: =BB9+1 -> 2024-11-30 | BD9: 2024-12-01 | BE9: =BD9+1 -> 2024-12-02 | BG9: =NETWORKDAYS(BB9,BB9,koszyki!$M$20:$M$89) -> 1 | BH9: =NETWORKDAYS(BC9,BC9,koszyki!$M$20:$M$89) -> 0 | BI9: =NETWORKDAYS(BD9,BD9,koszyki!$M$20:$M$89) -> 0 | BJ9: =NETWORKDAYS(BE9,BE9,koszyki!$M$20:$M$89) -> 1 | BL9: =SUM(BG9) -> 1 | BM9: =SUM(BG9:BH9) -> 1 | BN9: =SUM(BG9:BI9) -> 1 | BO9: =SUM(BG9:BJ9) -> 2 | BQ9: =COUNTIF(BL9:BO9,"=0") -> 0
A10: 2024-11-30 | B10: 2024-11-30 | C10: 24 | D10: ='Kalkulator Depozytów'!M15 -> 0 | E10: ='Kalkulator Depozytów'!N15 -> 0 | F10: ='Kalkulator Depozytów'!O15 -> 0 | G10: ='Kalkulator Depozytów'!P15 -> 0 | H10: ='Kalkulator Depozytów'!Q15 -> 0 | I10: =ROUND(IF(OR(AND(K10>0,L10="L-PEAK5"),AND(K10>0,L10="H-PEAK5")),R10,IF(AND(K10>0,L10="PEAK5"),O10,IF(K10>0,IF(OR(L10="BASE"),AVERAGE(INDIRECT("krzywa!B"&MATCH(A10-$A$2,krzywa!A:A,0)&":B"&MATCH(B10-$A$2,krzywa!A:A,0),TRUE)),IF(OR(L10="OFFPEAK"),AVERAGE(INDIRECT("krzywa!F"&MATCH(A10-$A$2,krzywa!A:A,0)&":F"&MATCH(B10-$A$2,krzywa!A:A,0)))))))),4) ->  | J10: 0 | K10: 45626 | L10: BASE | M10: =NETWORKDAYS(A10,B10,koszyki!$M$20:$M$898) -> 0 | N10: =B10-A10+1- NETWORKDAYS(A10,B10,koszyki!$M$20:$M$898) -> 1 | O10: =ROUND(IF((B10-A10+1)>2,IF(C10=75,AVERAGE(INDIRECT("krzywa!C"&MATCH(K10-6,krzywa!A:A,0)&":C"&MATCH(K10-2,krzywa!A:A,0))),AVERAGE(INDIRECT("krzywa!C"&MATCH(A10-$A$2+BQ10,krzywa!A:A,0)&":C"&MATCH(B10-$A$2-AY10,krzywa!A:A,0)))),INDIRECT("krzywa!C"&MATCH(K10,krzywa!A:A,0))),4) ->  | P10: 0 | Q10: =-C10*ABS(D10-F10)*H10*I10*U10+'kompensacja międzyproduktowa'!X10*U10 ->  | R10: =ROUND(IF((B10-A10+1)>2,IF(C10=75,AVERAGE(INDIRECT("krzywa!D"&MATCH(K10-6,krzywa!A:A,0)&":D"&MATCH(K10-2,krzywa!A:A,0))),AVERAGE(INDIRECT("krzywa!D"&MATCH(A10-$A$2+BQ10,krzywa!A:A,0)&":D"&MATCH(B10-$A$2-AY10,krzywa!A:A,0)))),INDIRECT("krzywa!D"&MATCH(K10,krzywa!A:A,0))),4) ->  | S10: =VLOOKUP(A10,krzywa!L:N,3,1) -> 0 | T10: =VLOOKUP(B10,krzywa!L:N,3,1) -> 0 | U10: =IF('Kalkulator Depozytów'!$B$35=TRUE,1,(1+S10/100)*W10+(1+T10/100)*(1-W10)) -> 1 | V10: =IF(S10<>T10,VLOOKUP(A10,krzywa!L:M,2,1)) -> FALSE | W10: =IF(V10<>FALSE,IF(L10="BASE",(V10-A10+1)*24+J10,IF(L10="OFFPEAK",NETWORKDAYS(A10,V10,koszyki!$M$20:$M$898)*9+(N10)*24+J10,IF(L10="L-PEAK5",NETWORKDAYS(A10,V10,koszyki!$M$20:$M$898)*10,IF(L10="H-PEAK5",NETWORKDAYS(A10,V10,koszyki!$M$20:$M$898)*5,NETWORKDAYS(A10,V10,koszyki!$M$20:$M$898)*15))))/C10,1) -> 1 | Y10: -5025 | Z10: -5390 | AB10: 3 | AC10: 2014-03-30 | AD10: -1 | AJ10: 2024-11-30 | AK10: 2024-11-29 | AL10: 2024-11-28 | AM10: 2024-11-27 | AO10: =NETWORKDAYS(AJ10,AJ10,koszyki!$M$20:$M$89) -> 0 | AP10: =NETWORKDAYS(AK10,AK10,koszyki!$M$20:$M$89) -> 1 | AQ10: =NETWORKDAYS(AL10,AL10,koszyki!$M$20:$M$89) -> 1 | AR10: =NETWORKDAYS(AM10,AM10,koszyki!$M$20:$M$89) -> 1 | AT10: 0 | AU10: 1 | AV10: 2 | AW10: 3 | AY10: 1 | BB10: 2024-11-30 | BC10: 2024-12-01 | BD10: 2024-12-02 | BE10: 2024-12-03 | BG10: =NETWORKDAYS(BB10,BB10,koszyki!$M$20:$M$89) -> 0 | BH10: =NETWORKDAYS(BC10,BC10,koszyki!$M$20:$M$89) -> 0 | BI10: =NETWORKDAYS(BD10,BD10,koszyki!$M$20:$M$89) -> 1 | BJ10: =NETWORKDAYS(BE10,BE10,koszyki!$M$20:$M$89) -> 1 | BL10: 0 | BM10: 0 | BN10: 1 | BO10: 2 | BQ10: 2
A11: 2024-12-01 | B11: 2024-12-01 | C11: 24 | D11: ='Kalkulator Depozytów'!M16 -> 0 | E11: ='Kalkulator Depozytów'!N16 -> 0 | F11: ='Kalkulator Depozytów'!O16 -> 0 | G11: ='Kalkulator Depozytów'!P16 -> 0 | H11: ='Kalkulator Depozytów'!Q16 -> 0 | I11: =ROUND(IF(OR(AND(K11>0,L11="L-PEAK5"),AND(K11>0,L11="H-PEAK5")),R11,IF(AND(K11>0,L11="PEAK5"),O11,IF(K11>0,IF(OR(L11="BASE"),AVERAGE(INDIRECT("krzywa!B"&MATCH(A11-$A$2,krzywa!A:A,0)&":B"&MATCH(B11-$A$2,krzywa!A:A,0),TRUE)),IF(OR(L11="OFFPEAK"),AVERAGE(INDIRECT("krzywa!F"&MATCH(A11-$A$2,krzywa!A:A,0)&":F"&MATCH(B11-$A$2,krzywa!A:A,0)))))))),4) ->  | J11: 0 | K11: 45627 | L11: BASE | M11: =NETWORKDAYS(A11,B11,koszyki!$M$20:$M$898) -> 0 | N11: =B11-A11+1- NETWORKDAYS(A11,B11,koszyki!$M$20:$M$898) -> 1 | O11: =ROUND(IF((B11-A11+1)>2,IF(C11=75,AVERAGE(INDIRECT("krzywa!C"&MATCH(K11-6,krzywa!A:A,0)&":C"&MATCH(K11-2,krzywa!A:A,0))),AVERAGE(INDIRECT("krzywa!C"&MATCH(A11-$A$2+BQ11,krzywa!A:A,0)&":C"&MATCH(B11-$A$2-AY11,krzywa!A:A,0)))),INDIRECT("krzywa!C"&MATCH(K11,krzywa!A:A,0))),4) ->  | P11: 0 | Q11: =-C11*ABS(D11-F11)*H11*I11*U11+'kompensacja międzyproduktowa'!X11*U11 ->  | R11: =ROUND(IF((B11-A11+1)>2,IF(C11=75,AVERAGE(INDIRECT("krzywa!D"&MATCH(K11-6,krzywa!A:A,0)&":D"&MATCH(K11-2,krzywa!A:A,0))),AVERAGE(INDIRECT("krzywa!D"&MATCH(A11-$A$2+BQ11,krzywa!A:A,0)&":D"&MATCH(B11-$A$2-AY11,krzywa!A:A,0)))),INDIRECT("krzywa!D"&MATCH(K11,krzywa!A:A,0))),4) ->  | S11: =VLOOKUP(A11,krzywa!L:N,3,1) -> 0 | T11: =VLOOKUP(B11,krzywa!L:N,3,1) -> 0 | U11: =IF('Kalkulator Depozytów'!$B$35=TRUE,1,(1+S11/100)*W11+(1+T11/100)*(1-W11)) -> 1 | V11: =IF(S11<>T11,VLOOKUP(A11,krzywa!L:M,2,1)) -> FALSE | W11: =IF(V11<>FALSE,IF(L11="BASE",(V11-A11+1)*24+J11,IF(L11="OFFPEAK",NETWORKDAYS(A11,V11,koszyki!$M$20:$M$898)*9+(N11)*24+J11,IF(L11="L-PEAK5",NETWORKDAYS(A11,V11,koszyki!$M$20:$M$898)*10,IF(L11="H-PEAK5",NETWORKDAYS(A11,V11,koszyki!$M$20:$M$898)*5,NETWORKDAYS(A11,V11,koszyki!$M$20:$M$898)*15))))/C11,1) -> 1 | Y11: -4815 | Z11: -5180 | AB11: 4 | AC11: 2014-10-26 | AD11: 1 | AJ11: 2024-12-01 | AK11: 2024-11-30 | AL11: 2024-11-29 | AM11: 2024-11-28 | AO11: =NETWORKDAYS(AJ11,AJ11,koszyki!$M$20:$M$89) -> 0 | AP11: =NETWORKDAYS(AK11,AK11,koszyki!$M$20:$M$89) -> 0 | AQ11: =NETWORKDAYS(AL11,AL11,koszyki!$M$20:$M$89) -> 1 | AR11: =NETWORKDAYS(AM11,AM11,koszyki!$M$20:$M$89) -> 1 | AT11: 0 | AU11: 0 | AV11: 1 | AW11: 2 | AY11: 2 | BB11: 2024-12-01 | BC11: 2024-12-02 | BD11: 2024-12-03 | BE11: 2024-12-04 | BG11: =NETWORKDAYS(BB11,BB11,koszyki!$M$20:$M$89) -> 0 | BH11: =NETWORKDAYS(BC11,BC11,koszyki!$M$20:$M$89) -> 1 | BI11: =NETWORKDAYS(BD11,BD11,koszyki!$M$20:$M$89) -> 1 | BJ11: =NETWORKDAYS(BE11,BE11,koszyki!$M$20:$M$89) -> 1 | BL11: 0 | BM11: 1 | BN11: 2 | BO11: 3 | BQ11: 1
A12: 2024-12-02 | B12: 2024-12-02 | C12: 24 | D12: ='Kalkulator Depozytów'!M17 -> 0 | E12: ='Kalkulator Depozytów'!N17 -> 0 | F12: ='Kalkulator Depozytów'!O17 -> 0 | G12: ='Kalkulator Depozytów'!P17 -> 0 | H12: ='Kalkulator Depozytów'!Q17 -> 0 | I12: =ROUND(IF(OR(AND(K12>0,L12="L-PEAK5"),AND(K12>0,L12="H-PEAK5")),R12,IF(AND(K12>0,L12="PEAK5"),O12,IF(K12>0,IF(OR(L12="BASE"),AVERAGE(INDIRECT("krzywa!B"&MATCH(A12-$A$2,krzywa!A:A,0)&":B"&MATCH(B12-$A$2,krzywa!A:A,0),TRUE)),IF(OR(L12="OFFPEAK"),AVERAGE(INDIRECT("krzywa!F"&MATCH(A12-$A$2,krzywa!A:A,0)&":F"&MATCH(B12-$A$2,krzywa!A:A,0)))))))),4) ->  | J12: 0 | K12: 45628 | L12: BASE | M12: =NETWORKDAYS(A12,B12,koszyki!$M$20:$M$898) -> 1 | N12: =B12-A12+1- NETWORKDAYS(A12,B12,koszyki!$M$20:$M$898) -> 0 | O12: =ROUND(IF((B12-A12+1)>2,IF(C12=75,AVERAGE(INDIRECT("krzywa!C"&MATCH(K12-6,krzywa!A:A,0)&":C"&MATCH(K12-2,krzywa!A:A,0))),AVERAGE(INDIRECT("krzywa!C"&MATCH(A12-$A$2+BQ12,krzywa!A:A,0)&":C"&MATCH(B12-$A$2-AY12,krzywa!A:A,0)))),INDIRECT("krzywa!C"&MATCH(K12,krzywa!A:A,0))),4) ->  | P12: 0 | Q12: =-C12*ABS(D12-F12)*H12*I12*U12+'kompensacja międzyproduktowa'!X12*U12 ->  | R12: =ROUND(IF((B12-A12+1)>2,IF(C12=75,AVERAGE(INDIRECT("krzywa!D"&MATCH(K12-6,krzywa!A:A,0)&":D"&MATCH(K12-2,krzywa!A:A,0))),AVERAGE(INDIRECT("krzywa!D"&MATCH(A12-$A$2+BQ12,krzywa!A:A,0)&":D"&MATCH(B12-$A$2-AY12,krzywa!A:A,0)))),INDIRECT("krzywa!D"&MATCH(K12,krzywa!A:A,0))),4) ->  | S12: =VLOOKUP(A12,krzywa!L:N,3,1) -> 0 | T12: =VLOOKUP(B12,krzywa!L:N,3,1) -> 0 | U12: =IF('Kalkulator Depozytów'!$B$35=TRUE,1,(1+S12/100)*W12+(1+T12/100)*(1-W12)) -> 1 | V12: =IF(S12<>T12,VLOOKUP(A12,krzywa!L:M,2,1)) -> FALSE | W12: =IF(V12<>FALSE,IF(L12="BASE",(V12-A12+1)*24+J12,IF(L12="OFFPEAK",NETWORKDAYS(A12,V12,koszyki!$M$20:$M$898)*9+(N12)*24+J12,IF(L12="L-PEAK5",NETWORKDAYS(A12,V12,koszyki!$M$20:$M$898)*10,IF(L12="H-PEAK5",NETWORKDAYS(A12,V12,koszyki!$M$20:$M$898)*5,NETWORKDAYS(A12,V12,koszyki!$M$20:$M$898)*15))))/C12,1) -> 1 | Y12: -4661 | Z12: -5026 | AB12: 5 | AC12: 2015-03-29 | AD12: -1 | AJ12: 2024-12-02 | AK12: 2024-12-01 | AL12: 2024-11-30 | AM12: 2024-11-29 | AO12: =NETWORKDAYS(AJ12,AJ12,koszyki!$M$20:$M$89) -> 1 | AP12: =NETWORKDAYS(AK12,AK12,koszyki!$M$20:$M$89) -> 0 | AQ12: =NETWORKDAYS(AL12,AL12,koszyki!$M$20:$M$89) -> 0 | AR12: =NETWORKDAYS(AM12,AM12,koszyki!$M$20:$M$89) -> 1 | AT12: 1 | AU12: 1 | AV12: 1 | AW12: 2 | AY12: 0 | BB12: 2024-12-02 | BC12: 2024-12-03 | BD12: 2024-12-04 | BE12: 2024-12-05 | BG12: =NETWORKDAYS(BB12,BB12,koszyki!$M$20:$M$89) -> 1 | BH12: =NETWORKDAYS(BC12,BC12,koszyki!$M$20:$M$89) -> 1 | BI12: =NETWORKDAYS(BD12,BD12,koszyki!$M$20:$M$89) -> 1 | BJ12: =NETWORKDAYS(BE12,BE12,koszyki!$M$20:$M$89) -> 1 | BL12: 1 | BM12: 2 | BN12: 3 | BO12: 4 | BQ12: 0
A13: 2024-12-03 | B13: 2024-12-03 | C13: 24 | D13: ='Kalkulator Depozytów'!M18 -> 0 | E13: ='Kalkulator Depozytów'!N18 -> 0 | F13: ='Kalkulator Depozytów'!O18 -> 0 | G13: ='Kalkulator Depozytów'!P18 -> 0 | H13: ='Kalkulator Depozytów'!Q18 -> 0 | I13: =ROUND(IF(OR(AND(K13>0,L13="L-PEAK5"),AND(K13>0,L13="H-PEAK5")),R13,IF(AND(K13>0,L13="PEAK5"),O13,IF(K13>0,IF(OR(L13="BASE"),AVERAGE(INDIRECT("krzywa!B"&MATCH(A13-$A$2,krzywa!A:A,0)&":B"&MATCH(B13-$A$2,krzywa!A:A,0),TRUE)),IF(OR(L13="OFFPEAK"),AVERAGE(INDIRECT("krzywa!F"&MATCH(A13-$A$2,krzywa!A:A,0)&":F"&MATCH(B13-$A$2,krzywa!A:A,0)))))))),4) ->  | J13: 0 | K13: 45629 | L13: BASE | M13: =NETWORKDAYS(A13,B13,koszyki!$M$20:$M$898) -> 1 | N13: =B13-A13+1- NETWORKDAYS(A13,B13,koszyki!$M$20:$M$898) -> 0 | O13: =ROUND(IF((B13-A13+1)>2,IF(C13=75,AVERAGE(INDIRECT("krzywa!C"&MATCH(K13-6,krzywa!A:A,0)&":C"&MATCH(K13-2,krzywa!A:A,0))),AVERAGE(INDIRECT("krzywa!C"&MATCH(A13-$A$2+BQ13,krzywa!A:A,0)&":C"&MATCH(B13-$A$2-AY13,krzywa!A:A,0)))),INDIRECT("krzywa!C"&MATCH(K13,krzywa!A:A,0))),4) ->  | P13: 0 | Q13: =-C13*ABS(D13-F13)*H13*I13*U13+'kompensacja międzyproduktowa'!X13*U13 ->  | R13: =ROUND(IF((B13-A13+1)>2,IF(C13=75,AVERAGE(INDIRECT("krzywa!D"&MATCH(K13-6,krzywa!A:A,0)&":D"&MATCH(K13-2,krzywa!A:A,0))),AVERAGE(INDIRECT("krzywa!D"&MATCH(A13-$A$2+BQ13,krzywa!A:A,0)&":D"&MATCH(B13-$A$2-AY13,krzywa!A:A,0)))),INDIRECT("krzywa!D"&MATCH(K13,krzywa!A:A,0))),4) ->  | S13: =VLOOKUP(A13,krzywa!L:N,3,1) -> 0 | T13: =VLOOKUP(B13,krzywa!L:N,3,1) -> 0 | U13: =IF('Kalkulator Depozytów'!$B$35=TRUE,1,(1+S13/100)*W13+(1+T13/100)*(1-W13)) -> 1 | V13: =IF(S13<>T13,VLOOKUP(A13,krzywa!L:M,2,1)) -> FALSE | W13: =IF(V13<>FALSE,IF(L13="BASE",(V13-A13+1)*24+J13,IF(L13="OFFPEAK",NETWORKDAYS(A13,V13,koszyki!$M$20:$M$898)*9+(N13)*24+J13,IF(L13="L-PEAK5",NETWORKDAYS(A13,V13,koszyki!$M$20:$M$898)*10,IF(L13="H-PEAK5",NETWORKDAYS(A13,V13,koszyki!$M$20:$M$898)*5,NETWORKDAYS(A13,V13,koszyki!$M$20:$M$898)*15))))/C13,1) -> 1 | Y13: -4451 | Z13: -4816 | AB13: 6 | AC13: 2015-10-25 | AD13: 1 | AJ13: 2024-12-03 | AK13: 2024-12-02 | AL13: 2024-12-01 | AM13: 2024-11-30 | AO13: =NETWORKDAYS(AJ13,AJ13,koszyki!$M$20:$M$89) -> 1 | AP13: =NETWORKDAYS(AK13,AK13,koszyki!$M$20:$M$89) -> 1 | AQ13: =NETWORKDAYS(AL13,AL13,koszyki!$M$20:$M$89) -> 0 | AR13: =NETWORKDAYS(AM13,AM13,koszyki!$M$20:$M$89) -> 0 | AT13: 1 | AU13: 2 | AV13: 2 | AW13: 2 | AY13: 0 | BB13: 2024-12-03 | BC13: 2024-12-04 | BD13: 2024-12-05 | BE13: 2024-12-06 | BG13: =NETWORKDAYS(BB13,BB13,koszyki!$M$20:$M$89) -> 1 | BH13: =NETWORKDAYS(BC13,BC13,koszyki!$M$20:$M$89) -> 1 | BI13: =NETWORKDAYS(BD13,BD13,koszyki!$M$20:$M$89) -> 1 | BJ13: =NETWORKDAYS(BE13,BE13,koszyki!$M$20:$M$89) -> 1 | BL13: 1 | BM13: 2 | BN13: 3 | BO13: 4 | BQ13: 0
A14: 2024-12-04 | B14: 2024-12-04 | C14: 24 | D14: ='Kalkulator Depozytów'!M19 -> 0 | E14: ='Kalkulator Depozytów'!N19 -> 0 | F14: ='Kalkulator Depozytów'!O19 -> 0 | G14: ='Kalkulator Depozytów'!P19 -> 0 | H14: ='Kalkulator Depozytów'!Q19 -> 0 | I14: =ROUND(IF(OR(AND(K14>0,L14="L-PEAK5"),AND(K14>0,L14="H-PEAK5")),R14,IF(AND(K14>0,L14="PEAK5"),O14,IF(K14>0,IF(OR(L14="BASE"),AVERAGE(INDIRECT("krzywa!B"&MATCH(A14-$A$2,krzywa!A:A,0)&":B"&MATCH(B14-$A$2,krzywa!A:A,0),TRUE)),IF(OR(L14="OFFPEAK"),AVERAGE(INDIRECT("krzywa!F"&MATCH(A14-$A$2,krzywa!A:A,0)&":F"&MATCH(B14-$A$2,krzywa!A:A,0)))))))),4) ->  | J14: 0 | K14: 45630 | L14: BASE | M14: =NETWORKDAYS(A14,B14,koszyki!$M$20:$M$898) -> 1 | N14: =B14-A14+1- NETWORKDAYS(A14,B14,koszyki!$M$20:$M$898) -> 0 | O14: =ROUND(IF((B14-A14+1)>2,IF(C14=75,AVERAGE(INDIRECT("krzywa!C"&MATCH(K14-6,krzywa!A:A,0)&":C"&MATCH(K14-2,krzywa!A:A,0))),AVERAGE(INDIRECT("krzywa!C"&MATCH(A14-$A$2+BQ14,krzywa!A:A,0)&":C"&MATCH(B14-$A$2-AY14,krzywa!A:A,0)))),INDIRECT("krzywa!C"&MATCH(K14,krzywa!A:A,0))),4) ->  | P14: 0 | Q14: =-C14*ABS(D14-F14)*H14*I14*U14+'kompensacja międzyproduktowa'!X14*U14 ->  | R14: =ROUND(IF((B14-A14+1)>2,IF(C14=75,AVERAGE(INDIRECT("krzywa!D"&MATCH(K14-6,krzywa!A:A,0)&":D"&MATCH(K14-2,krzywa!A:A,0))),AVERAGE(INDIRECT("krzywa!D"&MATCH(A14-$A$2+BQ14,krzywa!A:A,0)&":D"&MATCH(B14-$A$2-AY14,krzywa!A:A,0)))),INDIRECT("krzywa!D"&MATCH(K14,krzywa!A:A,0))),4) ->  | S14: =VLOOKUP(A14,krzywa!L:N,3,1) -> 0 | T14: =VLOOKUP(B14,krzywa!L:N,3,1) -> 0 | U14: =IF('Kalkulator Depozytów'!$B$35=TRUE,1,(1+S14/100)*W14+(1+T14/100)*(1-W14)) -> 1 | V14: =IF(S14<>T14,VLOOKUP(A14,krzywa!L:M,2,1)) -> FALSE | W14: =IF(V14<>FALSE,IF(L14="BASE",(V14-A14+1)*24+J14,IF(L14="OFFPEAK",NETWORKDAYS(A14,V14,koszyki!$M$20:$M$898)*9+(N14)*24+J14,IF(L14="L-PEAK5",NETWORKDAYS(A14,V14,koszyki!$M$20:$M$898)*10,IF(L14="H-PEAK5",NETWORKDAYS(A14,V14,koszyki!$M$20:$M$898)*5,NETWORKDAYS(A14,V14,koszyki!$M$20:$M$898)*15))))/C14,1) -> 1 | Y14: -4297 | Z14: -4662 | AB14: 7 | AC14: 2016-03-27 | AD14: -1 | AJ14: 2024-12-04 | AK14: 2024-12-03 | AL14: 2024-12-02 | AM14: 2024-12-01 | AO14: =NETWORKDAYS(AJ14,AJ14,koszyki!$M$20:$M$89) -> 1 | AP14: =NETWORKDAYS(AK14,AK14,koszyki!$M$20:$M$89) -> 1 | AQ14: =NETWORKDAYS(AL14,AL14,koszyki!$M$20:$M$89) -> 1 | AR14: =NETWORKDAYS(AM14,AM14,koszyki!$M$20:$M$89) -> 0 | AT14: 1 | AU14: 2 | AV14: 3 | AW14: 3 | AY14: 0 | BB14: 2024-12-04 | BC14: 2024-12-05 | BD14: 2024-12-06 | BE14: 2024-12-07 | BG14: =NETWORKDAYS(BB14,BB14,koszyki!$M$20:$M$89) -> 1 | BH14: =NETWORKDAYS(BC14,BC14,koszyki!$M$20:$M$89) -> 1 | BI14: =NETWORKDAYS(BD14,BD14,koszyki!$M$20:$M$89) -> 1 | BJ14: =NETWORKDAYS(BE14,BE14,koszyki!$M$20:$M$89) -> 0 | BL14: 1 | BM14: 2 | BN14: 3 | BO14: 3 | BQ14: 0
A15: 2024-12-05 | B15: 2024-12-05 | C15: 24 | D15: ='Kalkulator Depozytów'!M20 -> 0 | E15: ='Kalkulator Depozytów'!N20 -> 0 | F15: ='Kalkulator Depozytów'!O20 -> 0 | G15: ='Kalkulator Depozytów'!P20 -> 0 | H15: ='Kalkulator Depozytów'!Q20 -> 0 | I15: =ROUND(IF(OR(AND(K15>0,L15="L-PEAK5"),AND(K15>0,L15="H-PEAK5")),R15,IF(AND(K15>0,L15="PEAK5"),O15,IF(K15>0,IF(OR(L15="BASE"),AVERAGE(INDIRECT("krzywa!B"&MATCH(A15-$A$2,krzywa!A:A,0)&":B"&MATCH(B15-$A$2,krzywa!A:A,0),TRUE)),IF(OR(L15="OFFPEAK"),AVERAGE(INDIRECT("krzywa!F"&MATCH(A15-$A$2,krzywa!A:A,0)&":F"&MATCH(B15-$A$2,krzywa!A:A,0)))))))),4) ->  | J15: 0 | K15: 45631 | L15: BASE | M15: =NETWORKDAYS(A15,B15,koszyki!$M$20:$M$898) -> 1 | N15: =B15-A15+1- NETWORKDAYS(A15,B15,koszyki!$M$20:$M$898) -> 0 | O15: =ROUND(IF((B15-A15+1)>2,IF(C15=75,AVERAGE(INDIRECT("krzywa!C"&MATCH(K15-6,krzywa!A:A,0)&":C"&MATCH(K15-2,krzywa!A:A,0))),AVERAGE(INDIRECT("krzywa!C"&MATCH(A15-$A$2+BQ15,krzywa!A:A,0)&":C"&MATCH(B15-$A$2-AY15,krzywa!A:A,0)))),INDIRECT("krzywa!C"&MATCH(K15,krzywa!A:A,0))),4) ->  | P15: 0 | Q15: =-C15*ABS(D15-F15)*H15*I15*U15+'kompensacja międzyproduktowa'!X15*U15 ->  | R15: =ROUND(IF((B15-A15+1)>2,IF(C15=75,AVERAGE(INDIRECT("krzywa!D"&MATCH(K15-6,krzywa!A:A,0)&":D"&MATCH(K15-2,krzywa!A:A,0))),AVERAGE(INDIRECT("krzywa!D"&MATCH(A15-$A$2+BQ15,krzywa!A:A,0)&":D"&MATCH(B15-$A$2-AY15,krzywa!A:A,0)))),INDIRECT("krzywa!D"&MATCH(K15,krzywa!A:A,0))),4) ->  | S15: =VLOOKUP(A15,krzywa!L:N,3,1) -> 0 | T15: =VLOOKUP(B15,krzywa!L:N,3,1) -> 0 | U15: =IF('Kalkulator Depozytów'!$B$35=TRUE,1,(1+S15/100)*W15+(1+T15/100)*(1-W15)) -> 1 | V15: =IF(S15<>T15,VLOOKUP(A15,krzywa!L:M,2,1)) -> FALSE | W15: =IF(V15<>FALSE,IF(L15="BASE",(V15-A15+1)*24+J15,IF(L15="OFFPEAK",NETWORKDAYS(A15,V15,koszyki!$M$20:$M$898)*9+(N15)*24+J15,IF(L15="L-PEAK5",NETWORKDAYS(A15,V15,koszyki!$M$20:$M$898)*10,IF(L15="H-PEAK5",NETWORKDAYS(A15,V15,koszyki!$M$20:$M$898)*5,NETWORKDAYS(A15,V15,koszyki!$M$20:$M$898)*15))))/C15,1) -> 1 | Y15: -4080 | Z15: -4445 | AB15: 8 | AC15: 2016-10-30 | AD15: 1 | AJ15: 2024-12-05 | AK15: 2024-12-04 | AL15: 2024-12-03 | AM15: 2024-12-02 | AO15: =NETWORKDAYS(AJ15,AJ15,koszyki!$M$20:$M$89) -> 1 | AP15: =NETWORKDAYS(AK15,AK15,koszyki!$M$20:$M$89) -> 1 | AQ15: =NETWORKDAYS(AL15,AL15,koszyki!$M$20:$M$89) -> 1 | AR15: =NETWORKDAYS(AM15,AM15,koszyki!$M$20:$M$89) -> 1 | AT15: 1 | AU15: 2 | AV15: 3 | AW15: 4 | AY15: 0 | BB15: 2024-12-05 | BC15: 2024-12-06 | BD15: 2024-12-07 | BE15: 2024-12-08 | BG15: =NETWORKDAYS(BB15,BB15,koszyki!$M$20:$M$89) -> 1 | BH15: =NETWORKDAYS(BC15,BC15,koszyki!$M$20:$M$89) -> 1 | BI15: =NETWORKDAYS(BD15,BD15,koszyki!$M$20:$M$89) -> 0 | BJ15: =NETWORKDAYS(BE15,BE15,koszyki!$M$20:$M$89) -> 0 | BL15: 1 | BM15: 2 | BN15: 2 | BO15: 2 | BQ15: 0
A16: 2024-12-06 | B16: 2024-12-06 | C16: 24 | D16: ='Kalkulator Depozytów'!M21 -> 0 | E16: ='Kalkulator Depozytów'!N21 -> 0 | F16: ='Kalkulator Depozytów'!O21 -> 0 | G16: ='Kalkulator Depozytów'!P21 -> 0 | H16: ='Kalkulator Depozytów'!Q21 -> 0 | I16: =ROUND(IF(OR(AND(K16>0,L16="L-PEAK5"),AND(K16>0,L16="H-PEAK5")),R16,IF(AND(K16>0,L16="PEAK5"),O16,IF(K16>0,IF(OR(L16="BASE"),AVERAGE(INDIRECT("krzywa!B"&MATCH(A16-$A$2,krzywa!A:A,0)&":B"&MATCH(B16-$A$2,krzywa!A:A,0),TRUE)),IF(OR(L16="OFFPEAK"),AVERAGE(INDIRECT("krzywa!F"&MATCH(A16-$A$2,krzywa!A:A,0)&":F"&MATCH(B16-$A$2,krzywa!A:A,0)))))))),4) ->  | J16: 0 | K16: 45632 | L16: BASE | M16: =NETWORKDAYS(A16,B16,koszyki!$M$20:$M$898) -> 1 | N16: =B16-A16+1- NETWORKDAYS(A16,B16,koszyki!$M$20:$M$898) -> 0 | O16: =ROUND(IF((B16-A16+1)>2,IF(C16=75,AVERAGE(INDIRECT("krzywa!C"&MATCH(K16-6,krzywa!A:A,0)&":C"&MATCH(K16-2,krzywa!A:A,0))),AVERAGE(INDIRECT("krzywa!C"&MATCH(A16-$A$2+BQ16,krzywa!A:A,0)&":C"&MATCH(B16-$A$2-AY16,krzywa!A:A,0)))),INDIRECT("krzywa!C"&MATCH(K16,krzywa!A:A,0))),4) ->  | P16: 0 | Q16: =-C16*ABS(D16-F16)*H16*I16*U16+'kompensacja międzyproduktowa'!X16*U16 ->  | R16: =ROUND(IF((B16-A16+1)>2,IF(C16=75,AVERAGE(INDIRECT("krzywa!D"&MATCH(K16-6,krzywa!A:A,0)&":D"&MATCH(K16-2,krzywa!A:A,0))),AVERAGE(INDIRECT("krzywa!D"&MATCH(A16-$A$2+BQ16,krzywa!A:A,0)&":D"&MATCH(B16-$A$2-AY16,krzywa!A:A,0)))),INDIRECT("krzywa!D"&MATCH(K16,krzywa!A:A,0))),4) ->  | S16: =VLOOKUP(A16,krzywa!L:N,3,1) -> 0 | T16: =VLOOKUP(B16,krzywa!L:N,3,1) -> 0 | U16: =IF('Kalkulator Depozytów'!$B$35=TRUE,1,(1+S16/100)*W16+(1+T16/100)*(1-W16)) -> 1 | V16: =IF(S16<>T16,VLOOKUP(A16,krzywa!L:M,2,1)) -> FALSE | W16: =IF(V16<>FALSE,IF(L16="BASE",(V16-A16+1)*24+J16,IF(L16="OFFPEAK",NETWORKDAYS(A16,V16,koszyki!$M$20:$M$898)*9+(N16)*24+J16,IF(L16="L-PEAK5",NETWORKDAYS(A16,V16,koszyki!$M$20:$M$898)*10,IF(L16="H-PEAK5",NETWORKDAYS(A16,V16,koszyki!$M$20:$M$898)*5,NETWORKDAYS(A16,V16,koszyki!$M$20:$M$898)*15))))/C16,1) -> 1 | Y16: -3933 | Z16: -4298 | AB16: 9 | AC16: 2017-03-26 | AD16: -1 | AJ16: 2024-12-06 | AK16: 2024-12-05 | AL16: 2024-12-04 | AM16: 2024-12-03 | AO16: =NETWORKDAYS(AJ16,AJ16,koszyki!$M$20:$M$89) -> 1 | AP16: =NETWORKDAYS(AK16,AK16,koszyki!$M$20:$M$89) -> 1 | AQ16: =NETWORKDAYS(AL16,AL16,koszyki!$M$20:$M$89) -> 1 | AR16: =NETWORKDAYS(AM16,AM16,koszyki!$M$20:$M$89) -> 1 | AT16: 1 | AU16: 2 | AV16: 3 | AW16: 4 | AY16: 0 | BB16: 2024-12-06 | BC16: 2024-12-07 | BD16: 2024-12-08 | BE16: 2024-12-09 | BG16: =NETWORKDAYS(BB16,BB16,koszyki!$M$20:$M$89) -> 1 | BH16: =NETWORKDAYS(BC16,BC16,koszyki!$M$20:$M$89) -> 0 | BI16: =NETWORKDAYS(BD16,BD16,koszyki!$M$20:$M$89) -> 0 | BJ16: =NETWORKDAYS(BE16,BE16,koszyki!$M$20:$M$89) -> 1 | BL16: 1 | BM16: 1 | BN16: 1 | BO16: 2 | BQ16: 0
A17: 2024-12-07 | B17: 2024-12-07 | C17: 24 | D17: ='Kalkulator Depozytów'!M22 -> 0 | E17: ='Kalkulator Depozytów'!N22 -> 0 | F17: ='Kalkulator Depozytów'!O22 -> 0 | G17: ='Kalkulator Depozytów'!P22 -> 0 | H17: ='Kalkulator Depozytów'!Q22 -> 0 | I17: =ROUND(IF(OR(AND(K17>0,L17="L-PEAK5"),AND(K17>0,L17="H-PEAK5")),R17,IF(AND(K17>0,L17="PEAK5"),O17,IF(K17>0,IF(OR(L17="BASE"),AVERAGE(INDIRECT("krzywa!B"&MATCH(A17-$A$2,krzywa!A:A,0)&":B"&MATCH(B17-$A$2,krzywa!A:A,0),TRUE)),IF(OR(L17="OFFPEAK"),AVERAGE(INDIRECT("krzywa!F"&MATCH(A17-$A$2,krzywa!A:A,0)&":F"&MATCH(B17-$A$2,krzywa!A:A,0)))))))),4) ->  | J17: 0 | K17: 45633 | L17: BASE | M17: =NETWORKDAYS(A17,B17,koszyki!$M$20:$M$898) -> 0 | N17: =B17-A17+1- NETWORKDAYS(A17,B17,koszyki!$M$20:$M$898) -> 1 | O17: =ROUND(IF((B17-A17+1)>2,IF(C17=75,AVERAGE(INDIRECT("krzywa!C"&MATCH(K17-6,krzywa!A:A,0)&":C"&MATCH(K17-2,krzywa!A:A,0))),AVERAGE(INDIRECT("krzywa!C"&MATCH(A17-$A$2+BQ17,krzywa!A:A,0)&":C"&MATCH(B17-$A$2-AY17,krzywa!A:A,0)))),INDIRECT("krzywa!C"&MATCH(K17,krzywa!A:A,0))),4) ->  | P17: 0 | Q17: =-C17*ABS(D17-F17)*H17*I17*U17+'kompensacja międzyproduktowa'!X17*U17 ->  | R17: =ROUND(IF((B17-A17+1)>2,IF(C17=75,AVERAGE(INDIRECT("krzywa!D"&MATCH(K17-6,krzywa!A:A,0)&":D"&MATCH(K17-2,krzywa!A:A,0))),AVERAGE(INDIRECT("krzywa!D"&MATCH(A17-$A$2+BQ17,krzywa!A:A,0)&":D"&MATCH(B17-$A$2-AY17,krzywa!A:A,0)))),INDIRECT("krzywa!D"&MATCH(K17,krzywa!A:A,0))),4) ->  | S17: =VLOOKUP(A17,krzywa!L:N,3,1) -> 0 | T17: =VLOOKUP(B17,krzywa!L:N,3,1) -> 0 | U17: =IF('Kalkulator Depozytów'!$B$35=TRUE,1,(1+S17/100)*W17+(1+T17/100)*(1-W17)) -> 1 | V17: =IF(S17<>T17,VLOOKUP(A17,krzywa!L:M,2,1)) -> FALSE | W17: =IF(V17<>FALSE,IF(L17="BASE",(V17-A17+1)*24+J17,IF(L17="OFFPEAK",NETWORKDAYS(A17,V17,koszyki!$M$20:$M$898)*9+(N17)*24+J17,IF(L17="L-PEAK5",NETWORKDAYS(A17,V17,koszyki!$M$20:$M$898)*10,IF(L17="H-PEAK5",NETWORKDAYS(A17,V17,koszyki!$M$20:$M$898)*5,NETWORKDAYS(A17,V17,koszyki!$M$20:$M$898)*15))))/C17,1) -> 1 | Y17: -3716 | Z17: -4081 | AB17: 10 | AC17: 2017-10-29 | AD17: 1 | AJ17: 2024-12-07 | AK17: 2024-12-06 | AL17: 2024-12-05 | AM17: 2024-12-04 | AO17: =NETWORKDAYS(AJ17,AJ17,koszyki!$M$20:$M$89) -> 0 | AP17: =NETWORKDAYS(AK17,AK17,koszyki!$M$20:$M$89) -> 1 | AQ17: =NETWORKDAYS(AL17,AL17,koszyki!$M$20:$M$89) -> 1 | AR17: =NETWORKDAYS(AM17,AM17,koszyki!$M$20:$M$89) -> 1 | AT17: 0 | AU17: 1 | AV17: 2 | AW17: 3 | AY17: 1 | BB17: 2024-12-07 | BC17: 2024-12-08 | BD17: 2024-12-09 | BE17: 2024-12-10 | BG17: =NETWORKDAYS(BB17,BB17,koszyki!$M$20:$M$89) -> 0 | BH17: =NETWORKDAYS(BC17,BC17,koszyki!$M$20:$M$89) -> 0 | BI17: =NETWORKDAYS(BD17,BD17,koszyki!$M$20:$M$89) -> 1 | BJ17: =NETWORKDAYS(BE17,BE17,koszyki!$M$20:$M$89) -> 1 | BL17: 0 | BM17: 0 | BN17: 1 | BO17: 2 | BQ17: 2
A18: 2024-12-08 | B18: 2024-12-08 | C18: 24 | D18: ='Kalkulator Depozytów'!M23 -> 0 | E18: ='Kalkulator Depozytów'!N23 -> 0 | F18: ='Kalkulator Depozytów'!O23 -> 0 | G18: ='Kalkulator Depozytów'!P23 -> 0 | H18: ='Kalkulator Depozytów'!Q23 -> 0 | I18: =ROUND(IF(OR(AND(K18>0,L18="L-PEAK5"),AND(K18>0,L18="H-PEAK5")),R18,IF(AND(K18>0,L18="PEAK5"),O18,IF(K18>0,IF(OR(L18="BASE"),AVERAGE(INDIRECT("krzywa!B"&MATCH(A18-$A$2,krzywa!A:A,0)&":B"&MATCH(B18-$A$2,krzywa!A:A,0),TRUE)),IF(OR(L18="OFFPEAK"),AVERAGE(INDIRECT("krzywa!F"&MATCH(A18-$A$2,krzywa!A:A,0)&":F"&MATCH(B18-$A$2,krzywa!A:A,0)))))))),4) ->  | J18: 0 | K18: 45634 | L18: BASE | M18: =NETWORKDAYS(A18,B18,koszyki!$M$20:$M$898) -> 0 | N18: =B18-A18+1- NETWORKDAYS(A18,B18,koszyki!$M$20:$M$898) -> 1 | O18: =ROUND(IF((B18-A18+1)>2,IF(C18=75,AVERAGE(INDIRECT("krzywa!C"&MATCH(K18-6,krzywa!A:A,0)&":C"&MATCH(K18-2,krzywa!A:A,0))),AVERAGE(INDIRECT("krzywa!C"&MATCH(A18-$A$2+BQ18,krzywa!A:A,0)&":C"&MATCH(B18-$A$2-AY18,krzywa!A:A,0)))),INDIRECT("krzywa!C"&MATCH(K18,krzywa!A:A,0))),4) ->  | P18: 0 | Q18: =-C18*ABS(D18-F18)*H18*I18*U18+'kompensacja międzyproduktowa'!X18*U18 ->  | R18: =ROUND(IF((B18-A18+1)>2,IF(C18=75,AVERAGE(INDIRECT("krzywa!D"&MATCH(K18-6,krzywa!A:A,0)&":D"&MATCH(K18-2,krzywa!A:A,0))),AVERAGE(INDIRECT("krzywa!D"&MATCH(A18-$A$2+BQ18,krzywa!A:A,0)&":D"&MATCH(B18-$A$2-AY18,krzywa!A:A,0)))),INDIRECT("krzywa!D"&MATCH(K18,krzywa!A:A,0))),4) ->  | S18: =VLOOKUP(A18,krzywa!L:N,3,1) -> 0 | T18: =VLOOKUP(B18,krzywa!L:N,3,1) -> 0 | U18: =IF('Kalkulator Depozytów'!$B$35=TRUE,1,(1+S18/100)*W18+(1+T18/100)*(1-W18)) -> 1 | V18: =IF(S18<>T18,VLOOKUP(A18,krzywa!L:M,2,1)) -> FALSE | W18: =IF(V18<>FALSE,IF(L18="BASE",(V18-A18+1)*24+J18,IF(L18="OFFPEAK",NETWORKDAYS(A18,V18,koszyki!$M$20:$M$898)*9+(N18)*24+J18,IF(L18="L-PEAK5",NETWORKDAYS(A18,V18,koszyki!$M$20:$M$898)*10,IF(L18="H-PEAK5",NETWORKDAYS(A18,V18,koszyki!$M$20:$M$898)*5,NETWORKDAYS(A18,V18,koszyki!$M$20:$M$898)*15))))/C18,1) -> 1 | Y18: -3569 | Z18: -3934 | AB18: 11 | AC18: 2018-03-25 | AD18: -1 | AJ18: 2024-12-08 | AK18: 2024-12-07 | AL18: 2024-12-06 | AM18: 2024-12-05 | AO18: =NETWORKDAYS(AJ18,AJ18,koszyki!$M$20:$M$89) -> 0 | AP18: =NETWORKDAYS(AK18,AK18,koszyki!$M$20:$M$89) -> 0 | AQ18: =NETWORKDAYS(AL18,AL18,koszyki!$M$20:$M$89) -> 1 | AR18: =NETWORKDAYS(AM18,AM18,koszyki!$M$20:$M$89) -> 1 | AT18: 0 | AU18: 0 | AV18: 1 | AW18: 2 | AY18: 2 | BB18: 2024-12-08 | BC18: 2024-12-09 | BD18: 2024-12-10 | BE18: 2024-12-11 | BG18: =NETWORKDAYS(BB18,BB18,koszyki!$M$20:$M$89) -> 0 | BH18: =NETWORKDAYS(BC18,BC18,koszyki!$M$20:$M$89) -> 1 | BI18: =NETWORKDAYS(BD18,BD18,koszyki!$M$20:$M$89) -> 1 | BJ18: =NETWORKDAYS(BE18,BE18,koszyki!$M$20:$M$89) -> 1 | BL18: 0 | BM18: 1 | BN18: 2 | BO18: 3 | BQ18: 1
A19: 2024-12-09 | B19: 2024-12-15 | C19: 168 | D19: ='Kalkulator Depozytów'!M24 -> 0 | E19: ='Kalkulator Depozytów'!N24 -> 0 | F19: ='Kalkulator Depozytów'!O24 -> 0 | G19: ='Kalkulator Depozytów'!P24 -> 0 | H19: ='Kalkulator Depozytów'!Q24 -> 0 | I19: =ROUND(IF(OR(AND(K19>0,L19="L-PEAK5"),AND(K19>0,L19="H-PEAK5")),R19,IF(AND(K19>0,L19="PEAK5"),O19,IF(K19>0,IF(OR(L19="BASE"),AVERAGE(INDIRECT("krzywa!B"&MATCH(A19-$A$2,krzywa!A:A,0)&":B"&MATCH(B19-$A$2,krzywa!A:A,0),TRUE)),IF(OR(L19="OFFPEAK"),AVERAGE(INDIRECT("krzywa!F"&MATCH(A19-$A$2,krzywa!A:A,0)&":F"&MATCH(B19-$A$2,krzywa!A:A,0)))))))),4) ->  | J19: 0 | K19: 45641 | L19: BASE | M19: =NETWORKDAYS(A19,B19,koszyki!$M$20:$M$898) -> 5 | N19: =B19-A19+1- NETWORKDAYS(A19,B19,koszyki!$M$20:$M$898) -> 2 | O19: =ROUND(IF((B19-A19+1)>2,IF(C19=75,AVERAGE(INDIRECT("krzywa!C"&MATCH(K19-6,krzywa!A:A,0)&":C"&MATCH(K19-2,krzywa!A:A,0))),AVERAGE(INDIRECT("krzywa!C"&MATCH(A19-$A$2+BQ19,krzywa!A:A,0)&":C"&MATCH(B19-$A$2-AY19,krzywa!A:A,0)))),INDIRECT("krzywa!C"&MATCH(K19,krzywa!A:A,0))),4) ->  | P19: 0 | Q19: =-C19*ABS(D19-F19)*H19*I19*U19+'kompensacja międzyproduktowa'!X19*U19 ->  | R19: =ROUND(IF((B19-A19+1)>2,IF(C19=75,AVERAGE(INDIRECT("krzywa!D"&MATCH(K19-6,krzywa!A:A,0)&":D"&MATCH(K19-2,krzywa!A:A,0))),AVERAGE(INDIRECT("krzywa!D"&MATCH(A19-$A$2+BQ19,krzywa!A:A,0)&":D"&MATCH(B19-$A$2-AY19,krzywa!A:A,0)))),INDIRECT("krzywa!D"&MATCH(K19,krzywa!A:A,0))),4) ->  | S19: =VLOOKUP(A19,krzywa!L:N,3,1) -> 0 | T19: =VLOOKUP(B19,krzywa!L:N,3,1) -> 0 | U19: =IF('Kalkulator Depozytów'!$B$35=TRUE,1,(1+S19/100)*W19+(1+T19/100)*(1-W19)) -> 1 | V19: =IF(S19<>T19,VLOOKUP(A19,krzywa!L:M,2,1)) -> FALSE | W19: =IF(V19<>FALSE,IF(L19="BASE",(V19-A19+1)*24+J19,IF(L19="OFFPEAK",NETWORKDAYS(A19,V19,koszyki!$M$20:$M$898)*9+(N19)*24+J19,IF(L19="L-PEAK5",NETWORKDAYS(A19,V19,koszyki!$M$20:$M$898)*10,IF(L19="H-PEAK5",NETWORKDAYS(A19,V19,koszyki!$M$20:$M$898)*5,NETWORKDAYS(A19,V19,koszyki!$M$20:$M$898)*15))))/C19,1) -> 1 | Y19: -3352 | Z19: -3717 | AB19: 12 | AC19: 2018-10-28 | AD19: 1 | AJ19: 2024-12-15 | AK19: 2024-12-14 | AL19: 2024-12-13 | AM19: 2024-12-12 | AO19: =NETWORKDAYS(AJ19,AJ19,koszyki!$M$20:$M$89) -> 0 | AP19: =NETWORKDAYS(AK19,AK19,koszyki!$M$20:$M$89) -> 0 | AQ19: =NETWORKDAYS(AL19,AL19,koszyki!$M$20:$M$89) -> 1 | AR19: =NETWORKDAYS(AM19,AM19,koszyki!$M$20:$M$89) -> 1 | AT19: 0 | AU19: 0 | AV19: 1 | AW19: 2 | AY19: 2 | BB19: 2024-12-09 | BC19: 2024-12-10 | BD19: 2024-12-11 | BE19: 2024-12-12 | BG19: =NETWORKDAYS(BB19,BB19,koszyki!$M$20:$M$89) -> 1 | BH19: =NETWORKDAYS(BC19,BC19,koszyki!$M$20:$M$89) -> 1 | BI19: =NETWORKDAYS(BD19,BD19,koszyki!$M$20:$M$89) -> 1 | BJ19: =NETWORKDAYS(BE19,BE19,koszyki!$M$20:$M$89) -> 1 | BL19: 1 | BM19: 2 | BN19: 3 | BO19: 4 | BQ19: 0
A20: 2024-12-16 | B20: 2024-12-22 | C20: 168 | D20: ='Kalkulator Depozytów'!M25 -> 0 | E20: ='Kalkulator Depozytów'!N25 -> 0 | F20: ='Kalkulator Depozytów'!O25 -> 0 | G20: ='Kalkulator Depozytów'!P25 -> 0 | H20: ='Kalkulator Depozytów'!Q25 -> 0 | I20: =ROUND(IF(OR(AND(K20>0,L20="L-PEAK5"),AND(K20>0,L20="H-PEAK5")),R20,IF(AND(K20>0,L20="PEAK5"),O20,IF(K20>0,IF(OR(L20="BASE"),AVERAGE(INDIRECT("krzywa!B"&MATCH(A20-$A$2,krzywa!A:A,0)&":B"&MATCH(B20-$A$2,krzywa!A:A,0),TRUE)),IF(OR(L20="OFFPEAK"),AVERAGE(INDIRECT("krzywa!F"&MATCH(A20-$A$2,krzywa!A:A,0)&":F"&MATCH(B20-$A$2,krzywa!A:A,0)))))))),4) ->  | J20: 0 | K20: 45648 | L20: BASE | M20: =NETWORKDAYS(A20,B20,koszyki!$M$20:$M$898) -> 5 | N20: =B20-A20+1- NETWORKDAYS(A20,B20,koszyki!$M$20:$M$898) -> 2 | O20: =ROUND(IF((B20-A20+1)>2,IF(C20=75,AVERAGE(INDIRECT("krzywa!C"&MATCH(K20-6,krzywa!A:A,0)&":C"&MATCH(K20-2,krzywa!A:A,0))),AVERAGE(INDIRECT("krzywa!C"&MATCH(A20-$A$2+BQ20,krzywa!A:A,0)&":C"&MATCH(B20-$A$2-AY20,krzywa!A:A,0)))),INDIRECT("krzywa!C"&MATCH(K20,krzywa!A:A,0))),4) ->  | P20: 0 | Q20: =-C20*ABS(D20-F20)*H20*I20*U20+'kompensacja międzyproduktowa'!X20*U20 ->  | R20: =ROUND(IF((B20-A20+1)>2,IF(C20=75,AVERAGE(INDIRECT("krzywa!D"&MATCH(K20-6,krzywa!A:A,0)&":D"&MATCH(K20-2,krzywa!A:A,0))),AVERAGE(INDIRECT("krzywa!D"&MATCH(A20-$A$2+BQ20,krzywa!A:A,0)&":D"&MATCH(B20-$A$2-AY20,krzywa!A:A,0)))),INDIRECT("krzywa!D"&MATCH(K20,krzywa!A:A,0))),4) ->  | S20: =VLOOKUP(A20,krzywa!L:N,3,1) -> 0 | T20: =VLOOKUP(B20,krzywa!L:N,3,1) -> 0 | U20: =IF('Kalkulator Depozytów'!$B$35=TRUE,1,(1+S20/100)*W20+(1+T20/100)*(1-W20)) -> 1 | V20: =IF(S20<>T20,VLOOKUP(A20,krzywa!L:M,2,1)) -> FALSE | W20: =IF(V20<>FALSE,IF(L20="BASE",(V20-A20+1)*24+J20,IF(L20="OFFPEAK",NETWORKDAYS(A20,V20,koszyki!$M$20:$M$898)*9+(N20)*24+J20,IF(L20="L-PEAK5",NETWORKDAYS(A20,V20,koszyki!$M$20:$M$898)*10,IF(L20="H-PEAK5",NETWORKDAYS(A20,V20,koszyki!$M$20:$M$898)*5,NETWORKDAYS(A20,V20,koszyki!$M$20:$M$898)*15))))/C20,1) -> 1 | Y20: -3198 | Z20: -3563 | AB20: 13 | AC20: 2019-03-31 | AD20: -1 | AJ20: 2024-12-22 | AK20: 2024-12-21 | AL20: 2024-12-20 | AM20: 2024-12-19 | AO20: =NETWORKDAYS(AJ20,AJ20,koszyki!$M$20:$M$89) -> 0 | AP20: =NETWORKDAYS(AK20,AK20,koszyki!$M$20:$M$89) -> 0 | AQ20: =NETWORKDAYS(AL20,AL20,koszyki!$M$20:$M$89) -> 1 | AR20: =NETWORKDAYS(AM20,AM20,koszyki!$M$20:$M$89) -> 1 | AT20: 0 | AU20: 0 | AV20: 1 | AW20: 2 | AY20: 2 | BB20: 2024-12-16 | BC20: 2024-12-17 | BD20: 2024-12-18 | BE20: 2024-12-19 | BG20: =NETWORKDAYS(BB20,BB20,koszyki!$M$20:$M$89) -> 1 | BH20: =NETWORKDAYS(BC20,BC20,koszyki!$M$20:$M$89) -> 1 | BI20: =NETWORKDAYS(BD20,BD20,koszyki!$M$20:$M$89) -> 1 | BJ20: =NETWORKDAYS(BE20,BE20,koszyki!$M$20:$M$89) -> 1 | BL20: 1 | BM20: 2 | BN20: 3 | BO20: 4 | BQ20: 0
A21: 2024-12-23 | B21: 2024-12-29 | C21: 168 | D21: ='Kalkulator Depozytów'!M26 -> 0 | E21: ='Kalkulator Depozytów'!N26 -> 0 | F21: ='Kalkulator Depozytów'!O26 -> 0 | G21: ='Kalkulator Depozytów'!P26 -> 0 | H21: ='Kalkulator Depozytów'!Q26 -> 0 | I21: =ROUND(IF(OR(AND(K21>0,L21="L-PEAK5"),AND(K21>0,L21="H-PEAK5")),R21,IF(AND(K21>0,L21="PEAK5"),O21,IF(K21>0,IF(OR(L21="BASE"),AVERAGE(INDIRECT("krzywa!B"&MATCH(A21-$A$2,krzywa!A:A,0)&":B"&MATCH(B21-$A$2,krzywa!A:A,0),TRUE)),IF(OR(L21="OFFPEAK"),AVERAGE(INDIRECT("krzywa!F"&MATCH(A21-$A$2,krzywa!A:A,0)&":F"&MATCH(B21-$A$2,krzywa!A:A,0)))))))),4) ->  | J21: 0 | K21: 45655 | L21: BASE | M21: =NETWORKDAYS(A21,B21,koszyki!$M$20:$M$898) -> 3 | N21: =B21-A21+1- NETWORKDAYS(A21,B21,koszyki!$M$20:$M$898) -> 4 | O21: =ROUND(IF((B21-A21+1)>2,IF(C21=75,AVERAGE(INDIRECT("krzywa!C"&MATCH(K21-6,krzywa!A:A,0)&":C"&MATCH(K21-2,krzywa!A:A,0))),AVERAGE(INDIRECT("krzywa!C"&MATCH(A21-$A$2+BQ21,krzywa!A:A,0)&":C"&MATCH(B21-$A$2-AY21,krzywa!A:A,0)))),INDIRECT("krzywa!C"&MATCH(K21,krzywa!A:A,0))),4) ->  | P21: 0 | Q21: =-C21*ABS(D21-F21)*H21*I21*U21+'kompensacja międzyproduktowa'!X21*U21 ->  | R21: =ROUND(IF((B21-A21+1)>2,IF(C21=75,AVERAGE(INDIRECT("krzywa!D"&MATCH(K21-6,krzywa!A:A,0)&":D"&MATCH(K21-2,krzywa!A:A,0))),AVERAGE(INDIRECT("krzywa!D"&MATCH(A21-$A$2+BQ21,krzywa!A:A,0)&":D"&MATCH(B21-$A$2-AY21,krzywa!A:A,0)))),INDIRECT("krzywa!D"&MATCH(K21,krzywa!A:A,0))),4) ->  | S21: =VLOOKUP(A21,krzywa!L:N,3,1) -> 0 | T21: =VLOOKUP(B21,krzywa!L:N,3,1) -> 0 | U21: =IF('Kalkulator Depozytów'!$B$35=TRUE,1,(1+S21/100)*W21+(1+T21/100)*(1-W21)) -> 1 | V21: =IF(S21<>T21,VLOOKUP(A21,krzywa!L:M,2,1)) -> FALSE | W21: =IF(V21<>FALSE,IF(L21="BASE",(V21-A21+1)*24+J21,IF(L21="OFFPEAK",NETWORKDAYS(A21,V21,koszyki!$M$20:$M$898)*9+(N21)*24+J21,IF(L21="L-PEAK5",NETWORKDAYS(A21,V21,koszyki!$M$20:$M$898)*10,IF(L21="H-PEAK5",NETWORKDAYS(A21,V21,koszyki!$M$20:$M$898)*5,NETWORKDAYS(A21,V21,koszyki!$M$20:$M$898)*15))))/C21,1) -> 1 | Y21: -2988 | Z21: -3353 | AB21: 14 | AC21: 2019-10-27 | AD21: 1 | AJ21: 2024-12-29 | AK21: 2024-12-28 | AL21: 2024-12-27 | AM21: 2024-12-26 | AO21: =NETWORKDAYS(AJ21,AJ21,koszyki!$M$20:$M$89) -> 0 | AP21: =NETWORKDAYS(AK21,AK21,koszyki!$M$20:$M$89) -> 0 | AQ21: =NETWORKDAYS(AL21,AL21,koszyki!$M$20:$M$89) -> 1 | AR21: =NETWORKDAYS(AM21,AM21,koszyki!$M$20:$M$89) -> 1 | AT21: 0 | AU21: 0 | AV21: 1 | AW21: 2 | AY21: 2 | BB21: 2024-12-23 | BC21: 2024-12-24 | BD21: 2024-12-25 | BE21: 2024-12-26 | BG21: =NETWORKDAYS(BB21,BB21,koszyki!$M$20:$M$89) -> 1 | BH21: =NETWORKDAYS(BC21,BC21,koszyki!$M$20:$M$89) -> 1 | BI21: =NETWORKDAYS(BD21,BD21,koszyki!$M$20:$M$89) -> 1 | BJ21: =NETWORKDAYS(BE21,BE21,koszyki!$M$20:$M$89) -> 1 | BL21: 1 | BM21: 2 | BN21: 3 | BO21: 4 | BQ21: 0
A22: 2024-12-30 | B22: 2024-12-31 | C22: 48 | D22: ='Kalkulator Depozytów'!M27 -> 0 | E22: ='Kalkulator Depozytów'!N27 -> 0 | F22: ='Kalkulator Depozytów'!O27 -> 0 | G22: ='Kalkulator Depozytów'!P27 -> 0 | H22: ='Kalkulator Depozytów'!Q27 -> 0 | I22: =ROUND(IF(OR(AND(K22>0,L22="L-PEAK5"),AND(K22>0,L22="H-PEAK5")),R22,IF(AND(K22>0,L22="PEAK5"),O22,IF(K22>0,IF(OR(L22="BASE"),AVERAGE(INDIRECT("krzywa!B"&MATCH(A22-$A$2,krzywa!A:A,0)&":B"&MATCH(B22-$A$2,krzywa!A:A,0),TRUE)),IF(OR(L22="OFFPEAK"),AVERAGE(INDIRECT("krzywa!F"&MATCH(A22-$A$2,krzywa!A:A,0)&":F"&MATCH(B22-$A$2,krzywa!A:A,0)))))))),4) ->  | J22: 0 | K22: 45657 | L22: BASE | M22: =NETWORKDAYS(A22,B22,koszyki!$M$20:$M$898) -> 2 | N22: =B22-A22+1- NETWORKDAYS(A22,B22,koszyki!$M$20:$M$898) -> 0 | O22: =ROUND(IF((B22-A22+1)>2,IF(C22=75,AVERAGE(INDIRECT("krzywa!C"&MATCH(K22-6,krzywa!A:A,0)&":C"&MATCH(K22-2,krzywa!A:A,0))),AVERAGE(INDIRECT("krzywa!C"&MATCH(A22-$A$2+BQ22,krzywa!A:A,0)&":C"&MATCH(B22-$A$2-AY22,krzywa!A:A,0)))),INDIRECT("krzywa!C"&MATCH(K22,krzywa!A:A,0))),4) ->  | P22: 0 | Q22: =-C22*ABS(D22-F22)*H22*I22*U22+'kompensacja międzyproduktowa'!X22*U22 ->  | R22: =ROUND(IF((B22-A22+1)>2,IF(C22=75,AVERAGE(INDIRECT("krzywa!D"&MATCH(K22-6,krzywa!A:A,0)&":D"&MATCH(K22-2,krzywa!A:A,0))),AVERAGE(INDIRECT("krzywa!D"&MATCH(A22-$A$2+BQ22,krzywa!A:A,0)&":D"&MATCH(B22-$A$2-AY22,krzywa!A:A,0)))),INDIRECT("krzywa!D"&MATCH(K22,krzywa!A:A,0))),4) ->  | S22: =VLOOKUP(A22,krzywa!L:N,3,1) -> 0 | T22: =VLOOKUP(B22,krzywa!L:N,3,1) -> 0 | U22: =IF('Kalkulator Depozytów'!$B$35=TRUE,1,(1+S22/100)*W22+(1+T22/100)*(1-W22)) -> 1 | V22: =IF(S22<>T22,VLOOKUP(A22,krzywa!L:M,2,1)) -> FALSE | W22: =IF(V22<>FALSE,IF(L22="BASE",(V22-A22+1)*24+J22,IF(L22="OFFPEAK",NETWORKDAYS(A22,V22,koszyki!$M$20:$M$898)*9+(N22)*24+J22,IF(L22="L-PEAK5",NETWORKDAYS(A22,V22,koszyki!$M$20:$M$898)*10,IF(L22="H-PEAK5",NETWORKDAYS(A22,V22,koszyki!$M$20:$M$898)*5,NETWORKDAYS(A22,V22,koszyki!$M$20:$M$898)*15))))/C22,1) -> 1 | Y22: -2834 | Z22: -3199 | AB22: 15 | AC22: 2020-03-29 | AD22: -1 | AJ22: 2024-12-31 | AK22: 2024-12-30 | AL22: 2024-12-29 | AM22: 2024-12-28 | AO22: =NETWORKDAYS(AJ22,AJ22,koszyki!$M$20:$M$89) -> 1 | AP22: =NETWORKDAYS(AK22,AK22,koszyki!$M$20:$M$89) -> 1 | AQ22: =NETWORKDAYS(AL22,AL22,koszyki!$M$20:$M$89) -> 0 | AR22: =NETWORKDAYS(AM22,AM22,koszyki!$M$20:$M$89) -> 0 | AT22: 1 | AU22: 2 | AV22: 2 | AW22: 2 | AY22: 0 | BB22: 2024-12-30 | BC22: 2024-12-31 | BD22: 2025-01-01 | BE22: 2025-01-02 | BG22: =NETWORKDAYS(BB22,BB22,koszyki!$M$20:$M$89) -> 1 | BH22: =NETWORKDAYS(BC22,BC22,koszyki!$M$20:$M$89) -> 1 | BI22: =NETWORKDAYS(BD22,BD22,koszyki!$M$20:$M$89) -> 1 | BJ22: =NETWORKDAYS(BE22,BE22,koszyki!$M$20:$M$89) -> 1 | BL22: 1 | BM22: 2 | BN22: 3 | BO22: 4 | BQ22: 0
A23: 2025-01-01 | B23: 2025-01-05 | C23: 120 | D23: ='Kalkulator Depozytów'!M28 -> 0 | E23: ='Kalkulator Depozytów'!N28 -> 0 | F23: ='Kalkulator Depozytów'!O28 -> 0 | G23: ='Kalkulator Depozytów'!P28 -> 0 | H23: ='Kalkulator Depozytów'!Q28 -> 0 | I23: =ROUND(IF(OR(AND(K23>0,L23="L-PEAK5"),AND(K23>0,L23="H-PEAK5")),R23,IF(AND(K23>0,L23="PEAK5"),O23,IF(K23>0,IF(OR(L23="BASE"),AVERAGE(INDIRECT("krzywa!B"&MATCH(A23-$A$2,krzywa!A:A,0)&":B"&MATCH(B23-$A$2,krzywa!A:A,0),TRUE)),IF(OR(L23="OFFPEAK"),AVERAGE(INDIRECT("krzywa!F"&MATCH(A23-$A$2,krzywa!A:A,0)&":F"&MATCH(B23-$A$2,krzywa!A:A,0)))))))),4) ->  | J23: 0 | K23: 45662 | L23: BASE | M23: =NETWORKDAYS(A23,B23,koszyki!$M$20:$M$898) -> 2 | N23: =B23-A23+1- NETWORKDAYS(A23,B23,koszyki!$M$20:$M$898) -> 3 | O23: =ROUND(IF((B23-A23+1)>2,IF(C23=75,AVERAGE(INDIRECT("krzywa!C"&MATCH(K23-6,krzywa!A:A,0)&":C"&MATCH(K23-2,krzywa!A:A,0))),AVERAGE(INDIRECT("krzywa!C"&MATCH(A23-$A$2+BQ23,krzywa!A:A,0)&":C"&MATCH(B23-$A$2-AY23,krzywa!A:A,0)))),INDIRECT("krzywa!C"&MATCH(K23,krzywa!A:A,0))),4) ->  | P23: 0 | Q23: =-C23*ABS(D23-F23)*H23*I23*U23+'kompensacja międzyproduktowa'!X23*U23 ->  | R23: =ROUND(IF((B23-A23+1)>2,IF(C23=75,AVERAGE(INDIRECT("krzywa!D"&MATCH(K23-6,krzywa!A:A,0)&":D"&MATCH(K23-2,krzywa!A:A,0))),AVERAGE(INDIRECT("krzywa!D"&MATCH(A23-$A$2+BQ23,krzywa!A:A,0)&":D"&MATCH(B23-$A$2-AY23,krzywa!A:A,0)))),INDIRECT("krzywa!D"&MATCH(K23,krzywa!A:A,0))),4) ->  | S23: =VLOOKUP(A23,krzywa!L:N,3,1) -> 0 | T23: =VLOOKUP(B23,krzywa!L:N,3,1) -> 0 | U23: =IF('Kalkulator Depozytów'!$B$35=TRUE,1,(1+S23/100)*W23+(1+T23/100)*(1-W23)) -> 1 | V23: =IF(S23<>T23,VLOOKUP(A23,krzywa!L:M,2,1)) -> FALSE | W23: =IF(V23<>FALSE,IF(L23="BASE",(V23-A23+1)*24+J23,IF(L23="OFFPEAK",NETWORKDAYS(A23,V23,koszyki!$M$20:$M$898)*9+(N23)*24+J23,IF(L23="L-PEAK5",NETWORKDAYS(A23,V23,koszyki!$M$20:$M$898)*10,IF(L23="H-PEAK5",NETWORKDAYS(A23,V23,koszyki!$M$20:$M$898)*5,NETWORKDAYS(A23,V23,koszyki!$M$20:$M$898)*15))))/C23,1) -> 1 | Y23: -2624 | Z23: -2989 | AB23: 16 | AC23: 2020-10-25 | AD23: 1 | AJ23: 2025-01-05 | AK23: 2025-01-04 | AL23: 2025-01-03 | AM23: 2025-01-02 | AO23: =NETWORKDAYS(AJ23,AJ23,koszyki!$M$20:$M$89) -> 0 | AP23: =NETWORKDAYS(AK23,AK23,koszyki!$M$20:$M$89) -> 0 | AQ23: =NETWORKDAYS(AL23,AL23,koszyki!$M$20:$M$89) -> 1 | AR23: =NETWORKDAYS(AM23,AM23,koszyki!$M$20:$M$89) -> 1 | AT23: 0 | AU23: 0 | AV23: 1 | AW23: 2 | AY23: 2 | BB23: 2025-01-01 | BC23: 2025-01-02 | BD23: 2025-01-03 | BE23: 2025-01-04 | BG23: =NETWORKDAYS(BB23,BB23,koszyki!$M$20:$M$89) -> 1 | BH23: =NETWORKDAYS(BC23,BC23,koszyki!$M$20:$M$89) -> 1 | BI23: =NETWORKDAYS(BD23,BD23,koszyki!$M$20:$M$89) -> 1 | BJ23: =NETWORKDAYS(BE23,BE23,koszyki!$M$20:$M$89) -> 0 | BL23: 1 | BM23: 2 | BN23: 3 | BO23: 3 | BQ23: 0
A24: 2025-01-06 | B24: 2025-01-31 | C24: 624 | D24: ='Kalkulator Depozytów'!M29 -> 0 | E24: ='Kalkulator Depozytów'!N29 -> 0 | F24: ='Kalkulator Depozytów'!O29 -> 0 | G24: ='Kalkulator Depozytów'!P29 -> 0 | H24: ='Kalkulator Depozytów'!Q29 -> 0 | I24: =ROUND(IF(OR(AND(K24>0,L24="L-PEAK5"),AND(K24>0,L24="H-PEAK5")),R24,IF(AND(K24>0,L24="PEAK5"),O24,IF(K24>0,IF(OR(L24="BASE"),AVERAGE(INDIRECT("krzywa!B"&MATCH(A24-$A$2,krzywa!A:A,0)&":B"&MATCH(B24-$A$2,krzywa!A:A,0),TRUE)),IF(OR(L24="OFFPEAK"),AVERAGE(INDIRECT("krzywa!F"&MATCH(A24-$A$2,krzywa!A:A,0)&":F"&MATCH(B24-$A$2,krzywa!A:A,0)))))))),4) ->  | J24: 0 | K24: 45688 | L24: BASE | M24: =NETWORKDAYS(A24,B24,koszyki!$M$20:$M$898) -> 19 | N24: =B24-A24+1- NETWORKDAYS(A24,B24,koszyki!$M$20:$M$898) -> 7 | O24: =ROUND(IF((B24-A24+1)>2,IF(C24=75,AVERAGE(INDIRECT("krzywa!C"&MATCH(K24-6,krzywa!A:A,0)&":C"&MATCH(K24-2,krzywa!A:A,0))),AVERAGE(INDIRECT("krzywa!C"&MATCH(A24-$A$2+BQ24,krzywa!A:A,0)&":C"&MATCH(B24-$A$2-AY24,krzywa!A:A,0)))),INDIRECT("krzywa!C"&MATCH(K24,krzywa!A:A,0))),4) ->  | P24: 0 | Q24: =-C24*ABS(D24-F24)*H24*I24*U24+'kompensacja międzyproduktowa'!X24*U24 ->  | R24: =ROUND(IF((B24-A24+1)>2,IF(C24=75,AVERAGE(INDIRECT("krzywa!D"&MATCH(K24-6,krzywa!A:A,0)&":D"&MATCH(K24-2,krzywa!A:A,0))),AVERAGE(INDIRECT("krzywa!D"&MATCH(A24-$A$2+BQ24,krzywa!A:A,0)&":D"&MATCH(B24-$A$2-AY24,krzywa!A:A,0)))),INDIRECT("krzywa!D"&MATCH(K24,krzywa!A:A,0))),4) ->  | S24: =VLOOKUP(A24,krzywa!L:N,3,1) -> 0 | T24: =VLOOKUP(B24,krzywa!L:N,3,1) -> 0 | U24: =IF('Kalkulator Depozytów'!$B$35=TRUE,1,(1+S24/100)*W24+(1+T24/100)*(1-W24)) -> 1 | V24: =IF(S24<>T24,VLOOKUP(A24,krzywa!L:M,2,1)) -> FALSE | W24: =IF(V24<>FALSE,IF(L24="BASE",(V24-A24+1)*24+J24,IF(L24="OFFPEAK",NETWORKDAYS(A24,V24,koszyki!$M$20:$M$898)*9+(N24)*24+J24,IF(L24="L-PEAK5",NETWORKDAYS(A24,V24,koszyki!$M$20:$M$898)*10,IF(L24="H-PEAK5",NETWORKDAYS(A24,V24,koszyki!$M$20:$M$898)*5,NETWORKDAYS(A24,V24,koszyki!$M$20:$M$898)*15))))/C24,1) -> 1 | Y24: -2470 | Z24: -2835 | AB24: 17 | AC24: 2021-03-28 | AD24: -1 | AJ24: 2025-01-31 | AK24: 2025-01-30 | AL24: 2025-01-29 | AM24: 2025-01-28 | AO24: =NETWORKDAYS(AJ24,AJ24,koszyki!$M$20:$M$89) -> 1 | AP24: =NETWORKDAYS(AK24,AK24,koszyki!$M$20:$M$89) -> 1 | AQ24: =NETWORKDAYS(AL24,AL24,koszyki!$M$20:$M$89) -> 1 | AR24: =NETWORKDAYS(AM24,AM24,koszyki!$M$20:$M$89) -> 1 | AT24: 1 | AU24: 2 | AV24: 3 | AW24: 4 | AY24: 0 | BB24: 2025-01-06 | BC24: 2025-01-07 | BD24: 2025-01-08 | BE24: 2025-01-09 | BG24: =NETWORKDAYS(BB24,BB24,koszyki!$M$20:$M$89) -> 1 | BH24: =NETWORKDAYS(BC24,BC24,koszyki!$M$20:$M$89) -> 1 | BI24: =NETWORKDAYS(BD24,BD24,koszyki!$M$20:$M$89) -> 1 | BJ24: =NETWORKDAYS(BE24,BE24,koszyki!$M$20:$M$89) -> 1 | BL24: 1 | BM24: 2 | BN24: 3 | BO24: 4 | BQ24: 0
A25: 2025-02-01 | B25: 2025-02-28 | C25: 672 | D25: ='Kalkulator Depozytów'!M30 -> 0 | E25: ='Kalkulator Depozytów'!N30 -> 0 | F25: ='Kalkulator Depozytów'!O30 -> 0 | G25: ='Kalkulator Depozytów'!P30 -> 0 | H25: ='Kalkulator Depozytów'!Q30 -> 0 | I25: =ROUND(IF(OR(AND(K25>0,L25="L-PEAK5"),AND(K25>0,L25="H-PEAK5")),R25,IF(AND(K25>0,L25="PEAK5"),O25,IF(K25>0,IF(OR(L25="BASE"),AVERAGE(INDIRECT("krzywa!B"&MATCH(A25-$A$2,krzywa!A:A,0)&":B"&MATCH(B25-$A$2,krzywa!A:A,0),TRUE)),IF(OR(L25="OFFPEAK"),AVERAGE(INDIRECT("krzywa!F"&MATCH(A25-$A$2,krzywa!A:A,0)&":F"&MATCH(B25-$A$2,krzywa!A:A,0)))))))),4) ->  | J25: 0 | K25: 45716 | L25: BASE | M25: =NETWORKDAYS(A25,B25,koszyki!$M$20:$M$898) -> 20 | N25: =B25-A25+1- NETWORKDAYS(A25,B25,koszyki!$M$20:$M$898) -> 8 | O25: =ROUND(IF((B25-A25+1)>2,IF(C25=75,AVERAGE(INDIRECT("krzywa!C"&MATCH(K25-6,krzywa!A:A,0)&":C"&MATCH(K25-2,krzywa!A:A,0))),AVERAGE(INDIRECT("krzywa!C"&MATCH(A25-$A$2+BQ25,krzywa!A:A,0)&":C"&MATCH(B25-$A$2-AY25,krzywa!A:A,0)))),INDIRECT("krzywa!C"&MATCH(K25,krzywa!A:A,0))),4) ->  | P25: 0 | Q25: =-C25*ABS(D25-F25)*H25*I25*U25+'kompensacja międzyproduktowa'!X25*U25 ->  | R25: =ROUND(IF((B25-A25+1)>2,IF(C25=75,AVERAGE(INDIRECT("krzywa!D"&MATCH(K25-6,krzywa!A:A,0)&":D"&MATCH(K25-2,krzywa!A:A,0))),AVERAGE(INDIRECT("krzywa!D"&MATCH(A25-$A$2+BQ25,krzywa!A:A,0)&":D"&MATCH(B25-$A$2-AY25,krzywa!A:A,0)))),INDIRECT("krzywa!D"&MATCH(K25,krzywa!A:A,0))),4) ->  | S25: =VLOOKUP(A25,krzywa!L:N,3,1) -> 0 | T25: =VLOOKUP(B25,krzywa!L:N,3,1) -> 0 | U25: =IF('Kalkulator Depozytów'!$B$35=TRUE,1,(1+S25/100)*W25+(1+T25/100)*(1-W25)) -> 1 | V25: =IF(S25<>T25,VLOOKUP(A25,krzywa!L:M,2,1)) -> FALSE | W25: =IF(V25<>FALSE,IF(L25="BASE",(V25-A25+1)*24+J25,IF(L25="OFFPEAK",NETWORKDAYS(A25,V25,koszyki!$M$20:$M$898)*9+(N25)*24+J25,IF(L25="L-PEAK5",NETWORKDAYS(A25,V25,koszyki!$M$20:$M$898)*10,IF(L25="H-PEAK5",NETWORKDAYS(A25,V25,koszyki!$M$20:$M$898)*5,NETWORKDAYS(A25,V25,koszyki!$M$20:$M$898)*15))))/C25,1) -> 1 | Y25: -2253 | Z25: -2618 | AB25: 18 | AC25: 2021-10-31 | AD25: 1 | AJ25: 2025-02-28 | AK25: 2025-02-27 | AL25: 2025-02-26 | AM25: 2025-02-25 | AO25: =NETWORKDAYS(AJ25,AJ25,koszyki!$M$20:$M$89) -> 1 | AP25: =NETWORKDAYS(AK25,AK25,koszyki!$M$20:$M$89) -> 1 | AQ25: =NETWORKDAYS(AL25,AL25,koszyki!$M$20:$M$89) -> 1 | AR25: =NETWORKDAYS(AM25,AM25,koszyki!$M$20:$M$89) -> 1 | AT25: 1 | AU25: 2 | AV25: 3 | AW25: 4 | AY25: 0 | BB25: 2025-02-01 | BC25: 2025-02-02 | BD25: 2025-02-03 | BE25: 2025-02-04 | BG25: =NETWORKDAYS(BB25,BB25,koszyki!$M$20:$M$89) -> 0 | BH25: =NETWORKDAYS(BC25,BC25,koszyki!$M$20:$M$89) -> 0 | BI25: =NETWORKDAYS(BD25,BD25,koszyki!$M$20:$M$89) -> 1 | BJ25: =NETWORKDAYS(BE25,BE25,koszyki!$M$20:$M$89) -> 1 | BL25: 0 | BM25: 0 | BN25: 1 | BO25: 2 | BQ25: 2
A26: 2025-03-01 | B26: 2025-03-31 | C26: 743 | D26: ='Kalkulator Depozytów'!M31 -> 0 | E26: ='Kalkulator Depozytów'!N31 -> 0 | F26: ='Kalkulator Depozytów'!O31 -> 0 | G26: ='Kalkulator Depozytów'!P31 -> 0 | H26: ='Kalkulator Depozytów'!Q31 -> 0 | I26: =ROUND(IF(OR(AND(K26>0,L26="L-PEAK5"),AND(K26>0,L26="H-PEAK5")),R26,IF(AND(K26>0,L26="PEAK5"),O26,IF(K26>0,IF(OR(L26="BASE"),AVERAGE(INDIRECT("krzywa!B"&MATCH(A26-$A$2,krzywa!A:A,0)&":B"&MATCH(B26-$A$2,krzywa!A:A,0),TRUE)),IF(OR(L26="OFFPEAK"),AVERAGE(INDIRECT("krzywa!F"&MATCH(A26-$A$2,krzywa!A:A,0)&":F"&MATCH(B26-$A$2,krzywa!A:A,0)))))))),4) ->  | J26: -1 | K26: 45747 | L26: BASE | M26: =NETWORKDAYS(A26,B26,koszyki!$M$20:$M$898) -> 21 | N26: =B26-A26+1- NETWORKDAYS(A26,B26,koszyki!$M$20:$M$898) -> 10 | O26: =ROUND(IF((B26-A26+1)>2,IF(C26=75,AVERAGE(INDIRECT("krzywa!C"&MATCH(K26-6,krzywa!A:A,0)&":C"&MATCH(K26-2,krzywa!A:A,0))),AVERAGE(INDIRECT("krzywa!C"&MATCH(A26-$A$2+BQ26,krzywa!A:A,0)&":C"&MATCH(B26-$A$2-AY26,krzywa!A:A,0)))),INDIRECT("krzywa!C"&MATCH(K26,krzywa!A:A,0))),4) ->  | P26: 0 | Q26: =-C26*ABS(D26-F26)*H26*I26*U26+'kompensacja międzyproduktowa'!X26*U26 ->  | R26: =ROUND(IF((B26-A26+1)>2,IF(C26=75,AVERAGE(INDIRECT("krzywa!D"&MATCH(K26-6,krzywa!A:A,0)&":D"&MATCH(K26-2,krzywa!A:A,0))),AVERAGE(INDIRECT("krzywa!D"&MATCH(A26-$A$2+BQ26,krzywa!A:A,0)&":D"&MATCH(B26-$A$2-AY26,krzywa!A:A,0)))),INDIRECT("krzywa!D"&MATCH(K26,krzywa!A:A,0))),4) ->  | S26: =VLOOKUP(A26,krzywa!L:N,3,1) -> 0 | T26: =VLOOKUP(B26,krzywa!L:N,3,1) -> 0 | U26: =IF('Kalkulator Depozytów'!$B$35=TRUE,1,(1+S26/100)*W26+(1+T26/100)*(1-W26)) -> 1 | V26: =IF(S26<>T26,VLOOKUP(A26,krzywa!L:M,2,1)) -> FALSE | W26: =IF(V26<>FALSE,IF(L26="BASE",(V26-A26+1)*24+J26,IF(L26="OFFPEAK",NETWORKDAYS(A26,V26,koszyki!$M$20:$M$898)*9+(N26)*24+J26,IF(L26="L-PEAK5",NETWORKDAYS(A26,V26,koszyki!$M$20:$M$898)*10,IF(L26="H-PEAK5",NETWORKDAYS(A26,V26,koszyki!$M$20:$M$898)*5,NETWORKDAYS(A26,V26,koszyki!$M$20:$M$898)*15))))/C26,1) -> 1 | Y26: -2107 | Z26: -2472 | AB26: 19 | AC26: 2022-03-26 | AD26: -1 | AJ26: 2025-03-31 | AK26: 2025-03-30 | AL26: 2025-03-29 | AM26: 2025-03-28 | AO26: =NETWORKDAYS(AJ26,AJ26,koszyki!$M$20:$M$89) -> 1 | AP26: =NETWORKDAYS(AK26,AK26,koszyki!$M$20:$M$89) -> 0 | AQ26: =NETWORKDAYS(AL26,AL26,koszyki!$M$20:$M$89) -> 0 | AR26: =NETWORKDAYS(AM26,AM26,koszyki!$M$20:$M$89) -> 1 | AT26: 1 | AU26: 1 | AV26: 1 | AW26: 2 | AY26: 0 | BB26: 2025-03-01 | BC26: 2025-03-02 | BD26: 2025-03-03 | BE26: 2025-03-04 | BG26: =NETWORKDAYS(BB26,BB26,koszyki!$M$20:$M$89) -> 0 | BH26: =NETWORKDAYS(BC26,BC26,koszyki!$M$20:$M$89) -> 0 | BI26: =NETWORKDAYS(BD26,BD26,koszyki!$M$20:$M$89) -> 1 | BJ26: =NETWORKDAYS(BE26,BE26,koszyki!$M$20:$M$89) -> 1 | BL26: 0 | BM26: 0 | BN26: 1 | BO26: 2 | BQ26: 2
A27: 2025-04-01 | B27: 2025-04-30 | C27: 720 | D27: ='Kalkulator Depozytów'!M32 -> 0 | E27: ='Kalkulator Depozytów'!N32 -> 0 | F27: ='Kalkulator Depozytów'!O32 -> 0 | G27: ='Kalkulator Depozytów'!P32 -> 0 | H27: ='Kalkulator Depozytów'!Q32 -> 0 | I27: =ROUND(IF(OR(AND(K27>0,L27="L-PEAK5"),AND(K27>0,L27="H-PEAK5")),R27,IF(AND(K27>0,L27="PEAK5"),O27,IF(K27>0,IF(OR(L27="BASE"),AVERAGE(INDIRECT("krzywa!B"&MATCH(A27-$A$2,krzywa!A:A,0)&":B"&MATCH(B27-$A$2,krzywa!A:A,0),TRUE)),IF(OR(L27="OFFPEAK"),AVERAGE(INDIRECT("krzywa!F"&MATCH(A27-$A$2,krzywa!A:A,0)&":F"&MATCH(B27-$A$2,krzywa!A:A,0)))))))),4) ->  | J27: 0 | K27: 45777 | L27: BASE | M27: =NETWORKDAYS(A27,B27,koszyki!$M$20:$M$898) -> 21 | N27: =B27-A27+1- NETWORKDAYS(A27,B27,koszyki!$M$20:$M$898) -> 9 | O27: =ROUND(IF((B27-A27+1)>2,IF(C27=75,AVERAGE(INDIRECT("krzywa!C"&MATCH(K27-6,krzywa!A:A,0)&":C"&MATCH(K27-2,krzywa!A:A,0))),AVERAGE(INDIRECT("krzywa!C"&MATCH(A27-$A$2+BQ27,krzywa!A:A,0)&":C"&MATCH(B27-$A$2-AY27,krzywa!A:A,0)))),INDIRECT("krzywa!C"&MATCH(K27,krzywa!A:A,0))),4) ->  | P27: 0 | Q27: =-C27*ABS(D27-F27)*H27*I27*U27+'kompensacja międzyproduktowa'!X27*U27 ->  | R27: =ROUND(IF((B27-A27+1)>2,IF(C27=75,AVERAGE(INDIRECT("krzywa!D"&MATCH(K27-6,krzywa!A:A,0)&":D"&MATCH(K27-2,krzywa!A:A,0))),AVERAGE(INDIRECT("krzywa!D"&MATCH(A27-$A$2+BQ27,krzywa!A:A,0)&":D"&MATCH(B27-$A$2-AY27,krzywa!A:A,0)))),INDIRECT("krzywa!D"&MATCH(K27,krzywa!A:A,0))),4) ->  | S27: =VLOOKUP(A27,krzywa!L:N,3,1) -> 0 | T27: =VLOOKUP(B27,krzywa!L:N,3,1) -> 0 | U27: =IF('Kalkulator Depozytów'!$B$35=TRUE,1,(1+S27/100)*W27+(1+T27/100)*(1-W27)) -> 1 | V27: =IF(S27<>T27,VLOOKUP(A27,krzywa!L:M,2,1)) -> FALSE | W27: =IF(V27<>FALSE,IF(L27="BASE",(V27-A27+1)*24+J27,IF(L27="OFFPEAK",NETWORKDAYS(A27,V27,koszyki!$M$20:$M$898)*9+(N27)*24+J27,IF(L27="L-PEAK5",NETWORKDAYS(A27,V27,koszyki!$M$20:$M$898)*10,IF(L27="H-PEAK5",NETWORKDAYS(A27,V27,koszyki!$M$20:$M$898)*5,NETWORKDAYS(A27,V27,koszyki!$M$20:$M$898)*15))))/C27,1) -> 1 | Y27: -1890 | Z27: -2255 | AB27: 20 | AC27: 2022-10-29 | AD27: 1 | AJ27: 2025-04-30 | AK27: 2025-04-29 | AL27: 2025-04-28 | AM27: 2025-04-27 | AO27: =NETWORKDAYS(AJ27,AJ27,koszyki!$M$20:$M$89) -> 1 | AP27: =NETWORKDAYS(AK27,AK27,koszyki!$M$20:$M$89) -> 1 | AQ27: =NETWORKDAYS(AL27,AL27,koszyki!$M$20:$M$89) -> 1 | AR27: =NETWORKDAYS(AM27,AM27,koszyki!$M$20:$M$89) -> 0 | AT27: 1 | AU27: 2 | AV27: 3 | AW27: 3 | AY27: 0 | BB27: 2025-04-01 | BC27: 2025-04-02 | BD27: 2025-04-03 | BE27: 2025-04-04 | BG27: =NETWORKDAYS(BB27,BB27,koszyki!$M$20:$M$89) -> 1 | BH27: =NETWORKDAYS(BC27,BC27,koszyki!$M$20:$M$89) -> 1 | BI27: =NETWORKDAYS(BD27,BD27,koszyki!$M$20:$M$89) -> 1 | BJ27: =NETWORKDAYS(BE27,BE27,koszyki!$M$20:$M$89) -> 1 | BL27: 1 | BM27: 2 | BN27: 3 | BO27: 4 | BQ27: 0
A28: 2025-05-01 | B28: 2025-05-31 | C28: 744 | D28: ='Kalkulator Depozytów'!M33 -> 0 | E28: ='Kalkulator Depozytów'!N33 -> 0 | F28: ='Kalkulator Depozytów'!O33 -> 0 | G28: ='Kalkulator Depozytów'!P33 -> 0 | H28: ='Kalkulator Depozytów'!Q33 -> 0 | I28: =ROUND(IF(OR(AND(K28>0,L28="L-PEAK5"),AND(K28>0,L28="H-PEAK5")),R28,IF(AND(K28>0,L28="PEAK5"),O28,IF(K28>0,IF(OR(L28="BASE"),AVERAGE(INDIRECT("krzywa!B"&MATCH(A28-$A$2,krzywa!A:A,0)&":B"&MATCH(B28-$A$2,krzywa!A:A,0),TRUE)),IF(OR(L28="OFFPEAK"),AVERAGE(INDIRECT("krzywa!F"&MATCH(A28-$A$2,krzywa!A:A,0)&":F"&MATCH(B28-$A$2,krzywa!A:A,0)))))))),4) ->  | J28: 0 | K28: 45808 | L28: BASE | M28: =NETWORKDAYS(A28,B28,koszyki!$M$20:$M$898) -> 21 | N28: =B28-A28+1- NETWORKDAYS(A28,B28,koszyki!$M$20:$M$898) -> 10 | O28: =ROUND(IF((B28-A28+1)>2,IF(C28=75,AVERAGE(INDIRECT("krzywa!C"&MATCH(K28-6,krzywa!A:A,0)&":C"&MATCH(K28-2,krzywa!A:A,0))),AVERAGE(INDIRECT("krzywa!C"&MATCH(A28-$A$2+BQ28,krzywa!A:A,0)&":C"&MATCH(B28-$A$2-AY28,krzywa!A:A,0)))),INDIRECT("krzywa!C"&MATCH(K28,krzywa!A:A,0))),4) ->  | P28: 0 | Q28: =-C28*ABS(D28-F28)*H28*I28*U28+'kompensacja międzyproduktowa'!X28*U28 ->  | R28: =ROUND(IF((B28-A28+1)>2,IF(C28=75,AVERAGE(INDIRECT("krzywa!D"&MATCH(K28-6,krzywa!A:A,0)&":D"&MATCH(K28-2,krzywa!A:A,0))),AVERAGE(INDIRECT("krzywa!D"&MATCH(A28-$A$2+BQ28,krzywa!A:A,0)&":D"&MATCH(B28-$A$2-AY28,krzywa!A:A,0)))),INDIRECT("krzywa!D"&MATCH(K28,krzywa!A:A,0))),4) ->  | S28: =VLOOKUP(A28,krzywa!L:N,3,1) -> 0 | T28: =VLOOKUP(B28,krzywa!L:N,3,1) -> 0 | U28: =IF('Kalkulator Depozytów'!$B$35=TRUE,1,(1+S28/100)*W28+(1+T28/100)*(1-W28)) -> 1 | V28: =IF(S28<>T28,VLOOKUP(A28,krzywa!L:M,2,1)) -> FALSE | W28: =IF(V28<>FALSE,IF(L28="BASE",(V28-A28+1)*24+J28,IF(L28="OFFPEAK",NETWORKDAYS(A28,V28,koszyki!$M$20:$M$898)*9+(N28)*24+J28,IF(L28="L-PEAK5",NETWORKDAYS(A28,V28,koszyki!$M$20:$M$898)*10,IF(L28="H-PEAK5",NETWORKDAYS(A28,V28,koszyki!$M$20:$M$898)*5,NETWORKDAYS(A28,V28,koszyki!$M$20:$M$898)*15))))/C28,1) -> 1 | Y28: -1743 | Z28: -2108 | AB28: 21 | AC28: 2023-03-25 | AD28: -1 | AJ28: 2025-05-31 | AK28: =AJ28-1 -> 2025-05-30 | AL28: 2025-05-29 | AM28: 2025-05-28 | AO28: =NETWORKDAYS(AJ28,AJ28,koszyki!$M$20:$M$89) -> 0 | AP28: =NETWORKDAYS(AK28,AK28,koszyki!$M$20:$M$89) -> 1 | AQ28: =NETWORKDAYS(AL28,AL28,koszyki!$M$20:$M$89) -> 1 | AR28: =NETWORKDAYS(AM28,AM28,koszyki!$M$20:$M$89) -> 1 | AT28: 0 | AU28: 1 | AV28: 2 | AW28: 3 | AY28: 1 | BB28: 2025-05-01 | BC28: 2025-05-02 | BD28: 2025-05-03 | BE28: 2025-05-04 | BG28: =NETWORKDAYS(BB28,BB28,koszyki!$M$20:$M$89) -> 1 | BH28: =NETWORKDAYS(BC28,BC28,koszyki!$M$20:$M$89) -> 1 | BI28: =NETWORKDAYS(BD28,BD28,koszyki!$M$20:$M$89) -> 0 | BJ28: =NETWORKDAYS(BE28,BE28,koszyki!$M$20:$M$89) -> 0 | BL28: 1 | BM28: 2 | BN28: 2 | BO28: 2 | BQ28: 0
A29: 2025-06-01 | B29: 2025-06-30 | C29: 720 | D29: ='Kalkulator Depozytów'!M34 -> 0 | E29: ='Kalkulator Depozytów'!N34 -> 0 | F29: ='Kalkulator Depozytów'!O34 -> 0 | G29: ='Kalkulator Depozytów'!P34 -> 0 | H29: ='Kalkulator Depozytów'!Q34 -> 0 | I29: =ROUND(IF(OR(AND(K29>0,L29="L-PEAK5"),AND(K29>0,L29="H-PEAK5")),R29,IF(AND(K29>0,L29="PEAK5"),O29,IF(K29>0,IF(OR(L29="BASE"),AVERAGE(INDIRECT("krzywa!B"&MATCH(A29-$A$2,krzywa!A:A,0)&":B"&MATCH(B29-$A$2,krzywa!A:A,0),TRUE)),IF(OR(L29="OFFPEAK"),AVERAGE(INDIRECT("krzywa!F"&MATCH(A29-$A$2,krzywa!A:A,0)&":F"&MATCH(B29-$A$2,krzywa!A:A,0)))))))),4) ->  | J29: 0 | K29: 45838 | L29: BASE | M29: =NETWORKDAYS(A29,B29,koszyki!$M$20:$M$898) -> 20 | N29: =B29-A29+1- NETWORKDAYS(A29,B29,koszyki!$M$20:$M$898) -> 10 | O29: =ROUND(IF((B29-A29+1)>2,IF(C29=75,AVERAGE(INDIRECT("krzywa!C"&MATCH(K29-6,krzywa!A:A,0)&":C"&MATCH(K29-2,krzywa!A:A,0))),AVERAGE(INDIRECT("krzywa!C"&MATCH(A29-$A$2+BQ29,krzywa!A:A,0)&":C"&MATCH(B29-$A$2-AY29,krzywa!A:A,0)))),INDIRECT("krzywa!C"&MATCH(K29,krzywa!A:A,0))),4) ->  | P29: 0 | Q29: =-C29*ABS(D29-F29)*H29*I29*U29+'kompensacja międzyproduktowa'!X29*U29 ->  | R29: =ROUND(IF((B29-A29+1)>2,IF(C29=75,AVERAGE(INDIRECT("krzywa!D"&MATCH(K29-6,krzywa!A:A,0)&":D"&MATCH(K29-2,krzywa!A:A,0))),AVERAGE(INDIRECT("krzywa!D"&MATCH(A29-$A$2+BQ29,krzywa!A:A,0)&":D"&MATCH(B29-$A$2-AY29,krzywa!A:A,0)))),INDIRECT("krzywa!D"&MATCH(K29,krzywa!A:A,0))),4) ->  | S29: =VLOOKUP(A29,krzywa!L:N,3,1) -> 0 | T29: =VLOOKUP(B29,krzywa!L:N,3,1) -> 0 | U29: =IF('Kalkulator Depozytów'!$B$35=TRUE,1,(1+S29/100)*W29+(1+T29/100)*(1-W29)) -> 1 | V29: =IF(S29<>T29,VLOOKUP(A29,krzywa!L:M,2,1)) -> FALSE | W29: =IF(V29<>FALSE,IF(L29="BASE",(V29-A29+1)*24+J29,IF(L29="OFFPEAK",NETWORKDAYS(A29,V29,koszyki!$M$20:$M$898)*9+(N29)*24+J29,IF(L29="L-PEAK5",NETWORKDAYS(A29,V29,koszyki!$M$20:$M$898)*10,IF(L29="H-PEAK5",NETWORKDAYS(A29,V29,koszyki!$M$20:$M$898)*5,NETWORKDAYS(A29,V29,koszyki!$M$20:$M$898)*15))))/C29,1) -> 1 | Y29: -1526 | Z29: =AC29-$Z$7 -> -1891 | AB29: 22 | AC29: 2023-10-28 | AD29: 1 | AJ29: 2025-06-30 | AK29: 2025-06-29 | AL29: 2025-06-28 | AM29: 2025-06-27 | AO29: =NETWORKDAYS(AJ29,AJ29,koszyki!$M$20:$M$89) -> 1 | AP29: =NETWORKDAYS(AK29,AK29,koszyki!$M$20:$M$89) -> 0 | AQ29: =NETWORKDAYS(AL29,AL29,koszyki!$M$20:$M$89) -> 0 | AR29: =NETWORKDAYS(AM29,AM29,koszyki!$M$20:$M$89) -> 1 | AT29: 1 | AU29: 1 | AV29: 1 | AW29: 2 | AY29: 0 | BB29: 2025-06-01 | BC29: 2025-06-02 | BD29: 2025-06-03 | BE29: 2025-06-04 | BG29: =NETWORKDAYS(BB29,BB29,koszyki!$M$20:$M$89) -> 0 | BH29: =NETWORKDAYS(BC29,BC29,koszyki!$M$20:$M$89) -> 1 | BI29: =NETWORKDAYS(BD29,BD29,koszyki!$M$20:$M$89) -> 1 | BJ29: =NETWORKDAYS(BE29,BE29,koszyki!$M$20:$M$89) -> 1 | BL29: 0 | BM29: 1 | BN29: 2 | BO29: 3 | BQ29: 1
A30: 2025-07-01 | B30: 2025-09-30 | C30: =IF(L30="BASE",(B30-A30+1)*24+J30,IF(L30="OFFPEAK",M30*9+(N30)*24+J30,IF(L30="L-PEAK5",M30*10,IF(L30="H-PEAK5",M30*5,M30*15)))) -> 2208 | D30: ='Kalkulator Depozytów'!M35 -> 0 | E30: ='Kalkulator Depozytów'!N35 -> 0 | F30: ='Kalkulator Depozytów'!O35 -> 0 | G30: ='Kalkulator Depozytów'!P35 -> 0 | H30: ='Kalkulator Depozytów'!Q35 -> 0 | I30: =ROUND(IF(OR(AND(K30>0,L30="L-PEAK5"),AND(K30>0,L30="H-PEAK5")),R30,IF(AND(K30>0,L30="PEAK5"),O30,IF(K30>0,IF(OR(L30="BASE"),AVERAGE(INDIRECT("krzywa!B"&MATCH(A30-$A$2,krzywa!A:A,0)&":B"&MATCH(B30-$A$2,krzywa!A:A,0),TRUE)),IF(OR(L30="OFFPEAK"),AVERAGE(INDIRECT("krzywa!F"&MATCH(A30-$A$2,krzywa!A:A,0)&":F"&MATCH(B30-$A$2,krzywa!A:A,0)))))))),4) ->  | J30: 0 | K30: 45930 | L30: BASE | M30: =NETWORKDAYS(A30,B30,koszyki!$M$20:$M$898) -> 65 | N30: =B30-A30+1- NETWORKDAYS(A30,B30,koszyki!$M$20:$M$898) -> 27 | O30: =ROUND(IF((B30-A30+1)>2,IF(C30=75,AVERAGE(INDIRECT("krzywa!C"&MATCH(K30-6,krzywa!A:A,0)&":C"&MATCH(K30-2,krzywa!A:A,0))),AVERAGE(INDIRECT("krzywa!C"&MATCH(A30-$A$2+BQ30,krzywa!A:A,0)&":C"&MATCH(B30-$A$2-AY30,krzywa!A:A,0)))),INDIRECT("krzywa!C"&MATCH(K30,krzywa!A:A,0))),4) ->  | P30: 0 | Q30: =-C30*ABS(D30-F30)*H30*I30*U30+'kompensacja międzyproduktowa'!X30*U30 ->  | R30: =ROUND(IF((B30-A30+1)>2,IF(C30=75,AVERAGE(INDIRECT("krzywa!D"&MATCH(K30-6,krzywa!A:A,0)&":D"&MATCH(K30-2,krzywa!A:A,0))),AVERAGE(INDIRECT("krzywa!D"&MATCH(A30-$A$2+BQ30,krzywa!A:A,0)&":D"&MATCH(B30-$A$2-AY30,krzywa!A:A,0)))),INDIRECT("krzywa!D"&MATCH(K30,krzywa!A:A,0))),4) ->  | S30: =VLOOKUP(A30,krzywa!L:N,3,1) -> 0 | T30: =VLOOKUP(B30,krzywa!L:N,3,1) -> 0 | U30: =IF('Kalkulator Depozytów'!$B$35=TRUE,1,(1+S30/100)*W30+(1+T30/100)*(1-W30)) -> 1 | V30: =IF(S30<>T30,VLOOKUP(A30,krzywa!L:M,2,1)) -> FALSE | W30: =IF(V30<>FALSE,IF(L30="BASE",(V30-A30+1)*24+J30,IF(L30="OFFPEAK",NETWORKDAYS(A30,V30,koszyki!$M$20:$M$898)*9+(N30)*24+J30,IF(L30="L-PEAK5",NETWORKDAYS(A30,V30,koszyki!$M$20:$M$898)*10,IF(L30="H-PEAK5",NETWORKDAYS(A30,V30,koszyki!$M$20:$M$898)*5,NETWORKDAYS(A30,V30,koszyki!$M$20:$M$898)*15))))/C30,1) -> 1 | Y30: -1371 | Z30: -1736 | AB30: 23 | AC30: 2024-03-31 | AD30: -1 | AJ30: 2025-09-30 | AK30: 2025-09-29 | AL30: 2025-09-28 | AM30: 2025-09-27 | AO30: =NETWORKDAYS(AJ30,AJ30,koszyki!$M$20:$M$89) -> 1 | AP30: =NETWORKDAYS(AK30,AK30,koszyki!$M$20:$M$89) -> 1 | AQ30: =NETWORKDAYS(AL30,AL30,koszyki!$M$20:$M$89) -> 0 | AR30: =NETWORKDAYS(AM30,AM30,koszyki!$M$20:$M$89) -> 0 | AT30: 1 | AU30: 2 | AV30: 2 | AW30: 2 | AY30: 0 | BB30: 2025-07-01 | BC30: 2025-07-02 | BD30: 2025-07-03 | BE30: 2025-07-04 | BG30: =NETWORKDAYS(BB30,BB30,koszyki!$M$20:$M$89) -> 1 | BH30: =NETWORKDAYS(BC30,BC30,koszyki!$M$20:$M$89) -> 1 | BI30: =NETWORKDAYS(BD30,BD30,koszyki!$M$20:$M$89) -> 1 | BJ30: =NETWORKDAYS(BE30,BE30,koszyki!$M$20:$M$89) -> 1 | BL30: 1 | BM30: 2 | BN30: 3 | BO30: 4 | BQ30: 0
A31: 2025-10-01 | B31: 2025-12-31 | C31: 2209 | D31: ='Kalkulator Depozytów'!M36 -> 0 | E31: ='Kalkulator Depozytów'!N36 -> 0 | F31: ='Kalkulator Depozytów'!O36 -> 0 | G31: ='Kalkulator Depozytów'!P36 -> 0 | H31: ='Kalkulator Depozytów'!Q36 -> 0 | I31: =ROUND(IF(OR(AND(K31>0,L31="L-PEAK5"),AND(K31>0,L31="H-PEAK5")),R31,IF(AND(K31>0,L31="PEAK5"),O31,IF(K31>0,IF(OR(L31="BASE"),AVERAGE(INDIRECT("krzywa!B"&MATCH(A31-$A$2,krzywa!A:A,0)&":B"&MATCH(B31-$A$2,krzywa!A:A,0),TRUE)),IF(OR(L31="OFFPEAK"),AVERAGE(INDIRECT("krzywa!F"&MATCH(A31-$A$2,krzywa!A:A,0)&":F"&MATCH(B31-$A$2,krzywa!A:A,0)))))))),4) ->  | J31: 1 | K31: 46022 | L31: BASE | M31: =NETWORKDAYS(A31,B31,koszyki!$M$20:$M$898) -> 63 | N31: =B31-A31+1- NETWORKDAYS(A31,B31,koszyki!$M$20:$M$898) -> 29 | O31: =ROUND(IF((B31-A31+1)>2,IF(C31=75,AVERAGE(INDIRECT("krzywa!C"&MATCH(K31-6,krzywa!A:A,0)&":C"&MATCH(K31-2,krzywa!A:A,0))),AVERAGE(INDIRECT("krzywa!C"&MATCH(A31-$A$2+BQ31,krzywa!A:A,0)&":C"&MATCH(B31-$A$2-AY31,krzywa!A:A,0)))),INDIRECT("krzywa!C"&MATCH(K31,krzywa!A:A,0))),4) ->  | P31: 0 | Q31: =-C31*ABS(D31-F31)*H31*I31*U31+'kompensacja międzyproduktowa'!X31*U31 ->  | R31: =ROUND(IF((B31-A31+1)>2,IF(C31=75,AVERAGE(INDIRECT("krzywa!D"&MATCH(K31-6,krzywa!A:A,0)&":D"&MATCH(K31-2,krzywa!A:A,0))),AVERAGE(INDIRECT("krzywa!D"&MATCH(A31-$A$2+BQ31,krzywa!A:A,0)&":D"&MATCH(B31-$A$2-AY31,krzywa!A:A,0)))),INDIRECT("krzywa!D"&MATCH(K31,krzywa!A:A,0))),4) ->  | S31: =VLOOKUP(A31,krzywa!L:N,3,1) -> 0 | T31: =VLOOKUP(B31,krzywa!L:N,3,1) -> 0 | U31: =IF('Kalkulator Depozytów'!$B$35=TRUE,1,(1+S31/100)*W31+(1+T31/100)*(1-W31)) -> 1 | V31: =IF(S31<>T31,VLOOKUP(A31,krzywa!L:M,2,1)) -> FALSE | W31: =IF(V31<>FALSE,IF(L31="BASE",(V31-A31+1)*24+J31,IF(L31="OFFPEAK",NETWORKDAYS(A31,V31,koszyki!$M$20:$M$898)*9+(N31)*24+J31,IF(L31="L-PEAK5",NETWORKDAYS(A31,V31,koszyki!$M$20:$M$898)*10,IF(L31="H-PEAK5",NETWORKDAYS(A31,V31,koszyki!$M$20:$M$898)*5,NETWORKDAYS(A31,V31,koszyki!$M$20:$M$898)*15))))/C31,1) -> 1 | Y31: -1161 | Z31: -1526 | AB31: 24 | AC31: 2024-10-27 | AD31: 1 | AJ31: 2025-12-31 | AK31: 2025-12-30 | AL31: 2025-12-29 | AM31: 2025-12-28 | AO31: =NETWORKDAYS(AJ31,AJ31,koszyki!$M$20:$M$89) -> 1 | AP31: =NETWORKDAYS(AK31,AK31,koszyki!$M$20:$M$89) -> 1 | AQ31: =NETWORKDAYS(AL31,AL31,koszyki!$M$20:$M$89) -> 1 | AR31: =NETWORKDAYS(AM31,AM31,koszyki!$M$20:$M$89) -> 0 | AT31: 1 | AU31: 2 | AV31: 3 | AW31: 3 | AY31: 0 | BB31: 2025-10-01 | BC31: 2025-10-02 | BD31: 2025-10-03 | BE31: 2025-10-04 | BG31: =NETWORKDAYS(BB31,BB31,koszyki!$M$20:$M$89) -> 1 | BH31: =NETWORKDAYS(BC31,BC31,koszyki!$M$20:$M$89) -> 1 | BI31: =NETWORKDAYS(BD31,BD31,koszyki!$M$20:$M$89) -> 1 | BJ31: =NETWORKDAYS(BE31,BE31,koszyki!$M$20:$M$89) -> 0 | BL31: 1 | BM31: 2 | BN31: 3 | BO31: 3 | BQ31: 0
A32: 2026-01-01 | B32: 2026-03-31 | C32: 2159 | D32: ='Kalkulator Depozytów'!M37 -> 0 | E32: ='Kalkulator Depozytów'!N37 -> 0 | F32: ='Kalkulator Depozytów'!O37 -> 0 | G32: ='Kalkulator Depozytów'!P37 -> 0 | H32: ='Kalkulator Depozytów'!Q37 -> 0 | I32: =ROUND(IF(OR(AND(K32>0,L32="L-PEAK5"),AND(K32>0,L32="H-PEAK5")),R32,IF(AND(K32>0,L32="PEAK5"),O32,IF(K32>0,IF(OR(L32="BASE"),AVERAGE(INDIRECT("krzywa!B"&MATCH(A32-$A$2,krzywa!A:A,0)&":B"&MATCH(B32-$A$2,krzywa!A:A,0),TRUE)),IF(OR(L32="OFFPEAK"),AVERAGE(INDIRECT("krzywa!F"&MATCH(A32-$A$2,krzywa!A:A,0)&":F"&MATCH(B32-$A$2,krzywa!A:A,0)))))))),4) ->  | J32: -1 | K32: 46112 | L32: BASE | M32: =NETWORKDAYS(A32,B32,koszyki!$M$20:$M$898) -> 62 | N32: =B32-A32+1- NETWORKDAYS(A32,B32,koszyki!$M$20:$M$898) -> 28 | O32: =ROUND(IF((B32-A32+1)>2,IF(C32=75,AVERAGE(INDIRECT("krzywa!C"&MATCH(K32-6,krzywa!A:A,0)&":C"&MATCH(K32-2,krzywa!A:A,0))),AVERAGE(INDIRECT("krzywa!C"&MATCH(A32-$A$2+BQ32,krzywa!A:A,0)&":C"&MATCH(B32-$A$2-AY32,krzywa!A:A,0)))),INDIRECT("krzywa!C"&MATCH(K32,krzywa!A:A,0))),4) ->  | P32: 0 | Q32: =-C32*ABS(D32-F32)*H32*I32*U32+'kompensacja międzyproduktowa'!X32*U32 ->  | R32: =ROUND(IF((B32-A32+1)>2,IF(C32=75,AVERAGE(INDIRECT("krzywa!D"&MATCH(K32-6,krzywa!A:A,0)&":D"&MATCH(K32-2,krzywa!A:A,0))),AVERAGE(INDIRECT("krzywa!D"&MATCH(A32-$A$2+BQ32,krzywa!A:A,0)&":D"&MATCH(B32-$A$2-AY32,krzywa!A:A,0)))),INDIRECT("krzywa!D"&MATCH(K32,krzywa!A:A,0))),4) ->  | S32: =VLOOKUP(A32,krzywa!L:N,3,1) -> 0 | T32: =VLOOKUP(B32,krzywa!L:N,3,1) -> 0 | U32: =IF('Kalkulator Depozytów'!$B$35=TRUE,1,(1+S32/100)*W32+(1+T32/100)*(1-W32)) -> 1 | V32: =IF(S32<>T32,VLOOKUP(A32,krzywa!L:M,2,1)) -> FALSE | W32: =IF(V32<>FALSE,IF(L32="BASE",(V32-A32+1)*24+J32,IF(L32="OFFPEAK",NETWORKDAYS(A32,V32,koszyki!$M$20:$M$898)*9+(N32)*24+J32,IF(L32="L-PEAK5",NETWORKDAYS(A32,V32,koszyki!$M$20:$M$898)*10,IF(L32="H-PEAK5",NETWORKDAYS(A32,V32,koszyki!$M$20:$M$898)*5,NETWORKDAYS(A32,V32,koszyki!$M$20:$M$898)*15))))/C32,1) -> 1 | Y32: =AC32-$Y$7 -> -1007 | Z32: =AC32-$Z$7 -> -1372 | AB32: 25 | AC32: 2025-03-30 | AD32: -1 | AJ32: 2026-03-31 | AK32: 2026-03-30 | AL32: 2026-03-29 | AM32: 2026-03-28 | AO32: =NETWORKDAYS(AJ32,AJ32,koszyki!$M$20:$M$89) -> 1 | AP32: =NETWORKDAYS(AK32,AK32,koszyki!$M$20:$M$89) -> 1 | AQ32: =NETWORKDAYS(AL32,AL32,koszyki!$M$20:$M$89) -> 0 | AR32: =NETWORKDAYS(AM32,AM32,koszyki!$M$20:$M$89) -> 0 | AT32: 1 | AU32: 2 | AV32: 2 | AW32: 2 | AY32: 0 | BB32: 2026-01-01 | BC32: 2026-01-02 | BD32: 2026-01-03 | BE32: 2026-01-04 | BG32: =NETWORKDAYS(BB32,BB32,koszyki!$M$20:$M$89) -> 1 | BH32: =NETWORKDAYS(BC32,BC32,koszyki!$M$20:$M$89) -> 1 | BI32: =NETWORKDAYS(BD32,BD32,koszyki!$M$20:$M$89) -> 0 | BJ32: =NETWORKDAYS(BE32,BE32,koszyki!$M$20:$M$89) -> 0 | BL32: 1 | BM32: 2 | BN32: 2 | BO32: 2 | BQ32: 0
A33: 2026-04-01 | B33: 2026-06-30 | C33: 2184 | D33: ='Kalkulator Depozytów'!M38 -> 0 | E33: ='Kalkulator Depozytów'!N38 -> 0 | F33: ='Kalkulator Depozytów'!O38 -> 0 | G33: ='Kalkulator Depozytów'!P38 -> 0 | H33: ='Kalkulator Depozytów'!Q38 -> 0 | I33: =ROUND(IF(OR(AND(K33>0,L33="L-PEAK5"),AND(K33>0,L33="H-PEAK5")),R33,IF(AND(K33>0,L33="PEAK5"),O33,IF(K33>0,IF(OR(L33="BASE"),AVERAGE(INDIRECT("krzywa!B"&MATCH(A33-$A$2,krzywa!A:A,0)&":B"&MATCH(B33-$A$2,krzywa!A:A,0),TRUE)),IF(OR(L33="OFFPEAK"),AVERAGE(INDIRECT("krzywa!F"&MATCH(A33-$A$2,krzywa!A:A,0)&":F"&MATCH(B33-$A$2,krzywa!A:A,0)))))))),4) ->  | J33: 0 | K33: 46203 | L33: BASE | M33: =NETWORKDAYS(A33,B33,koszyki!$M$20:$M$898) -> 62 | N33: =B33-A33+1- NETWORKDAYS(A33,B33,koszyki!$M$20:$M$898) -> 29 | O33: =ROUND(IF((B33-A33+1)>2,IF(C33=75,AVERAGE(INDIRECT("krzywa!C"&MATCH(K33-6,krzywa!A:A,0)&":C"&MATCH(K33-2,krzywa!A:A,0))),AVERAGE(INDIRECT("krzywa!C"&MATCH(A33-$A$2+BQ33,krzywa!A:A,0)&":C"&MATCH(B33-$A$2-AY33,krzywa!A:A,0)))),INDIRECT("krzywa!C"&MATCH(K33,krzywa!A:A,0))),4) ->  | P33: 0 | Q33: =-C33*ABS(D33-F33)*H33*I33*U33+'kompensacja międzyproduktowa'!X33*U33 ->  | R33: =ROUND(IF((B33-A33+1)>2,IF(C33=75,AVERAGE(INDIRECT("krzywa!D"&MATCH(K33-6,krzywa!A:A,0)&":D"&MATCH(K33-2,krzywa!A:A,0))),AVERAGE(INDIRECT("krzywa!D"&MATCH(A33-$A$2+BQ33,krzywa!A:A,0)&":D"&MATCH(B33-$A$2-AY33,krzywa!A:A,0)))),INDIRECT("krzywa!D"&MATCH(K33,krzywa!A:A,0))),4) ->  | S33: =VLOOKUP(A33,krzywa!L:N,3,1) -> 0 | T33: =VLOOKUP(B33,krzywa!L:N,3,1) -> 0 | U33: =IF('Kalkulator Depozytów'!$B$35=TRUE,1,(1+S33/100)*W33+(1+T33/100)*(1-W33)) -> 1 | V33: =IF(S33<>T33,VLOOKUP(A33,krzywa!L:M,2,1)) -> FALSE | W33: =IF(V33<>FALSE,IF(L33="BASE",(V33-A33+1)*24+J33,IF(L33="OFFPEAK",NETWORKDAYS(A33,V33,koszyki!$M$20:$M$898)*9+(N33)*24+J33,IF(L33="L-PEAK5",NETWORKDAYS(A33,V33,koszyki!$M$20:$M$898)*10,IF(L33="H-PEAK5",NETWORKDAYS(A33,V33,koszyki!$M$20:$M$898)*5,NETWORKDAYS(A33,V33,koszyki!$M$20:$M$898)*15))))/C33,1) -> 1 | Y33: -797 | Z33: -1162 | AB33: 26 | AC33: 2025-10-26 | AD33: 1 | AJ33: 2026-06-30 | AK33: 2026-06-29 | AL33: 2026-06-28 | AM33: 2026-06-27 | AO33: =NETWORKDAYS(AJ33,AJ33,koszyki!$M$20:$M$89) -> 1 | AP33: =NETWORKDAYS(AK33,AK33,koszyki!$M$20:$M$89) -> 1 | AQ33: =NETWORKDAYS(AL33,AL33,koszyki!$M$20:$M$89) -> 0 | AR33: =NETWORKDAYS(AM33,AM33,koszyki!$M$20:$M$89) -> 0 | AT33: 1 | AU33: 2 | AV33: 2 | AW33: 2 | AY33: 0 | BB33: 2026-04-01 | BC33: 2026-04-02 | BD33: 2026-04-03 | BE33: 2026-04-04 | BG33: =NETWORKDAYS(BB33,BB33,koszyki!$M$20:$M$89) -> 1 | BH33: =NETWORKDAYS(BC33,BC33,koszyki!$M$20:$M$89) -> 1 | BI33: =NETWORKDAYS(BD33,BD33,koszyki!$M$20:$M$89) -> 1 | BJ33: =NETWORKDAYS(BE33,BE33,koszyki!$M$20:$M$89) -> 0 | BL33: 1 | BM33: 2 | BN33: 3 | BO33: 3 | BQ33: 0
A34: 2026-07-01 | B34: 2026-12-31 | C34: 4417 | D34: ='Kalkulator Depozytów'!M39 -> 0 | E34: ='Kalkulator Depozytów'!N39 -> 0 | F34: ='Kalkulator Depozytów'!O39 -> 0 | G34: ='Kalkulator Depozytów'!P39 -> 0 | H34: ='Kalkulator Depozytów'!Q39 -> 0 | I34: =ROUND(IF(OR(AND(K34>0,L34="L-PEAK5"),AND(K34>0,L34="H-PEAK5")),R34,IF(AND(K34>0,L34="PEAK5"),O34,IF(K34>0,IF(OR(L34="BASE"),AVERAGE(INDIRECT("krzywa!B"&MATCH(A34-$A$2,krzywa!A:A,0)&":B"&MATCH(B34-$A$2,krzywa!A:A,0),TRUE)),IF(OR(L34="OFFPEAK"),AVERAGE(INDIRECT("krzywa!F"&MATCH(A34-$A$2,krzywa!A:A,0)&":F"&MATCH(B34-$A$2,krzywa!A:A,0)))))))),4) ->  | J34: 1 | K34: 46387 | L34: BASE | M34: =NETWORKDAYS(A34,B34,koszyki!$M$20:$M$898) -> 130 | N34: =B34-A34+1- NETWORKDAYS(A34,B34,koszyki!$M$20:$M$898) -> 54 | O34: =ROUND(IF((B34-A34+1)>2,IF(C34=75,AVERAGE(INDIRECT("krzywa!C"&MATCH(K34-6,krzywa!A:A,0)&":C"&MATCH(K34-2,krzywa!A:A,0))),AVERAGE(INDIRECT("krzywa!C"&MATCH(A34-$A$2+BQ34,krzywa!A:A,0)&":C"&MATCH(B34-$A$2-AY34,krzywa!A:A,0)))),INDIRECT("krzywa!C"&MATCH(K34,krzywa!A:A,0))),4) ->  | P34: 0 | Q34: =-C34*ABS(D34-F34)*H34*I34*U34+'kompensacja międzyproduktowa'!X34*U34 ->  | R34: =ROUND(IF((B34-A34+1)>2,IF(C34=75,AVERAGE(INDIRECT("krzywa!D"&MATCH(K34-6,krzywa!A:A,0)&":D"&MATCH(K34-2,krzywa!A:A,0))),AVERAGE(INDIRECT("krzywa!D"&MATCH(A34-$A$2+BQ34,krzywa!A:A,0)&":D"&MATCH(B34-$A$2-AY34,krzywa!A:A,0)))),INDIRECT("krzywa!D"&MATCH(K34,krzywa!A:A,0))),4) ->  | S34: =VLOOKUP(A34,krzywa!L:N,3,1) -> 0 | T34: =VLOOKUP(B34,krzywa!L:N,3,1) -> 0 | U34: =IF('Kalkulator Depozytów'!$B$35=TRUE,1,(1+S34/100)*W34+(1+T34/100)*(1-W34)) -> 1 | V34: =IF(S34<>T34,VLOOKUP(A34,krzywa!L:M,2,1)) -> FALSE | W34: =IF(V34<>FALSE,IF(L34="BASE",(V34-A34+1)*24+J34,IF(L34="OFFPEAK",NETWORKDAYS(A34,V34,koszyki!$M$20:$M$898)*9+(N34)*24+J34,IF(L34="L-PEAK5",NETWORKDAYS(A34,V34,koszyki!$M$20:$M$898)*10,IF(L34="H-PEAK5",NETWORKDAYS(A34,V34,koszyki!$M$20:$M$898)*5,NETWORKDAYS(A34,V34,koszyki!$M$20:$M$898)*15))))/C34,1) -> 1 | Y34: -643 | Z34: -1008 | AB34: 27 | AC34: 2026-03-29 | AD34: -1 | AJ34: 2026-12-31 | AK34: 2026-12-30 | AL34: 2026-12-29 | AM34: 2026-12-28 | AO34: =NETWORKDAYS(AJ34,AJ34,koszyki!$M$20:$M$89) -> 1 | AP34: =NETWORKDAYS(AK34,AK34,koszyki!$M$20:$M$89) -> 1 | AQ34: =NETWORKDAYS(AL34,AL34,koszyki!$M$20:$M$89) -> 1 | AR34: =NETWORKDAYS(AM34,AM34,koszyki!$M$20:$M$89) -> 1 | AT34: 1 | AU34: 2 | AV34: 3 | AW34: 4 | AY34: 0 | BB34: 2026-07-01 | BC34: 2026-07-02 | BD34: 2026-07-03 | BE34: 2026-07-04 | BG34: =NETWORKDAYS(BB34,BB34,koszyki!$M$20:$M$89) -> 1 | BH34: =NETWORKDAYS(BC34,BC34,koszyki!$M$20:$M$89) -> 1 | BI34: =NETWORKDAYS(BD34,BD34,koszyki!$M$20:$M$89) -> 1 | BJ34: =NETWORKDAYS(BE34,BE34,koszyki!$M$20:$M$89) -> 0 | BL34: 1 | BM34: 2 | BN34: 3 | BO34: 3 | BQ34: 0
A35: 2027-01-01 | B35: 2027-12-31 | C35: 8760 | D35: ='Kalkulator Depozytów'!M40 -> 0 | E35: ='Kalkulator Depozytów'!N40 -> 0 | F35: ='Kalkulator Depozytów'!O40 -> 0 | G35: ='Kalkulator Depozytów'!P40 -> 0 | H35: ='Kalkulator Depozytów'!Q40 -> 0 | I35: =ROUND(IF(OR(AND(K35>0,L35="L-PEAK5"),AND(K35>0,L35="H-PEAK5")),R35,IF(AND(K35>0,L35="PEAK5"),O35,IF(K35>0,IF(OR(L35="BASE"),AVERAGE(INDIRECT("krzywa!B"&MATCH(A35-$A$2,krzywa!A:A,0)&":B"&MATCH(B35-$A$2,krzywa!A:A,0),TRUE)),IF(OR(L35="OFFPEAK"),AVERAGE(INDIRECT("krzywa!F"&MATCH(A35-$A$2,krzywa!A:A,0)&":F"&MATCH(B35-$A$2,krzywa!A:A,0)))))))),4) ->  | J35: 0 | K35: 46752 | L35: BASE | M35: =NETWORKDAYS(A35,B35,koszyki!$M$20:$M$898) -> 253 | N35: =B35-A35+1- NETWORKDAYS(A35,B35,koszyki!$M$20:$M$898) -> 112 | O35: =ROUND(IF((B35-A35+1)>2,IF(C35=75,AVERAGE(INDIRECT("krzywa!C"&MATCH(K35-6,krzywa!A:A,0)&":C"&MATCH(K35-2,krzywa!A:A,0))),AVERAGE(INDIRECT("krzywa!C"&MATCH(A35-$A$2+BQ35,krzywa!A:A,0)&":C"&MATCH(B35-$A$2-AY35,krzywa!A:A,0)))),INDIRECT("krzywa!C"&MATCH(K35,krzywa!A:A,0))),4) ->  | P35: 0 | Q35: =-C35*ABS(D35-F35)*H35*I35*U35+'kompensacja międzyproduktowa'!X35*U35 ->  | R35: =ROUND(IF((B35-A35+1)>2,IF(C35=75,AVERAGE(INDIRECT("krzywa!D"&MATCH(K35-6,krzywa!A:A,0)&":D"&MATCH(K35-2,krzywa!A:A,0))),AVERAGE(INDIRECT("krzywa!D"&MATCH(A35-$A$2+BQ35,krzywa!A:A,0)&":D"&MATCH(B35-$A$2-AY35,krzywa!A:A,0)))),INDIRECT("krzywa!D"&MATCH(K35,krzywa!A:A,0))),4) ->  | S35: =VLOOKUP(A35,krzywa!L:N,3,1) -> 23 | T35: =VLOOKUP(B35,krzywa!L:N,3,1) -> 23 | U35: =IF('Kalkulator Depozytów'!$B$35=TRUE,1,(1+S35/100)*W35+(1+T35/100)*(1-W35)) -> 1.23 | V35: =IF(S35<>T35,VLOOKUP(A35,krzywa!L:M,2,1)) -> FALSE | W35: =IF(V35<>FALSE,IF(L35="BASE",(V35-A35+1)*24+J35,IF(L35="OFFPEAK",NETWORKDAYS(A35,V35,koszyki!$M$20:$M$898)*9+(N35)*24+J35,IF(L35="L-PEAK5",NETWORKDAYS(A35,V35,koszyki!$M$20:$M$898)*10,IF(L35="H-PEAK5",NETWORKDAYS(A35,V35,koszyki!$M$20:$M$898)*5,NETWORKDAYS(A35,V35,koszyki!$M$20:$M$898)*15))))/C35,1) -> 1 | Y35: =AC35-$Y$7 -> -433 | Z35: -798 | AB35: 28 | AC35: 2026-10-25 | AD35: 1 | AJ35: 2027-12-31 | AK35: 2027-12-30 | AL35: 2027-12-29 | AM35: 2027-12-28 | AO35: =NETWORKDAYS(AJ35,AJ35,koszyki!$M$20:$M$89) -> 1 | AP35: =NETWORKDAYS(AK35,AK35,koszyki!$M$20:$M$89) -> 1 | AQ35: =NETWORKDAYS(AL35,AL35,koszyki!$M$20:$M$89) -> 1 | AR35: =NETWORKDAYS(AM35,AM35,koszyki!$M$20:$M$89) -> 1 | AT35: 1 | AU35: 2 | AV35: 3 | AW35: 4 | AY35: 0 | BB35: 2027-01-01 | BC35: 2027-01-02 | BD35: 2027-01-03 | BE35: 2027-01-04 | BG35: =NETWORKDAYS(BB35,BB35,koszyki!$M$20:$M$89) -> 1 | BH35: =NETWORKDAYS(BC35,BC35,koszyki!$M$20:$M$89) -> 0 | BI35: =NETWORKDAYS(BD35,BD35,koszyki!$M$20:$M$89) -> 0 | BJ35: =NETWORKDAYS(BE35,BE35,koszyki!$M$20:$M$89) -> 1 | BL35: 1 | BM35: 1 | BN35: 1 | BO35: 2 | BQ35: 0
A36: 2028-01-01 | B36: 2028-12-31 | C36: 8784 | D36: ='Kalkulator Depozytów'!M41 -> 0 | E36: ='Kalkulator Depozytów'!N41 -> 0 | F36: ='Kalkulator Depozytów'!O41 -> 0 | G36: ='Kalkulator Depozytów'!P41 -> 0 | H36: ='Kalkulator Depozytów'!Q41 -> 0 | I36: =ROUND(IF(OR(AND(K36>0,L36="L-PEAK5"),AND(K36>0,L36="H-PEAK5")),R36,IF(AND(K36>0,L36="PEAK5"),O36,IF(K36>0,IF(OR(L36="BASE"),AVERAGE(INDIRECT("krzywa!B"&MATCH(A36-$A$2,krzywa!A:A,0)&":B"&MATCH(B36-$A$2,krzywa!A:A,0),TRUE)),IF(OR(L36="OFFPEAK"),AVERAGE(INDIRECT("krzywa!F"&MATCH(A36-$A$2,krzywa!A:A,0)&":F"&MATCH(B36-$A$2,krzywa!A:A,0)))))))),4) ->  | J36: 0 | K36: 47118 | L36: BASE | M36: =NETWORKDAYS(A36,B36,koszyki!$M$20:$M$898) -> 251 | N36: =B36-A36+1- NETWORKDAYS(A36,B36,koszyki!$M$20:$M$898) -> 115 | O36: =ROUND(IF((B36-A36+1)>2,IF(C36=75,AVERAGE(INDIRECT("krzywa!C"&MATCH(K36-6,krzywa!A:A,0)&":C"&MATCH(K36-2,krzywa!A:A,0))),AVERAGE(INDIRECT("krzywa!C"&MATCH(A36-$A$2+BQ36,krzywa!A:A,0)&":C"&MATCH(B36-$A$2-AY36,krzywa!A:A,0)))),INDIRECT("krzywa!C"&MATCH(K36,krzywa!A:A,0))),4) ->  | P36: 0 | Q36: =-C36*ABS(D36-F36)*H36*I36*U36+'kompensacja międzyproduktowa'!X36*U36 ->  | R36: =ROUND(IF((B36-A36+1)>2,IF(C36=75,AVERAGE(INDIRECT("krzywa!D"&MATCH(K36-6,krzywa!A:A,0)&":D"&MATCH(K36-2,krzywa!A:A,0))),AVERAGE(INDIRECT("krzywa!D"&MATCH(A36-$A$2+BQ36,krzywa!A:A,0)&":D"&MATCH(B36-$A$2-AY36,krzywa!A:A,0)))),INDIRECT("krzywa!D"&MATCH(K36,krzywa!A:A,0))),4) ->  | S36: =VLOOKUP(A36,krzywa!L:N,3,1) -> 23 | T36: =VLOOKUP(B36,krzywa!L:N,3,1) -> 23 | U36: =IF('Kalkulator Depozytów'!$B$35=TRUE,1,(1+S36/100)*W36+(1+T36/100)*(1-W36)) -> 1.23 | V36: =IF(S36<>T36,VLOOKUP(A36,krzywa!L:M,2,1)) -> FALSE | W36: =IF(V36<>FALSE,IF(L36="BASE",(V36-A36+1)*24+J36,IF(L36="OFFPEAK",NETWORKDAYS(A36,V36,koszyki!$M$20:$M$898)*9+(N36)*24+J36,IF(L36="L-PEAK5",NETWORKDAYS(A36,V36,koszyki!$M$20:$M$898)*10,IF(L36="H-PEAK5",NETWORKDAYS(A36,V36,koszyki!$M$20:$M$898)*5,NETWORKDAYS(A36,V36,koszyki!$M$20:$M$898)*15))))/C36,1) -> 1 | Y36: =AC36-$Y$7 -> -279 | Z36: =AC36-$Z$7 -> -644 | AB36: 29 | AC36: 2027-03-28 | AD36: -1 | AJ36: 2028-12-31 | AK36: 2028-12-30 | AL36: 2028-12-29 | AM36: 2028-12-28 | AO36: =NETWORKDAYS(AJ36,AJ36,koszyki!$M$20:$M$89) -> 0 | AP36: =NETWORKDAYS(AK36,AK36,koszyki!$M$20:$M$89) -> 0 | AQ36: =NETWORKDAYS(AL36,AL36,koszyki!$M$20:$M$89) -> 1 | AR36: =NETWORKDAYS(AM36,AM36,koszyki!$M$20:$M$89) -> 1 | AT36: 0 | AU36: 0 | AV36: 1 | AW36: 2 | AY36: 2 | BB36: 2028-01-01 | BC36: 2028-01-02 | BD36: 2028-01-03 | BE36: 2028-01-04 | BG36: =NETWORKDAYS(BB36,BB36,koszyki!$M$20:$M$89) -> 0 | BH36: =NETWORKDAYS(BC36,BC36,koszyki!$M$20:$M$89) -> 0 | BI36: =NETWORKDAYS(BD36,BD36,koszyki!$M$20:$M$89) -> 1 | BJ36: =NETWORKDAYS(BE36,BE36,koszyki!$M$20:$M$89) -> 1 | BL36: 0 | BM36: 0 | BN36: 1 | BO36: 2 | BQ36: 2
A37: 2024-11-28 | B37: 2024-11-28 | C37: 15 | D37: ='Kalkulator Depozytów'!M42 -> 0 | E37: ='Kalkulator Depozytów'!N42 -> 0 | F37: ='Kalkulator Depozytów'!O42 -> 0 | G37: ='Kalkulator Depozytów'!P42 -> 0 | H37: ='Kalkulator Depozytów'!Q42 -> 0 | I37: =ROUND(IF(OR(AND(K37>0,L37="L-PEAK5"),AND(K37>0,L37="H-PEAK5")),R37,IF(AND(K37>0,L37="PEAK5"),O37,IF(K37>0,IF(OR(L37="BASE"),AVERAGE(INDIRECT("krzywa!B"&MATCH(A37-$A$2,krzywa!A:A,0)&":B"&MATCH(B37-$A$2,krzywa!A:A,0),TRUE)),IF(OR(L37="OFFPEAK"),AVERAGE(INDIRECT("krzywa!F"&MATCH(A37-$A$2,krzywa!A:A,0)&":F"&MATCH(B37-$A$2,krzywa!A:A,0)))))))),4) ->  | J37: 0 | K37: 45624 | L37: PEAK5 | M37: =NETWORKDAYS(A37,B37,koszyki!$M$20:$M$898) -> 1 | N37: =B37-A37+1- NETWORKDAYS(A37,B37,koszyki!$M$20:$M$898) -> 0 | O37: =ROUND(IF((B37-A37+1)>2,IF(C37=75,AVERAGE(INDIRECT("krzywa!C"&MATCH(K37-6,krzywa!A:A,0)&":C"&MATCH(K37-2,krzywa!A:A,0))),AVERAGE(INDIRECT("krzywa!C"&MATCH(A37-$A$2+BQ37,krzywa!A:A,0)&":C"&MATCH(B37-$A$2-AY37,krzywa!A:A,0)))),INDIRECT("krzywa!C"&MATCH(K37,krzywa!A:A,0))),4) ->  | P37: 0 | Q37: =-C37*ABS(D37-F37)*H37*I37*U37+'kompensacja międzyproduktowa'!X37*U37 ->  | R37: =ROUND(IF((B37-A37+1)>2,IF(C37=75,AVERAGE(INDIRECT("krzywa!D"&MATCH(K37-6,krzywa!A:A,0)&":D"&MATCH(K37-2,krzywa!A:A,0))),AVERAGE(INDIRECT("krzywa!D"&MATCH(A37-$A$2+BQ37,krzywa!A:A,0)&":D"&MATCH(B37-$A$2-AY37,krzywa!A:A,0)))),INDIRECT("krzywa!D"&MATCH(K37,krzywa!A:A,0))),4) ->  | S37: =VLOOKUP(A37,krzywa!L:N,3,1) -> 0 | T37: =VLOOKUP(B37,krzywa!L:N,3,1) -> 0 | U37: =IF('Kalkulator Depozytów'!$B$35=TRUE,1,(1+S37/100)*W37+(1+T37/100)*(1-W37)) -> 1 | V37: =IF(S37<>T37,VLOOKUP(A37,krzywa!L:M,2,1)) -> FALSE | W37: =IF(V37<>FALSE,IF(L37="BASE",(V37-A37+1)*24+J37,IF(L37="OFFPEAK",NETWORKDAYS(A37,V37,koszyki!$M$20:$M$898)*9+(N37)*24+J37,IF(L37="L-PEAK5",NETWORKDAYS(A37,V37,koszyki!$M$20:$M$898)*10,IF(L37="H-PEAK5",NETWORKDAYS(A37,V37,koszyki!$M$20:$M$898)*5,NETWORKDAYS(A37,V37,koszyki!$M$20:$M$898)*15))))/C37,1) -> 1 | Y37: =AC37-$Y$7 -> -62 | Z37: =AC37-$Z$7 -> -427 | AB37: 30 | AC37: 2027-10-31 | AD37: 1 | AJ37: 2024-11-28 | AK37: 2024-11-27 | AL37: 2024-11-26 | AM37: 2024-11-25 | AO37: =NETWORKDAYS(AJ37,AJ37,koszyki!$M$20:$M$89) -> 1 | AP37: =NETWORKDAYS(AK37,AK37,koszyki!$M$20:$M$89) -> 1 | AQ37: =NETWORKDAYS(AL37,AL37,koszyki!$M$20:$M$89) -> 1 | AR37: =NETWORKDAYS(AM37,AM37,koszyki!$M$20:$M$89) -> 1 | AT37: 1 | AU37: 2 | AV37: 3 | AW37: 4 | AY37: 0 | BB37: 2024-11-28 | BC37: 2024-11-29 | BD37: 2024-11-30 | BE37: 2024-12-01 | BG37: =NETWORKDAYS(BB37,BB37,koszyki!$M$20:$M$89) -> 1 | BH37: =NETWORKDAYS(BC37,BC37,koszyki!$M$20:$M$89) -> 1 | BI37: =NETWORKDAYS(BD37,BD37,koszyki!$M$20:$M$89) -> 0 | BJ37: =NETWORKDAYS(BE37,BE37,koszyki!$M$20:$M$89) -> 0 | BL37: 1 | BM37: 2 | BN37: 2 | BO37: 2 | BQ37: 0
A38: 2024-11-29 | B38: 2024-11-29 | C38: 15 | D38: ='Kalkulator Depozytów'!M43 -> 0 | E38: ='Kalkulator Depozytów'!N43 -> 0 | F38: ='Kalkulator Depozytów'!O43 -> 0 | G38: ='Kalkulator Depozytów'!P43 -> 0 | H38: ='Kalkulator Depozytów'!Q43 -> 0 | I38: =ROUND(IF(OR(AND(K38>0,L38="L-PEAK5"),AND(K38>0,L38="H-PEAK5")),R38,IF(AND(K38>0,L38="PEAK5"),O38,IF(K38>0,IF(OR(L38="BASE"),AVERAGE(INDIRECT("krzywa!B"&MATCH(A38-$A$2,krzywa!A:A,0)&":B"&MATCH(B38-$A$2,krzywa!A:A,0),TRUE)),IF(OR(L38="OFFPEAK"),AVERAGE(INDIRECT("krzywa!F"&MATCH(A38-$A$2,krzywa!A:A,0)&":F"&MATCH(B38-$A$2,krzywa!A:A,0)))))))),4) ->  | J38: 0 | K38: 45625 | L38: PEAK5 | M38: =NETWORKDAYS(A38,B38,koszyki!$M$20:$M$898) -> 1 | N38: =B38-A38+1- NETWORKDAYS(A38,B38,koszyki!$M$20:$M$898) -> 0 | O38: =ROUND(IF((B38-A38+1)>2,IF(C38=75,AVERAGE(INDIRECT("krzywa!C"&MATCH(K38-6,krzywa!A:A,0)&":C"&MATCH(K38-2,krzywa!A:A,0))),AVERAGE(INDIRECT("krzywa!C"&MATCH(A38-$A$2+BQ38,krzywa!A:A,0)&":C"&MATCH(B38-$A$2-AY38,krzywa!A:A,0)))),INDIRECT("krzywa!C"&MATCH(K38,krzywa!A:A,0))),4) ->  | P38: 0 | Q38: =-C38*ABS(D38-F38)*H38*I38*U38+'kompensacja międzyproduktowa'!X38*U38 ->  | R38: =ROUND(IF((B38-A38+1)>2,IF(C38=75,AVERAGE(INDIRECT("krzywa!D"&MATCH(K38-6,krzywa!A:A,0)&":D"&MATCH(K38-2,krzywa!A:A,0))),AVERAGE(INDIRECT("krzywa!D"&MATCH(A38-$A$2+BQ38,krzywa!A:A,0)&":D"&MATCH(B38-$A$2-AY38,krzywa!A:A,0)))),INDIRECT("krzywa!D"&MATCH(K38,krzywa!A:A,0))),4) ->  | S38: =VLOOKUP(A38,krzywa!L:N,3,1) -> 0 | T38: =VLOOKUP(B38,krzywa!L:N,3,1) -> 0 | U38: =IF('Kalkulator Depozytów'!$B$35=TRUE,1,(1+S38/100)*W38+(1+T38/100)*(1-W38)) -> 1 | V38: =IF(S38<>T38,VLOOKUP(A38,krzywa!L:M,2,1)) -> FALSE | W38: =IF(V38<>FALSE,IF(L38="BASE",(V38-A38+1)*24+J38,IF(L38="OFFPEAK",NETWORKDAYS(A38,V38,koszyki!$M$20:$M$898)*9+(N38)*24+J38,IF(L38="L-PEAK5",NETWORKDAYS(A38,V38,koszyki!$M$20:$M$898)*10,IF(L38="H-PEAK5",NETWORKDAYS(A38,V38,koszyki!$M$20:$M$898)*5,NETWORKDAYS(A38,V38,koszyki!$M$20:$M$898)*15))))/C38,1) -> 1 | Y38: =AC38-$Y$7 -> 85 | Z38: =AC38-$Z$7 -> -280 | AB38: 31 | AC38: 2028-03-26 | AD38: -1 | AJ38: 2024-11-29 | AK38: 2024-11-28 | AL38: 2024-11-27 | AM38: 2024-11-26 | AO38: =NETWORKDAYS(AJ38,AJ38,koszyki!$M$20:$M$89) -> 1 | AP38: =NETWORKDAYS(AK38,AK38,koszyki!$M$20:$M$89) -> 1 | AQ38: =NETWORKDAYS(AL38,AL38,koszyki!$M$20:$M$89) -> 1 | AR38: =NETWORKDAYS(AM38,AM38,koszyki!$M$20:$M$89) -> 1 | AT38: 1 | AU38: 2 | AV38: 3 | AW38: 4 | AY38: 0 | BB38: 2024-11-29 | BC38: 2024-11-30 | BD38: 2024-12-01 | BE38: 2024-12-02 | BG38: =NETWORKDAYS(BB38,BB38,koszyki!$M$20:$M$89) -> 1 | BH38: =NETWORKDAYS(BC38,BC38,koszyki!$M$20:$M$89) -> 0 | BI38: =NETWORKDAYS(BD38,BD38,koszyki!$M$20:$M$89) -> 0 | BJ38: =NETWORKDAYS(BE38,BE38,koszyki!$M$20:$M$89) -> 1 | BL38: 1 | BM38: 1 | BN38: 1 | BO38: 2 | BQ38: 0
A39: 2024-11-30 | B39: 2024-11-30 | C39: 0 | D39: ='Kalkulator Depozytów'!M44 -> 0 | E39: ='Kalkulator Depozytów'!N44 -> 0 | F39: ='Kalkulator Depozytów'!O44 -> 0 | G39: ='Kalkulator Depozytów'!P44 -> 0 | H39: ='Kalkulator Depozytów'!Q44 -> 0 | I39: =ROUND(IF(OR(AND(K39>0,L39="L-PEAK5"),AND(K39>0,L39="H-PEAK5")),R39,IF(AND(K39>0,L39="PEAK5"),O39,IF(K39>0,IF(OR(L39="BASE"),AVERAGE(INDIRECT("krzywa!B"&MATCH(A39-$A$2,krzywa!A:A,0)&":B"&MATCH(B39-$A$2,krzywa!A:A,0),TRUE)),IF(OR(L39="OFFPEAK"),AVERAGE(INDIRECT("krzywa!F"&MATCH(A39-$A$2,krzywa!A:A,0)&":F"&MATCH(B39-$A$2,krzywa!A:A,0)))))))),4) ->  | J39: 0 | K39: 45626 | L39: PEAK5 | M39: =NETWORKDAYS(A39,B39,koszyki!$M$20:$M$898) -> 0 | N39: =B39-A39+1- NETWORKDAYS(A39,B39,koszyki!$M$20:$M$898) -> 1 | O39: =ROUND(IF((B39-A39+1)>2,IF(C39=75,AVERAGE(INDIRECT("krzywa!C"&MATCH(K39-6,krzywa!A:A,0)&":C"&MATCH(K39-2,krzywa!A:A,0))),AVERAGE(INDIRECT("krzywa!C"&MATCH(A39-$A$2+BQ39,krzywa!A:A,0)&":C"&MATCH(B39-$A$2-AY39,krzywa!A:A,0)))),INDIRECT("krzywa!C"&MATCH(K39,krzywa!A:A,0))),4) ->  | P39: 0 | Q39: =-C39*ABS(D39-F39)*H39*I39*U39+'kompensacja międzyproduktowa'!X39*U39 ->  | R39: =ROUND(IF((B39-A39+1)>2,IF(C39=75,AVERAGE(INDIRECT("krzywa!D"&MATCH(K39-6,krzywa!A:A,0)&":D"&MATCH(K39-2,krzywa!A:A,0))),AVERAGE(INDIRECT("krzywa!D"&MATCH(A39-$A$2+BQ39,krzywa!A:A,0)&":D"&MATCH(B39-$A$2-AY39,krzywa!A:A,0)))),INDIRECT("krzywa!D"&MATCH(K39,krzywa!A:A,0))),4) ->  | S39: =VLOOKUP(A39,krzywa!L:N,3,1) -> 0 | T39: =VLOOKUP(B39,krzywa!L:N,3,1) -> 0 | U39: =IF('Kalkulator Depozytów'!$B$35=TRUE,1,(1+S39/100)*W39+(1+T39/100)*(1-W39)) -> 1 | V39: =IF(S39<>T39,VLOOKUP(A39,krzywa!L:M,2,1)) -> FALSE | W39: =IF(V39<>FALSE,IF(L39="BASE",(V39-A39+1)*24+J39,IF(L39="OFFPEAK",NETWORKDAYS(A39,V39,koszyki!$M$20:$M$898)*9+(N39)*24+J39,IF(L39="L-PEAK5",NETWORKDAYS(A39,V39,koszyki!$M$20:$M$898)*10,IF(L39="H-PEAK5",NETWORKDAYS(A39,V39,koszyki!$M$20:$M$898)*5,NETWORKDAYS(A39,V39,koszyki!$M$20:$M$898)*15))))/C39,1) -> 1 | Y39: 302 | Z39: -63 | AB39: 32 | AC39: 2028-10-29 | AD39: 1 | AJ39: 2024-11-30 | AK39: 2024-11-29 | AL39: 2024-11-28 | AM39: 2024-11-27 | AO39: =NETWORKDAYS(AJ39,AJ39,koszyki!$M$20:$M$89) -> 0 | AP39: =NETWORKDAYS(AK39,AK39,koszyki!$M$20:$M$89) -> 1 | AQ39: =NETWORKDAYS(AL39,AL39,koszyki!$M$20:$M$89) -> 1 | AR39: =NETWORKDAYS(AM39,AM39,koszyki!$M$20:$M$89) -> 1 | AT39: 0 | AU39: 1 | AV39: 2 | AW39: 3 | AY39: 1 | BB39: 2024-11-30 | BC39: 2024-12-01 | BD39: 2024-12-02 | BE39: 2024-12-03 | BG39: =NETWORKDAYS(BB39,BB39,koszyki!$M$20:$M$89) -> 0 | BH39: =NETWORKDAYS(BC39,BC39,koszyki!$M$20:$M$89) -> 0 | BI39: =NETWORKDAYS(BD39,BD39,koszyki!$M$20:$M$89) -> 1 | BJ39: =NETWORKDAYS(BE39,BE39,koszyki!$M$20:$M$89) -> 1 | BL39: 0 | BM39: 0 | BN39: 1 | BO39: 2 | BQ39: 2
A40: 2024-12-01 | B40: 2024-12-01 | C40: 0 | D40: ='Kalkulator Depozytów'!M45 -> 0 | E40: ='Kalkulator Depozytów'!N45 -> 0 | F40: ='Kalkulator Depozytów'!O45 -> 0 | G40: ='Kalkulator Depozytów'!P45 -> 0 | H40: ='Kalkulator Depozytów'!Q45 -> 0 | I40: =ROUND(IF(OR(AND(K40>0,L40="L-PEAK5"),AND(K40>0,L40="H-PEAK5")),R40,IF(AND(K40>0,L40="PEAK5"),O40,IF(K40>0,IF(OR(L40="BASE"),AVERAGE(INDIRECT("krzywa!B"&MATCH(A40-$A$2,krzywa!A:A,0)&":B"&MATCH(B40-$A$2,krzywa!A:A,0),TRUE)),IF(OR(L40="OFFPEAK"),AVERAGE(INDIRECT("krzywa!F"&MATCH(A40-$A$2,krzywa!A:A,0)&":F"&MATCH(B40-$A$2,krzywa!A:A,0)))))))),4) ->  | J40: 0 | K40: 45627 | L40: PEAK5 | M40: =NETWORKDAYS(A40,B40,koszyki!$M$20:$M$898) -> 0 | N40: =B40-A40+1- NETWORKDAYS(A40,B40,koszyki!$M$20:$M$898) -> 1 | O40: =ROUND(IF((B40-A40+1)>2,IF(C40=75,AVERAGE(INDIRECT("krzywa!C"&MATCH(K40-6,krzywa!A:A,0)&":C"&MATCH(K40-2,krzywa!A:A,0))),AVERAGE(INDIRECT("krzywa!C"&MATCH(A40-$A$2+BQ40,krzywa!A:A,0)&":C"&MATCH(B40-$A$2-AY40,krzywa!A:A,0)))),INDIRECT("krzywa!C"&MATCH(K40,krzywa!A:A,0))),4) ->  | P40: 0 | Q40: =-C40*ABS(D40-F40)*H40*I40*U40+'kompensacja międzyproduktowa'!X40*U40 ->  | R40: =ROUND(IF((B40-A40+1)>2,IF(C40=75,AVERAGE(INDIRECT("krzywa!D"&MATCH(K40-6,krzywa!A:A,0)&":D"&MATCH(K40-2,krzywa!A:A,0))),AVERAGE(INDIRECT("krzywa!D"&MATCH(A40-$A$2+BQ40,krzywa!A:A,0)&":D"&MATCH(B40-$A$2-AY40,krzywa!A:A,0)))),INDIRECT("krzywa!D"&MATCH(K40,krzywa!A:A,0))),4) ->  | S40: =VLOOKUP(A40,krzywa!L:N,3,1) -> 0 | T40: =VLOOKUP(B40,krzywa!L:N,3,1) -> 0 | U40: =IF('Kalkulator Depozytów'!$B$35=TRUE,1,(1+S40/100)*W40+(1+T40/100)*(1-W40)) -> 1 | V40: =IF(S40<>T40,VLOOKUP(A40,krzywa!L:M,2,1)) -> FALSE | W40: =IF(V40<>FALSE,IF(L40="BASE",(V40-A40+1)*24+J40,IF(L40="OFFPEAK",NETWORKDAYS(A40,V40,koszyki!$M$20:$M$898)*9+(N40)*24+J40,IF(L40="L-PEAK5",NETWORKDAYS(A40,V40,koszyki!$M$20:$M$898)*10,IF(L40="H-PEAK5",NETWORKDAYS(A40,V40,koszyki!$M$20:$M$898)*5,NETWORKDAYS(A40,V40,koszyki!$M$20:$M$898)*15))))/C40,1) -> 1 | AJ40: =B40 -> 2024-12-01 | AK40: 2024-11-30 | AL40: 2024-11-29 | AM40: 2024-11-28 | AO40: =NETWORKDAYS(AJ40,AJ40,koszyki!$M$20:$M$89) -> 0 | AP40: =NETWORKDAYS(AK40,AK40,koszyki!$M$20:$M$89) -> 0 | AQ40: =NETWORKDAYS(AL40,AL40,koszyki!$M$20:$M$89) -> 1 | AR40: =NETWORKDAYS(AM40,AM40,koszyki!$M$20:$M$89) -> 1 | AT40: 0 | AU40: 0 | AV40: 1 | AW40: 2 | AY40: 2 | BB40: =A40 -> 2024-12-01 | BC40: 2024-12-02 | BD40: 2024-12-03 | BE40: 2024-12-04 | BG40: =NETWORKDAYS(BB40,BB40,koszyki!$M$20:$M$89) -> 0 | BH40: =NETWORKDAYS(BC40,BC40,koszyki!$M$20:$M$89) -> 1 | BI40: =NETWORKDAYS(BD40,BD40,koszyki!$M$20:$M$89) -> 1 | BJ40: =NETWORKDAYS(BE40,BE40,koszyki!$M$20:$M$89) -> 1 | BL40: 0 | BM40: 1 | BN40: 2 | BO40: 3 | BQ40: 1
A41: 2024-12-02 | B41: 2024-12-02 | C41: 15 | D41: ='Kalkulator Depozytów'!M46 -> 0 | E41: ='Kalkulator Depozytów'!N46 -> 0 | F41: ='Kalkulator Depozytów'!O46 -> 0 | G41: ='Kalkulator Depozytów'!P46 -> 0 | H41: ='Kalkulator Depozytów'!Q46 -> 0 | I41: =ROUND(IF(OR(AND(K41>0,L41="L-PEAK5"),AND(K41>0,L41="H-PEAK5")),R41,IF(AND(K41>0,L41="PEAK5"),O41,IF(K41>0,IF(OR(L41="BASE"),AVERAGE(INDIRECT("krzywa!B"&MATCH(A41-$A$2,krzywa!A:A,0)&":B"&MATCH(B41-$A$2,krzywa!A:A,0),TRUE)),IF(OR(L41="OFFPEAK"),AVERAGE(INDIRECT("krzywa!F"&MATCH(A41-$A$2,krzywa!A:A,0)&":F"&MATCH(B41-$A$2,krzywa!A:A,0)))))))),4) ->  | J41: 0 | K41: 45628 | L41: PEAK5 | M41: =NETWORKDAYS(A41,B41,koszyki!$M$20:$M$898) -> 1 | N41: =B41-A41+1- NETWORKDAYS(A41,B41,koszyki!$M$20:$M$898) -> 0 | O41: =ROUND(IF((B41-A41+1)>2,IF(C41=75,AVERAGE(INDIRECT("krzywa!C"&MATCH(K41-6,krzywa!A:A,0)&":C"&MATCH(K41-2,krzywa!A:A,0))),AVERAGE(INDIRECT("krzywa!C"&MATCH(A41-$A$2+BQ41,krzywa!A:A,0)&":C"&MATCH(B41-$A$2-AY41,krzywa!A:A,0)))),INDIRECT("krzywa!C"&MATCH(K41,krzywa!A:A,0))),4) ->  | P41: 0 | Q41: =-C41*ABS(D41-F41)*H41*I41*U41+'kompensacja międzyproduktowa'!X41*U41 ->  | R41: =ROUND(IF((B41-A41+1)>2,IF(C41=75,AVERAGE(INDIRECT("krzywa!D"&MATCH(K41-6,krzywa!A:A,0)&":D"&MATCH(K41-2,krzywa!A:A,0))),AVERAGE(INDIRECT("krzywa!D"&MATCH(A41-$A$2+BQ41,krzywa!A:A,0)&":D"&MATCH(B41-$A$2-AY41,krzywa!A:A,0)))),INDIRECT("krzywa!D"&MATCH(K41,krzywa!A:A,0))),4) ->  | S41: =VLOOKUP(A41,krzywa!L:N,3,1) -> 0 | T41: =VLOOKUP(B41,krzywa!L:N,3,1) -> 0 | U41: =IF('Kalkulator Depozytów'!$B$35=TRUE,1,(1+S41/100)*W41+(1+T41/100)*(1-W41)) -> 1 | V41: =IF(S41<>T41,VLOOKUP(A41,krzywa!L:M,2,1)) -> FALSE | W41: =IF(V41<>FALSE,IF(L41="BASE",(V41-A41+1)*24+J41,IF(L41="OFFPEAK",NETWORKDAYS(A41,V41,koszyki!$M$20:$M$898)*9+(N41)*24+J41,IF(L41="L-PEAK5",NETWORKDAYS(A41,V41,koszyki!$M$20:$M$898)*10,IF(L41="H-PEAK5",NETWORKDAYS(A41,V41,koszyki!$M$20:$M$898)*5,NETWORKDAYS(A41,V41,koszyki!$M$20:$M$898)*15))))/C41,1) -> 1 | AJ41: 2024-12-02 | AK41: 2024-12-01 | AL41: 2024-11-30 | AM41: 2024-11-29 | AO41: =NETWORKDAYS(AJ41,AJ41,koszyki!$M$20:$M$89) -> 1 | AP41: =NETWORKDAYS(AK41,AK41,koszyki!$M$20:$M$89) -> 0 | AQ41: =NETWORKDAYS(AL41,AL41,koszyki!$M$20:$M$89) -> 0 | AR41: =NETWORKDAYS(AM41,AM41,koszyki!$M$20:$M$89) -> 1 | AT41: 1 | AU41: 1 | AV41: 1 | AW41: 2 | AY41: 0 | BB41: 2024-12-02 | BC41: 2024-12-03 | BD41: 2024-12-04 | BE41: 2024-12-05 | BG41: =NETWORKDAYS(BB41,BB41,koszyki!$M$20:$M$89) -> 1 | BH41: =NETWORKDAYS(BC41,BC41,koszyki!$M$20:$M$89) -> 1 | BI41: =NETWORKDAYS(BD41,BD41,koszyki!$M$20:$M$89) -> 1 | BJ41: =NETWORKDAYS(BE41,BE41,koszyki!$M$20:$M$89) -> 1 | BL41: 1 | BM41: 2 | BN41: 3 | BO41: 4 | BQ41: 0
A42: 2024-12-03 | B42: 2024-12-03 | C42: 15 | D42: ='Kalkulator Depozytów'!M47 -> 0 | E42: ='Kalkulator Depozytów'!N47 -> 0 | F42: ='Kalkulator Depozytów'!O47 -> 0 | G42: ='Kalkulator Depozytów'!P47 -> 0 | H42: ='Kalkulator Depozytów'!Q47 -> 0 | I42: =ROUND(IF(OR(AND(K42>0,L42="L-PEAK5"),AND(K42>0,L42="H-PEAK5")),R42,IF(AND(K42>0,L42="PEAK5"),O42,IF(K42>0,IF(OR(L42="BASE"),AVERAGE(INDIRECT("krzywa!B"&MATCH(A42-$A$2,krzywa!A:A,0)&":B"&MATCH(B42-$A$2,krzywa!A:A,0),TRUE)),IF(OR(L42="OFFPEAK"),AVERAGE(INDIRECT("krzywa!F"&MATCH(A42-$A$2,krzywa!A:A,0)&":F"&MATCH(B42-$A$2,krzywa!A:A,0)))))))),4) ->  | J42: 0 | K42: 45629 | L42: PEAK5 | M42: =NETWORKDAYS(A42,B42,koszyki!$M$20:$M$898) -> 1 | N42: =B42-A42+1- NETWORKDAYS(A42,B42,koszyki!$M$20:$M$898) -> 0 | O42: =ROUND(IF((B42-A42+1)>2,IF(C42=75,AVERAGE(INDIRECT("krzywa!C"&MATCH(K42-6,krzywa!A:A,0)&":C"&MATCH(K42-2,krzywa!A:A,0))),AVERAGE(INDIRECT("krzywa!C"&MATCH(A42-$A$2+BQ42,krzywa!A:A,0)&":C"&MATCH(B42-$A$2-AY42,krzywa!A:A,0)))),INDIRECT("krzywa!C"&MATCH(K42,krzywa!A:A,0))),4) ->  | P42: 0 | Q42: =-C42*ABS(D42-F42)*H42*I42*U42+'kompensacja międzyproduktowa'!X42*U42 ->  | R42: =ROUND(IF((B42-A42+1)>2,IF(C42=75,AVERAGE(INDIRECT("krzywa!D"&MATCH(K42-6,krzywa!A:A,0)&":D"&MATCH(K42-2,krzywa!A:A,0))),AVERAGE(INDIRECT("krzywa!D"&MATCH(A42-$A$2+BQ42,krzywa!A:A,0)&":D"&MATCH(B42-$A$2-AY42,krzywa!A:A,0)))),INDIRECT("krzywa!D"&MATCH(K42,krzywa!A:A,0))),4) ->  | S42: =VLOOKUP(A42,krzywa!L:N,3,1) -> 0 | T42: =VLOOKUP(B42,krzywa!L:N,3,1) -> 0 | U42: =IF('Kalkulator Depozytów'!$B$35=TRUE,1,(1+S42/100)*W42+(1+T42/100)*(1-W42)) -> 1 | V42: =IF(S42<>T42,VLOOKUP(A42,krzywa!L:M,2,1)) -> FALSE | W42: =IF(V42<>FALSE,IF(L42="BASE",(V42-A42+1)*24+J42,IF(L42="OFFPEAK",NETWORKDAYS(A42,V42,koszyki!$M$20:$M$898)*9+(N42)*24+J42,IF(L42="L-PEAK5",NETWORKDAYS(A42,V42,koszyki!$M$20:$M$898)*10,IF(L42="H-PEAK5",NETWORKDAYS(A42,V42,koszyki!$M$20:$M$898)*5,NETWORKDAYS(A42,V42,koszyki!$M$20:$M$898)*15))))/C42,1) -> 1 | AJ42: 2024-12-03 | AK42: 2024-12-02 | AL42: 2024-12-01 | AM42: 2024-11-30 | AO42: =NETWORKDAYS(AJ42,AJ42,koszyki!$M$20:$M$89) -> 1 | AP42: =NETWORKDAYS(AK42,AK42,koszyki!$M$20:$M$89) -> 1 | AQ42: =NETWORKDAYS(AL42,AL42,koszyki!$M$20:$M$89) -> 0 | AR42: =NETWORKDAYS(AM42,AM42,koszyki!$M$20:$M$89) -> 0 | AT42: 1 | AU42: 2 | AV42: 2 | AW42: 2 | AY42: 0 | BB42: 2024-12-03 | BC42: 2024-12-04 | BD42: 2024-12-05 | BE42: 2024-12-06 | BG42: =NETWORKDAYS(BB42,BB42,koszyki!$M$20:$M$89) -> 1 | BH42: =NETWORKDAYS(BC42,BC42,koszyki!$M$20:$M$89) -> 1 | BI42: =NETWORKDAYS(BD42,BD42,koszyki!$M$20:$M$89) -> 1 | BJ42: =NETWORKDAYS(BE42,BE42,koszyki!$M$20:$M$89) -> 1 | BL42: 1 | BM42: 2 | BN42: 3 | BO42: 4 | BQ42: 0
A43: 2024-12-04 | B43: 2024-12-04 | C43: 15 | D43: ='Kalkulator Depozytów'!M48 -> 0 | E43: ='Kalkulator Depozytów'!N48 -> 0 | F43: ='Kalkulator Depozytów'!O48 -> 0 | G43: ='Kalkulator Depozytów'!P48 -> 0 | H43: ='Kalkulator Depozytów'!Q48 -> 0 | I43: =ROUND(IF(OR(AND(K43>0,L43="L-PEAK5"),AND(K43>0,L43="H-PEAK5")),R43,IF(AND(K43>0,L43="PEAK5"),O43,IF(K43>0,IF(OR(L43="BASE"),AVERAGE(INDIRECT("krzywa!B"&MATCH(A43-$A$2,krzywa!A:A,0)&":B"&MATCH(B43-$A$2,krzywa!A:A,0),TRUE)),IF(OR(L43="OFFPEAK"),AVERAGE(INDIRECT("krzywa!F"&MATCH(A43-$A$2,krzywa!A:A,0)&":F"&MATCH(B43-$A$2,krzywa!A:A,0)))))))),4) ->  | J43: 0 | K43: 45630 | L43: PEAK5 | M43: =NETWORKDAYS(A43,B43,koszyki!$M$20:$M$898) -> 1 | N43: =B43-A43+1- NETWORKDAYS(A43,B43,koszyki!$M$20:$M$898) -> 0 | O43: =ROUND(IF((B43-A43+1)>2,IF(C43=75,AVERAGE(INDIRECT("krzywa!C"&MATCH(K43-6,krzywa!A:A,0)&":C"&MATCH(K43-2,krzywa!A:A,0))),AVERAGE(INDIRECT("krzywa!C"&MATCH(A43-$A$2+BQ43,krzywa!A:A,0)&":C"&MATCH(B43-$A$2-AY43,krzywa!A:A,0)))),INDIRECT("krzywa!C"&MATCH(K43,krzywa!A:A,0))),4) ->  | P43: 0 | Q43: =-C43*ABS(D43-F43)*H43*I43*U43+'kompensacja międzyproduktowa'!X43*U43 ->  | R43: =ROUND(IF((B43-A43+1)>2,IF(C43=75,AVERAGE(INDIRECT("krzywa!D"&MATCH(K43-6,krzywa!A:A,0)&":D"&MATCH(K43-2,krzywa!A:A,0))),AVERAGE(INDIRECT("krzywa!D"&MATCH(A43-$A$2+BQ43,krzywa!A:A,0)&":D"&MATCH(B43-$A$2-AY43,krzywa!A:A,0)))),INDIRECT("krzywa!D"&MATCH(K43,krzywa!A:A,0))),4) ->  | S43: =VLOOKUP(A43,krzywa!L:N,3,1) -> 0 | T43: =VLOOKUP(B43,krzywa!L:N,3,1) -> 0 | U43: =IF('Kalkulator Depozytów'!$B$35=TRUE,1,(1+S43/100)*W43+(1+T43/100)*(1-W43)) -> 1 | V43: =IF(S43<>T43,VLOOKUP(A43,krzywa!L:M,2,1)) -> FALSE | W43: =IF(V43<>FALSE,IF(L43="BASE",(V43-A43+1)*24+J43,IF(L43="OFFPEAK",NETWORKDAYS(A43,V43,koszyki!$M$20:$M$898)*9+(N43)*24+J43,IF(L43="L-PEAK5",NETWORKDAYS(A43,V43,koszyki!$M$20:$M$898)*10,IF(L43="H-PEAK5",NETWORKDAYS(A43,V43,koszyki!$M$20:$M$898)*5,NETWORKDAYS(A43,V43,koszyki!$M$20:$M$898)*15))))/C43,1) -> 1 | AJ43: 2024-12-04 | AK43: 2024-12-03 | AL43: 2024-12-02 | AM43: 2024-12-01 | AO43: =NETWORKDAYS(AJ43,AJ43,koszyki!$M$20:$M$89) -> 1 | AP43: =NETWORKDAYS(AK43,AK43,koszyki!$M$20:$M$89) -> 1 | AQ43: =NETWORKDAYS(AL43,AL43,koszyki!$M$20:$M$89) -> 1 | AR43: =NETWORKDAYS(AM43,AM43,koszyki!$M$20:$M$89) -> 0 | AT43: 1 | AU43: 2 | AV43: 3 | AW43: 3 | AY43: 0 | BB43: 2024-12-04 | BC43: 2024-12-05 | BD43: 2024-12-06 | BE43: 2024-12-07 | BG43: =NETWORKDAYS(BB43,BB43,koszyki!$M$20:$M$89) -> 1 | BH43: =NETWORKDAYS(BC43,BC43,koszyki!$M$20:$M$89) -> 1 | BI43: =NETWORKDAYS(BD43,BD43,koszyki!$M$20:$M$89) -> 1 | BJ43: =NETWORKDAYS(BE43,BE43,koszyki!$M$20:$M$89) -> 0 | BL43: 1 | BM43: 2 | BN43: 3 | BO43: 3 | BQ43: 0
A44: 2024-12-05 | B44: 2024-12-05 | C44: 15 | D44: ='Kalkulator Depozytów'!M49 -> 0 | E44: ='Kalkulator Depozytów'!N49 -> 0 | F44: ='Kalkulator Depozytów'!O49 -> 0 | G44: ='Kalkulator Depozytów'!P49 -> 0 | H44: ='Kalkulator Depozytów'!Q49 -> 0 | I44: =ROUND(IF(OR(AND(K44>0,L44="L-PEAK5"),AND(K44>0,L44="H-PEAK5")),R44,IF(AND(K44>0,L44="PEAK5"),O44,IF(K44>0,IF(OR(L44="BASE"),AVERAGE(INDIRECT("krzywa!B"&MATCH(A44-$A$2,krzywa!A:A,0)&":B"&MATCH(B44-$A$2,krzywa!A:A,0),TRUE)),IF(OR(L44="OFFPEAK"),AVERAGE(INDIRECT("krzywa!F"&MATCH(A44-$A$2,krzywa!A:A,0)&":F"&MATCH(B44-$A$2,krzywa!A:A,0)))))))),4) ->  | J44: 0 | K44: 45631 | L44: PEAK5 | M44: =NETWORKDAYS(A44,B44,koszyki!$M$20:$M$898) -> 1 | N44: =B44-A44+1- NETWORKDAYS(A44,B44,koszyki!$M$20:$M$898) -> 0 | O44: =ROUND(IF((B44-A44+1)>2,IF(C44=75,AVERAGE(INDIRECT("krzywa!C"&MATCH(K44-6,krzywa!A:A,0)&":C"&MATCH(K44-2,krzywa!A:A,0))),AVERAGE(INDIRECT("krzywa!C"&MATCH(A44-$A$2+BQ44,krzywa!A:A,0)&":C"&MATCH(B44-$A$2-AY44,krzywa!A:A,0)))),INDIRECT("krzywa!C"&MATCH(K44,krzywa!A:A,0))),4) ->  | P44: 0 | Q44: =-C44*ABS(D44-F44)*H44*I44*U44+'kompensacja międzyproduktowa'!X44*U44 ->  | R44: =ROUND(IF((B44-A44+1)>2,IF(C44=75,AVERAGE(INDIRECT("krzywa!D"&MATCH(K44-6,krzywa!A:A,0)&":D"&MATCH(K44-2,krzywa!A:A,0))),AVERAGE(INDIRECT("krzywa!D"&MATCH(A44-$A$2+BQ44,krzywa!A:A,0)&":D"&MATCH(B44-$A$2-AY44,krzywa!A:A,0)))),INDIRECT("krzywa!D"&MATCH(K44,krzywa!A:A,0))),4) ->  | S44: =VLOOKUP(A44,krzywa!L:N,3,1) -> 0 | T44: =VLOOKUP(B44,krzywa!L:N,3,1) -> 0 | U44: =IF('Kalkulator Depozytów'!$B$35=TRUE,1,(1+S44/100)*W44+(1+T44/100)*(1-W44)) -> 1 | V44: =IF(S44<>T44,VLOOKUP(A44,krzywa!L:M,2,1)) -> FALSE | W44: =IF(V44<>FALSE,IF(L44="BASE",(V44-A44+1)*24+J44,IF(L44="OFFPEAK",NETWORKDAYS(A44,V44,koszyki!$M$20:$M$898)*9+(N44)*24+J44,IF(L44="L-PEAK5",NETWORKDAYS(A44,V44,koszyki!$M$20:$M$898)*10,IF(L44="H-PEAK5",NETWORKDAYS(A44,V44,koszyki!$M$20:$M$898)*5,NETWORKDAYS(A44,V44,koszyki!$M$20:$M$898)*15))))/C44,1) -> 1 | AJ44: 2024-12-05 | AK44: 2024-12-04 | AL44: 2024-12-03 | AM44: 2024-12-02 | AO44: =NETWORKDAYS(AJ44,AJ44,koszyki!$M$20:$M$89) -> 1 | AP44: =NETWORKDAYS(AK44,AK44,koszyki!$M$20:$M$89) -> 1 | AQ44: =NETWORKDAYS(AL44,AL44,koszyki!$M$20:$M$89) -> 1 | AR44: =NETWORKDAYS(AM44,AM44,koszyki!$M$20:$M$89) -> 1 | AT44: 1 | AU44: 2 | AV44: 3 | AW44: 4 | AY44: 0 | BB44: 2024-12-05 | BC44: 2024-12-06 | BD44: 2024-12-07 | BE44: 2024-12-08 | BG44: =NETWORKDAYS(BB44,BB44,koszyki!$M$20:$M$89) -> 1 | BH44: =NETWORKDAYS(BC44,BC44,koszyki!$M$20:$M$89) -> 1 | BI44: =NETWORKDAYS(BD44,BD44,koszyki!$M$20:$M$89) -> 0 | BJ44: =NETWORKDAYS(BE44,BE44,koszyki!$M$20:$M$89) -> 0 | BL44: 1 | BM44: 2 | BN44: 2 | BO44: 2 | BQ44: 0
A45: 2024-12-06 | B45: 2024-12-06 | C45: 15 | D45: ='Kalkulator Depozytów'!M50 -> 0 | E45: ='Kalkulator Depozytów'!N50 -> 0 | F45: ='Kalkulator Depozytów'!O50 -> 0 | G45: ='Kalkulator Depozytów'!P50 -> 0 | H45: ='Kalkulator Depozytów'!Q50 -> 0 | I45: =ROUND(IF(OR(AND(K45>0,L45="L-PEAK5"),AND(K45>0,L45="H-PEAK5")),R45,IF(AND(K45>0,L45="PEAK5"),O45,IF(K45>0,IF(OR(L45="BASE"),AVERAGE(INDIRECT("krzywa!B"&MATCH(A45-$A$2,krzywa!A:A,0)&":B"&MATCH(B45-$A$2,krzywa!A:A,0),TRUE)),IF(OR(L45="OFFPEAK"),AVERAGE(INDIRECT("krzywa!F"&MATCH(A45-$A$2,krzywa!A:A,0)&":F"&MATCH(B45-$A$2,krzywa!A:A,0)))))))),4) ->  | J45: 0 | K45: 45632 | L45: PEAK5 | M45: =NETWORKDAYS(A45,B45,koszyki!$M$20:$M$898) -> 1 | N45: =B45-A45+1- NETWORKDAYS(A45,B45,koszyki!$M$20:$M$898) -> 0 | O45: =ROUND(IF((B45-A45+1)>2,IF(C45=75,AVERAGE(INDIRECT("krzywa!C"&MATCH(K45-6,krzywa!A:A,0)&":C"&MATCH(K45-2,krzywa!A:A,0))),AVERAGE(INDIRECT("krzywa!C"&MATCH(A45-$A$2+BQ45,krzywa!A:A,0)&":C"&MATCH(B45-$A$2-AY45,krzywa!A:A,0)))),INDIRECT("krzywa!C"&MATCH(K45,krzywa!A:A,0))),4) ->  | P45: 0 | Q45: =-C45*ABS(D45-F45)*H45*I45*U45+'kompensacja międzyproduktowa'!X45*U45 ->  | R45: =ROUND(IF((B45-A45+1)>2,IF(C45=75,AVERAGE(INDIRECT("krzywa!D"&MATCH(K45-6,krzywa!A:A,0)&":D"&MATCH(K45-2,krzywa!A:A,0))),AVERAGE(INDIRECT("krzywa!D"&MATCH(A45-$A$2+BQ45,krzywa!A:A,0)&":D"&MATCH(B45-$A$2-AY45,krzywa!A:A,0)))),INDIRECT("krzywa!D"&MATCH(K45,krzywa!A:A,0))),4) ->  | S45: =VLOOKUP(A45,krzywa!L:N,3,1) -> 0 | T45: =VLOOKUP(B45,krzywa!L:N,3,1) -> 0 | U45: =IF('Kalkulator Depozytów'!$B$35=TRUE,1,(1+S45/100)*W45+(1+T45/100)*(1-W45)) -> 1 | V45: =IF(S45<>T45,VLOOKUP(A45,krzywa!L:M,2,1)) -> FALSE | W45: =IF(V45<>FALSE,IF(L45="BASE",(V45-A45+1)*24+J45,IF(L45="OFFPEAK",NETWORKDAYS(A45,V45,koszyki!$M$20:$M$898)*9+(N45)*24+J45,IF(L45="L-PEAK5",NETWORKDAYS(A45,V45,koszyki!$M$20:$M$898)*10,IF(L45="H-PEAK5",NETWORKDAYS(A45,V45,koszyki!$M$20:$M$898)*5,NETWORKDAYS(A45,V45,koszyki!$M$20:$M$898)*15))))/C45,1) -> 1 | AJ45: 2024-12-06 | AK45: 2024-12-05 | AL45: 2024-12-04 | AM45: 2024-12-03 | AO45: =NETWORKDAYS(AJ45,AJ45,koszyki!$M$20:$M$89) -> 1 | AP45: =NETWORKDAYS(AK45,AK45,koszyki!$M$20:$M$89) -> 1 | AQ45: =NETWORKDAYS(AL45,AL45,koszyki!$M$20:$M$89) -> 1 | AR45: =NETWORKDAYS(AM45,AM45,koszyki!$M$20:$M$89) -> 1 | AT45: 1 | AU45: 2 | AV45: 3 | AW45: 4 | AY45: 0 | BB45: 2024-12-06 | BC45: 2024-12-07 | BD45: 2024-12-08 | BE45: 2024-12-09 | BG45: =NETWORKDAYS(BB45,BB45,koszyki!$M$20:$M$89) -> 1 | BH45: =NETWORKDAYS(BC45,BC45,koszyki!$M$20:$M$89) -> 0 | BI45: =NETWORKDAYS(BD45,BD45,koszyki!$M$20:$M$89) -> 0 | BJ45: =NETWORKDAYS(BE45,BE45,koszyki!$M$20:$M$89) -> 1 | BL45: 1 | BM45: 1 | BN45: 1 | BO45: 2 | BQ45: 0
A46: 2024-12-07 | B46: 2024-12-07 | C46: 0 | D46: ='Kalkulator Depozytów'!M51 -> 0 | E46: ='Kalkulator Depozytów'!N51 -> 0 | F46: ='Kalkulator Depozytów'!O51 -> 0 | G46: ='Kalkulator Depozytów'!P51 -> 0 | H46: ='Kalkulator Depozytów'!Q51 -> 0 | I46: =ROUND(IF(OR(AND(K46>0,L46="L-PEAK5"),AND(K46>0,L46="H-PEAK5")),R46,IF(AND(K46>0,L46="PEAK5"),O46,IF(K46>0,IF(OR(L46="BASE"),AVERAGE(INDIRECT("krzywa!B"&MATCH(A46-$A$2,krzywa!A:A,0)&":B"&MATCH(B46-$A$2,krzywa!A:A,0),TRUE)),IF(OR(L46="OFFPEAK"),AVERAGE(INDIRECT("krzywa!F"&MATCH(A46-$A$2,krzywa!A:A,0)&":F"&MATCH(B46-$A$2,krzywa!A:A,0)))))))),4) ->  | J46: 0 | K46: 45633 | L46: PEAK5 | M46: =NETWORKDAYS(A46,B46,koszyki!$M$20:$M$898) -> 0 | N46: =B46-A46+1- NETWORKDAYS(A46,B46,koszyki!$M$20:$M$898) -> 1 | O46: =ROUND(IF((B46-A46+1)>2,IF(C46=75,AVERAGE(INDIRECT("krzywa!C"&MATCH(K46-6,krzywa!A:A,0)&":C"&MATCH(K46-2,krzywa!A:A,0))),AVERAGE(INDIRECT("krzywa!C"&MATCH(A46-$A$2+BQ46,krzywa!A:A,0)&":C"&MATCH(B46-$A$2-AY46,krzywa!A:A,0)))),INDIRECT("krzywa!C"&MATCH(K46,krzywa!A:A,0))),4) ->  | P46: 0 | Q46: =-C46*ABS(D46-F46)*H46*I46*U46+'kompensacja międzyproduktowa'!X46*U46 ->  | R46: =ROUND(IF((B46-A46+1)>2,IF(C46=75,AVERAGE(INDIRECT("krzywa!D"&MATCH(K46-6,krzywa!A:A,0)&":D"&MATCH(K46-2,krzywa!A:A,0))),AVERAGE(INDIRECT("krzywa!D"&MATCH(A46-$A$2+BQ46,krzywa!A:A,0)&":D"&MATCH(B46-$A$2-AY46,krzywa!A:A,0)))),INDIRECT("krzywa!D"&MATCH(K46,krzywa!A:A,0))),4) ->  | S46: =VLOOKUP(A46,krzywa!L:N,3,1) -> 0 | T46: =VLOOKUP(B46,krzywa!L:N,3,1) -> 0 | U46: =IF('Kalkulator Depozytów'!$B$35=TRUE,1,(1+S46/100)*W46+(1+T46/100)*(1-W46)) -> 1 | V46: =IF(S46<>T46,VLOOKUP(A46,krzywa!L:M,2,1)) -> FALSE | W46: =IF(V46<>FALSE,IF(L46="BASE",(V46-A46+1)*24+J46,IF(L46="OFFPEAK",NETWORKDAYS(A46,V46,koszyki!$M$20:$M$898)*9+(N46)*24+J46,IF(L46="L-PEAK5",NETWORKDAYS(A46,V46,koszyki!$M$20:$M$898)*10,IF(L46="H-PEAK5",NETWORKDAYS(A46,V46,koszyki!$M$20:$M$898)*5,NETWORKDAYS(A46,V46,koszyki!$M$20:$M$898)*15))))/C46,1) -> 1 | AJ46: 2024-12-07 | AK46: 2024-12-06 | AL46: 2024-12-05 | AM46: 2024-12-04 | AO46: =NETWORKDAYS(AJ46,AJ46,koszyki!$M$20:$M$89) -> 0 | AP46: =NETWORKDAYS(AK46,AK46,koszyki!$M$20:$M$89) -> 1 | AQ46: =NETWORKDAYS(AL46,AL46,koszyki!$M$20:$M$89) -> 1 | AR46: =NETWORKDAYS(AM46,AM46,koszyki!$M$20:$M$89) -> 1 | AT46: 0 | AU46: 1 | AV46: 2 | AW46: 3 | AY46: 1 | BB46: 2024-12-07 | BC46: 2024-12-08 | BD46: 2024-12-09 | BE46: 2024-12-10 | BG46: =NETWORKDAYS(BB46,BB46,koszyki!$M$20:$M$89) -> 0 | BH46: =NETWORKDAYS(BC46,BC46,koszyki!$M$20:$M$89) -> 0 | BI46: =NETWORKDAYS(BD46,BD46,koszyki!$M$20:$M$89) -> 1 | BJ46: =NETWORKDAYS(BE46,BE46,koszyki!$M$20:$M$89) -> 1 | BL46: 0 | BM46: 0 | BN46: 1 | BO46: 2 | BQ46: 2
A47: 2024-12-08 | B47: 2024-12-08 | C47: 0 | D47: ='Kalkulator Depozytów'!M52 -> 0 | E47: ='Kalkulator Depozytów'!N52 -> 0 | F47: ='Kalkulator Depozytów'!O52 -> 0 | G47: ='Kalkulator Depozytów'!P52 -> 0 | H47: ='Kalkulator Depozytów'!Q52 -> 0 | I47: =ROUND(IF(OR(AND(K47>0,L47="L-PEAK5"),AND(K47>0,L47="H-PEAK5")),R47,IF(AND(K47>0,L47="PEAK5"),O47,IF(K47>0,IF(OR(L47="BASE"),AVERAGE(INDIRECT("krzywa!B"&MATCH(A47-$A$2,krzywa!A:A,0)&":B"&MATCH(B47-$A$2,krzywa!A:A,0),TRUE)),IF(OR(L47="OFFPEAK"),AVERAGE(INDIRECT("krzywa!F"&MATCH(A47-$A$2,krzywa!A:A,0)&":F"&MATCH(B47-$A$2,krzywa!A:A,0)))))))),4) ->  | J47: 0 | K47: 45634 | L47: PEAK5 | M47: =NETWORKDAYS(A47,B47,koszyki!$M$20:$M$898) -> 0 | N47: =B47-A47+1- NETWORKDAYS(A47,B47,koszyki!$M$20:$M$898) -> 1 | O47: =ROUND(IF((B47-A47+1)>2,IF(C47=75,AVERAGE(INDIRECT("krzywa!C"&MATCH(K47-6,krzywa!A:A,0)&":C"&MATCH(K47-2,krzywa!A:A,0))),AVERAGE(INDIRECT("krzywa!C"&MATCH(A47-$A$2+BQ47,krzywa!A:A,0)&":C"&MATCH(B47-$A$2-AY47,krzywa!A:A,0)))),INDIRECT("krzywa!C"&MATCH(K47,krzywa!A:A,0))),4) ->  | P47: 0 | Q47: =-C47*ABS(D47-F47)*H47*I47*U47+'kompensacja międzyproduktowa'!X47*U47 ->  | R47: =ROUND(IF((B47-A47+1)>2,IF(C47=75,AVERAGE(INDIRECT("krzywa!D"&MATCH(K47-6,krzywa!A:A,0)&":D"&MATCH(K47-2,krzywa!A:A,0))),AVERAGE(INDIRECT("krzywa!D"&MATCH(A47-$A$2+BQ47,krzywa!A:A,0)&":D"&MATCH(B47-$A$2-AY47,krzywa!A:A,0)))),INDIRECT("krzywa!D"&MATCH(K47,krzywa!A:A,0))),4) ->  | S47: =VLOOKUP(A47,krzywa!L:N,3,1) -> 0 | T47: =VLOOKUP(B47,krzywa!L:N,3,1) -> 0 | U47: =IF('Kalkulator Depozytów'!$B$35=TRUE,1,(1+S47/100)*W47+(1+T47/100)*(1-W47)) -> 1 | V47: =IF(S47<>T47,VLOOKUP(A47,krzywa!L:M,2,1)) -> FALSE | W47: =IF(V47<>FALSE,IF(L47="BASE",(V47-A47+1)*24+J47,IF(L47="OFFPEAK",NETWORKDAYS(A47,V47,koszyki!$M$20:$M$898)*9+(N47)*24+J47,IF(L47="L-PEAK5",NETWORKDAYS(A47,V47,koszyki!$M$20:$M$898)*10,IF(L47="H-PEAK5",NETWORKDAYS(A47,V47,koszyki!$M$20:$M$898)*5,NETWORKDAYS(A47,V47,koszyki!$M$20:$M$898)*15))))/C47,1) -> 1 | AJ47: 2024-12-08 | AK47: 2024-12-07 | AL47: 2024-12-06 | AM47: 2024-12-05 | AO47: =NETWORKDAYS(AJ47,AJ47,koszyki!$M$20:$M$89) -> 0 | AP47: =NETWORKDAYS(AK47,AK47,koszyki!$M$20:$M$89) -> 0 | AQ47: =NETWORKDAYS(AL47,AL47,koszyki!$M$20:$M$89) -> 1 | AR47: =NETWORKDAYS(AM47,AM47,koszyki!$M$20:$M$89) -> 1 | AT47: 0 | AU47: 0 | AV47: 1 | AW47: 2 | AY47: 2 | BB47: 2024-12-08 | BC47: 2024-12-09 | BD47: 2024-12-10 | BE47: 2024-12-11 | BG47: =NETWORKDAYS(BB47,BB47,koszyki!$M$20:$M$89) -> 0 | BH47: =NETWORKDAYS(BC47,BC47,koszyki!$M$20:$M$89) -> 1 | BI47: =NETWORKDAYS(BD47,BD47,koszyki!$M$20:$M$89) -> 1 | BJ47: =NETWORKDAYS(BE47,BE47,koszyki!$M$20:$M$89) -> 1 | BL47: 0 | BM47: 1 | BN47: 2 | BO47: 3 | BQ47: 1
A48: 2024-12-09 | B48: 2024-12-15 | C48: 75 | D48: ='Kalkulator Depozytów'!M53 -> 0 | E48: ='Kalkulator Depozytów'!N53 -> 0 | F48: ='Kalkulator Depozytów'!O53 -> 0 | G48: ='Kalkulator Depozytów'!P53 -> 0 | H48: ='Kalkulator Depozytów'!Q53 -> 0 | I48: =ROUND(IF(OR(AND(K48>0,L48="L-PEAK5"),AND(K48>0,L48="H-PEAK5")),R48,IF(AND(K48>0,L48="PEAK5"),O48,IF(K48>0,IF(OR(L48="BASE"),AVERAGE(INDIRECT("krzywa!B"&MATCH(A48-$A$2,krzywa!A:A,0)&":B"&MATCH(B48-$A$2,krzywa!A:A,0),TRUE)),IF(OR(L48="OFFPEAK"),AVERAGE(INDIRECT("krzywa!F"&MATCH(A48-$A$2,krzywa!A:A,0)&":F"&MATCH(B48-$A$2,krzywa!A:A,0)))))))),4) ->  | J48: 0 | K48: 45641 | L48: PEAK5 | M48: =NETWORKDAYS(A48,B48,koszyki!$M$20:$M$898) -> 5 | N48: =B48-A48+1- NETWORKDAYS(A48,B48,koszyki!$M$20:$M$898) -> 2 | O48: =ROUND(IF((B48-A48+1)>2,IF(C48=75,AVERAGE(INDIRECT("krzywa!C"&MATCH(K48-6,krzywa!A:A,0)&":C"&MATCH(K48-2,krzywa!A:A,0))),AVERAGE(INDIRECT("krzywa!C"&MATCH(A48-$A$2+BQ48,krzywa!A:A,0)&":C"&MATCH(B48-$A$2-AY48,krzywa!A:A,0)))),INDIRECT("krzywa!C"&MATCH(K48,krzywa!A:A,0))),4) ->  | P48: 0 | Q48: =-C48*ABS(D48-F48)*H48*I48*U48+'kompensacja międzyproduktowa'!X48*U48 ->  | R48: =ROUND(IF((B48-A48+1)>2,IF(C48=75,AVERAGE(INDIRECT("krzywa!D"&MATCH(K48-6,krzywa!A:A,0)&":D"&MATCH(K48-2,krzywa!A:A,0))),AVERAGE(INDIRECT("krzywa!D"&MATCH(A48-$A$2+BQ48,krzywa!A:A,0)&":D"&MATCH(B48-$A$2-AY48,krzywa!A:A,0)))),INDIRECT("krzywa!D"&MATCH(K48,krzywa!A:A,0))),4) ->  | S48: =VLOOKUP(A48,krzywa!L:N,3,1) -> 0 | T48: =VLOOKUP(B48,krzywa!L:N,3,1) -> 0 | U48: =IF('Kalkulator Depozytów'!$B$35=TRUE,1,(1+S48/100)*W48+(1+T48/100)*(1-W48)) -> 1 | V48: =IF(S48<>T48,VLOOKUP(A48,krzywa!L:M,2,1)) -> FALSE | W48: =IF(V48<>FALSE,IF(L48="BASE",(V48-A48+1)*24+J48,IF(L48="OFFPEAK",NETWORKDAYS(A48,V48,koszyki!$M$20:$M$898)*9+(N48)*24+J48,IF(L48="L-PEAK5",NETWORKDAYS(A48,V48,koszyki!$M$20:$M$898)*10,IF(L48="H-PEAK5",NETWORKDAYS(A48,V48,koszyki!$M$20:$M$898)*5,NETWORKDAYS(A48,V48,koszyki!$M$20:$M$898)*15))))/C48,1) -> 1 | AJ48: 2024-12-15 | AK48: =AJ48-1 -> 2024-12-14 | AL48: 2024-12-13 | AM48: 2024-12-12 | AO48: =NETWORKDAYS(AJ48,AJ48,koszyki!$M$20:$M$89) -> 0 | AP48: =NETWORKDAYS(AK48,AK48,koszyki!$M$20:$M$89) -> 0 | AQ48: =NETWORKDAYS(AL48,AL48,koszyki!$M$20:$M$89) -> 1 | AR48: =NETWORKDAYS(AM48,AM48,koszyki!$M$20:$M$89) -> 1 | AT48: 0 | AU48: 0 | AV48: 1 | AW48: 2 | AY48: 2 | BB48: 2024-12-09 | BC48: 2024-12-10 | BD48: 2024-12-11 | BE48: 2024-12-12 | BG48: =NETWORKDAYS(BB48,BB48,koszyki!$M$20:$M$89) -> 1 | BH48: =NETWORKDAYS(BC48,BC48,koszyki!$M$20:$M$89) -> 1 | BI48: =NETWORKDAYS(BD48,BD48,koszyki!$M$20:$M$89) -> 1 | BJ48: =NETWORKDAYS(BE48,BE48,koszyki!$M$20:$M$89) -> 1 | BL48: 1 | BM48: 2 | BN48: 3 | BO48: 4 | BQ48: 0
A49: 2024-12-16 | B49: 2024-12-22 | C49: 75 | D49: ='Kalkulator Depozytów'!M54 -> 0 | E49: ='Kalkulator Depozytów'!N54 -> 0 | F49: ='Kalkulator Depozytów'!O54 -> 0 | G49: ='Kalkulator Depozytów'!P54 -> 0 | H49: ='Kalkulator Depozytów'!Q54 -> 0 | I49: =ROUND(IF(OR(AND(K49>0,L49="L-PEAK5"),AND(K49>0,L49="H-PEAK5")),R49,IF(AND(K49>0,L49="PEAK5"),O49,IF(K49>0,IF(OR(L49="BASE"),AVERAGE(INDIRECT("krzywa!B"&MATCH(A49-$A$2,krzywa!A:A,0)&":B"&MATCH(B49-$A$2,krzywa!A:A,0),TRUE)),IF(OR(L49="OFFPEAK"),AVERAGE(INDIRECT("krzywa!F"&MATCH(A49-$A$2,krzywa!A:A,0)&":F"&MATCH(B49-$A$2,krzywa!A:A,0)))))))),4) ->  | J49: 0 | K49: 45648 | L49: PEAK5 | M49: =NETWORKDAYS(A49,B49,koszyki!$M$20:$M$898) -> 5 | N49: =B49-A49+1- NETWORKDAYS(A49,B49,koszyki!$M$20:$M$898) -> 2 | O49: =ROUND(IF((B49-A49+1)>2,IF(C49=75,AVERAGE(INDIRECT("krzywa!C"&MATCH(K49-6,krzywa!A:A,0)&":C"&MATCH(K49-2,krzywa!A:A,0))),AVERAGE(INDIRECT("krzywa!C"&MATCH(A49-$A$2+BQ49,krzywa!A:A,0)&":C"&MATCH(B49-$A$2-AY49,krzywa!A:A,0)))),INDIRECT("krzywa!C"&MATCH(K49,krzywa!A:A,0))),4) ->  | P49: 0 | Q49: =-C49*ABS(D49-F49)*H49*I49*U49+'kompensacja międzyproduktowa'!X49*U49 ->  | R49: =ROUND(IF((B49-A49+1)>2,IF(C49=75,AVERAGE(INDIRECT("krzywa!D"&MATCH(K49-6,krzywa!A:A,0)&":D"&MATCH(K49-2,krzywa!A:A,0))),AVERAGE(INDIRECT("krzywa!D"&MATCH(A49-$A$2+BQ49,krzywa!A:A,0)&":D"&MATCH(B49-$A$2-AY49,krzywa!A:A,0)))),INDIRECT("krzywa!D"&MATCH(K49,krzywa!A:A,0))),4) ->  | S49: =VLOOKUP(A49,krzywa!L:N,3,1) -> 0 | T49: =VLOOKUP(B49,krzywa!L:N,3,1) -> 0 | U49: =IF('Kalkulator Depozytów'!$B$35=TRUE,1,(1+S49/100)*W49+(1+T49/100)*(1-W49)) -> 1 | V49: =IF(S49<>T49,VLOOKUP(A49,krzywa!L:M,2,1)) -> FALSE | W49: =IF(V49<>FALSE,IF(L49="BASE",(V49-A49+1)*24+J49,IF(L49="OFFPEAK",NETWORKDAYS(A49,V49,koszyki!$M$20:$M$898)*9+(N49)*24+J49,IF(L49="L-PEAK5",NETWORKDAYS(A49,V49,koszyki!$M$20:$M$898)*10,IF(L49="H-PEAK5",NETWORKDAYS(A49,V49,koszyki!$M$20:$M$898)*5,NETWORKDAYS(A49,V49,koszyki!$M$20:$M$898)*15))))/C49,1) -> 1 | AJ49: 2024-12-22 | AK49: 2024-12-21 | AL49: 2024-12-20 | AM49: 2024-12-19 | AO49: =NETWORKDAYS(AJ49,AJ49,koszyki!$M$20:$M$89) -> 0 | AP49: =NETWORKDAYS(AK49,AK49,koszyki!$M$20:$M$89) -> 0 | AQ49: =NETWORKDAYS(AL49,AL49,koszyki!$M$20:$M$89) -> 1 | AR49: =NETWORKDAYS(AM49,AM49,koszyki!$M$20:$M$89) -> 1 | AT49: 0 | AU49: 0 | AV49: 1 | AW49: 2 | AY49: 2 | BB49: 2024-12-16 | BC49: 2024-12-17 | BD49: 2024-12-18 | BE49: 2024-12-19 | BG49: =NETWORKDAYS(BB49,BB49,koszyki!$M$20:$M$89) -> 1 | BH49: =NETWORKDAYS(BC49,BC49,koszyki!$M$20:$M$89) -> 1 | BI49: =NETWORKDAYS(BD49,BD49,koszyki!$M$20:$M$89) -> 1 | BJ49: =NETWORKDAYS(BE49,BE49,koszyki!$M$20:$M$89) -> 1 | BL49: 1 | BM49: 2 | BN49: 3 | BO49: 4 | BQ49: 0
A50: 2024-12-23 | B50: 2024-12-29 | C50: 45 | D50: ='Kalkulator Depozytów'!M55 -> 0 | E50: ='Kalkulator Depozytów'!N55 -> 0 | F50: ='Kalkulator Depozytów'!O55 -> 0 | G50: ='Kalkulator Depozytów'!P55 -> 0 | H50: ='Kalkulator Depozytów'!Q55 -> 0 | I50: =ROUND(IF(OR(AND(K50>0,L50="L-PEAK5"),AND(K50>0,L50="H-PEAK5")),R50,IF(AND(K50>0,L50="PEAK5"),O50,IF(K50>0,IF(OR(L50="BASE"),AVERAGE(INDIRECT("krzywa!B"&MATCH(A50-$A$2,krzywa!A:A,0)&":B"&MATCH(B50-$A$2,krzywa!A:A,0),TRUE)),IF(OR(L50="OFFPEAK"),AVERAGE(INDIRECT("krzywa!F"&MATCH(A50-$A$2,krzywa!A:A,0)&":F"&MATCH(B50-$A$2,krzywa!A:A,0)))))))),4) ->  | J50: 0 | K50: 45655 | L50: PEAK5 | M50: =NETWORKDAYS(A50,B50,koszyki!$M$20:$M$898) -> 3 | N50: =B50-A50+1- NETWORKDAYS(A50,B50,koszyki!$M$20:$M$898) -> 4 | O50: =ROUND(IF((B50-A50+1)>2,IF(C50=75,AVERAGE(INDIRECT("krzywa!C"&MATCH(K50-6,krzywa!A:A,0)&":C"&MATCH(K50-2,krzywa!A:A,0))),AVERAGE(INDIRECT("krzywa!C"&MATCH(A50-$A$2+BQ50,krzywa!A:A,0)&":C"&MATCH(B50-$A$2-AY50,krzywa!A:A,0)))),INDIRECT("krzywa!C"&MATCH(K50,krzywa!A:A,0))),4) ->  | P50: 0 | Q50: =-C50*ABS(D50-F50)*H50*I50*U50+'kompensacja międzyproduktowa'!X50*U50 ->  | R50: =ROUND(IF((B50-A50+1)>2,IF(C50=75,AVERAGE(INDIRECT("krzywa!D"&MATCH(K50-6,krzywa!A:A,0)&":D"&MATCH(K50-2,krzywa!A:A,0))),AVERAGE(INDIRECT("krzywa!D"&MATCH(A50-$A$2+BQ50,krzywa!A:A,0)&":D"&MATCH(B50-$A$2-AY50,krzywa!A:A,0)))),INDIRECT("krzywa!D"&MATCH(K50,krzywa!A:A,0))),4) ->  | S50: =VLOOKUP(A50,krzywa!L:N,3,1) -> 0 | T50: =VLOOKUP(B50,krzywa!L:N,3,1) -> 0 | U50: =IF('Kalkulator Depozytów'!$B$35=TRUE,1,(1+S50/100)*W50+(1+T50/100)*(1-W50)) -> 1 | V50: =IF(S50<>T50,VLOOKUP(A50,krzywa!L:M,2,1)) -> FALSE | W50: =IF(V50<>FALSE,IF(L50="BASE",(V50-A50+1)*24+J50,IF(L50="OFFPEAK",NETWORKDAYS(A50,V50,koszyki!$M$20:$M$898)*9+(N50)*24+J50,IF(L50="L-PEAK5",NETWORKDAYS(A50,V50,koszyki!$M$20:$M$898)*10,IF(L50="H-PEAK5",NETWORKDAYS(A50,V50,koszyki!$M$20:$M$898)*5,NETWORKDAYS(A50,V50,koszyki!$M$20:$M$898)*15))))/C50,1) -> 1 | AJ50: 2024-12-29 | AK50: 2024-12-28 | AL50: 2024-12-27 | AM50: 2024-12-26 | AO50: =NETWORKDAYS(AJ50,AJ50,koszyki!$M$20:$M$89) -> 0 | AP50: =NETWORKDAYS(AK50,AK50,koszyki!$M$20:$M$89) -> 0 | AQ50: =NETWORKDAYS(AL50,AL50,koszyki!$M$20:$M$89) -> 1 | AR50: =NETWORKDAYS(AM50,AM50,koszyki!$M$20:$M$89) -> 1 | AT50: 0 | AU50: 0 | AV50: 1 | AW50: 2 | AY50: 2 | BB50: 2024-12-23 | BC50: 2024-12-24 | BD50: 2024-12-25 | BE50: 2024-12-26 | BG50: =NETWORKDAYS(BB50,BB50,koszyki!$M$20:$M$89) -> 1 | BH50: =NETWORKDAYS(BC50,BC50,koszyki!$M$20:$M$89) -> 1 | BI50: =NETWORKDAYS(BD50,BD50,koszyki!$M$20:$M$89) -> 1 | BJ50: =NETWORKDAYS(BE50,BE50,koszyki!$M$20:$M$89) -> 1 | BL50: 1 | BM50: 2 | BN50: 3 | BO50: 4 | BQ50: 0
A51: 2024-12-30 | B51: 2024-12-31 | C51: 30 | D51: ='Kalkulator Depozytów'!M56 -> 0 | E51: ='Kalkulator Depozytów'!N56 -> 0 | F51: ='Kalkulator Depozytów'!O56 -> 0 | G51: ='Kalkulator Depozytów'!P56 -> 0 | H51: ='Kalkulator Depozytów'!Q56 -> 0 | I51: =ROUND(IF(OR(AND(K51>0,L51="L-PEAK5"),AND(K51>0,L51="H-PEAK5")),R51,IF(AND(K51>0,L51="PEAK5"),O51,IF(K51>0,IF(OR(L51="BASE"),AVERAGE(INDIRECT("krzywa!B"&MATCH(A51-$A$2,krzywa!A:A,0)&":B"&MATCH(B51-$A$2,krzywa!A:A,0),TRUE)),IF(OR(L51="OFFPEAK"),AVERAGE(INDIRECT("krzywa!F"&MATCH(A51-$A$2,krzywa!A:A,0)&":F"&MATCH(B51-$A$2,krzywa!A:A,0)))))))),4) ->  | J51: 0 | K51: 45657 | L51: PEAK5 | M51: =NETWORKDAYS(A51,B51,koszyki!$M$20:$M$898) -> 2 | N51: =B51-A51+1- NETWORKDAYS(A51,B51,koszyki!$M$20:$M$898) -> 0 | O51: =ROUND(IF((B51-A51+1)>2,IF(C51=75,AVERAGE(INDIRECT("krzywa!C"&MATCH(K51-6,krzywa!A:A,0)&":C"&MATCH(K51-2,krzywa!A:A,0))),AVERAGE(INDIRECT("krzywa!C"&MATCH(A51-$A$2+BQ51,krzywa!A:A,0)&":C"&MATCH(B51-$A$2-AY51,krzywa!A:A,0)))),INDIRECT("krzywa!C"&MATCH(K51,krzywa!A:A,0))),4) ->  | P51: 0 | Q51: =-C51*ABS(D51-F51)*H51*I51*U51+'kompensacja międzyproduktowa'!X51*U51 ->  | R51: =ROUND(IF((B51-A51+1)>2,IF(C51=75,AVERAGE(INDIRECT("krzywa!D"&MATCH(K51-6,krzywa!A:A,0)&":D"&MATCH(K51-2,krzywa!A:A,0))),AVERAGE(INDIRECT("krzywa!D"&MATCH(A51-$A$2+BQ51,krzywa!A:A,0)&":D"&MATCH(B51-$A$2-AY51,krzywa!A:A,0)))),INDIRECT("krzywa!D"&MATCH(K51,krzywa!A:A,0))),4) ->  | S51: =VLOOKUP(A51,krzywa!L:N,3,1) -> 0 | T51: =VLOOKUP(B51,krzywa!L:N,3,1) -> 0 | U51: =IF('Kalkulator Depozytów'!$B$35=TRUE,1,(1+S51/100)*W51+(1+T51/100)*(1-W51)) -> 1 | V51: =IF(S51<>T51,VLOOKUP(A51,krzywa!L:M,2,1)) -> FALSE | W51: =IF(V51<>FALSE,IF(L51="BASE",(V51-A51+1)*24+J51,IF(L51="OFFPEAK",NETWORKDAYS(A51,V51,koszyki!$M$20:$M$898)*9+(N51)*24+J51,IF(L51="L-PEAK5",NETWORKDAYS(A51,V51,koszyki!$M$20:$M$898)*10,IF(L51="H-PEAK5",NETWORKDAYS(A51,V51,koszyki!$M$20:$M$898)*5,NETWORKDAYS(A51,V51,koszyki!$M$20:$M$898)*15))))/C51,1) -> 1 | AJ51: 2024-12-31 | AK51: 2024-12-30 | AL51: 2024-12-29 | AM51: 2024-12-28 | AO51: =NETWORKDAYS(AJ51,AJ51,koszyki!$M$20:$M$89) -> 1 | AP51: =NETWORKDAYS(AK51,AK51,koszyki!$M$20:$M$89) -> 1 | AQ51: =NETWORKDAYS(AL51,AL51,koszyki!$M$20:$M$89) -> 0 | AR51: =NETWORKDAYS(AM51,AM51,koszyki!$M$20:$M$89) -> 0 | AT51: 1 | AU51: 2 | AV51: 2 | AW51: 2 | AY51: 0 | BB51: 2024-12-30 | BC51: 2024-12-31 | BD51: 2025-01-01 | BE51: 2025-01-02 | BG51: =NETWORKDAYS(BB51,BB51,koszyki!$M$20:$M$89) -> 1 | BH51: =NETWORKDAYS(BC51,BC51,koszyki!$M$20:$M$89) -> 1 | BI51: =NETWORKDAYS(BD51,BD51,koszyki!$M$20:$M$89) -> 1 | BJ51: =NETWORKDAYS(BE51,BE51,koszyki!$M$20:$M$89) -> 1 | BL51: 1 | BM51: 2 | BN51: 3 | BO51: 4 | BQ51: 0
A52: 2025-01-01 | B52: 2025-01-05 | C52: 30 | D52: ='Kalkulator Depozytów'!M57 -> 0 | E52: ='Kalkulator Depozytów'!N57 -> 0 | F52: ='Kalkulator Depozytów'!O57 -> 0 | G52: ='Kalkulator Depozytów'!P57 -> 0 | H52: ='Kalkulator Depozytów'!Q57 -> 0 | I52: =ROUND(IF(OR(AND(K52>0,L52="L-PEAK5"),AND(K52>0,L52="H-PEAK5")),R52,IF(AND(K52>0,L52="PEAK5"),O52,IF(K52>0,IF(OR(L52="BASE"),AVERAGE(INDIRECT("krzywa!B"&MATCH(A52-$A$2,krzywa!A:A,0)&":B"&MATCH(B52-$A$2,krzywa!A:A,0),TRUE)),IF(OR(L52="OFFPEAK"),AVERAGE(INDIRECT("krzywa!F"&MATCH(A52-$A$2,krzywa!A:A,0)&":F"&MATCH(B52-$A$2,krzywa!A:A,0)))))))),4) ->  | J52: 0 | K52: 45662 | L52: PEAK5 | M52: =NETWORKDAYS(A52,B52,koszyki!$M$20:$M$898) -> 2 | N52: =B52-A52+1- NETWORKDAYS(A52,B52,koszyki!$M$20:$M$898) -> 3 | O52: =ROUND(IF((B52-A52+1)>2,IF(C52=75,AVERAGE(INDIRECT("krzywa!C"&MATCH(K52-6,krzywa!A:A,0)&":C"&MATCH(K52-2,krzywa!A:A,0))),AVERAGE(INDIRECT("krzywa!C"&MATCH(A52-$A$2+BQ52,krzywa!A:A,0)&":C"&MATCH(B52-$A$2-AY52,krzywa!A:A,0)))),INDIRECT("krzywa!C"&MATCH(K52,krzywa!A:A,0))),4) ->  | P52: 0 | Q52: =-C52*ABS(D52-F52)*H52*I52*U52+'kompensacja międzyproduktowa'!X52*U52 ->  | R52: =ROUND(IF((B52-A52+1)>2,IF(C52=75,AVERAGE(INDIRECT("krzywa!D"&MATCH(K52-6,krzywa!A:A,0)&":D"&MATCH(K52-2,krzywa!A:A,0))),AVERAGE(INDIRECT("krzywa!D"&MATCH(A52-$A$2+BQ52,krzywa!A:A,0)&":D"&MATCH(B52-$A$2-AY52,krzywa!A:A,0)))),INDIRECT("krzywa!D"&MATCH(K52,krzywa!A:A,0))),4) ->  | S52: =VLOOKUP(A52,krzywa!L:N,3,1) -> 0 | T52: =VLOOKUP(B52,krzywa!L:N,3,1) -> 0 | U52: =IF('Kalkulator Depozytów'!$B$35=TRUE,1,(1+S52/100)*W52+(1+T52/100)*(1-W52)) -> 1 | V52: =IF(S52<>T52,VLOOKUP(A52,krzywa!L:M,2,1)) -> FALSE | W52: =IF(V52<>FALSE,IF(L52="BASE",(V52-A52+1)*24+J52,IF(L52="OFFPEAK",NETWORKDAYS(A52,V52,koszyki!$M$20:$M$898)*9+(N52)*24+J52,IF(L52="L-PEAK5",NETWORKDAYS(A52,V52,koszyki!$M$20:$M$898)*10,IF(L52="H-PEAK5",NETWORKDAYS(A52,V52,koszyki!$M$20:$M$898)*5,NETWORKDAYS(A52,V52,koszyki!$M$20:$M$898)*15))))/C52,1) -> 1 | AJ52: 2025-01-05 | AK52: 2025-01-04 | AL52: 2025-01-03 | AM52: 2025-01-02 | AO52: =NETWORKDAYS(AJ52,AJ52,koszyki!$M$20:$M$89) -> 0 | AP52: =NETWORKDAYS(AK52,AK52,koszyki!$M$20:$M$89) -> 0 | AQ52: =NETWORKDAYS(AL52,AL52,koszyki!$M$20:$M$89) -> 1 | AR52: =NETWORKDAYS(AM52,AM52,koszyki!$M$20:$M$89) -> 1 | AT52: 0 | AU52: 0 | AV52: 1 | AW52: 2 | AY52: 2 | BB52: 2025-01-01 | BC52: 2025-01-02 | BD52: 2025-01-03 | BE52: 2025-01-04 | BG52: =NETWORKDAYS(BB52,BB52,koszyki!$M$20:$M$89) -> 1 | BH52: =NETWORKDAYS(BC52,BC52,koszyki!$M$20:$M$89) -> 1 | BI52: =NETWORKDAYS(BD52,BD52,koszyki!$M$20:$M$89) -> 1 | BJ52: =NETWORKDAYS(BE52,BE52,koszyki!$M$20:$M$89) -> 0 | BL52: 1 | BM52: 2 | BN52: 3 | BO52: 3 | BQ52: 0
A53: 2025-01-06 | B53: 2025-01-31 | C53: 285 | D53: ='Kalkulator Depozytów'!M58 -> 0 | E53: ='Kalkulator Depozytów'!N58 -> 0 | F53: ='Kalkulator Depozytów'!O58 -> 0 | G53: ='Kalkulator Depozytów'!P58 -> 0 | H53: ='Kalkulator Depozytów'!Q58 -> 0 | I53: =ROUND(IF(OR(AND(K53>0,L53="L-PEAK5"),AND(K53>0,L53="H-PEAK5")),R53,IF(AND(K53>0,L53="PEAK5"),O53,IF(K53>0,IF(OR(L53="BASE"),AVERAGE(INDIRECT("krzywa!B"&MATCH(A53-$A$2,krzywa!A:A,0)&":B"&MATCH(B53-$A$2,krzywa!A:A,0),TRUE)),IF(OR(L53="OFFPEAK"),AVERAGE(INDIRECT("krzywa!F"&MATCH(A53-$A$2,krzywa!A:A,0)&":F"&MATCH(B53-$A$2,krzywa!A:A,0)))))))),4) ->  | J53: 0 | K53: 45688 | L53: PEAK5 | M53: =NETWORKDAYS(A53,B53,koszyki!$M$20:$M$898) -> 19 | N53: =B53-A53+1- NETWORKDAYS(A53,B53,koszyki!$M$20:$M$898) -> 7 | O53: =ROUND(IF((B53-A53+1)>2,IF(C53=75,AVERAGE(INDIRECT("krzywa!C"&MATCH(K53-6,krzywa!A:A,0)&":C"&MATCH(K53-2,krzywa!A:A,0))),AVERAGE(INDIRECT("krzywa!C"&MATCH(A53-$A$2+BQ53,krzywa!A:A,0)&":C"&MATCH(B53-$A$2-AY53,krzywa!A:A,0)))),INDIRECT("krzywa!C"&MATCH(K53,krzywa!A:A,0))),4) ->  | P53: 0 | Q53: =-C53*ABS(D53-F53)*H53*I53*U53+'kompensacja międzyproduktowa'!X53*U53 ->  | R53: =ROUND(IF((B53-A53+1)>2,IF(C53=75,AVERAGE(INDIRECT("krzywa!D"&MATCH(K53-6,krzywa!A:A,0)&":D"&MATCH(K53-2,krzywa!A:A,0))),AVERAGE(INDIRECT("krzywa!D"&MATCH(A53-$A$2+BQ53,krzywa!A:A,0)&":D"&MATCH(B53-$A$2-AY53,krzywa!A:A,0)))),INDIRECT("krzywa!D"&MATCH(K53,krzywa!A:A,0))),4) ->  | S53: =VLOOKUP(A53,krzywa!L:N,3,1) -> 0 | T53: =VLOOKUP(B53,krzywa!L:N,3,1) -> 0 | U53: =IF('Kalkulator Depozytów'!$B$35=TRUE,1,(1+S53/100)*W53+(1+T53/100)*(1-W53)) -> 1 | V53: =IF(S53<>T53,VLOOKUP(A53,krzywa!L:M,2,1)) -> FALSE | W53: =IF(V53<>FALSE,IF(L53="BASE",(V53-A53+1)*24+J53,IF(L53="OFFPEAK",NETWORKDAYS(A53,V53,koszyki!$M$20:$M$898)*9+(N53)*24+J53,IF(L53="L-PEAK5",NETWORKDAYS(A53,V53,koszyki!$M$20:$M$898)*10,IF(L53="H-PEAK5",NETWORKDAYS(A53,V53,koszyki!$M$20:$M$898)*5,NETWORKDAYS(A53,V53,koszyki!$M$20:$M$898)*15))))/C53,1) -> 1 | AJ53: 2025-01-31 | AK53: 2025-01-30 | AL53: 2025-01-29 | AM53: 2025-01-28 | AO53: =NETWORKDAYS(AJ53,AJ53,koszyki!$M$20:$M$89) -> 1 | AP53: =NETWORKDAYS(AK53,AK53,koszyki!$M$20:$M$89) -> 1 | AQ53: =NETWORKDAYS(AL53,AL53,koszyki!$M$20:$M$89) -> 1 | AR53: =NETWORKDAYS(AM53,AM53,koszyki!$M$20:$M$89) -> 1 | AT53: 1 | AU53: 2 | AV53: 3 | AW53: 4 | AY53: 0 | BB53: 2025-01-06 | BC53: 2025-01-07 | BD53: 2025-01-08 | BE53: 2025-01-09 | BG53: =NETWORKDAYS(BB53,BB53,koszyki!$M$20:$M$89) -> 1 | BH53: =NETWORKDAYS(BC53,BC53,koszyki!$M$20:$M$89) -> 1 | BI53: =NETWORKDAYS(BD53,BD53,koszyki!$M$20:$M$89) -> 1 | BJ53: =NETWORKDAYS(BE53,BE53,koszyki!$M$20:$M$89) -> 1 | BL53: 1 | BM53: 2 | BN53: 3 | BO53: 4 | BQ53: 0
A54: 2025-02-01 | B54: 2025-02-28 | C54: 300 | D54: ='Kalkulator Depozytów'!M59 -> 0 | E54: ='Kalkulator Depozytów'!N59 -> 0 | F54: ='Kalkulator Depozytów'!O59 -> 0 | G54: ='Kalkulator Depozytów'!P59 -> 0 | H54: ='Kalkulator Depozytów'!Q59 -> 0 | I54: =ROUND(IF(OR(AND(K54>0,L54="L-PEAK5"),AND(K54>0,L54="H-PEAK5")),R54,IF(AND(K54>0,L54="PEAK5"),O54,IF(K54>0,IF(OR(L54="BASE"),AVERAGE(INDIRECT("krzywa!B"&MATCH(A54-$A$2,krzywa!A:A,0)&":B"&MATCH(B54-$A$2,krzywa!A:A,0),TRUE)),IF(OR(L54="OFFPEAK"),AVERAGE(INDIRECT("krzywa!F"&MATCH(A54-$A$2,krzywa!A:A,0)&":F"&MATCH(B54-$A$2,krzywa!A:A,0)))))))),4) ->  | J54: 0 | K54: 45716 | L54: PEAK5 | M54: =NETWORKDAYS(A54,B54,koszyki!$M$20:$M$898) -> 20 | N54: =B54-A54+1- NETWORKDAYS(A54,B54,koszyki!$M$20:$M$898) -> 8 | O54: =ROUND(IF((B54-A54+1)>2,IF(C54=75,AVERAGE(INDIRECT("krzywa!C"&MATCH(K54-6,krzywa!A:A,0)&":C"&MATCH(K54-2,krzywa!A:A,0))),AVERAGE(INDIRECT("krzywa!C"&MATCH(A54-$A$2+BQ54,krzywa!A:A,0)&":C"&MATCH(B54-$A$2-AY54,krzywa!A:A,0)))),INDIRECT("krzywa!C"&MATCH(K54,krzywa!A:A,0))),4) ->  | P54: 0 | Q54: =-C54*ABS(D54-F54)*H54*I54*U54+'kompensacja międzyproduktowa'!X54*U54 ->  | R54: =ROUND(IF((B54-A54+1)>2,IF(C54=75,AVERAGE(INDIRECT("krzywa!D"&MATCH(K54-6,krzywa!A:A,0)&":D"&MATCH(K54-2,krzywa!A:A,0))),AVERAGE(INDIRECT("krzywa!D"&MATCH(A54-$A$2+BQ54,krzywa!A:A,0)&":D"&MATCH(B54-$A$2-AY54,krzywa!A:A,0)))),INDIRECT("krzywa!D"&MATCH(K54,krzywa!A:A,0))),4) ->  | S54: =VLOOKUP(A54,krzywa!L:N,3,1) -> 0 | T54: =VLOOKUP(B54,krzywa!L:N,3,1) -> 0 | U54: =IF('Kalkulator Depozytów'!$B$35=TRUE,1,(1+S54/100)*W54+(1+T54/100)*(1-W54)) -> 1 | V54: =IF(S54<>T54,VLOOKUP(A54,krzywa!L:M,2,1)) -> FALSE | W54: =IF(V54<>FALSE,IF(L54="BASE",(V54-A54+1)*24+J54,IF(L54="OFFPEAK",NETWORKDAYS(A54,V54,koszyki!$M$20:$M$898)*9+(N54)*24+J54,IF(L54="L-PEAK5",NETWORKDAYS(A54,V54,koszyki!$M$20:$M$898)*10,IF(L54="H-PEAK5",NETWORKDAYS(A54,V54,koszyki!$M$20:$M$898)*5,NETWORKDAYS(A54,V54,koszyki!$M$20:$M$898)*15))))/C54,1) -> 1 | AJ54: 2025-02-28 | AK54: 2025-02-27 | AL54: 2025-02-26 | AM54: 2025-02-25 | AO54: =NETWORKDAYS(AJ54,AJ54,koszyki!$M$20:$M$89) -> 1 | AP54: =NETWORKDAYS(AK54,AK54,koszyki!$M$20:$M$89) -> 1 | AQ54: =NETWORKDAYS(AL54,AL54,koszyki!$M$20:$M$89) -> 1 | AR54: =NETWORKDAYS(AM54,AM54,koszyki!$M$20:$M$89) -> 1 | AT54: 1 | AU54: 2 | AV54: 3 | AW54: 4 | AY54: 0 | BB54: 2025-02-01 | BC54: 2025-02-02 | BD54: 2025-02-03 | BE54: 2025-02-04 | BG54: =NETWORKDAYS(BB54,BB54,koszyki!$M$20:$M$89) -> 0 | BH54: =NETWORKDAYS(BC54,BC54,koszyki!$M$20:$M$89) -> 0 | BI54: =NETWORKDAYS(BD54,BD54,koszyki!$M$20:$M$89) -> 1 | BJ54: =NETWORKDAYS(BE54,BE54,koszyki!$M$20:$M$89) -> 1 | BL54: 0 | BM54: 0 | BN54: 1 | BO54: 2 | BQ54: 2
A55: 2025-03-01 | B55: 2025-03-31 | C55: 315 | D55: ='Kalkulator Depozytów'!M60 -> 0 | E55: ='Kalkulator Depozytów'!N60 -> 0 | F55: ='Kalkulator Depozytów'!O60 -> 0 | G55: ='Kalkulator Depozytów'!P60 -> 0 | H55: ='Kalkulator Depozytów'!Q60 -> 0 | I55: =ROUND(IF(OR(AND(K55>0,L55="L-PEAK5"),AND(K55>0,L55="H-PEAK5")),R55,IF(AND(K55>0,L55="PEAK5"),O55,IF(K55>0,IF(OR(L55="BASE"),AVERAGE(INDIRECT("krzywa!B"&MATCH(A55-$A$2,krzywa!A:A,0)&":B"&MATCH(B55-$A$2,krzywa!A:A,0),TRUE)),IF(OR(L55="OFFPEAK"),AVERAGE(INDIRECT("krzywa!F"&MATCH(A55-$A$2,krzywa!A:A,0)&":F"&MATCH(B55-$A$2,krzywa!A:A,0)))))))),4) ->  | J55: -1 | K55: 45747 | L55: PEAK5 | M55: =NETWORKDAYS(A55,B55,koszyki!$M$20:$M$898) -> 21 | N55: =B55-A55+1- NETWORKDAYS(A55,B55,koszyki!$M$20:$M$898) -> 10 | O55: =ROUND(IF((B55-A55+1)>2,IF(C55=75,AVERAGE(INDIRECT("krzywa!C"&MATCH(K55-6,krzywa!A:A,0)&":C"&MATCH(K55-2,krzywa!A:A,0))),AVERAGE(INDIRECT("krzywa!C"&MATCH(A55-$A$2+BQ55,krzywa!A:A,0)&":C"&MATCH(B55-$A$2-AY55,krzywa!A:A,0)))),INDIRECT("krzywa!C"&MATCH(K55,krzywa!A:A,0))),4) ->  | P55: 0 | Q55: =-C55*ABS(D55-F55)*H55*I55*U55+'kompensacja międzyproduktowa'!X55*U55 ->  | R55: =ROUND(IF((B55-A55+1)>2,IF(C55=75,AVERAGE(INDIRECT("krzywa!D"&MATCH(K55-6,krzywa!A:A,0)&":D"&MATCH(K55-2,krzywa!A:A,0))),AVERAGE(INDIRECT("krzywa!D"&MATCH(A55-$A$2+BQ55,krzywa!A:A,0)&":D"&MATCH(B55-$A$2-AY55,krzywa!A:A,0)))),INDIRECT("krzywa!D"&MATCH(K55,krzywa!A:A,0))),4) ->  | S55: =VLOOKUP(A55,krzywa!L:N,3,1) -> 0 | T55: =VLOOKUP(B55,krzywa!L:N,3,1) -> 0 | U55: =IF('Kalkulator Depozytów'!$B$35=TRUE,1,(1+S55/100)*W55+(1+T55/100)*(1-W55)) -> 1 | V55: =IF(S55<>T55,VLOOKUP(A55,krzywa!L:M,2,1)) -> FALSE | W55: =IF(V55<>FALSE,IF(L55="BASE",(V55-A55+1)*24+J55,IF(L55="OFFPEAK",NETWORKDAYS(A55,V55,koszyki!$M$20:$M$898)*9+(N55)*24+J55,IF(L55="L-PEAK5",NETWORKDAYS(A55,V55,koszyki!$M$20:$M$898)*10,IF(L55="H-PEAK5",NETWORKDAYS(A55,V55,koszyki!$M$20:$M$898)*5,NETWORKDAYS(A55,V55,koszyki!$M$20:$M$898)*15))))/C55,1) -> 1 | AJ55: 2025-03-31 | AK55: 2025-03-30 | AL55: 2025-03-29 | AM55: 2025-03-28 | AO55: =NETWORKDAYS(AJ55,AJ55,koszyki!$M$20:$M$89) -> 1 | AP55: =NETWORKDAYS(AK55,AK55,koszyki!$M$20:$M$89) -> 0 | AQ55: =NETWORKDAYS(AL55,AL55,koszyki!$M$20:$M$89) -> 0 | AR55: =NETWORKDAYS(AM55,AM55,koszyki!$M$20:$M$89) -> 1 | AT55: 1 | AU55: 1 | AV55: 1 | AW55: 2 | AY55: 0 | BB55: 2025-03-01 | BC55: 2025-03-02 | BD55: 2025-03-03 | BE55: 2025-03-04 | BG55: =NETWORKDAYS(BB55,BB55,koszyki!$M$20:$M$89) -> 0 | BH55: =NETWORKDAYS(BC55,BC55,koszyki!$M$20:$M$89) -> 0 | BI55: =NETWORKDAYS(BD55,BD55,koszyki!$M$20:$M$89) -> 1 | BJ55: =NETWORKDAYS(BE55,BE55,koszyki!$M$20:$M$89) -> 1 | BL55: 0 | BM55: 0 | BN55: 1 | BO55: 2 | BQ55: 2
A56: 2025-04-01 | B56: 2025-04-30 | C56: 315 | D56: ='Kalkulator Depozytów'!M61 -> 0 | E56: ='Kalkulator Depozytów'!N61 -> 0 | F56: ='Kalkulator Depozytów'!O61 -> 0 | G56: ='Kalkulator Depozytów'!P61 -> 0 | H56: ='Kalkulator Depozytów'!Q61 -> 0 | I56: =ROUND(IF(OR(AND(K56>0,L56="L-PEAK5"),AND(K56>0,L56="H-PEAK5")),R56,IF(AND(K56>0,L56="PEAK5"),O56,IF(K56>0,IF(OR(L56="BASE"),AVERAGE(INDIRECT("krzywa!B"&MATCH(A56-$A$2,krzywa!A:A,0)&":B"&MATCH(B56-$A$2,krzywa!A:A,0),TRUE)),IF(OR(L56="OFFPEAK"),AVERAGE(INDIRECT("krzywa!F"&MATCH(A56-$A$2,krzywa!A:A,0)&":F"&MATCH(B56-$A$2,krzywa!A:A,0)))))))),4) ->  | J56: 0 | K56: 45777 | L56: PEAK5 | M56: =NETWORKDAYS(A56,B56,koszyki!$M$20:$M$898) -> 21 | N56: =B56-A56+1- NETWORKDAYS(A56,B56,koszyki!$M$20:$M$898) -> 9 | O56: =ROUND(IF((B56-A56+1)>2,IF(C56=75,AVERAGE(INDIRECT("krzywa!C"&MATCH(K56-6,krzywa!A:A,0)&":C"&MATCH(K56-2,krzywa!A:A,0))),AVERAGE(INDIRECT("krzywa!C"&MATCH(A56-$A$2+BQ56,krzywa!A:A,0)&":C"&MATCH(B56-$A$2-AY56,krzywa!A:A,0)))),INDIRECT("krzywa!C"&MATCH(K56,krzywa!A:A,0))),4) ->  | P56: 0 | Q56: =-C56*ABS(D56-F56)*H56*I56*U56+'kompensacja międzyproduktowa'!X56*U56 ->  | R56: =ROUND(IF((B56-A56+1)>2,IF(C56=75,AVERAGE(INDIRECT("krzywa!D"&MATCH(K56-6,krzywa!A:A,0)&":D"&MATCH(K56-2,krzywa!A:A,0))),AVERAGE(INDIRECT("krzywa!D"&MATCH(A56-$A$2+BQ56,krzywa!A:A,0)&":D"&MATCH(B56-$A$2-AY56,krzywa!A:A,0)))),INDIRECT("krzywa!D"&MATCH(K56,krzywa!A:A,0))),4) ->  | S56: =VLOOKUP(A56,krzywa!L:N,3,1) -> 0 | T56: =VLOOKUP(B56,krzywa!L:N,3,1) -> 0 | U56: =IF('Kalkulator Depozytów'!$B$35=TRUE,1,(1+S56/100)*W56+(1+T56/100)*(1-W56)) -> 1 | V56: =IF(S56<>T56,VLOOKUP(A56,krzywa!L:M,2,1)) -> FALSE | W56: =IF(V56<>FALSE,IF(L56="BASE",(V56-A56+1)*24+J56,IF(L56="OFFPEAK",NETWORKDAYS(A56,V56,koszyki!$M$20:$M$898)*9+(N56)*24+J56,IF(L56="L-PEAK5",NETWORKDAYS(A56,V56,koszyki!$M$20:$M$898)*10,IF(L56="H-PEAK5",NETWORKDAYS(A56,V56,koszyki!$M$20:$M$898)*5,NETWORKDAYS(A56,V56,koszyki!$M$20:$M$898)*15))))/C56,1) -> 1 | AJ56: 2025-04-30 | AK56: 2025-04-29 | AL56: 2025-04-28 | AM56: 2025-04-27 | AO56: =NETWORKDAYS(AJ56,AJ56,koszyki!$M$20:$M$89) -> 1 | AP56: =NETWORKDAYS(AK56,AK56,koszyki!$M$20:$M$89) -> 1 | AQ56: =NETWORKDAYS(AL56,AL56,koszyki!$M$20:$M$89) -> 1 | AR56: =NETWORKDAYS(AM56,AM56,koszyki!$M$20:$M$89) -> 0 | AT56: 1 | AU56: 2 | AV56: 3 | AW56: 3 | AY56: 0 | BB56: 2025-04-01 | BC56: 2025-04-02 | BD56: 2025-04-03 | BE56: 2025-04-04 | BG56: =NETWORKDAYS(BB56,BB56,koszyki!$M$20:$M$89) -> 1 | BH56: =NETWORKDAYS(BC56,BC56,koszyki!$M$20:$M$89) -> 1 | BI56: =NETWORKDAYS(BD56,BD56,koszyki!$M$20:$M$89) -> 1 | BJ56: =NETWORKDAYS(BE56,BE56,koszyki!$M$20:$M$89) -> 1 | BL56: 1 | BM56: 2 | BN56: 3 | BO56: 4 | BQ56: 0
A57: 2025-05-01 | B57: 2025-05-31 | C57: 315 | D57: ='Kalkulator Depozytów'!M62 -> 0 | E57: ='Kalkulator Depozytów'!N62 -> 0 | F57: ='Kalkulator Depozytów'!O62 -> 0 | G57: ='Kalkulator Depozytów'!P62 -> 0 | H57: ='Kalkulator Depozytów'!Q62 -> 0 | I57: =ROUND(IF(OR(AND(K57>0,L57="L-PEAK5"),AND(K57>0,L57="H-PEAK5")),R57,IF(AND(K57>0,L57="PEAK5"),O57,IF(K57>0,IF(OR(L57="BASE"),AVERAGE(INDIRECT("krzywa!B"&MATCH(A57-$A$2,krzywa!A:A,0)&":B"&MATCH(B57-$A$2,krzywa!A:A,0),TRUE)),IF(OR(L57="OFFPEAK"),AVERAGE(INDIRECT("krzywa!F"&MATCH(A57-$A$2,krzywa!A:A,0)&":F"&MATCH(B57-$A$2,krzywa!A:A,0)))))))),4) ->  | J57: 0 | K57: 45808 | L57: PEAK5 | M57: =NETWORKDAYS(A57,B57,koszyki!$M$20:$M$898) -> 21 | N57: =B57-A57+1- NETWORKDAYS(A57,B57,koszyki!$M$20:$M$898) -> 10 | O57: =ROUND(IF((B57-A57+1)>2,IF(C57=75,AVERAGE(INDIRECT("krzywa!C"&MATCH(K57-6,krzywa!A:A,0)&":C"&MATCH(K57-2,krzywa!A:A,0))),AVERAGE(INDIRECT("krzywa!C"&MATCH(A57-$A$2+BQ57,krzywa!A:A,0)&":C"&MATCH(B57-$A$2-AY57,krzywa!A:A,0)))),INDIRECT("krzywa!C"&MATCH(K57,krzywa!A:A,0))),4) ->  | P57: 0 | Q57: =-C57*ABS(D57-F57)*H57*I57*U57+'kompensacja międzyproduktowa'!X57*U57 ->  | R57: =ROUND(IF((B57-A57+1)>2,IF(C57=75,AVERAGE(INDIRECT("krzywa!D"&MATCH(K57-6,krzywa!A:A,0)&":D"&MATCH(K57-2,krzywa!A:A,0))),AVERAGE(INDIRECT("krzywa!D"&MATCH(A57-$A$2+BQ57,krzywa!A:A,0)&":D"&MATCH(B57-$A$2-AY57,krzywa!A:A,0)))),INDIRECT("krzywa!D"&MATCH(K57,krzywa!A:A,0))),4) ->  | S57: =VLOOKUP(A57,krzywa!L:N,3,1) -> 0 | T57: =VLOOKUP(B57,krzywa!L:N,3,1) -> 0 | U57: =IF('Kalkulator Depozytów'!$B$35=TRUE,1,(1+S57/100)*W57+(1+T57/100)*(1-W57)) -> 1 | V57: =IF(S57<>T57,VLOOKUP(A57,krzywa!L:M,2,1)) -> FALSE | W57: =IF(V57<>FALSE,IF(L57="BASE",(V57-A57+1)*24+J57,IF(L57="OFFPEAK",NETWORKDAYS(A57,V57,koszyki!$M$20:$M$898)*9+(N57)*24+J57,IF(L57="L-PEAK5",NETWORKDAYS(A57,V57,koszyki!$M$20:$M$898)*10,IF(L57="H-PEAK5",NETWORKDAYS(A57,V57,koszyki!$M$20:$M$898)*5,NETWORKDAYS(A57,V57,koszyki!$M$20:$M$898)*15))))/C57,1) -> 1 | AJ57: 2025-05-31 | AK57: 2025-05-30 | AL57: 2025-05-29 | AM57: 2025-05-28 | AO57: =NETWORKDAYS(AJ57,AJ57,koszyki!$M$20:$M$89) -> 0 | AP57: =NETWORKDAYS(AK57,AK57,koszyki!$M$20:$M$89) -> 1 | AQ57: =NETWORKDAYS(AL57,AL57,koszyki!$M$20:$M$89) -> 1 | AR57: =NETWORKDAYS(AM57,AM57,koszyki!$M$20:$M$89) -> 1 | AT57: 0 | AU57: 1 | AV57: 2 | AW57: 3 | AY57: 1 | BB57: 2025-05-01 | BC57: 2025-05-02 | BD57: 2025-05-03 | BE57: 2025-05-04 | BG57: =NETWORKDAYS(BB57,BB57,koszyki!$M$20:$M$89) -> 1 | BH57: =NETWORKDAYS(BC57,BC57,koszyki!$M$20:$M$89) -> 1 | BI57: =NETWORKDAYS(BD57,BD57,koszyki!$M$20:$M$89) -> 0 | BJ57: =NETWORKDAYS(BE57,BE57,koszyki!$M$20:$M$89) -> 0 | BL57: 1 | BM57: 2 | BN57: 2 | BO57: 2 | BQ57: 0
A58: 2025-06-01 | B58: 2025-06-30 | C58: 300 | D58: ='Kalkulator Depozytów'!M63 -> 0 | E58: ='Kalkulator Depozytów'!N63 -> 0 | F58: ='Kalkulator Depozytów'!O63 -> 0 | G58: ='Kalkulator Depozytów'!P63 -> 0 | H58: ='Kalkulator Depozytów'!Q63 -> 0 | I58: =ROUND(IF(OR(AND(K58>0,L58="L-PEAK5"),AND(K58>0,L58="H-PEAK5")),R58,IF(AND(K58>0,L58="PEAK5"),O58,IF(K58>0,IF(OR(L58="BASE"),AVERAGE(INDIRECT("krzywa!B"&MATCH(A58-$A$2,krzywa!A:A,0)&":B"&MATCH(B58-$A$2,krzywa!A:A,0),TRUE)),IF(OR(L58="OFFPEAK"),AVERAGE(INDIRECT("krzywa!F"&MATCH(A58-$A$2,krzywa!A:A,0)&":F"&MATCH(B58-$A$2,krzywa!A:A,0)))))))),4) ->  | J58: 0 | K58: 45838 | L58: PEAK5 | M58: =NETWORKDAYS(A58,B58,koszyki!$M$20:$M$898) -> 20 | N58: =B58-A58+1- NETWORKDAYS(A58,B58,koszyki!$M$20:$M$898) -> 10 | O58: =ROUND(IF((B58-A58+1)>2,IF(C58=75,AVERAGE(INDIRECT("krzywa!C"&MATCH(K58-6,krzywa!A:A,0)&":C"&MATCH(K58-2,krzywa!A:A,0))),AVERAGE(INDIRECT("krzywa!C"&MATCH(A58-$A$2+BQ58,krzywa!A:A,0)&":C"&MATCH(B58-$A$2-AY58,krzywa!A:A,0)))),INDIRECT("krzywa!C"&MATCH(K58,krzywa!A:A,0))),4) ->  | P58: 0 | Q58: =-C58*ABS(D58-F58)*H58*I58*U58+'kompensacja międzyproduktowa'!X58*U58 ->  | R58: =ROUND(IF((B58-A58+1)>2,IF(C58=75,AVERAGE(INDIRECT("krzywa!D"&MATCH(K58-6,krzywa!A:A,0)&":D"&MATCH(K58-2,krzywa!A:A,0))),AVERAGE(INDIRECT("krzywa!D"&MATCH(A58-$A$2+BQ58,krzywa!A:A,0)&":D"&MATCH(B58-$A$2-AY58,krzywa!A:A,0)))),INDIRECT("krzywa!D"&MATCH(K58,krzywa!A:A,0))),4) ->  | S58: =VLOOKUP(A58,krzywa!L:N,3,1) -> 0 | T58: =VLOOKUP(B58,krzywa!L:N,3,1) -> 0 | U58: =IF('Kalkulator Depozytów'!$B$35=TRUE,1,(1+S58/100)*W58+(1+T58/100)*(1-W58)) -> 1 | V58: =IF(S58<>T58,VLOOKUP(A58,krzywa!L:M,2,1)) -> FALSE | W58: =IF(V58<>FALSE,IF(L58="BASE",(V58-A58+1)*24+J58,IF(L58="OFFPEAK",NETWORKDAYS(A58,V58,koszyki!$M$20:$M$898)*9+(N58)*24+J58,IF(L58="L-PEAK5",NETWORKDAYS(A58,V58,koszyki!$M$20:$M$898)*10,IF(L58="H-PEAK5",NETWORKDAYS(A58,V58,koszyki!$M$20:$M$898)*5,NETWORKDAYS(A58,V58,koszyki!$M$20:$M$898)*15))))/C58,1) -> 1 | AJ58: 2025-06-30 | AK58: 2025-06-29 | AL58: 2025-06-28 | AM58: 2025-06-27 | AO58: =NETWORKDAYS(AJ58,AJ58,koszyki!$M$20:$M$89) -> 1 | AP58: =NETWORKDAYS(AK58,AK58,koszyki!$M$20:$M$89) -> 0 | AQ58: =NETWORKDAYS(AL58,AL58,koszyki!$M$20:$M$89) -> 0 | AR58: =NETWORKDAYS(AM58,AM58,koszyki!$M$20:$M$89) -> 1 | AT58: 1 | AU58: 1 | AV58: 1 | AW58: 2 | AY58: 0 | BB58: 2025-06-01 | BC58: 2025-06-02 | BD58: 2025-06-03 | BE58: 2025-06-04 | BG58: =NETWORKDAYS(BB58,BB58,koszyki!$M$20:$M$89) -> 0 | BH58: =NETWORKDAYS(BC58,BC58,koszyki!$M$20:$M$89) -> 1 | BI58: =NETWORKDAYS(BD58,BD58,koszyki!$M$20:$M$89) -> 1 | BJ58: =NETWORKDAYS(BE58,BE58,koszyki!$M$20:$M$89) -> 1 | BL58: 0 | BM58: 1 | BN58: 2 | BO58: 3 | BQ58: 1
A59: 2025-07-01 | B59: 2025-09-30 | C59: 975 | D59: ='Kalkulator Depozytów'!M64 -> 0 | E59: ='Kalkulator Depozytów'!N64 -> 0 | F59: ='Kalkulator Depozytów'!O64 -> 0 | G59: ='Kalkulator Depozytów'!P64 -> 0 | H59: ='Kalkulator Depozytów'!Q64 -> 0 | I59: =ROUND(IF(OR(AND(K59>0,L59="L-PEAK5"),AND(K59>0,L59="H-PEAK5")),R59,IF(AND(K59>0,L59="PEAK5"),O59,IF(K59>0,IF(OR(L59="BASE"),AVERAGE(INDIRECT("krzywa!B"&MATCH(A59-$A$2,krzywa!A:A,0)&":B"&MATCH(B59-$A$2,krzywa!A:A,0),TRUE)),IF(OR(L59="OFFPEAK"),AVERAGE(INDIRECT("krzywa!F"&MATCH(A59-$A$2,krzywa!A:A,0)&":F"&MATCH(B59-$A$2,krzywa!A:A,0)))))))),4) ->  | J59: 0 | K59: 45930 | L59: PEAK5 | M59: =NETWORKDAYS(A59,B59,koszyki!$M$20:$M$898) -> 65 | N59: =B59-A59+1- NETWORKDAYS(A59,B59,koszyki!$M$20:$M$898) -> 27 | O59: =ROUND(IF((B59-A59+1)>2,IF(C59=75,AVERAGE(INDIRECT("krzywa!C"&MATCH(K59-6,krzywa!A:A,0)&":C"&MATCH(K59-2,krzywa!A:A,0))),AVERAGE(INDIRECT("krzywa!C"&MATCH(A59-$A$2+BQ59,krzywa!A:A,0)&":C"&MATCH(B59-$A$2-AY59,krzywa!A:A,0)))),INDIRECT("krzywa!C"&MATCH(K59,krzywa!A:A,0))),4) ->  | P59: 0 | Q59: =-C59*ABS(D59-F59)*H59*I59*U59+'kompensacja międzyproduktowa'!X59*U59 ->  | R59: =ROUND(IF((B59-A59+1)>2,IF(C59=75,AVERAGE(INDIRECT("krzywa!D"&MATCH(K59-6,krzywa!A:A,0)&":D"&MATCH(K59-2,krzywa!A:A,0))),AVERAGE(INDIRECT("krzywa!D"&MATCH(A59-$A$2+BQ59,krzywa!A:A,0)&":D"&MATCH(B59-$A$2-AY59,krzywa!A:A,0)))),INDIRECT("krzywa!D"&MATCH(K59,krzywa!A:A,0))),4) ->  | S59: =VLOOKUP(A59,krzywa!L:N,3,1) -> 0 | T59: =VLOOKUP(B59,krzywa!L:N,3,1) -> 0 | U59: =IF('Kalkulator Depozytów'!$B$35=TRUE,1,(1+S59/100)*W59+(1+T59/100)*(1-W59)) -> 1 | V59: =IF(S59<>T59,VLOOKUP(A59,krzywa!L:M,2,1)) -> FALSE | W59: =IF(V59<>FALSE,IF(L59="BASE",(V59-A59+1)*24+J59,IF(L59="OFFPEAK",NETWORKDAYS(A59,V59,koszyki!$M$20:$M$898)*9+(N59)*24+J59,IF(L59="L-PEAK5",NETWORKDAYS(A59,V59,koszyki!$M$20:$M$898)*10,IF(L59="H-PEAK5",NETWORKDAYS(A59,V59,koszyki!$M$20:$M$898)*5,NETWORKDAYS(A59,V59,koszyki!$M$20:$M$898)*15))))/C59,1) -> 1 | AJ59: 2025-09-30 | AK59: 2025-09-29 | AL59: 2025-09-28 | AM59: 2025-09-27 | AO59: =NETWORKDAYS(AJ59,AJ59,koszyki!$M$20:$M$89) -> 1 | AP59: =NETWORKDAYS(AK59,AK59,koszyki!$M$20:$M$89) -> 1 | AQ59: =NETWORKDAYS(AL59,AL59,koszyki!$M$20:$M$89) -> 0 | AR59: =NETWORKDAYS(AM59,AM59,koszyki!$M$20:$M$89) -> 0 | AT59: 1 | AU59: 2 | AV59: 2 | AW59: 2 | AY59: 0 | BB59: 2025-07-01 | BC59: 2025-07-02 | BD59: 2025-07-03 | BE59: 2025-07-04 | BG59: =NETWORKDAYS(BB59,BB59,koszyki!$M$20:$M$89) -> 1 | BH59: =NETWORKDAYS(BC59,BC59,koszyki!$M$20:$M$89) -> 1 | BI59: =NETWORKDAYS(BD59,BD59,koszyki!$M$20:$M$89) -> 1 | BJ59: =NETWORKDAYS(BE59,BE59,koszyki!$M$20:$M$89) -> 1 | BL59: 1 | BM59: 2 | BN59: 3 | BO59: 4 | BQ59: 0
A60: 2025-10-01 | B60: 2025-12-31 | C60: 945 | D60: ='Kalkulator Depozytów'!M65 -> 0 | E60: ='Kalkulator Depozytów'!N65 -> 0 | F60: ='Kalkulator Depozytów'!O65 -> 0 | G60: ='Kalkulator Depozytów'!P65 -> 0 | H60: ='Kalkulator Depozytów'!Q65 -> 0 | I60: =ROUND(IF(OR(AND(K60>0,L60="L-PEAK5"),AND(K60>0,L60="H-PEAK5")),R60,IF(AND(K60>0,L60="PEAK5"),O60,IF(K60>0,IF(OR(L60="BASE"),AVERAGE(INDIRECT("krzywa!B"&MATCH(A60-$A$2,krzywa!A:A,0)&":B"&MATCH(B60-$A$2,krzywa!A:A,0),TRUE)),IF(OR(L60="OFFPEAK"),AVERAGE(INDIRECT("krzywa!F"&MATCH(A60-$A$2,krzywa!A:A,0)&":F"&MATCH(B60-$A$2,krzywa!A:A,0)))))))),4) ->  | J60: 1 | K60: 46022 | L60: PEAK5 | M60: =NETWORKDAYS(A60,B60,koszyki!$M$20:$M$898) -> 63 | N60: =B60-A60+1- NETWORKDAYS(A60,B60,koszyki!$M$20:$M$898) -> 29 | O60: =ROUND(IF((B60-A60+1)>2,IF(C60=75,AVERAGE(INDIRECT("krzywa!C"&MATCH(K60-6,krzywa!A:A,0)&":C"&MATCH(K60-2,krzywa!A:A,0))),AVERAGE(INDIRECT("krzywa!C"&MATCH(A60-$A$2+BQ60,krzywa!A:A,0)&":C"&MATCH(B60-$A$2-AY60,krzywa!A:A,0)))),INDIRECT("krzywa!C"&MATCH(K60,krzywa!A:A,0))),4) ->  | P60: 0 | Q60: =-C60*ABS(D60-F60)*H60*I60*U60+'kompensacja międzyproduktowa'!X60*U60 ->  | R60: =ROUND(IF((B60-A60+1)>2,IF(C60=75,AVERAGE(INDIRECT("krzywa!D"&MATCH(K60-6,krzywa!A:A,0)&":D"&MATCH(K60-2,krzywa!A:A,0))),AVERAGE(INDIRECT("krzywa!D"&MATCH(A60-$A$2+BQ60,krzywa!A:A,0)&":D"&MATCH(B60-$A$2-AY60,krzywa!A:A,0)))),INDIRECT("krzywa!D"&MATCH(K60,krzywa!A:A,0))),4) ->  | S60: =VLOOKUP(A60,krzywa!L:N,3,1) -> 0 | T60: =VLOOKUP(B60,krzywa!L:N,3,1) -> 0 | U60: =IF('Kalkulator Depozytów'!$B$35=TRUE,1,(1+S60/100)*W60+(1+T60/100)*(1-W60)) -> 1 | V60: =IF(S60<>T60,VLOOKUP(A60,krzywa!L:M,2,1)) -> FALSE | W60: =IF(V60<>FALSE,IF(L60="BASE",(V60-A60+1)*24+J60,IF(L60="OFFPEAK",NETWORKDAYS(A60,V60,koszyki!$M$20:$M$898)*9+(N60)*24+J60,IF(L60="L-PEAK5",NETWORKDAYS(A60,V60,koszyki!$M$20:$M$898)*10,IF(L60="H-PEAK5",NETWORKDAYS(A60,V60,koszyki!$M$20:$M$898)*5,NETWORKDAYS(A60,V60,koszyki!$M$20:$M$898)*15))))/C60,1) -> 1 | AJ60: 2025-12-31 | AK60: 2025-12-30 | AL60: 2025-12-29 | AM60: 2025-12-28 | AO60: =NETWORKDAYS(AJ60,AJ60,koszyki!$M$20:$M$89) -> 1 | AP60: =NETWORKDAYS(AK60,AK60,koszyki!$M$20:$M$89) -> 1 | AQ60: =NETWORKDAYS(AL60,AL60,koszyki!$M$20:$M$89) -> 1 | AR60: =NETWORKDAYS(AM60,AM60,koszyki!$M$20:$M$89) -> 0 | AT60: 1 | AU60: 2 | AV60: 3 | AW60: 3 | AY60: 0 | BB60: 2025-10-01 | BC60: 2025-10-02 | BD60: 2025-10-03 | BE60: 2025-10-04 | BG60: =NETWORKDAYS(BB60,BB60,koszyki!$M$20:$M$89) -> 1 | BH60: =NETWORKDAYS(BC60,BC60,koszyki!$M$20:$M$89) -> 1 | BI60: =NETWORKDAYS(BD60,BD60,koszyki!$M$20:$M$89) -> 1 | BJ60: =NETWORKDAYS(BE60,BE60,koszyki!$M$20:$M$89) -> 0 | BL60: 1 | BM60: 2 | BN60: 3 | BO60: 3 | BQ60: 0
A61: 2026-01-01 | B61: 2026-03-31 | C61: 930 | D61: ='Kalkulator Depozytów'!M66 -> 0 | E61: ='Kalkulator Depozytów'!N66 -> 0 | F61: ='Kalkulator Depozytów'!O66 -> 0 | G61: ='Kalkulator Depozytów'!P66 -> 0 | H61: ='Kalkulator Depozytów'!Q66 -> 0 | I61: =ROUND(IF(OR(AND(K61>0,L61="L-PEAK5"),AND(K61>0,L61="H-PEAK5")),R61,IF(AND(K61>0,L61="PEAK5"),O61,IF(K61>0,IF(OR(L61="BASE"),AVERAGE(INDIRECT("krzywa!B"&MATCH(A61-$A$2,krzywa!A:A,0)&":B"&MATCH(B61-$A$2,krzywa!A:A,0),TRUE)),IF(OR(L61="OFFPEAK"),AVERAGE(INDIRECT("krzywa!F"&MATCH(A61-$A$2,krzywa!A:A,0)&":F"&MATCH(B61-$A$2,krzywa!A:A,0)))))))),4) ->  | J61: -1 | K61: 46112 | L61: PEAK5 | M61: =NETWORKDAYS(A61,B61,koszyki!$M$20:$M$898) -> 62 | N61: =B61-A61+1- NETWORKDAYS(A61,B61,koszyki!$M$20:$M$898) -> 28 | O61: =ROUND(IF((B61-A61+1)>2,IF(C61=75,AVERAGE(INDIRECT("krzywa!C"&MATCH(K61-6,krzywa!A:A,0)&":C"&MATCH(K61-2,krzywa!A:A,0))),AVERAGE(INDIRECT("krzywa!C"&MATCH(A61-$A$2+BQ61,krzywa!A:A,0)&":C"&MATCH(B61-$A$2-AY61,krzywa!A:A,0)))),INDIRECT("krzywa!C"&MATCH(K61,krzywa!A:A,0))),4) ->  | P61: 0 | Q61: =-C61*ABS(D61-F61)*H61*I61*U61+'kompensacja międzyproduktowa'!X61*U61 ->  | R61: =ROUND(IF((B61-A61+1)>2,IF(C61=75,AVERAGE(INDIRECT("krzywa!D"&MATCH(K61-6,krzywa!A:A,0)&":D"&MATCH(K61-2,krzywa!A:A,0))),AVERAGE(INDIRECT("krzywa!D"&MATCH(A61-$A$2+BQ61,krzywa!A:A,0)&":D"&MATCH(B61-$A$2-AY61,krzywa!A:A,0)))),INDIRECT("krzywa!D"&MATCH(K61,krzywa!A:A,0))),4) ->  | S61: =VLOOKUP(A61,krzywa!L:N,3,1) -> 0 | T61: =VLOOKUP(B61,krzywa!L:N,3,1) -> 0 | U61: =IF('Kalkulator Depozytów'!$B$35=TRUE,1,(1+S61/100)*W61+(1+T61/100)*(1-W61)) -> 1 | V61: =IF(S61<>T61,VLOOKUP(A61,krzywa!L:M,2,1)) -> FALSE | W61: =IF(V61<>FALSE,IF(L61="BASE",(V61-A61+1)*24+J61,IF(L61="OFFPEAK",NETWORKDAYS(A61,V61,koszyki!$M$20:$M$898)*9+(N61)*24+J61,IF(L61="L-PEAK5",NETWORKDAYS(A61,V61,koszyki!$M$20:$M$898)*10,IF(L61="H-PEAK5",NETWORKDAYS(A61,V61,koszyki!$M$20:$M$898)*5,NETWORKDAYS(A61,V61,koszyki!$M$20:$M$898)*15))))/C61,1) -> 1 | AJ61: 2026-03-31 | AK61: 2026-03-30 | AL61: 2026-03-29 | AM61: 2026-03-28 | AO61: =NETWORKDAYS(AJ61,AJ61,koszyki!$M$20:$M$89) -> 1 | AP61: =NETWORKDAYS(AK61,AK61,koszyki!$M$20:$M$89) -> 1 | AQ61: =NETWORKDAYS(AL61,AL61,koszyki!$M$20:$M$89) -> 0 | AR61: =NETWORKDAYS(AM61,AM61,koszyki!$M$20:$M$89) -> 0 | AT61: 1 | AU61: 2 | AV61: 2 | AW61: 2 | AY61: 0 | BB61: 2026-01-01 | BC61: 2026-01-02 | BD61: 2026-01-03 | BE61: 2026-01-04 | BG61: =NETWORKDAYS(BB61,BB61,koszyki!$M$20:$M$89) -> 1 | BH61: =NETWORKDAYS(BC61,BC61,koszyki!$M$20:$M$89) -> 1 | BI61: =NETWORKDAYS(BD61,BD61,koszyki!$M$20:$M$89) -> 0 | BJ61: =NETWORKDAYS(BE61,BE61,koszyki!$M$20:$M$89) -> 0 | BL61: 1 | BM61: 2 | BN61: 2 | BO61: 2 | BQ61: 0
A62: 2026-04-01 | B62: 2026-06-30 | C62: 930 | D62: ='Kalkulator Depozytów'!M67 -> 0 | E62: ='Kalkulator Depozytów'!N67 -> 0 | F62: ='Kalkulator Depozytów'!O67 -> 0 | G62: ='Kalkulator Depozytów'!P67 -> 0 | H62: ='Kalkulator Depozytów'!Q67 -> 0 | I62: =ROUND(IF(OR(AND(K62>0,L62="L-PEAK5"),AND(K62>0,L62="H-PEAK5")),R62,IF(AND(K62>0,L62="PEAK5"),O62,IF(K62>0,IF(OR(L62="BASE"),AVERAGE(INDIRECT("krzywa!B"&MATCH(A62-$A$2,krzywa!A:A,0)&":B"&MATCH(B62-$A$2,krzywa!A:A,0),TRUE)),IF(OR(L62="OFFPEAK"),AVERAGE(INDIRECT("krzywa!F"&MATCH(A62-$A$2,krzywa!A:A,0)&":F"&MATCH(B62-$A$2,krzywa!A:A,0)))))))),4) ->  | J62: 0 | K62: 46203 | L62: PEAK5 | M62: =NETWORKDAYS(A62,B62,koszyki!$M$20:$M$898) -> 62 | N62: =B62-A62+1- NETWORKDAYS(A62,B62,koszyki!$M$20:$M$898) -> 29 | O62: =ROUND(IF((B62-A62+1)>2,IF(C62=75,AVERAGE(INDIRECT("krzywa!C"&MATCH(K62-6,krzywa!A:A,0)&":C"&MATCH(K62-2,krzywa!A:A,0))),AVERAGE(INDIRECT("krzywa!C"&MATCH(A62-$A$2+BQ62,krzywa!A:A,0)&":C"&MATCH(B62-$A$2-AY62,krzywa!A:A,0)))),INDIRECT("krzywa!C"&MATCH(K62,krzywa!A:A,0))),4) ->  | P62: 0 | Q62: =-C62*ABS(D62-F62)*H62*I62*U62+'kompensacja międzyproduktowa'!X62*U62 ->  | R62: =ROUND(IF((B62-A62+1)>2,IF(C62=75,AVERAGE(INDIRECT("krzywa!D"&MATCH(K62-6,krzywa!A:A,0)&":D"&MATCH(K62-2,krzywa!A:A,0))),AVERAGE(INDIRECT("krzywa!D"&MATCH(A62-$A$2+BQ62,krzywa!A:A,0)&":D"&MATCH(B62-$A$2-AY62,krzywa!A:A,0)))),INDIRECT("krzywa!D"&MATCH(K62,krzywa!A:A,0))),4) ->  | S62: =VLOOKUP(A62,krzywa!L:N,3,1) -> 0 | T62: =VLOOKUP(B62,krzywa!L:N,3,1) -> 0 | U62: =IF('Kalkulator Depozytów'!$B$35=TRUE,1,(1+S62/100)*W62+(1+T62/100)*(1-W62)) -> 1 | V62: =IF(S62<>T62,VLOOKUP(A62,krzywa!L:M,2,1)) -> FALSE | W62: =IF(V62<>FALSE,IF(L62="BASE",(V62-A62+1)*24+J62,IF(L62="OFFPEAK",NETWORKDAYS(A62,V62,koszyki!$M$20:$M$898)*9+(N62)*24+J62,IF(L62="L-PEAK5",NETWORKDAYS(A62,V62,koszyki!$M$20:$M$898)*10,IF(L62="H-PEAK5",NETWORKDAYS(A62,V62,koszyki!$M$20:$M$898)*5,NETWORKDAYS(A62,V62,koszyki!$M$20:$M$898)*15))))/C62,1) -> 1 | AJ62: 2026-06-30 | AK62: 2026-06-29 | AL62: 2026-06-28 | AM62: 2026-06-27 | AO62: =NETWORKDAYS(AJ62,AJ62,koszyki!$M$20:$M$89) -> 1 | AP62: =NETWORKDAYS(AK62,AK62,koszyki!$M$20:$M$89) -> 1 | AQ62: =NETWORKDAYS(AL62,AL62,koszyki!$M$20:$M$89) -> 0 | AR62: =NETWORKDAYS(AM62,AM62,koszyki!$M$20:$M$89) -> 0 | AT62: 1 | AU62: 2 | AV62: 2 | AW62: 2 | AY62: 0 | BB62: 2026-04-01 | BC62: 2026-04-02 | BD62: 2026-04-03 | BE62: 2026-04-04 | BG62: =NETWORKDAYS(BB62,BB62,koszyki!$M$20:$M$89) -> 1 | BH62: =NETWORKDAYS(BC62,BC62,koszyki!$M$20:$M$89) -> 1 | BI62: =NETWORKDAYS(BD62,BD62,koszyki!$M$20:$M$89) -> 1 | BJ62: =NETWORKDAYS(BE62,BE62,koszyki!$M$20:$M$89) -> 0 | BL62: 1 | BM62: 2 | BN62: 3 | BO62: 3 | BQ62: 0
A63: 2026-07-01 | B63: 2026-12-31 | C63: 1950 | D63: ='Kalkulator Depozytów'!M68 -> 0 | E63: ='Kalkulator Depozytów'!N68 -> 0 | F63: ='Kalkulator Depozytów'!O68 -> 0 | G63: ='Kalkulator Depozytów'!P68 -> 0 | H63: ='Kalkulator Depozytów'!Q68 -> 0 | I63: =ROUND(IF(OR(AND(K63>0,L63="L-PEAK5"),AND(K63>0,L63="H-PEAK5")),R63,IF(AND(K63>0,L63="PEAK5"),O63,IF(K63>0,IF(OR(L63="BASE"),AVERAGE(INDIRECT("krzywa!B"&MATCH(A63-$A$2,krzywa!A:A,0)&":B"&MATCH(B63-$A$2,krzywa!A:A,0),TRUE)),IF(OR(L63="OFFPEAK"),AVERAGE(INDIRECT("krzywa!F"&MATCH(A63-$A$2,krzywa!A:A,0)&":F"&MATCH(B63-$A$2,krzywa!A:A,0)))))))),4) ->  | J63: 1 | K63: 46387 | L63: PEAK5 | M63: =NETWORKDAYS(A63,B63,koszyki!$M$20:$M$898) -> 130 | N63: =B63-A63+1- NETWORKDAYS(A63,B63,koszyki!$M$20:$M$898) -> 54 | O63: =ROUND(IF((B63-A63+1)>2,IF(C63=75,AVERAGE(INDIRECT("krzywa!C"&MATCH(K63-6,krzywa!A:A,0)&":C"&MATCH(K63-2,krzywa!A:A,0))),AVERAGE(INDIRECT("krzywa!C"&MATCH(A63-$A$2+BQ63,krzywa!A:A,0)&":C"&MATCH(B63-$A$2-AY63,krzywa!A:A,0)))),INDIRECT("krzywa!C"&MATCH(K63,krzywa!A:A,0))),4) ->  | P63: 0 | Q63: =-C63*ABS(D63-F63)*H63*I63*U63+'kompensacja międzyproduktowa'!X63*U63 ->  | R63: =ROUND(IF((B63-A63+1)>2,IF(C63=75,AVERAGE(INDIRECT("krzywa!D"&MATCH(K63-6,krzywa!A:A,0)&":D"&MATCH(K63-2,krzywa!A:A,0))),AVERAGE(INDIRECT("krzywa!D"&MATCH(A63-$A$2+BQ63,krzywa!A:A,0)&":D"&MATCH(B63-$A$2-AY63,krzywa!A:A,0)))),INDIRECT("krzywa!D"&MATCH(K63,krzywa!A:A,0))),4) ->  | S63: =VLOOKUP(A63,krzywa!L:N,3,1) -> 0 | T63: =VLOOKUP(B63,krzywa!L:N,3,1) -> 0 | U63: =IF('Kalkulator Depozytów'!$B$35=TRUE,1,(1+S63/100)*W63+(1+T63/100)*(1-W63)) -> 1 | V63: =IF(S63<>T63,VLOOKUP(A63,krzywa!L:M,2,1)) -> FALSE | W63: =IF(V63<>FALSE,IF(L63="BASE",(V63-A63+1)*24+J63,IF(L63="OFFPEAK",NETWORKDAYS(A63,V63,koszyki!$M$20:$M$898)*9+(N63)*24+J63,IF(L63="L-PEAK5",NETWORKDAYS(A63,V63,koszyki!$M$20:$M$898)*10,IF(L63="H-PEAK5",NETWORKDAYS(A63,V63,koszyki!$M$20:$M$898)*5,NETWORKDAYS(A63,V63,koszyki!$M$20:$M$898)*15))))/C63,1) -> 1 | AJ63: 2026-12-31 | AK63: 2026-12-30 | AL63: 2026-12-29 | AM63: 2026-12-28 | AO63: =NETWORKDAYS(AJ63,AJ63,koszyki!$M$20:$M$89) -> 1 | AP63: =NETWORKDAYS(AK63,AK63,koszyki!$M$20:$M$89) -> 1 | AQ63: =NETWORKDAYS(AL63,AL63,koszyki!$M$20:$M$89) -> 1 | AR63: =NETWORKDAYS(AM63,AM63,koszyki!$M$20:$M$89) -> 1 | AT63: 1 | AU63: 2 | AV63: 3 | AW63: 4 | AY63: 0 | BB63: 2026-07-01 | BC63: 2026-07-02 | BD63: 2026-07-03 | BE63: 2026-07-04 | BG63: =NETWORKDAYS(BB63,BB63,koszyki!$M$20:$M$89) -> 1 | BH63: =NETWORKDAYS(BC63,BC63,koszyki!$M$20:$M$89) -> 1 | BI63: =NETWORKDAYS(BD63,BD63,koszyki!$M$20:$M$89) -> 1 | BJ63: =NETWORKDAYS(BE63,BE63,koszyki!$M$20:$M$89) -> 0 | BL63: 1 | BM63: 2 | BN63: 3 | BO63: 3 | BQ63: 0
A64: 2027-01-01 | B64: 2027-12-31 | C64: 3795 | D64: ='Kalkulator Depozytów'!M69 -> 0 | E64: ='Kalkulator Depozytów'!N69 -> 0 | F64: ='Kalkulator Depozytów'!O69 -> 0 | G64: ='Kalkulator Depozytów'!P69 -> 0 | H64: ='Kalkulator Depozytów'!Q69 -> 0 | I64: =ROUND(IF(OR(AND(K64>0,L64="L-PEAK5"),AND(K64>0,L64="H-PEAK5")),R64,IF(AND(K64>0,L64="PEAK5"),O64,IF(K64>0,IF(OR(L64="BASE"),AVERAGE(INDIRECT("krzywa!B"&MATCH(A64-$A$2,krzywa!A:A,0)&":B"&MATCH(B64-$A$2,krzywa!A:A,0),TRUE)),IF(OR(L64="OFFPEAK"),AVERAGE(INDIRECT("krzywa!F"&MATCH(A64-$A$2,krzywa!A:A,0)&":F"&MATCH(B64-$A$2,krzywa!A:A,0)))))))),4) ->  | J64: 0 | K64: 46752 | L64: PEAK5 | M64: =NETWORKDAYS(A64,B64,koszyki!$M$20:$M$898) -> 253 | N64: =B64-A64+1- NETWORKDAYS(A64,B64,koszyki!$M$20:$M$898) -> 112 | O64: =ROUND(IF((B64-A64+1)>2,IF(C64=75,AVERAGE(INDIRECT("krzywa!C"&MATCH(K64-6,krzywa!A:A,0)&":C"&MATCH(K64-2,krzywa!A:A,0))),AVERAGE(INDIRECT("krzywa!C"&MATCH(A64-$A$2+BQ64,krzywa!A:A,0)&":C"&MATCH(B64-$A$2-AY64,krzywa!A:A,0)))),INDIRECT("krzywa!C"&MATCH(K64,krzywa!A:A,0))),4) ->  | P64: 0 | Q64: =-C64*ABS(D64-F64)*H64*I64*U64+'kompensacja międzyproduktowa'!X64*U64 ->  | R64: =ROUND(IF((B64-A64+1)>2,IF(C64=75,AVERAGE(INDIRECT("krzywa!D"&MATCH(K64-6,krzywa!A:A,0)&":D"&MATCH(K64-2,krzywa!A:A,0))),AVERAGE(INDIRECT("krzywa!D"&MATCH(A64-$A$2+BQ64,krzywa!A:A,0)&":D"&MATCH(B64-$A$2-AY64,krzywa!A:A,0)))),INDIRECT("krzywa!D"&MATCH(K64,krzywa!A:A,0))),4) ->  | S64: =VLOOKUP(A64,krzywa!L:N,3,1) -> 23 | T64: =VLOOKUP(B64,krzywa!L:N,3,1) -> 23 | U64: =IF('Kalkulator Depozytów'!$B$35=TRUE,1,(1+S64/100)*W64+(1+T64/100)*(1-W64)) -> 1.23 | V64: =IF(S64<>T64,VLOOKUP(A64,krzywa!L:M,2,1)) -> FALSE | W64: =IF(V64<>FALSE,IF(L64="BASE",(V64-A64+1)*24+J64,IF(L64="OFFPEAK",NETWORKDAYS(A64,V64,koszyki!$M$20:$M$898)*9+(N64)*24+J64,IF(L64="L-PEAK5",NETWORKDAYS(A64,V64,koszyki!$M$20:$M$898)*10,IF(L64="H-PEAK5",NETWORKDAYS(A64,V64,koszyki!$M$20:$M$898)*5,NETWORKDAYS(A64,V64,koszyki!$M$20:$M$898)*15))))/C64,1) -> 1 | AJ64: 2027-12-31 | AK64: 2027-12-30 | AL64: 2027-12-29 | AM64: 2027-12-28 | AO64: =NETWORKDAYS(AJ64,AJ64,koszyki!$M$20:$M$89) -> 1 | AP64: =NETWORKDAYS(AK64,AK64,koszyki!$M$20:$M$89) -> 1 | AQ64: =NETWORKDAYS(AL64,AL64,koszyki!$M$20:$M$89) -> 1 | AR64: =NETWORKDAYS(AM64,AM64,koszyki!$M$20:$M$89) -> 1 | AT64: 1 | AU64: 2 | AV64: 3 | AW64: 4 | AY64: 0 | BB64: 2027-01-01 | BC64: 2027-01-02 | BD64: 2027-01-03 | BE64: 2027-01-04 | BG64: =NETWORKDAYS(BB64,BB64,koszyki!$M$20:$M$89) -> 1 | BH64: =NETWORKDAYS(BC64,BC64,koszyki!$M$20:$M$89) -> 0 | BI64: =NETWORKDAYS(BD64,BD64,koszyki!$M$20:$M$89) -> 0 | BJ64: =NETWORKDAYS(BE64,BE64,koszyki!$M$20:$M$89) -> 1 | BL64: 1 | BM64: 1 | BN64: 1 | BO64: 2 | BQ64: 0
A65: 2028-01-01 | B65: 2028-12-31 | C65: 3765 | D65: ='Kalkulator Depozytów'!M70 -> 0 | E65: ='Kalkulator Depozytów'!N70 -> 0 | F65: ='Kalkulator Depozytów'!O70 -> 0 | G65: ='Kalkulator Depozytów'!P70 -> 0 | H65: ='Kalkulator Depozytów'!Q70 -> 0 | I65: =ROUND(IF(OR(AND(K65>0,L65="L-PEAK5"),AND(K65>0,L65="H-PEAK5")),R65,IF(AND(K65>0,L65="PEAK5"),O65,IF(K65>0,IF(OR(L65="BASE"),AVERAGE(INDIRECT("krzywa!B"&MATCH(A65-$A$2,krzywa!A:A,0)&":B"&MATCH(B65-$A$2,krzywa!A:A,0),TRUE)),IF(OR(L65="OFFPEAK"),AVERAGE(INDIRECT("krzywa!F"&MATCH(A65-$A$2,krzywa!A:A,0)&":F"&MATCH(B65-$A$2,krzywa!A:A,0)))))))),4) ->  | J65: 0 | K65: 47118 | L65: PEAK5 | M65: =NETWORKDAYS(A65,B65,koszyki!$M$20:$M$898) -> 251 | N65: =B65-A65+1- NETWORKDAYS(A65,B65,koszyki!$M$20:$M$898) -> 115 | O65: =ROUND(IF((B65-A65+1)>2,IF(C65=75,AVERAGE(INDIRECT("krzywa!C"&MATCH(K65-6,krzywa!A:A,0)&":C"&MATCH(K65-2,krzywa!A:A,0))),AVERAGE(INDIRECT("krzywa!C"&MATCH(A65-$A$2+BQ65,krzywa!A:A,0)&":C"&MATCH(B65-$A$2-AY65,krzywa!A:A,0)))),INDIRECT("krzywa!C"&MATCH(K65,krzywa!A:A,0))),4) ->  | P65: 0 | Q65: =-C65*ABS(D65-F65)*H65*I65*U65+'kompensacja międzyproduktowa'!X65*U65 ->  | R65: =ROUND(IF((B65-A65+1)>2,IF(C65=75,AVERAGE(INDIRECT("krzywa!D"&MATCH(K65-6,krzywa!A:A,0)&":D"&MATCH(K65-2,krzywa!A:A,0))),AVERAGE(INDIRECT("krzywa!D"&MATCH(A65-$A$2+BQ65,krzywa!A:A,0)&":D"&MATCH(B65-$A$2-AY65,krzywa!A:A,0)))),INDIRECT("krzywa!D"&MATCH(K65,krzywa!A:A,0))),4) ->  | S65: =VLOOKUP(A65,krzywa!L:N,3,1) -> 23 | T65: =VLOOKUP(B65,krzywa!L:N,3,1) -> 23 | U65: =IF('Kalkulator Depozytów'!$B$35=TRUE,1,(1+S65/100)*W65+(1+T65/100)*(1-W65)) -> 1.23 | V65: =IF(S65<>T65,VLOOKUP(A65,krzywa!L:M,2,1)) -> FALSE | W65: =IF(V65<>FALSE,IF(L65="BASE",(V65-A65+1)*24+J65,IF(L65="OFFPEAK",NETWORKDAYS(A65,V65,koszyki!$M$20:$M$898)*9+(N65)*24+J65,IF(L65="L-PEAK5",NETWORKDAYS(A65,V65,koszyki!$M$20:$M$898)*10,IF(L65="H-PEAK5",NETWORKDAYS(A65,V65,koszyki!$M$20:$M$898)*5,NETWORKDAYS(A65,V65,koszyki!$M$20:$M$898)*15))))/C65,1) -> 1 | AJ65: 2028-12-31 | AK65: 2028-12-30 | AL65: 2028-12-29 | AM65: 2028-12-28 | AO65: =NETWORKDAYS(AJ65,AJ65,koszyki!$M$20:$M$89) -> 0 | AP65: =NETWORKDAYS(AK65,AK65,koszyki!$M$20:$M$89) -> 0 | AQ65: =NETWORKDAYS(AL65,AL65,koszyki!$M$20:$M$89) -> 1 | AR65: =NETWORKDAYS(AM65,AM65,koszyki!$M$20:$M$89) -> 1 | AT65: 0 | AU65: 0 | AV65: 1 | AW65: 2 | AY65: 2 | BB65: 2028-01-01 | BC65: 2028-01-02 | BD65: 2028-01-03 | BE65: 2028-01-04 | BG65: =NETWORKDAYS(BB65,BB65,koszyki!$M$20:$M$89) -> 0 | BH65: =NETWORKDAYS(BC65,BC65,koszyki!$M$20:$M$89) -> 0 | BI65: =NETWORKDAYS(BD65,BD65,koszyki!$M$20:$M$89) -> 1 | BJ65: =NETWORKDAYS(BE65,BE65,koszyki!$M$20:$M$89) -> 1 | BL65: 0 | BM65: 0 | BN65: 1 | BO65: 2 | BQ65: 2
A66: 2024-11-28 | B66: 2024-11-28 | C66: 9 | D66: ='Kalkulator Depozytów'!M71 -> 0 | E66: ='Kalkulator Depozytów'!N71 -> 0 | F66: ='Kalkulator Depozytów'!O71 -> 0 | G66: ='Kalkulator Depozytów'!P71 -> 0 | H66: ='Kalkulator Depozytów'!Q71 -> 0 | I66: =ROUND(IF(OR(AND(K66>0,L66="L-PEAK5"),AND(K66>0,L66="H-PEAK5")),R66,IF(AND(K66>0,L66="PEAK5"),O66,IF(K66>0,IF(OR(L66="BASE"),AVERAGE(INDIRECT("krzywa!B"&MATCH(A66-$A$2,krzywa!A:A,0)&":B"&MATCH(B66-$A$2,krzywa!A:A,0),TRUE)),IF(OR(L66="OFFPEAK"),AVERAGE(INDIRECT("krzywa!F"&MATCH(A66-$A$2,krzywa!A:A,0)&":F"&MATCH(B66-$A$2,krzywa!A:A,0)))))))),4) ->  | J66: 0 | K66: 45624 | L66: OFFPEAK | M66: =NETWORKDAYS(A66,B66,koszyki!$M$20:$M$898) -> 1 | N66: =B66-A66+1- NETWORKDAYS(A66,B66,koszyki!$M$20:$M$898) -> 0 | O66: =ROUND(IF((B66-A66+1)>2,IF(C66=75,AVERAGE(INDIRECT("krzywa!C"&MATCH(K66-6,krzywa!A:A,0)&":C"&MATCH(K66-2,krzywa!A:A,0))),AVERAGE(INDIRECT("krzywa!C"&MATCH(A66-$A$2+BQ66,krzywa!A:A,0)&":C"&MATCH(B66-$A$2-AY66,krzywa!A:A,0)))),INDIRECT("krzywa!C"&MATCH(K66,krzywa!A:A,0))),4) ->  | P66: 0 | Q66: =-C66*ABS(D66-F66)*H66*I66*U66+'kompensacja międzyproduktowa'!X66*U66 ->  | R66: =ROUND(IF((B66-A66+1)>2,IF(C66=75,AVERAGE(INDIRECT("krzywa!D"&MATCH(K66-6,krzywa!A:A,0)&":D"&MATCH(K66-2,krzywa!A:A,0))),AVERAGE(INDIRECT("krzywa!D"&MATCH(A66-$A$2+BQ66,krzywa!A:A,0)&":D"&MATCH(B66-$A$2-AY66,krzywa!A:A,0)))),INDIRECT("krzywa!D"&MATCH(K66,krzywa!A:A,0))),4) ->  | S66: =VLOOKUP(A66,krzywa!L:N,3,1) -> 0 | T66: =VLOOKUP(B66,krzywa!L:N,3,1) -> 0 | U66: =IF('Kalkulator Depozytów'!$B$35=TRUE,1,(1+S66/100)*W66+(1+T66/100)*(1-W66)) -> 1 | V66: =IF(S66<>T66,VLOOKUP(A66,krzywa!L:M,2,1)) -> FALSE | W66: =IF(V66<>FALSE,IF(L66="BASE",(V66-A66+1)*24+J66,IF(L66="OFFPEAK",NETWORKDAYS(A66,V66,koszyki!$M$20:$M$898)*9+(N66)*24+J66,IF(L66="L-PEAK5",NETWORKDAYS(A66,V66,koszyki!$M$20:$M$898)*10,IF(L66="H-PEAK5",NETWORKDAYS(A66,V66,koszyki!$M$20:$M$898)*5,NETWORKDAYS(A66,V66,koszyki!$M$20:$M$898)*15))))/C66,1) -> 1 | AJ66: 2024-11-28 | AK66: 2024-11-27 | AL66: 2024-11-26 | AM66: 2024-11-25 | AO66: =NETWORKDAYS(AJ66,AJ66,koszyki!$M$20:$M$89) -> 1 | AP66: =NETWORKDAYS(AK66,AK66,koszyki!$M$20:$M$89) -> 1 | AQ66: =NETWORKDAYS(AL66,AL66,koszyki!$M$20:$M$89) -> 1 | AR66: =NETWORKDAYS(AM66,AM66,koszyki!$M$20:$M$89) -> 1 | AT66: 1 | AU66: 2 | AV66: 3 | AW66: 4 | AY66: 0 | BB66: 2024-11-28 | BC66: 2024-11-29 | BD66: 2024-11-30 | BE66: 2024-12-01 | BG66: =NETWORKDAYS(BB66,BB66,koszyki!$M$20:$M$89) -> 1 | BH66: =NETWORKDAYS(BC66,BC66,koszyki!$M$20:$M$89) -> 1 | BI66: =NETWORKDAYS(BD66,BD66,koszyki!$M$20:$M$89) -> 0 | BJ66: =NETWORKDAYS(BE66,BE66,koszyki!$M$20:$M$89) -> 0 | BL66: 1 | BM66: 2 | BN66: 2 | BO66: 2 | BQ66: 0
A67: 2024-11-29 | B67: 2024-11-29 | C67: 9 | D67: ='Kalkulator Depozytów'!M72 -> 0 | E67: ='Kalkulator Depozytów'!N72 -> 0 | F67: ='Kalkulator Depozytów'!O72 -> 0 | G67: ='Kalkulator Depozytów'!P72 -> 0 | H67: ='Kalkulator Depozytów'!Q72 -> 0 | I67: =ROUND(IF(OR(AND(K67>0,L67="L-PEAK5"),AND(K67>0,L67="H-PEAK5")),R67,IF(AND(K67>0,L67="PEAK5"),O67,IF(K67>0,IF(OR(L67="BASE"),AVERAGE(INDIRECT("krzywa!B"&MATCH(A67-$A$2,krzywa!A:A,0)&":B"&MATCH(B67-$A$2,krzywa!A:A,0),TRUE)),IF(OR(L67="OFFPEAK"),AVERAGE(INDIRECT("krzywa!F"&MATCH(A67-$A$2,krzywa!A:A,0)&":F"&MATCH(B67-$A$2,krzywa!A:A,0)))))))),4) ->  | J67: 0 | K67: 45625 | L67: OFFPEAK | M67: =NETWORKDAYS(A67,B67,koszyki!$M$20:$M$898) -> 1 | N67: =B67-A67+1- NETWORKDAYS(A67,B67,koszyki!$M$20:$M$898) -> 0 | O67: =ROUND(IF((B67-A67+1)>2,IF(C67=75,AVERAGE(INDIRECT("krzywa!C"&MATCH(K67-6,krzywa!A:A,0)&":C"&MATCH(K67-2,krzywa!A:A,0))),AVERAGE(INDIRECT("krzywa!C"&MATCH(A67-$A$2+BQ67,krzywa!A:A,0)&":C"&MATCH(B67-$A$2-AY67,krzywa!A:A,0)))),INDIRECT("krzywa!C"&MATCH(K67,krzywa!A:A,0))),4) ->  | P67: 0 | Q67: =-C67*ABS(D67-F67)*H67*I67*U67+'kompensacja międzyproduktowa'!X67*U67 ->  | R67: =ROUND(IF((B67-A67+1)>2,IF(C67=75,AVERAGE(INDIRECT("krzywa!D"&MATCH(K67-6,krzywa!A:A,0)&":D"&MATCH(K67-2,krzywa!A:A,0))),AVERAGE(INDIRECT("krzywa!D"&MATCH(A67-$A$2+BQ67,krzywa!A:A,0)&":D"&MATCH(B67-$A$2-AY67,krzywa!A:A,0)))),INDIRECT("krzywa!D"&MATCH(K67,krzywa!A:A,0))),4) ->  | S67: =VLOOKUP(A67,krzywa!L:N,3,1) -> 0 | T67: =VLOOKUP(B67,krzywa!L:N,3,1) -> 0 | U67: =IF('Kalkulator Depozytów'!$B$35=TRUE,1,(1+S67/100)*W67+(1+T67/100)*(1-W67)) -> 1 | V67: =IF(S67<>T67,VLOOKUP(A67,krzywa!L:M,2,1)) -> FALSE | W67: =IF(V67<>FALSE,IF(L67="BASE",(V67-A67+1)*24+J67,IF(L67="OFFPEAK",NETWORKDAYS(A67,V67,koszyki!$M$20:$M$898)*9+(N67)*24+J67,IF(L67="L-PEAK5",NETWORKDAYS(A67,V67,koszyki!$M$20:$M$898)*10,IF(L67="H-PEAK5",NETWORKDAYS(A67,V67,koszyki!$M$20:$M$898)*5,NETWORKDAYS(A67,V67,koszyki!$M$20:$M$898)*15))))/C67,1) -> 1 | AJ67: 2024-11-29 | AK67: 2024-11-28 | AL67: 2024-11-27 | AM67: 2024-11-26 | AO67: =NETWORKDAYS(AJ67,AJ67,koszyki!$M$20:$M$89) -> 1 | AP67: =NETWORKDAYS(AK67,AK67,koszyki!$M$20:$M$89) -> 1 | AQ67: =NETWORKDAYS(AL67,AL67,koszyki!$M$20:$M$89) -> 1 | AR67: =NETWORKDAYS(AM67,AM67,koszyki!$M$20:$M$89) -> 1 | AT67: 1 | AU67: 2 | AV67: 3 | AW67: 4 | AY67: 0 | BB67: 2024-11-29 | BC67: 2024-11-30 | BD67: 2024-12-01 | BE67: 2024-12-02 | BG67: =NETWORKDAYS(BB67,BB67,koszyki!$M$20:$M$89) -> 1 | BH67: =NETWORKDAYS(BC67,BC67,koszyki!$M$20:$M$89) -> 0 | BI67: =NETWORKDAYS(BD67,BD67,koszyki!$M$20:$M$89) -> 0 | BJ67: =NETWORKDAYS(BE67,BE67,koszyki!$M$20:$M$89) -> 1 | BL67: 1 | BM67: 1 | BN67: 1 | BO67: 2 | BQ67: 0
A68: 2024-11-30 | B68: 2024-11-30 | C68: 24 | D68: ='Kalkulator Depozytów'!M73 -> 0 | E68: ='Kalkulator Depozytów'!N73 -> 0 | F68: ='Kalkulator Depozytów'!O73 -> 0 | G68: ='Kalkulator Depozytów'!P73 -> 0 | H68: ='Kalkulator Depozytów'!Q73 -> 0 | I68: =ROUND(IF(OR(AND(K68>0,L68="L-PEAK5"),AND(K68>0,L68="H-PEAK5")),R68,IF(AND(K68>0,L68="PEAK5"),O68,IF(K68>0,IF(OR(L68="BASE"),AVERAGE(INDIRECT("krzywa!B"&MATCH(A68-$A$2,krzywa!A:A,0)&":B"&MATCH(B68-$A$2,krzywa!A:A,0),TRUE)),IF(OR(L68="OFFPEAK"),AVERAGE(INDIRECT("krzywa!F"&MATCH(A68-$A$2,krzywa!A:A,0)&":F"&MATCH(B68-$A$2,krzywa!A:A,0)))))))),4) ->  | J68: 0 | K68: 45626 | L68: OFFPEAK | M68: =NETWORKDAYS(A68,B68,koszyki!$M$20:$M$898) -> 0 | N68: =B68-A68+1- NETWORKDAYS(A68,B68,koszyki!$M$20:$M$898) -> 1 | O68: =ROUND(IF((B68-A68+1)>2,IF(C68=75,AVERAGE(INDIRECT("krzywa!C"&MATCH(K68-6,krzywa!A:A,0)&":C"&MATCH(K68-2,krzywa!A:A,0))),AVERAGE(INDIRECT("krzywa!C"&MATCH(A68-$A$2+BQ68,krzywa!A:A,0)&":C"&MATCH(B68-$A$2-AY68,krzywa!A:A,0)))),INDIRECT("krzywa!C"&MATCH(K68,krzywa!A:A,0))),4) ->  | P68: 0 | Q68: =-C68*ABS(D68-F68)*H68*I68*U68+'kompensacja międzyproduktowa'!X68*U68 ->  | R68: =ROUND(IF((B68-A68+1)>2,IF(C68=75,AVERAGE(INDIRECT("krzywa!D"&MATCH(K68-6,krzywa!A:A,0)&":D"&MATCH(K68-2,krzywa!A:A,0))),AVERAGE(INDIRECT("krzywa!D"&MATCH(A68-$A$2+BQ68,krzywa!A:A,0)&":D"&MATCH(B68-$A$2-AY68,krzywa!A:A,0)))),INDIRECT("krzywa!D"&MATCH(K68,krzywa!A:A,0))),4) ->  | S68: =VLOOKUP(A68,krzywa!L:N,3,1) -> 0 | T68: =VLOOKUP(B68,krzywa!L:N,3,1) -> 0 | U68: =IF('Kalkulator Depozytów'!$B$35=TRUE,1,(1+S68/100)*W68+(1+T68/100)*(1-W68)) -> 1 | V68: =IF(S68<>T68,VLOOKUP(A68,krzywa!L:M,2,1)) -> FALSE | W68: =IF(V68<>FALSE,IF(L68="BASE",(V68-A68+1)*24+J68,IF(L68="OFFPEAK",NETWORKDAYS(A68,V68,koszyki!$M$20:$M$898)*9+(N68)*24+J68,IF(L68="L-PEAK5",NETWORKDAYS(A68,V68,koszyki!$M$20:$M$898)*10,IF(L68="H-PEAK5",NETWORKDAYS(A68,V68,koszyki!$M$20:$M$898)*5,NETWORKDAYS(A68,V68,koszyki!$M$20:$M$898)*15))))/C68,1) -> 1 | AJ68: 2024-11-30 | AK68: =AJ68-1 -> 2024-11-29 | AL68: 2024-11-28 | AM68: 2024-11-27 | AO68: =NETWORKDAYS(AJ68,AJ68,koszyki!$M$20:$M$89) -> 0 | AP68: =NETWORKDAYS(AK68,AK68,koszyki!$M$20:$M$89) -> 1 | AQ68: =NETWORKDAYS(AL68,AL68,koszyki!$M$20:$M$89) -> 1 | AR68: =NETWORKDAYS(AM68,AM68,koszyki!$M$20:$M$89) -> 1 | AT68: 0 | AU68: 1 | AV68: 2 | AW68: 3 | AY68: 1 | BB68: 2024-11-30 | BC68: 2024-12-01 | BD68: 2024-12-02 | BE68: 2024-12-03 | BG68: =NETWORKDAYS(BB68,BB68,koszyki!$M$20:$M$89) -> 0 | BH68: =NETWORKDAYS(BC68,BC68,koszyki!$M$20:$M$89) -> 0 | BI68: =NETWORKDAYS(BD68,BD68,koszyki!$M$20:$M$89) -> 1 | BJ68: =NETWORKDAYS(BE68,BE68,koszyki!$M$20:$M$89) -> 1 | BL68: 0 | BM68: 0 | BN68: 1 | BO68: 2 | BQ68: 2
A69: 2024-12-01 | B69: 2024-12-01 | C69: 24 | D69: ='Kalkulator Depozytów'!M74 -> 0 | E69: ='Kalkulator Depozytów'!N74 -> 0 | F69: ='Kalkulator Depozytów'!O74 -> 0 | G69: ='Kalkulator Depozytów'!P74 -> 0 | H69: ='Kalkulator Depozytów'!Q74 -> 0 | I69: =ROUND(IF(OR(AND(K69>0,L69="L-PEAK5"),AND(K69>0,L69="H-PEAK5")),R69,IF(AND(K69>0,L69="PEAK5"),O69,IF(K69>0,IF(OR(L69="BASE"),AVERAGE(INDIRECT("krzywa!B"&MATCH(A69-$A$2,krzywa!A:A,0)&":B"&MATCH(B69-$A$2,krzywa!A:A,0),TRUE)),IF(OR(L69="OFFPEAK"),AVERAGE(INDIRECT("krzywa!F"&MATCH(A69-$A$2,krzywa!A:A,0)&":F"&MATCH(B69-$A$2,krzywa!A:A,0)))))))),4) ->  | J69: 0 | K69: 45627 | L69: OFFPEAK | M69: =NETWORKDAYS(A69,B69,koszyki!$M$20:$M$898) -> 0 | N69: =B69-A69+1- NETWORKDAYS(A69,B69,koszyki!$M$20:$M$898) -> 1 | O69: =ROUND(IF((B69-A69+1)>2,IF(C69=75,AVERAGE(INDIRECT("krzywa!C"&MATCH(K69-6,krzywa!A:A,0)&":C"&MATCH(K69-2,krzywa!A:A,0))),AVERAGE(INDIRECT("krzywa!C"&MATCH(A69-$A$2+BQ69,krzywa!A:A,0)&":C"&MATCH(B69-$A$2-AY69,krzywa!A:A,0)))),INDIRECT("krzywa!C"&MATCH(K69,krzywa!A:A,0))),4) ->  | P69: 0 | Q69: =-C69*ABS(D69-F69)*H69*I69*U69+'kompensacja międzyproduktowa'!X69*U69 ->  | R69: =ROUND(IF((B69-A69+1)>2,IF(C69=75,AVERAGE(INDIRECT("krzywa!D"&MATCH(K69-6,krzywa!A:A,0)&":D"&MATCH(K69-2,krzywa!A:A,0))),AVERAGE(INDIRECT("krzywa!D"&MATCH(A69-$A$2+BQ69,krzywa!A:A,0)&":D"&MATCH(B69-$A$2-AY69,krzywa!A:A,0)))),INDIRECT("krzywa!D"&MATCH(K69,krzywa!A:A,0))),4) ->  | S69: =VLOOKUP(A69,krzywa!L:N,3,1) -> 0 | T69: =VLOOKUP(B69,krzywa!L:N,3,1) -> 0 | U69: =IF('Kalkulator Depozytów'!$B$35=TRUE,1,(1+S69/100)*W69+(1+T69/100)*(1-W69)) -> 1 | V69: =IF(S69<>T69,VLOOKUP(A69,krzywa!L:M,2,1)) -> FALSE | W69: =IF(V69<>FALSE,IF(L69="BASE",(V69-A69+1)*24+J69,IF(L69="OFFPEAK",NETWORKDAYS(A69,V69,koszyki!$M$20:$M$898)*9+(N69)*24+J69,IF(L69="L-PEAK5",NETWORKDAYS(A69,V69,koszyki!$M$20:$M$898)*10,IF(L69="H-PEAK5",NETWORKDAYS(A69,V69,koszyki!$M$20:$M$898)*5,NETWORKDAYS(A69,V69,koszyki!$M$20:$M$898)*15))))/C69,1) -> 1 | AJ69: 2024-12-01 | AK69: 2024-11-30 | AL69: 2024-11-29 | AM69: 2024-11-28 | AO69: =NETWORKDAYS(AJ69,AJ69,koszyki!$M$20:$M$89) -> 0 | AP69: =NETWORKDAYS(AK69,AK69,koszyki!$M$20:$M$89) -> 0 | AQ69: =NETWORKDAYS(AL69,AL69,koszyki!$M$20:$M$89) -> 1 | AR69: =NETWORKDAYS(AM69,AM69,koszyki!$M$20:$M$89) -> 1 | AT69: 0 | AU69: 0 | AV69: 1 | AW69: 2 | AY69: 2 | BB69: 2024-12-01 | BC69: 2024-12-02 | BD69: 2024-12-03 | BE69: 2024-12-04 | BG69: =NETWORKDAYS(BB69,BB69,koszyki!$M$20:$M$89) -> 0 | BH69: =NETWORKDAYS(BC69,BC69,koszyki!$M$20:$M$89) -> 1 | BI69: =NETWORKDAYS(BD69,BD69,koszyki!$M$20:$M$89) -> 1 | BJ69: =NETWORKDAYS(BE69,BE69,koszyki!$M$20:$M$89) -> 1 | BL69: 0 | BM69: 1 | BN69: 2 | BO69: 3 | BQ69: 1
A70: 2024-12-02 | B70: 2024-12-02 | C70: 9 | D70: ='Kalkulator Depozytów'!M75 -> 0 | E70: ='Kalkulator Depozytów'!N75 -> 0 | F70: ='Kalkulator Depozytów'!O75 -> 0 | G70: ='Kalkulator Depozytów'!P75 -> 0 | H70: ='Kalkulator Depozytów'!Q75 -> 0 | I70: =ROUND(IF(OR(AND(K70>0,L70="L-PEAK5"),AND(K70>0,L70="H-PEAK5")),R70,IF(AND(K70>0,L70="PEAK5"),O70,IF(K70>0,IF(OR(L70="BASE"),AVERAGE(INDIRECT("krzywa!B"&MATCH(A70-$A$2,krzywa!A:A,0)&":B"&MATCH(B70-$A$2,krzywa!A:A,0),TRUE)),IF(OR(L70="OFFPEAK"),AVERAGE(INDIRECT("krzywa!F"&MATCH(A70-$A$2,krzywa!A:A,0)&":F"&MATCH(B70-$A$2,krzywa!A:A,0)))))))),4) ->  | J70: 0 | K70: 45628 | L70: OFFPEAK | M70: =NETWORKDAYS(A70,B70,koszyki!$M$20:$M$898) -> 1 | N70: =B70-A70+1- NETWORKDAYS(A70,B70,koszyki!$M$20:$M$898) -> 0 | O70: =ROUND(IF((B70-A70+1)>2,IF(C70=75,AVERAGE(INDIRECT("krzywa!C"&MATCH(K70-6,krzywa!A:A,0)&":C"&MATCH(K70-2,krzywa!A:A,0))),AVERAGE(INDIRECT("krzywa!C"&MATCH(A70-$A$2+BQ70,krzywa!A:A,0)&":C"&MATCH(B70-$A$2-AY70,krzywa!A:A,0)))),INDIRECT("krzywa!C"&MATCH(K70,krzywa!A:A,0))),4) ->  | P70: 0 | Q70: =-C70*ABS(D70-F70)*H70*I70*U70+'kompensacja międzyproduktowa'!X70*U70 ->  | R70: =ROUND(IF((B70-A70+1)>2,IF(C70=75,AVERAGE(INDIRECT("krzywa!D"&MATCH(K70-6,krzywa!A:A,0)&":D"&MATCH(K70-2,krzywa!A:A,0))),AVERAGE(INDIRECT("krzywa!D"&MATCH(A70-$A$2+BQ70,krzywa!A:A,0)&":D"&MATCH(B70-$A$2-AY70,krzywa!A:A,0)))),INDIRECT("krzywa!D"&MATCH(K70,krzywa!A:A,0))),4) ->  | S70: =VLOOKUP(A70,krzywa!L:N,3,1) -> 0 | T70: =VLOOKUP(B70,krzywa!L:N,3,1) -> 0 | U70: =IF('Kalkulator Depozytów'!$B$35=TRUE,1,(1+S70/100)*W70+(1+T70/100)*(1-W70)) -> 1 | V70: =IF(S70<>T70,VLOOKUP(A70,krzywa!L:M,2,1)) -> FALSE | W70: =IF(V70<>FALSE,IF(L70="BASE",(V70-A70+1)*24+J70,IF(L70="OFFPEAK",NETWORKDAYS(A70,V70,koszyki!$M$20:$M$898)*9+(N70)*24+J70,IF(L70="L-PEAK5",NETWORKDAYS(A70,V70,koszyki!$M$20:$M$898)*10,IF(L70="H-PEAK5",NETWORKDAYS(A70,V70,koszyki!$M$20:$M$898)*5,NETWORKDAYS(A70,V70,koszyki!$M$20:$M$898)*15))))/C70,1) -> 1 | AJ70: 2024-12-02 | AK70: 2024-12-01 | AL70: 2024-11-30 | AM70: 2024-11-29 | AO70: =NETWORKDAYS(AJ70,AJ70,koszyki!$M$20:$M$89) -> 1 | AP70: =NETWORKDAYS(AK70,AK70,koszyki!$M$20:$M$89) -> 0 | AQ70: =NETWORKDAYS(AL70,AL70,koszyki!$M$20:$M$89) -> 0 | AR70: =NETWORKDAYS(AM70,AM70,koszyki!$M$20:$M$89) -> 1 | AT70: 1 | AU70: 1 | AV70: 1 | AW70: 2 | AY70: 0 | BB70: 2024-12-02 | BC70: 2024-12-03 | BD70: 2024-12-04 | BE70: 2024-12-05 | BG70: =NETWORKDAYS(BB70,BB70,koszyki!$M$20:$M$89) -> 1 | BH70: =NETWORKDAYS(BC70,BC70,koszyki!$M$20:$M$89) -> 1 | BI70: =NETWORKDAYS(BD70,BD70,koszyki!$M$20:$M$89) -> 1 | BJ70: =NETWORKDAYS(BE70,BE70,koszyki!$M$20:$M$89) -> 1 | BL70: 1 | BM70: 2 | BN70: 3 | BO70: 4 | BQ70: 0
A71: 2024-12-03 | B71: 2024-12-03 | C71: 9 | D71: ='Kalkulator Depozytów'!M76 -> 0 | E71: ='Kalkulator Depozytów'!N76 -> 0 | F71: ='Kalkulator Depozytów'!O76 -> 0 | G71: ='Kalkulator Depozytów'!P76 -> 0 | H71: ='Kalkulator Depozytów'!Q76 -> 0 | I71: =ROUND(IF(OR(AND(K71>0,L71="L-PEAK5"),AND(K71>0,L71="H-PEAK5")),R71,IF(AND(K71>0,L71="PEAK5"),O71,IF(K71>0,IF(OR(L71="BASE"),AVERAGE(INDIRECT("krzywa!B"&MATCH(A71-$A$2,krzywa!A:A,0)&":B"&MATCH(B71-$A$2,krzywa!A:A,0),TRUE)),IF(OR(L71="OFFPEAK"),AVERAGE(INDIRECT("krzywa!F"&MATCH(A71-$A$2,krzywa!A:A,0)&":F"&MATCH(B71-$A$2,krzywa!A:A,0)))))))),4) ->  | J71: 0 | K71: 45629 | L71: OFFPEAK | M71: =NETWORKDAYS(A71,B71,koszyki!$M$20:$M$898) -> 1 | N71: =B71-A71+1- NETWORKDAYS(A71,B71,koszyki!$M$20:$M$898) -> 0 | O71: =ROUND(IF((B71-A71+1)>2,IF(C71=75,AVERAGE(INDIRECT("krzywa!C"&MATCH(K71-6,krzywa!A:A,0)&":C"&MATCH(K71-2,krzywa!A:A,0))),AVERAGE(INDIRECT("krzywa!C"&MATCH(A71-$A$2+BQ71,krzywa!A:A,0)&":C"&MATCH(B71-$A$2-AY71,krzywa!A:A,0)))),INDIRECT("krzywa!C"&MATCH(K71,krzywa!A:A,0))),4) ->  | P71: 0 | Q71: =-C71*ABS(D71-F71)*H71*I71*U71+'kompensacja międzyproduktowa'!X71*U71 ->  | R71: =ROUND(IF((B71-A71+1)>2,IF(C71=75,AVERAGE(INDIRECT("krzywa!D"&MATCH(K71-6,krzywa!A:A,0)&":D"&MATCH(K71-2,krzywa!A:A,0))),AVERAGE(INDIRECT("krzywa!D"&MATCH(A71-$A$2+BQ71,krzywa!A:A,0)&":D"&MATCH(B71-$A$2-AY71,krzywa!A:A,0)))),INDIRECT("krzywa!D"&MATCH(K71,krzywa!A:A,0))),4) ->  | S71: =VLOOKUP(A71,krzywa!L:N,3,1) -> 0 | T71: =VLOOKUP(B71,krzywa!L:N,3,1) -> 0 | U71: =IF('Kalkulator Depozytów'!$B$35=TRUE,1,(1+S71/100)*W71+(1+T71/100)*(1-W71)) -> 1 | V71: =IF(S71<>T71,VLOOKUP(A71,krzywa!L:M,2,1)) -> FALSE | W71: =IF(V71<>FALSE,IF(L71="BASE",(V71-A71+1)*24+J71,IF(L71="OFFPEAK",NETWORKDAYS(A71,V71,koszyki!$M$20:$M$898)*9+(N71)*24+J71,IF(L71="L-PEAK5",NETWORKDAYS(A71,V71,koszyki!$M$20:$M$898)*10,IF(L71="H-PEAK5",NETWORKDAYS(A71,V71,koszyki!$M$20:$M$898)*5,NETWORKDAYS(A71,V71,koszyki!$M$20:$M$898)*15))))/C71,1) -> 1 | AJ71: 2024-12-03 | AK71: 2024-12-02 | AL71: 2024-12-01 | AM71: 2024-11-30 | AO71: =NETWORKDAYS(AJ71,AJ71,koszyki!$M$20:$M$89) -> 1 | AP71: =NETWORKDAYS(AK71,AK71,koszyki!$M$20:$M$89) -> 1 | AQ71: =NETWORKDAYS(AL71,AL71,koszyki!$M$20:$M$89) -> 0 | AR71: =NETWORKDAYS(AM71,AM71,koszyki!$M$20:$M$89) -> 0 | AT71: 1 | AU71: 2 | AV71: 2 | AW71: 2 | AY71: 0 | BB71: 2024-12-03 | BC71: 2024-12-04 | BD71: 2024-12-05 | BE71: 2024-12-06 | BG71: =NETWORKDAYS(BB71,BB71,koszyki!$M$20:$M$89) -> 1 | BH71: =NETWORKDAYS(BC71,BC71,koszyki!$M$20:$M$89) -> 1 | BI71: =NETWORKDAYS(BD71,BD71,koszyki!$M$20:$M$89) -> 1 | BJ71: =NETWORKDAYS(BE71,BE71,koszyki!$M$20:$M$89) -> 1 | BL71: 1 | BM71: 2 | BN71: 3 | BO71: 4 | BQ71: 0
A72: 2024-12-04 | B72: 2024-12-04 | C72: 9 | D72: ='Kalkulator Depozytów'!M77 -> 0 | E72: ='Kalkulator Depozytów'!N77 -> 0 | F72: ='Kalkulator Depozytów'!O77 -> 0 | G72: ='Kalkulator Depozytów'!P77 -> 0 | H72: ='Kalkulator Depozytów'!Q77 -> 0 | I72: =ROUND(IF(OR(AND(K72>0,L72="L-PEAK5"),AND(K72>0,L72="H-PEAK5")),R72,IF(AND(K72>0,L72="PEAK5"),O72,IF(K72>0,IF(OR(L72="BASE"),AVERAGE(INDIRECT("krzywa!B"&MATCH(A72-$A$2,krzywa!A:A,0)&":B"&MATCH(B72-$A$2,krzywa!A:A,0),TRUE)),IF(OR(L72="OFFPEAK"),AVERAGE(INDIRECT("krzywa!F"&MATCH(A72-$A$2,krzywa!A:A,0)&":F"&MATCH(B72-$A$2,krzywa!A:A,0)))))))),4) ->  | J72: 0 | K72: 45630 | L72: OFFPEAK | M72: =NETWORKDAYS(A72,B72,koszyki!$M$20:$M$898) -> 1 | N72: =B72-A72+1- NETWORKDAYS(A72,B72,koszyki!$M$20:$M$898) -> 0 | O72: =ROUND(IF((B72-A72+1)>2,IF(C72=75,AVERAGE(INDIRECT("krzywa!C"&MATCH(K72-6,krzywa!A:A,0)&":C"&MATCH(K72-2,krzywa!A:A,0))),AVERAGE(INDIRECT("krzywa!C"&MATCH(A72-$A$2+BQ72,krzywa!A:A,0)&":C"&MATCH(B72-$A$2-AY72,krzywa!A:A,0)))),INDIRECT("krzywa!C"&MATCH(K72,krzywa!A:A,0))),4) ->  | P72: 0 | Q72: =-C72*ABS(D72-F72)*H72*I72*U72+'kompensacja międzyproduktowa'!X72*U72 ->  | R72: =ROUND(IF((B72-A72+1)>2,IF(C72=75,AVERAGE(INDIRECT("krzywa!D"&MATCH(K72-6,krzywa!A:A,0)&":D"&MATCH(K72-2,krzywa!A:A,0))),AVERAGE(INDIRECT("krzywa!D"&MATCH(A72-$A$2+BQ72,krzywa!A:A,0)&":D"&MATCH(B72-$A$2-AY72,krzywa!A:A,0)))),INDIRECT("krzywa!D"&MATCH(K72,krzywa!A:A,0))),4) ->  | S72: =VLOOKUP(A72,krzywa!L:N,3,1) -> 0 | T72: =VLOOKUP(B72,krzywa!L:N,3,1) -> 0 | U72: =IF('Kalkulator Depozytów'!$B$35=TRUE,1,(1+S72/100)*W72+(1+T72/100)*(1-W72)) -> 1 | V72: =IF(S72<>T72,VLOOKUP(A72,krzywa!L:M,2,1)) -> FALSE | W72: =IF(V72<>FALSE,IF(L72="BASE",(V72-A72+1)*24+J72,IF(L72="OFFPEAK",NETWORKDAYS(A72,V72,koszyki!$M$20:$M$898)*9+(N72)*24+J72,IF(L72="L-PEAK5",NETWORKDAYS(A72,V72,koszyki!$M$20:$M$898)*10,IF(L72="H-PEAK5",NETWORKDAYS(A72,V72,koszyki!$M$20:$M$898)*5,NETWORKDAYS(A72,V72,koszyki!$M$20:$M$898)*15))))/C72,1) -> 1 | AJ72: =B72 -> 2024-12-04 | AK72: 2024-12-03 | AL72: 2024-12-02 | AM72: 2024-12-01 | AO72: =NETWORKDAYS(AJ72,AJ72,koszyki!$M$20:$M$89) -> 1 | AP72: =NETWORKDAYS(AK72,AK72,koszyki!$M$20:$M$89) -> 1 | AQ72: =NETWORKDAYS(AL72,AL72,koszyki!$M$20:$M$89) -> 1 | AR72: =NETWORKDAYS(AM72,AM72,koszyki!$M$20:$M$89) -> 0 | AT72: 1 | AU72: 2 | AV72: 3 | AW72: 3 | AY72: 0 | BB72: =A72 -> 2024-12-04 | BC72: 2024-12-05 | BD72: 2024-12-06 | BE72: 2024-12-07 | BG72: =NETWORKDAYS(BB72,BB72,koszyki!$M$20:$M$89) -> 1 | BH72: =NETWORKDAYS(BC72,BC72,koszyki!$M$20:$M$89) -> 1 | BI72: =NETWORKDAYS(BD72,BD72,koszyki!$M$20:$M$89) -> 1 | BJ72: =NETWORKDAYS(BE72,BE72,koszyki!$M$20:$M$89) -> 0 | BL72: 1 | BM72: 2 | BN72: 3 | BO72: 3 | BQ72: 0
A73: 2024-12-05 | B73: 2024-12-05 | C73: =IF(L73="BASE",(B73-A73+1)*24+J73,IF(L73="OFFPEAK",M73*9+(N73)*24+J73,IF(L73="L-PEAK5",M73*10,IF(L73="H-PEAK5",M73*5,M73*15)))) -> 9 | D73: ='Kalkulator Depozytów'!M78 -> 0 | E73: ='Kalkulator Depozytów'!N78 -> 0 | F73: ='Kalkulator Depozytów'!O78 -> 0 | G73: ='Kalkulator Depozytów'!P78 -> 0 | H73: ='Kalkulator Depozytów'!Q78 -> 0 | I73: =ROUND(IF(OR(AND(K73>0,L73="L-PEAK5"),AND(K73>0,L73="H-PEAK5")),R73,IF(AND(K73>0,L73="PEAK5"),O73,IF(K73>0,IF(OR(L73="BASE"),AVERAGE(INDIRECT("krzywa!B"&MATCH(A73-$A$2,krzywa!A:A,0)&":B"&MATCH(B73-$A$2,krzywa!A:A,0),TRUE)),IF(OR(L73="OFFPEAK"),AVERAGE(INDIRECT("krzywa!F"&MATCH(A73-$A$2,krzywa!A:A,0)&":F"&MATCH(B73-$A$2,krzywa!A:A,0)))))))),4) ->  | J73: 0 | K73: =B73-$A$2 -> 45631 | L73: OFFPEAK | M73: =NETWORKDAYS(A73,B73,koszyki!$M$20:$M$898) -> 1 | N73: =B73-A73+1- NETWORKDAYS(A73,B73,koszyki!$M$20:$M$898) -> 0 | O73: =ROUND(IF((B73-A73+1)>2,IF(C73=75,AVERAGE(INDIRECT("krzywa!C"&MATCH(K73-6,krzywa!A:A,0)&":C"&MATCH(K73-2,krzywa!A:A,0))),AVERAGE(INDIRECT("krzywa!C"&MATCH(A73-$A$2+BQ73,krzywa!A:A,0)&":C"&MATCH(B73-$A$2-AY73,krzywa!A:A,0)))),INDIRECT("krzywa!C"&MATCH(K73,krzywa!A:A,0))),4) ->  | P73: =C73*(D73*(H73-E73)-F73*(H73-G73))*U73 -> 0 | Q73: =-C73*ABS(D73-F73)*H73*I73*U73+'kompensacja międzyproduktowa'!X73*U73 ->  | R73: =ROUND(IF((B73-A73+1)>2,IF(C73=75,AVERAGE(INDIRECT("krzywa!D"&MATCH(K73-6,krzywa!A:A,0)&":D"&MATCH(K73-2,krzywa!A:A,0))),AVERAGE(INDIRECT("krzywa!D"&MATCH(A73-$A$2+BQ73,krzywa!A:A,0)&":D"&MATCH(B73-$A$2-AY73,krzywa!A:A,0)))),INDIRECT("krzywa!D"&MATCH(K73,krzywa!A:A,0))),4) ->  | S73: =VLOOKUP(A73,krzywa!L:N,3,1) -> 0 | T73: =VLOOKUP(B73,krzywa!L:N,3,1) -> 0 | U73: =IF('Kalkulator Depozytów'!$B$35=TRUE,1,(1+S73/100)*W73+(1+T73/100)*(1-W73)) -> 1 | V73: =IF(S73<>T73,VLOOKUP(A73,krzywa!L:M,2,1)) -> FALSE | W73: =IF(V73<>FALSE,IF(L73="BASE",(V73-A73+1)*24+J73,IF(L73="OFFPEAK",NETWORKDAYS(A73,V73,koszyki!$M$20:$M$898)*9+(N73)*24+J73,IF(L73="L-PEAK5",NETWORKDAYS(A73,V73,koszyki!$M$20:$M$898)*10,IF(L73="H-PEAK5",NETWORKDAYS(A73,V73,koszyki!$M$20:$M$898)*5,NETWORKDAYS(A73,V73,koszyki!$M$20:$M$898)*15))))/C73,1) -> 1 | AJ73: 2024-12-05 | AK73: 2024-12-04 | AL73: 2024-12-03 | AM73: 2024-12-02 | AO73: =NETWORKDAYS(AJ73,AJ73,koszyki!$M$20:$M$89) -> 1 | AP73: =NETWORKDAYS(AK73,AK73,koszyki!$M$20:$M$89) -> 1 | AQ73: =NETWORKDAYS(AL73,AL73,koszyki!$M$20:$M$89) -> 1 | AR73: =NETWORKDAYS(AM73,AM73,koszyki!$M$20:$M$89) -> 1 | AT73: =SUM(AO73) -> 1 | AU73: =SUM(AO73:AP73) -> 2 | AV73: =SUM(AO73:AQ73) -> 3 | AW73: =SUM(AO73:AR73) -> 4 | AY73: =COUNTIF(AT73:AW73,"=0") -> 0 | BB73: 2024-12-05 | BC73: =BB73+1 -> 2024-12-06 | BD73: 2024-12-07 | BE73: =BD73+1 -> 2024-12-08 | BG73: =NETWORKDAYS(BB73,BB73,koszyki!$M$20:$M$89) -> 1 | BH73: =NETWORKDAYS(BC73,BC73,koszyki!$M$20:$M$89) -> 1 | BI73: =NETWORKDAYS(BD73,BD73,koszyki!$M$20:$M$89) -> 0 | BJ73: =NETWORKDAYS(BE73,BE73,koszyki!$M$20:$M$89) -> 0 | BL73: =SUM(BG73) -> 1 | BM73: =SUM(BG73:BH73) -> 2 | BN73: =SUM(BG73:BI73) -> 2 | BO73: =SUM(BG73:BJ73) -> 2 | BQ73: =COUNTIF(BL73:BO73,"=0") -> 0
A74: 2024-12-06 | B74: 2024-12-06 | C74: 9 | D74: ='Kalkulator Depozytów'!M79 -> 0 | E74: ='Kalkulator Depozytów'!N79 -> 0 | F74: ='Kalkulator Depozytów'!O79 -> 0 | G74: ='Kalkulator Depozytów'!P79 -> 0 | H74: ='Kalkulator Depozytów'!Q79 -> 0 | I74: =ROUND(IF(OR(AND(K74>0,L74="L-PEAK5"),AND(K74>0,L74="H-PEAK5")),R74,IF(AND(K74>0,L74="PEAK5"),O74,IF(K74>0,IF(OR(L74="BASE"),AVERAGE(INDIRECT("krzywa!B"&MATCH(A74-$A$2,krzywa!A:A,0)&":B"&MATCH(B74-$A$2,krzywa!A:A,0),TRUE)),IF(OR(L74="OFFPEAK"),AVERAGE(INDIRECT("krzywa!F"&MATCH(A74-$A$2,krzywa!A:A,0)&":F"&MATCH(B74-$A$2,krzywa!A:A,0)))))))),4) ->  | J74: 0 | K74: 45632 | L74: OFFPEAK | M74: =NETWORKDAYS(A74,B74,koszyki!$M$20:$M$898) -> 1 | N74: =B74-A74+1- NETWORKDAYS(A74,B74,koszyki!$M$20:$M$898) -> 0 | O74: =ROUND(IF((B74-A74+1)>2,IF(C74=75,AVERAGE(INDIRECT("krzywa!C"&MATCH(K74-6,krzywa!A:A,0)&":C"&MATCH(K74-2,krzywa!A:A,0))),AVERAGE(INDIRECT("krzywa!C"&MATCH(A74-$A$2+BQ74,krzywa!A:A,0)&":C"&MATCH(B74-$A$2-AY74,krzywa!A:A,0)))),INDIRECT("krzywa!C"&MATCH(K74,krzywa!A:A,0))),4) ->  | P74: 0 | Q74: =-C74*ABS(D74-F74)*H74*I74*U74+'kompensacja międzyproduktowa'!X74*U74 ->  | R74: =ROUND(IF((B74-A74+1)>2,IF(C74=75,AVERAGE(INDIRECT("krzywa!D"&MATCH(K74-6,krzywa!A:A,0)&":D"&MATCH(K74-2,krzywa!A:A,0))),AVERAGE(INDIRECT("krzywa!D"&MATCH(A74-$A$2+BQ74,krzywa!A:A,0)&":D"&MATCH(B74-$A$2-AY74,krzywa!A:A,0)))),INDIRECT("krzywa!D"&MATCH(K74,krzywa!A:A,0))),4) ->  | S74: =VLOOKUP(A74,krzywa!L:N,3,1) -> 0 | T74: =VLOOKUP(B74,krzywa!L:N,3,1) -> 0 | U74: =IF('Kalkulator Depozytów'!$B$35=TRUE,1,(1+S74/100)*W74+(1+T74/100)*(1-W74)) -> 1 | V74: =IF(S74<>T74,VLOOKUP(A74,krzywa!L:M,2,1)) -> FALSE | W74: =IF(V74<>FALSE,IF(L74="BASE",(V74-A74+1)*24+J74,IF(L74="OFFPEAK",NETWORKDAYS(A74,V74,koszyki!$M$20:$M$898)*9+(N74)*24+J74,IF(L74="L-PEAK5",NETWORKDAYS(A74,V74,koszyki!$M$20:$M$898)*10,IF(L74="H-PEAK5",NETWORKDAYS(A74,V74,koszyki!$M$20:$M$898)*5,NETWORKDAYS(A74,V74,koszyki!$M$20:$M$898)*15))))/C74,1) -> 1 | AJ74: 2024-12-06 | AK74: 2024-12-05 | AL74: 2024-12-04 | AM74: 2024-12-03 | AO74: =NETWORKDAYS(AJ74,AJ74,koszyki!$M$20:$M$89) -> 1 | AP74: =NETWORKDAYS(AK74,AK74,koszyki!$M$20:$M$89) -> 1 | AQ74: =NETWORKDAYS(AL74,AL74,koszyki!$M$20:$M$89) -> 1 | AR74: =NETWORKDAYS(AM74,AM74,koszyki!$M$20:$M$89) -> 1 | AT74: 1 | AU74: 2 | AV74: 3 | AW74: 4 | AY74: 0 | BB74: 2024-12-06 | BC74: 2024-12-07 | BD74: 2024-12-08 | BE74: 2024-12-09 | BG74: =NETWORKDAYS(BB74,BB74,koszyki!$M$20:$M$89) -> 1 | BH74: =NETWORKDAYS(BC74,BC74,koszyki!$M$20:$M$89) -> 0 | BI74: =NETWORKDAYS(BD74,BD74,koszyki!$M$20:$M$89) -> 0 | BJ74: =NETWORKDAYS(BE74,BE74,koszyki!$M$20:$M$89) -> 1 | BL74: 1 | BM74: 1 | BN74: 1 | BO74: 2 | BQ74: 0
A75: 2024-12-07 | B75: 2024-12-07 | C75: 24 | D75: ='Kalkulator Depozytów'!M80 -> 0 | E75: ='Kalkulator Depozytów'!N80 -> 0 | F75: ='Kalkulator Depozytów'!O80 -> 0 | G75: ='Kalkulator Depozytów'!P80 -> 0 | H75: ='Kalkulator Depozytów'!Q80 -> 0 | I75: =ROUND(IF(OR(AND(K75>0,L75="L-PEAK5"),AND(K75>0,L75="H-PEAK5")),R75,IF(AND(K75>0,L75="PEAK5"),O75,IF(K75>0,IF(OR(L75="BASE"),AVERAGE(INDIRECT("krzywa!B"&MATCH(A75-$A$2,krzywa!A:A,0)&":B"&MATCH(B75-$A$2,krzywa!A:A,0),TRUE)),IF(OR(L75="OFFPEAK"),AVERAGE(INDIRECT("krzywa!F"&MATCH(A75-$A$2,krzywa!A:A,0)&":F"&MATCH(B75-$A$2,krzywa!A:A,0)))))))),4) ->  | J75: 0 | K75: 45633 | L75: OFFPEAK | M75: =NETWORKDAYS(A75,B75,koszyki!$M$20:$M$898) -> 0 | N75: =B75-A75+1- NETWORKDAYS(A75,B75,koszyki!$M$20:$M$898) -> 1 | O75: =ROUND(IF((B75-A75+1)>2,IF(C75=75,AVERAGE(INDIRECT("krzywa!C"&MATCH(K75-6,krzywa!A:A,0)&":C"&MATCH(K75-2,krzywa!A:A,0))),AVERAGE(INDIRECT("krzywa!C"&MATCH(A75-$A$2+BQ75,krzywa!A:A,0)&":C"&MATCH(B75-$A$2-AY75,krzywa!A:A,0)))),INDIRECT("krzywa!C"&MATCH(K75,krzywa!A:A,0))),4) ->  | P75: 0 | Q75: =-C75*ABS(D75-F75)*H75*I75*U75+'kompensacja międzyproduktowa'!X75*U75 ->  | R75: =ROUND(IF((B75-A75+1)>2,IF(C75=75,AVERAGE(INDIRECT("krzywa!D"&MATCH(K75-6,krzywa!A:A,0)&":D"&MATCH(K75-2,krzywa!A:A,0))),AVERAGE(INDIRECT("krzywa!D"&MATCH(A75-$A$2+BQ75,krzywa!A:A,0)&":D"&MATCH(B75-$A$2-AY75,krzywa!A:A,0)))),INDIRECT("krzywa!D"&MATCH(K75,krzywa!A:A,0))),4) ->  | S75: =VLOOKUP(A75,krzywa!L:N,3,1) -> 0 | T75: =VLOOKUP(B75,krzywa!L:N,3,1) -> 0 | U75: =IF('Kalkulator Depozytów'!$B$35=TRUE,1,(1+S75/100)*W75+(1+T75/100)*(1-W75)) -> 1 | V75: =IF(S75<>T75,VLOOKUP(A75,krzywa!L:M,2,1)) -> FALSE | W75: =IF(V75<>FALSE,IF(L75="BASE",(V75-A75+1)*24+J75,IF(L75="OFFPEAK",NETWORKDAYS(A75,V75,koszyki!$M$20:$M$898)*9+(N75)*24+J75,IF(L75="L-PEAK5",NETWORKDAYS(A75,V75,koszyki!$M$20:$M$898)*10,IF(L75="H-PEAK5",NETWORKDAYS(A75,V75,koszyki!$M$20:$M$898)*5,NETWORKDAYS(A75,V75,koszyki!$M$20:$M$898)*15))))/C75,1) -> 1 | AJ75: 2024-12-07 | AK75: 2024-12-06 | AL75: 2024-12-05 | AM75: 2024-12-04 | AO75: =NETWORKDAYS(AJ75,AJ75,koszyki!$M$20:$M$89) -> 0 | AP75: =NETWORKDAYS(AK75,AK75,koszyki!$M$20:$M$89) -> 1 | AQ75: =NETWORKDAYS(AL75,AL75,koszyki!$M$20:$M$89) -> 1 | AR75: =NETWORKDAYS(AM75,AM75,koszyki!$M$20:$M$89) -> 1 | AT75: 0 | AU75: 1 | AV75: 2 | AW75: 3 | AY75: 1 | BB75: 2024-12-07 | BC75: 2024-12-08 | BD75: 2024-12-09 | BE75: 2024-12-10 | BG75: =NETWORKDAYS(BB75,BB75,koszyki!$M$20:$M$89) -> 0 | BH75: =NETWORKDAYS(BC75,BC75,koszyki!$M$20:$M$89) -> 0 | BI75: =NETWORKDAYS(BD75,BD75,koszyki!$M$20:$M$89) -> 1 | BJ75: =NETWORKDAYS(BE75,BE75,koszyki!$M$20:$M$89) -> 1 | BL75: 0 | BM75: 0 | BN75: 1 | BO75: 2 | BQ75: 2
A76: 2024-12-08 | B76: 2024-12-08 | C76: 24 | D76: ='Kalkulator Depozytów'!M81 -> 0 | E76: ='Kalkulator Depozytów'!N81 -> 0 | F76: ='Kalkulator Depozytów'!O81 -> 0 | G76: ='Kalkulator Depozytów'!P81 -> 0 | H76: ='Kalkulator Depozytów'!Q81 -> 0 | I76: =ROUND(IF(OR(AND(K76>0,L76="L-PEAK5"),AND(K76>0,L76="H-PEAK5")),R76,IF(AND(K76>0,L76="PEAK5"),O76,IF(K76>0,IF(OR(L76="BASE"),AVERAGE(INDIRECT("krzywa!B"&MATCH(A76-$A$2,krzywa!A:A,0)&":B"&MATCH(B76-$A$2,krzywa!A:A,0),TRUE)),IF(OR(L76="OFFPEAK"),AVERAGE(INDIRECT("krzywa!F"&MATCH(A76-$A$2,krzywa!A:A,0)&":F"&MATCH(B76-$A$2,krzywa!A:A,0)))))))),4) ->  | J76: 0 | K76: 45634 | L76: OFFPEAK | M76: =NETWORKDAYS(A76,B76,koszyki!$M$20:$M$898) -> 0 | N76: =B76-A76+1- NETWORKDAYS(A76,B76,koszyki!$M$20:$M$898) -> 1 | O76: =ROUND(IF((B76-A76+1)>2,IF(C76=75,AVERAGE(INDIRECT("krzywa!C"&MATCH(K76-6,krzywa!A:A,0)&":C"&MATCH(K76-2,krzywa!A:A,0))),AVERAGE(INDIRECT("krzywa!C"&MATCH(A76-$A$2+BQ76,krzywa!A:A,0)&":C"&MATCH(B76-$A$2-AY76,krzywa!A:A,0)))),INDIRECT("krzywa!C"&MATCH(K76,krzywa!A:A,0))),4) ->  | P76: 0 | Q76: =-C76*ABS(D76-F76)*H76*I76*U76+'kompensacja międzyproduktowa'!X76*U76 ->  | R76: =ROUND(IF((B76-A76+1)>2,IF(C76=75,AVERAGE(INDIRECT("krzywa!D"&MATCH(K76-6,krzywa!A:A,0)&":D"&MATCH(K76-2,krzywa!A:A,0))),AVERAGE(INDIRECT("krzywa!D"&MATCH(A76-$A$2+BQ76,krzywa!A:A,0)&":D"&MATCH(B76-$A$2-AY76,krzywa!A:A,0)))),INDIRECT("krzywa!D"&MATCH(K76,krzywa!A:A,0))),4) ->  | S76: =VLOOKUP(A76,krzywa!L:N,3,1) -> 0 | T76: =VLOOKUP(B76,krzywa!L:N,3,1) -> 0 | U76: =IF('Kalkulator Depozytów'!$B$35=TRUE,1,(1+S76/100)*W76+(1+T76/100)*(1-W76)) -> 1 | V76: =IF(S76<>T76,VLOOKUP(A76,krzywa!L:M,2,1)) -> FALSE | W76: =IF(V76<>FALSE,IF(L76="BASE",(V76-A76+1)*24+J76,IF(L76="OFFPEAK",NETWORKDAYS(A76,V76,koszyki!$M$20:$M$898)*9+(N76)*24+J76,IF(L76="L-PEAK5",NETWORKDAYS(A76,V76,koszyki!$M$20:$M$898)*10,IF(L76="H-PEAK5",NETWORKDAYS(A76,V76,koszyki!$M$20:$M$898)*5,NETWORKDAYS(A76,V76,koszyki!$M$20:$M$898)*15))))/C76,1) -> 1 | AJ76: 2024-12-08 | AK76: 2024-12-07 | AL76: 2024-12-06 | AM76: 2024-12-05 | AO76: =NETWORKDAYS(AJ76,AJ76,koszyki!$M$20:$M$89) -> 0 | AP76: =NETWORKDAYS(AK76,AK76,koszyki!$M$20:$M$89) -> 0 | AQ76: =NETWORKDAYS(AL76,AL76,koszyki!$M$20:$M$89) -> 1 | AR76: =NETWORKDAYS(AM76,AM76,koszyki!$M$20:$M$89) -> 1 | AT76: 0 | AU76: 0 | AV76: 1 | AW76: 2 | AY76: 2 | BB76: 2024-12-08 | BC76: 2024-12-09 | BD76: 2024-12-10 | BE76: 2024-12-11 | BG76: =NETWORKDAYS(BB76,BB76,koszyki!$M$20:$M$89) -> 0 | BH76: =NETWORKDAYS(BC76,BC76,koszyki!$M$20:$M$89) -> 1 | BI76: =NETWORKDAYS(BD76,BD76,koszyki!$M$20:$M$89) -> 1 | BJ76: =NETWORKDAYS(BE76,BE76,koszyki!$M$20:$M$89) -> 1 | BL76: 0 | BM76: 1 | BN76: 2 | BO76: 3 | BQ76: 1
A77: 2024-12-09 | B77: 2024-12-15 | C77: 93 | D77: ='Kalkulator Depozytów'!M82 -> 0 | E77: ='Kalkulator Depozytów'!N82 -> 0 | F77: ='Kalkulator Depozytów'!O82 -> 0 | G77: ='Kalkulator Depozytów'!P82 -> 0 | H77: ='Kalkulator Depozytów'!Q82 -> 0 | I77: =ROUND(IF(OR(AND(K77>0,L77="L-PEAK5"),AND(K77>0,L77="H-PEAK5")),R77,IF(AND(K77>0,L77="PEAK5"),O77,IF(K77>0,IF(OR(L77="BASE"),AVERAGE(INDIRECT("krzywa!B"&MATCH(A77-$A$2,krzywa!A:A,0)&":B"&MATCH(B77-$A$2,krzywa!A:A,0),TRUE)),IF(OR(L77="OFFPEAK"),AVERAGE(INDIRECT("krzywa!F"&MATCH(A77-$A$2,krzywa!A:A,0)&":F"&MATCH(B77-$A$2,krzywa!A:A,0)))))))),4) ->  | J77: 0 | K77: 45641 | L77: OFFPEAK | M77: =NETWORKDAYS(A77,B77,koszyki!$M$20:$M$898) -> 5 | N77: =B77-A77+1- NETWORKDAYS(A77,B77,koszyki!$M$20:$M$898) -> 2 | O77: =ROUND(IF((B77-A77+1)>2,IF(C77=75,AVERAGE(INDIRECT("krzywa!C"&MATCH(K77-6,krzywa!A:A,0)&":C"&MATCH(K77-2,krzywa!A:A,0))),AVERAGE(INDIRECT("krzywa!C"&MATCH(A77-$A$2+BQ77,krzywa!A:A,0)&":C"&MATCH(B77-$A$2-AY77,krzywa!A:A,0)))),INDIRECT("krzywa!C"&MATCH(K77,krzywa!A:A,0))),4) ->  | P77: 0 | Q77: =-C77*ABS(D77-F77)*H77*I77*U77+'kompensacja międzyproduktowa'!X77*U77 ->  | R77: =ROUND(IF((B77-A77+1)>2,IF(C77=75,AVERAGE(INDIRECT("krzywa!D"&MATCH(K77-6,krzywa!A:A,0)&":D"&MATCH(K77-2,krzywa!A:A,0))),AVERAGE(INDIRECT("krzywa!D"&MATCH(A77-$A$2+BQ77,krzywa!A:A,0)&":D"&MATCH(B77-$A$2-AY77,krzywa!A:A,0)))),INDIRECT("krzywa!D"&MATCH(K77,krzywa!A:A,0))),4) ->  | S77: =VLOOKUP(A77,krzywa!L:N,3,1) -> 0 | T77: =VLOOKUP(B77,krzywa!L:N,3,1) -> 0 | U77: =IF('Kalkulator Depozytów'!$B$35=TRUE,1,(1+S77/100)*W77+(1+T77/100)*(1-W77)) -> 1 | V77: =IF(S77<>T77,VLOOKUP(A77,krzywa!L:M,2,1)) -> FALSE | W77: =IF(V77<>FALSE,IF(L77="BASE",(V77-A77+1)*24+J77,IF(L77="OFFPEAK",NETWORKDAYS(A77,V77,koszyki!$M$20:$M$898)*9+(N77)*24+J77,IF(L77="L-PEAK5",NETWORKDAYS(A77,V77,koszyki!$M$20:$M$898)*10,IF(L77="H-PEAK5",NETWORKDAYS(A77,V77,koszyki!$M$20:$M$898)*5,NETWORKDAYS(A77,V77,koszyki!$M$20:$M$898)*15))))/C77,1) -> 1 | AJ77: 2024-12-15 | AK77: 2024-12-14 | AL77: 2024-12-13 | AM77: 2024-12-12 | AO77: =NETWORKDAYS(AJ77,AJ77,koszyki!$M$20:$M$89) -> 0 | AP77: =NETWORKDAYS(AK77,AK77,koszyki!$M$20:$M$89) -> 0 | AQ77: =NETWORKDAYS(AL77,AL77,koszyki!$M$20:$M$89) -> 1 | AR77: =NETWORKDAYS(AM77,AM77,koszyki!$M$20:$M$89) -> 1 | AT77: 0 | AU77: 0 | AV77: 1 | AW77: 2 | AY77: 2 | BB77: 2024-12-09 | BC77: 2024-12-10 | BD77: 2024-12-11 | BE77: 2024-12-12 | BG77: =NETWORKDAYS(BB77,BB77,koszyki!$M$20:$M$89) -> 1 | BH77: =NETWORKDAYS(BC77,BC77,koszyki!$M$20:$M$89) -> 1 | BI77: =NETWORKDAYS(BD77,BD77,koszyki!$M$20:$M$89) -> 1 | BJ77: =NETWORKDAYS(BE77,BE77,koszyki!$M$20:$M$89) -> 1 | BL77: 1 | BM77: 2 | BN77: 3 | BO77: 4 | BQ77: 0
A78: 2024-12-16 | B78: 2024-12-22 | C78: 93 | D78: ='Kalkulator Depozytów'!M83 -> 0 | E78: ='Kalkulator Depozytów'!N83 -> 0 | F78: ='Kalkulator Depozytów'!O83 -> 0 | G78: ='Kalkulator Depozytów'!P83 -> 0 | H78: ='Kalkulator Depozytów'!Q83 -> 0 | I78: =ROUND(IF(OR(AND(K78>0,L78="L-PEAK5"),AND(K78>0,L78="H-PEAK5")),R78,IF(AND(K78>0,L78="PEAK5"),O78,IF(K78>0,IF(OR(L78="BASE"),AVERAGE(INDIRECT("krzywa!B"&MATCH(A78-$A$2,krzywa!A:A,0)&":B"&MATCH(B78-$A$2,krzywa!A:A,0),TRUE)),IF(OR(L78="OFFPEAK"),AVERAGE(INDIRECT("krzywa!F"&MATCH(A78-$A$2,krzywa!A:A,0)&":F"&MATCH(B78-$A$2,krzywa!A:A,0)))))))),4) ->  | J78: 0 | K78: 45648 | L78: OFFPEAK | M78: =NETWORKDAYS(A78,B78,koszyki!$M$20:$M$898) -> 5 | N78: =B78-A78+1- NETWORKDAYS(A78,B78,koszyki!$M$20:$M$898) -> 2 | O78: =ROUND(IF((B78-A78+1)>2,IF(C78=75,AVERAGE(INDIRECT("krzywa!C"&MATCH(K78-6,krzywa!A:A,0)&":C"&MATCH(K78-2,krzywa!A:A,0))),AVERAGE(INDIRECT("krzywa!C"&MATCH(A78-$A$2+BQ78,krzywa!A:A,0)&":C"&MATCH(B78-$A$2-AY78,krzywa!A:A,0)))),INDIRECT("krzywa!C"&MATCH(K78,krzywa!A:A,0))),4) ->  | P78: 0 | Q78: =-C78*ABS(D78-F78)*H78*I78*U78+'kompensacja międzyproduktowa'!X78*U78 ->  | R78: =ROUND(IF((B78-A78+1)>2,IF(C78=75,AVERAGE(INDIRECT("krzywa!D"&MATCH(K78-6,krzywa!A:A,0)&":D"&MATCH(K78-2,krzywa!A:A,0))),AVERAGE(INDIRECT("krzywa!D"&MATCH(A78-$A$2+BQ78,krzywa!A:A,0)&":D"&MATCH(B78-$A$2-AY78,krzywa!A:A,0)))),INDIRECT("krzywa!D"&MATCH(K78,krzywa!A:A,0))),4) ->  | S78: =VLOOKUP(A78,krzywa!L:N,3,1) -> 0 | T78: =VLOOKUP(B78,krzywa!L:N,3,1) -> 0 | U78: =IF('Kalkulator Depozytów'!$B$35=TRUE,1,(1+S78/100)*W78+(1+T78/100)*(1-W78)) -> 1 | V78: =IF(S78<>T78,VLOOKUP(A78,krzywa!L:M,2,1)) -> FALSE | W78: =IF(V78<>FALSE,IF(L78="BASE",(V78-A78+1)*24+J78,IF(L78="OFFPEAK",NETWORKDAYS(A78,V78,koszyki!$M$20:$M$898)*9+(N78)*24+J78,IF(L78="L-PEAK5",NETWORKDAYS(A78,V78,koszyki!$M$20:$M$898)*10,IF(L78="H-PEAK5",NETWORKDAYS(A78,V78,koszyki!$M$20:$M$898)*5,NETWORKDAYS(A78,V78,koszyki!$M$20:$M$898)*15))))/C78,1) -> 1 | AJ78: 2024-12-22 | AK78: 2024-12-21 | AL78: 2024-12-20 | AM78: 2024-12-19 | AO78: =NETWORKDAYS(AJ78,AJ78,koszyki!$M$20:$M$89) -> 0 | AP78: =NETWORKDAYS(AK78,AK78,koszyki!$M$20:$M$89) -> 0 | AQ78: =NETWORKDAYS(AL78,AL78,koszyki!$M$20:$M$89) -> 1 | AR78: =NETWORKDAYS(AM78,AM78,koszyki!$M$20:$M$89) -> 1 | AT78: 0 | AU78: 0 | AV78: 1 | AW78: 2 | AY78: 2 | BB78: 2024-12-16 | BC78: 2024-12-17 | BD78: 2024-12-18 | BE78: 2024-12-19 | BG78: =NETWORKDAYS(BB78,BB78,koszyki!$M$20:$M$89) -> 1 | BH78: =NETWORKDAYS(BC78,BC78,koszyki!$M$20:$M$89) -> 1 | BI78: =NETWORKDAYS(BD78,BD78,koszyki!$M$20:$M$89) -> 1 | BJ78: =NETWORKDAYS(BE78,BE78,koszyki!$M$20:$M$89) -> 1 | BL78: 1 | BM78: 2 | BN78: 3 | BO78: 4 | BQ78: 0
A79: 2024-12-23 | B79: 2024-12-29 | C79: 123 | D79: ='Kalkulator Depozytów'!M84 -> 0 | E79: ='Kalkulator Depozytów'!N84 -> 0 | F79: ='Kalkulator Depozytów'!O84 -> 0 | G79: ='Kalkulator Depozytów'!P84 -> 0 | H79: ='Kalkulator Depozytów'!Q84 -> 0 | I79: =ROUND(IF(OR(AND(K79>0,L79="L-PEAK5"),AND(K79>0,L79="H-PEAK5")),R79,IF(AND(K79>0,L79="PEAK5"),O79,IF(K79>0,IF(OR(L79="BASE"),AVERAGE(INDIRECT("krzywa!B"&MATCH(A79-$A$2,krzywa!A:A,0)&":B"&MATCH(B79-$A$2,krzywa!A:A,0),TRUE)),IF(OR(L79="OFFPEAK"),AVERAGE(INDIRECT("krzywa!F"&MATCH(A79-$A$2,krzywa!A:A,0)&":F"&MATCH(B79-$A$2,krzywa!A:A,0)))))))),4) ->  | J79: 0 | K79: 45655 | L79: OFFPEAK | M79: =NETWORKDAYS(A79,B79,koszyki!$M$20:$M$898) -> 3 | N79: =B79-A79+1- NETWORKDAYS(A79,B79,koszyki!$M$20:$M$898) -> 4 | O79: =ROUND(IF((B79-A79+1)>2,IF(C79=75,AVERAGE(INDIRECT("krzywa!C"&MATCH(K79-6,krzywa!A:A,0)&":C"&MATCH(K79-2,krzywa!A:A,0))),AVERAGE(INDIRECT("krzywa!C"&MATCH(A79-$A$2+BQ79,krzywa!A:A,0)&":C"&MATCH(B79-$A$2-AY79,krzywa!A:A,0)))),INDIRECT("krzywa!C"&MATCH(K79,krzywa!A:A,0))),4) ->  | P79: 0 | Q79: =-C79*ABS(D79-F79)*H79*I79*U79+'kompensacja międzyproduktowa'!X79*U79 ->  | R79: =ROUND(IF((B79-A79+1)>2,IF(C79=75,AVERAGE(INDIRECT("krzywa!D"&MATCH(K79-6,krzywa!A:A,0)&":D"&MATCH(K79-2,krzywa!A:A,0))),AVERAGE(INDIRECT("krzywa!D"&MATCH(A79-$A$2+BQ79,krzywa!A:A,0)&":D"&MATCH(B79-$A$2-AY79,krzywa!A:A,0)))),INDIRECT("krzywa!D"&MATCH(K79,krzywa!A:A,0))),4) ->  | S79: =VLOOKUP(A79,krzywa!L:N,3,1) -> 0 | T79: =VLOOKUP(B79,krzywa!L:N,3,1) -> 0 | U79: =IF('Kalkulator Depozytów'!$B$35=TRUE,1,(1+S79/100)*W79+(1+T79/100)*(1-W79)) -> 1 | V79: =IF(S79<>T79,VLOOKUP(A79,krzywa!L:M,2,1)) -> FALSE | W79: =IF(V79<>FALSE,IF(L79="BASE",(V79-A79+1)*24+J79,IF(L79="OFFPEAK",NETWORKDAYS(A79,V79,koszyki!$M$20:$M$898)*9+(N79)*24+J79,IF(L79="L-PEAK5",NETWORKDAYS(A79,V79,koszyki!$M$20:$M$898)*10,IF(L79="H-PEAK5",NETWORKDAYS(A79,V79,koszyki!$M$20:$M$898)*5,NETWORKDAYS(A79,V79,koszyki!$M$20:$M$898)*15))))/C79,1) -> 1 | AJ79: 2024-12-29 | AK79: 2024-12-28 | AL79: 2024-12-27 | AM79: 2024-12-26 | AO79: =NETWORKDAYS(AJ79,AJ79,koszyki!$M$20:$M$89) -> 0 | AP79: =NETWORKDAYS(AK79,AK79,koszyki!$M$20:$M$89) -> 0 | AQ79: =NETWORKDAYS(AL79,AL79,koszyki!$M$20:$M$89) -> 1 | AR79: =NETWORKDAYS(AM79,AM79,koszyki!$M$20:$M$89) -> 1 | AT79: 0 | AU79: 0 | AV79: 1 | AW79: 2 | AY79: 2 | BB79: 2024-12-23 | BC79: 2024-12-24 | BD79: 2024-12-25 | BE79: 2024-12-26 | BG79: =NETWORKDAYS(BB79,BB79,koszyki!$M$20:$M$89) -> 1 | BH79: =NETWORKDAYS(BC79,BC79,koszyki!$M$20:$M$89) -> 1 | BI79: =NETWORKDAYS(BD79,BD79,koszyki!$M$20:$M$89) -> 1 | BJ79: =NETWORKDAYS(BE79,BE79,koszyki!$M$20:$M$89) -> 1 | BL79: 1 | BM79: 2 | BN79: 3 | BO79: 4 | BQ79: 0
A80: 2024-12-30 | B80: 2024-12-31 | C80: 18 | D80: ='Kalkulator Depozytów'!M85 -> 0 | E80: ='Kalkulator Depozytów'!N85 -> 0 | F80: ='Kalkulator Depozytów'!O85 -> 0 | G80: ='Kalkulator Depozytów'!P85 -> 0 | H80: ='Kalkulator Depozytów'!Q85 -> 0 | I80: =ROUND(IF(OR(AND(K80>0,L80="L-PEAK5"),AND(K80>0,L80="H-PEAK5")),R80,IF(AND(K80>0,L80="PEAK5"),O80,IF(K80>0,IF(OR(L80="BASE"),AVERAGE(INDIRECT("krzywa!B"&MATCH(A80-$A$2,krzywa!A:A,0)&":B"&MATCH(B80-$A$2,krzywa!A:A,0),TRUE)),IF(OR(L80="OFFPEAK"),AVERAGE(INDIRECT("krzywa!F"&MATCH(A80-$A$2,krzywa!A:A,0)&":F"&MATCH(B80-$A$2,krzywa!A:A,0)))))))),4) ->  | J80: 0 | K80: 45657 | L80: OFFPEAK | M80: =NETWORKDAYS(A80,B80,koszyki!$M$20:$M$898) -> 2 | N80: =B80-A80+1- NETWORKDAYS(A80,B80,koszyki!$M$20:$M$898) -> 0 | O80: =ROUND(IF((B80-A80+1)>2,IF(C80=75,AVERAGE(INDIRECT("krzywa!C"&MATCH(K80-6,krzywa!A:A,0)&":C"&MATCH(K80-2,krzywa!A:A,0))),AVERAGE(INDIRECT("krzywa!C"&MATCH(A80-$A$2+BQ80,krzywa!A:A,0)&":C"&MATCH(B80-$A$2-AY80,krzywa!A:A,0)))),INDIRECT("krzywa!C"&MATCH(K80,krzywa!A:A,0))),4) ->  | P80: 0 | Q80: =-C80*ABS(D80-F80)*H80*I80*U80+'kompensacja międzyproduktowa'!X80*U80 ->  | R80: =ROUND(IF((B80-A80+1)>2,IF(C80=75,AVERAGE(INDIRECT("krzywa!D"&MATCH(K80-6,krzywa!A:A,0)&":D"&MATCH(K80-2,krzywa!A:A,0))),AVERAGE(INDIRECT("krzywa!D"&MATCH(A80-$A$2+BQ80,krzywa!A:A,0)&":D"&MATCH(B80-$A$2-AY80,krzywa!A:A,0)))),INDIRECT("krzywa!D"&MATCH(K80,krzywa!A:A,0))),4) ->  | S80: =VLOOKUP(A80,krzywa!L:N,3,1) -> 0 | T80: =VLOOKUP(B80,krzywa!L:N,3,1) -> 0 | U80: =IF('Kalkulator Depozytów'!$B$35=TRUE,1,(1+S80/100)*W80+(1+T80/100)*(1-W80)) -> 1 | V80: =IF(S80<>T80,VLOOKUP(A80,krzywa!L:M,2,1)) -> FALSE | W80: =IF(V80<>FALSE,IF(L80="BASE",(V80-A80+1)*24+J80,IF(L80="OFFPEAK",NETWORKDAYS(A80,V80,koszyki!$M$20:$M$898)*9+(N80)*24+J80,IF(L80="L-PEAK5",NETWORKDAYS(A80,V80,koszyki!$M$20:$M$898)*10,IF(L80="H-PEAK5",NETWORKDAYS(A80,V80,koszyki!$M$20:$M$898)*5,NETWORKDAYS(A80,V80,koszyki!$M$20:$M$898)*15))))/C80,1) -> 1 | AJ80: 2024-12-31 | AK80: 2024-12-30 | AL80: 2024-12-29 | AM80: 2024-12-28 | AO80: =NETWORKDAYS(AJ80,AJ80,koszyki!$M$20:$M$89) -> 1 | AP80: =NETWORKDAYS(AK80,AK80,koszyki!$M$20:$M$89) -> 1 | AQ80: =NETWORKDAYS(AL80,AL80,koszyki!$M$20:$M$89) -> 0 | AR80: =NETWORKDAYS(AM80,AM80,koszyki!$M$20:$M$89) -> 0 | AT80: 1 | AU80: 2 | AV80: 2 | AW80: 2 | AY80: 0 | BB80: 2024-12-30 | BC80: 2024-12-31 | BD80: 2025-01-01 | BE80: 2025-01-02 | BG80: =NETWORKDAYS(BB80,BB80,koszyki!$M$20:$M$89) -> 1 | BH80: =NETWORKDAYS(BC80,BC80,koszyki!$M$20:$M$89) -> 1 | BI80: =NETWORKDAYS(BD80,BD80,koszyki!$M$20:$M$89) -> 1 | BJ80: =NETWORKDAYS(BE80,BE80,koszyki!$M$20:$M$89) -> 1 | BL80: 1 | BM80: 2 | BN80: 3 | BO80: 4 | BQ80: 0
A81: 2025-01-01 | B81: 2025-01-05 | C81: 90 | D81: ='Kalkulator Depozytów'!M86 -> 0 | E81: ='Kalkulator Depozytów'!N86 -> 0 | F81: ='Kalkulator Depozytów'!O86 -> 0 | G81: ='Kalkulator Depozytów'!P86 -> 0 | H81: ='Kalkulator Depozytów'!Q86 -> 0 | I81: =ROUND(IF(OR(AND(K81>0,L81="L-PEAK5"),AND(K81>0,L81="H-PEAK5")),R81,IF(AND(K81>0,L81="PEAK5"),O81,IF(K81>0,IF(OR(L81="BASE"),AVERAGE(INDIRECT("krzywa!B"&MATCH(A81-$A$2,krzywa!A:A,0)&":B"&MATCH(B81-$A$2,krzywa!A:A,0),TRUE)),IF(OR(L81="OFFPEAK"),AVERAGE(INDIRECT("krzywa!F"&MATCH(A81-$A$2,krzywa!A:A,0)&":F"&MATCH(B81-$A$2,krzywa!A:A,0)))))))),4) ->  | J81: 0 | K81: 45662 | L81: OFFPEAK | M81: =NETWORKDAYS(A81,B81,koszyki!$M$20:$M$898) -> 2 | N81: =B81-A81+1- NETWORKDAYS(A81,B81,koszyki!$M$20:$M$898) -> 3 | O81: =ROUND(IF((B81-A81+1)>2,IF(C81=75,AVERAGE(INDIRECT("krzywa!C"&MATCH(K81-6,krzywa!A:A,0)&":C"&MATCH(K81-2,krzywa!A:A,0))),AVERAGE(INDIRECT("krzywa!C"&MATCH(A81-$A$2+BQ81,krzywa!A:A,0)&":C"&MATCH(B81-$A$2-AY81,krzywa!A:A,0)))),INDIRECT("krzywa!C"&MATCH(K81,krzywa!A:A,0))),4) ->  | P81: 0 | Q81: =-C81*ABS(D81-F81)*H81*I81*U81+'kompensacja międzyproduktowa'!X81*U81 ->  | R81: =ROUND(IF((B81-A81+1)>2,IF(C81=75,AVERAGE(INDIRECT("krzywa!D"&MATCH(K81-6,krzywa!A:A,0)&":D"&MATCH(K81-2,krzywa!A:A,0))),AVERAGE(INDIRECT("krzywa!D"&MATCH(A81-$A$2+BQ81,krzywa!A:A,0)&":D"&MATCH(B81-$A$2-AY81,krzywa!A:A,0)))),INDIRECT("krzywa!D"&MATCH(K81,krzywa!A:A,0))),4) ->  | S81: =VLOOKUP(A81,krzywa!L:N,3,1) -> 0 | T81: =VLOOKUP(B81,krzywa!L:N,3,1) -> 0 | U81: =IF('Kalkulator Depozytów'!$B$35=TRUE,1,(1+S81/100)*W81+(1+T81/100)*(1-W81)) -> 1 | V81: =IF(S81<>T81,VLOOKUP(A81,krzywa!L:M,2,1)) -> FALSE | W81: =IF(V81<>FALSE,IF(L81="BASE",(V81-A81+1)*24+J81,IF(L81="OFFPEAK",NETWORKDAYS(A81,V81,koszyki!$M$20:$M$898)*9+(N81)*24+J81,IF(L81="L-PEAK5",NETWORKDAYS(A81,V81,koszyki!$M$20:$M$898)*10,IF(L81="H-PEAK5",NETWORKDAYS(A81,V81,koszyki!$M$20:$M$898)*5,NETWORKDAYS(A81,V81,koszyki!$M$20:$M$898)*15))))/C81,1) -> 1 | AJ81: 2025-01-05 | AK81: 2025-01-04 | AL81: 2025-01-03 | AM81: 2025-01-02 | AO81: =NETWORKDAYS(AJ81,AJ81,koszyki!$M$20:$M$89) -> 0 | AP81: =NETWORKDAYS(AK81,AK81,koszyki!$M$20:$M$89) -> 0 | AQ81: =NETWORKDAYS(AL81,AL81,koszyki!$M$20:$M$89) -> 1 | AR81: =NETWORKDAYS(AM81,AM81,koszyki!$M$20:$M$89) -> 1 | AT81: 0 | AU81: 0 | AV81: 1 | AW81: 2 | AY81: 2 | BB81: 2025-01-01 | BC81: 2025-01-02 | BD81: 2025-01-03 | BE81: 2025-01-04 | BG81: =NETWORKDAYS(BB81,BB81,koszyki!$M$20:$M$89) -> 1 | BH81: =NETWORKDAYS(BC81,BC81,koszyki!$M$20:$M$89) -> 1 | BI81: =NETWORKDAYS(BD81,BD81,koszyki!$M$20:$M$89) -> 1 | BJ81: =NETWORKDAYS(BE81,BE81,koszyki!$M$20:$M$89) -> 0 | BL81: 1 | BM81: 2 | BN81: 3 | BO81: 3 | BQ81: 0
A82: 2025-01-06 | B82: 2025-01-31 | C82: 339 | D82: ='Kalkulator Depozytów'!M87 -> 0 | E82: ='Kalkulator Depozytów'!N87 -> 0 | F82: ='Kalkulator Depozytów'!O87 -> 0 | G82: ='Kalkulator Depozytów'!P87 -> 0 | H82: ='Kalkulator Depozytów'!Q87 -> 0 | I82: =ROUND(IF(OR(AND(K82>0,L82="L-PEAK5"),AND(K82>0,L82="H-PEAK5")),R82,IF(AND(K82>0,L82="PEAK5"),O82,IF(K82>0,IF(OR(L82="BASE"),AVERAGE(INDIRECT("krzywa!B"&MATCH(A82-$A$2,krzywa!A:A,0)&":B"&MATCH(B82-$A$2,krzywa!A:A,0),TRUE)),IF(OR(L82="OFFPEAK"),AVERAGE(INDIRECT("krzywa!F"&MATCH(A82-$A$2,krzywa!A:A,0)&":F"&MATCH(B82-$A$2,krzywa!A:A,0)))))))),4) ->  | J82: 0 | K82: 45688 | L82: OFFPEAK | M82: =NETWORKDAYS(A82,B82,koszyki!$M$20:$M$898) -> 19 | N82: =B82-A82+1- NETWORKDAYS(A82,B82,koszyki!$M$20:$M$898) -> 7 | O82: =ROUND(IF((B82-A82+1)>2,IF(C82=75,AVERAGE(INDIRECT("krzywa!C"&MATCH(K82-6,krzywa!A:A,0)&":C"&MATCH(K82-2,krzywa!A:A,0))),AVERAGE(INDIRECT("krzywa!C"&MATCH(A82-$A$2+BQ82,krzywa!A:A,0)&":C"&MATCH(B82-$A$2-AY82,krzywa!A:A,0)))),INDIRECT("krzywa!C"&MATCH(K82,krzywa!A:A,0))),4) ->  | P82: 0 | Q82: =-C82*ABS(D82-F82)*H82*I82*U82+'kompensacja międzyproduktowa'!X82*U82 ->  | R82: =ROUND(IF((B82-A82+1)>2,IF(C82=75,AVERAGE(INDIRECT("krzywa!D"&MATCH(K82-6,krzywa!A:A,0)&":D"&MATCH(K82-2,krzywa!A:A,0))),AVERAGE(INDIRECT("krzywa!D"&MATCH(A82-$A$2+BQ82,krzywa!A:A,0)&":D"&MATCH(B82-$A$2-AY82,krzywa!A:A,0)))),INDIRECT("krzywa!D"&MATCH(K82,krzywa!A:A,0))),4) ->  | S82: =VLOOKUP(A82,krzywa!L:N,3,1) -> 0 | T82: =VLOOKUP(B82,krzywa!L:N,3,1) -> 0 | U82: =IF('Kalkulator Depozytów'!$B$35=TRUE,1,(1+S82/100)*W82+(1+T82/100)*(1-W82)) -> 1 | V82: =IF(S82<>T82,VLOOKUP(A82,krzywa!L:M,2,1)) -> FALSE | W82: =IF(V82<>FALSE,IF(L82="BASE",(V82-A82+1)*24+J82,IF(L82="OFFPEAK",NETWORKDAYS(A82,V82,koszyki!$M$20:$M$898)*9+(N82)*24+J82,IF(L82="L-PEAK5",NETWORKDAYS(A82,V82,koszyki!$M$20:$M$898)*10,IF(L82="H-PEAK5",NETWORKDAYS(A82,V82,koszyki!$M$20:$M$898)*5,NETWORKDAYS(A82,V82,koszyki!$M$20:$M$898)*15))))/C82,1) -> 1 | AJ82: 2025-01-31 | AK82: 2025-01-30 | AL82: 2025-01-29 | AM82: 2025-01-28 | AO82: =NETWORKDAYS(AJ82,AJ82,koszyki!$M$20:$M$89) -> 1 | AP82: =NETWORKDAYS(AK82,AK82,koszyki!$M$20:$M$89) -> 1 | AQ82: =NETWORKDAYS(AL82,AL82,koszyki!$M$20:$M$89) -> 1 | AR82: =NETWORKDAYS(AM82,AM82,koszyki!$M$20:$M$89) -> 1 | AT82: 1 | AU82: 2 | AV82: 3 | AW82: 4 | AY82: 0 | BB82: 2025-01-06 | BC82: 2025-01-07 | BD82: 2025-01-08 | BE82: 2025-01-09 | BG82: =NETWORKDAYS(BB82,BB82,koszyki!$M$20:$M$89) -> 1 | BH82: =NETWORKDAYS(BC82,BC82,koszyki!$M$20:$M$89) -> 1 | BI82: =NETWORKDAYS(BD82,BD82,koszyki!$M$20:$M$89) -> 1 | BJ82: =NETWORKDAYS(BE82,BE82,koszyki!$M$20:$M$89) -> 1 | BL82: 1 | BM82: 2 | BN82: 3 | BO82: 4 | BQ82: 0
A83: 2025-02-01 | B83: 2025-02-28 | C83: 372 | D83: ='Kalkulator Depozytów'!M88 -> 0 | E83: ='Kalkulator Depozytów'!N88 -> 0 | F83: ='Kalkulator Depozytów'!O88 -> 0 | G83: ='Kalkulator Depozytów'!P88 -> 0 | H83: ='Kalkulator Depozytów'!Q88 -> 0 | I83: =ROUND(IF(OR(AND(K83>0,L83="L-PEAK5"),AND(K83>0,L83="H-PEAK5")),R83,IF(AND(K83>0,L83="PEAK5"),O83,IF(K83>0,IF(OR(L83="BASE"),AVERAGE(INDIRECT("krzywa!B"&MATCH(A83-$A$2,krzywa!A:A,0)&":B"&MATCH(B83-$A$2,krzywa!A:A,0),TRUE)),IF(OR(L83="OFFPEAK"),AVERAGE(INDIRECT("krzywa!F"&MATCH(A83-$A$2,krzywa!A:A,0)&":F"&MATCH(B83-$A$2,krzywa!A:A,0)))))))),4) ->  | J83: 0 | K83: 45716 | L83: OFFPEAK | M83: =NETWORKDAYS(A83,B83,koszyki!$M$20:$M$898) -> 20 | N83: =B83-A83+1- NETWORKDAYS(A83,B83,koszyki!$M$20:$M$898) -> 8 | O83: =ROUND(IF((B83-A83+1)>2,IF(C83=75,AVERAGE(INDIRECT("krzywa!C"&MATCH(K83-6,krzywa!A:A,0)&":C"&MATCH(K83-2,krzywa!A:A,0))),AVERAGE(INDIRECT("krzywa!C"&MATCH(A83-$A$2+BQ83,krzywa!A:A,0)&":C"&MATCH(B83-$A$2-AY83,krzywa!A:A,0)))),INDIRECT("krzywa!C"&MATCH(K83,krzywa!A:A,0))),4) ->  | P83: 0 | Q83: =-C83*ABS(D83-F83)*H83*I83*U83+'kompensacja międzyproduktowa'!X83*U83 ->  | R83: =ROUND(IF((B83-A83+1)>2,IF(C83=75,AVERAGE(INDIRECT("krzywa!D"&MATCH(K83-6,krzywa!A:A,0)&":D"&MATCH(K83-2,krzywa!A:A,0))),AVERAGE(INDIRECT("krzywa!D"&MATCH(A83-$A$2+BQ83,krzywa!A:A,0)&":D"&MATCH(B83-$A$2-AY83,krzywa!A:A,0)))),INDIRECT("krzywa!D"&MATCH(K83,krzywa!A:A,0))),4) ->  | S83: =VLOOKUP(A83,krzywa!L:N,3,1) -> 0 | T83: =VLOOKUP(B83,krzywa!L:N,3,1) -> 0 | U83: =IF('Kalkulator Depozytów'!$B$35=TRUE,1,(1+S83/100)*W83+(1+T83/100)*(1-W83)) -> 1 | V83: =IF(S83<>T83,VLOOKUP(A83,krzywa!L:M,2,1)) -> FALSE | W83: =IF(V83<>FALSE,IF(L83="BASE",(V83-A83+1)*24+J83,IF(L83="OFFPEAK",NETWORKDAYS(A83,V83,koszyki!$M$20:$M$898)*9+(N83)*24+J83,IF(L83="L-PEAK5",NETWORKDAYS(A83,V83,koszyki!$M$20:$M$898)*10,IF(L83="H-PEAK5",NETWORKDAYS(A83,V83,koszyki!$M$20:$M$898)*5,NETWORKDAYS(A83,V83,koszyki!$M$20:$M$898)*15))))/C83,1) -> 1 | AJ83: 2025-02-28 | AK83: 2025-02-27 | AL83: 2025-02-26 | AM83: 2025-02-25 | AO83: =NETWORKDAYS(AJ83,AJ83,koszyki!$M$20:$M$89) -> 1 | AP83: =NETWORKDAYS(AK83,AK83,koszyki!$M$20:$M$89) -> 1 | AQ83: =NETWORKDAYS(AL83,AL83,koszyki!$M$20:$M$89) -> 1 | AR83: =NETWORKDAYS(AM83,AM83,koszyki!$M$20:$M$89) -> 1 | AT83: 1 | AU83: 2 | AV83: 3 | AW83: 4 | AY83: 0 | BB83: 2025-02-01 | BC83: 2025-02-02 | BD83: 2025-02-03 | BE83: 2025-02-04 | BG83: =NETWORKDAYS(BB83,BB83,koszyki!$M$20:$M$89) -> 0 | BH83: =NETWORKDAYS(BC83,BC83,koszyki!$M$20:$M$89) -> 0 | BI83: =NETWORKDAYS(BD83,BD83,koszyki!$M$20:$M$89) -> 1 | BJ83: =NETWORKDAYS(BE83,BE83,koszyki!$M$20:$M$89) -> 1 | BL83: 0 | BM83: 0 | BN83: 1 | BO83: 2 | BQ83: 2
A84: 2025-03-01 | B84: 2025-03-31 | C84: 428 | D84: ='Kalkulator Depozytów'!M89 -> 0 | E84: ='Kalkulator Depozytów'!N89 -> 0 | F84: ='Kalkulator Depozytów'!O89 -> 0 | G84: ='Kalkulator Depozytów'!P89 -> 0 | H84: ='Kalkulator Depozytów'!Q89 -> 0 | I84: =ROUND(IF(OR(AND(K84>0,L84="L-PEAK5"),AND(K84>0,L84="H-PEAK5")),R84,IF(AND(K84>0,L84="PEAK5"),O84,IF(K84>0,IF(OR(L84="BASE"),AVERAGE(INDIRECT("krzywa!B"&MATCH(A84-$A$2,krzywa!A:A,0)&":B"&MATCH(B84-$A$2,krzywa!A:A,0),TRUE)),IF(OR(L84="OFFPEAK"),AVERAGE(INDIRECT("krzywa!F"&MATCH(A84-$A$2,krzywa!A:A,0)&":F"&MATCH(B84-$A$2,krzywa!A:A,0)))))))),4) ->  | J84: -1 | K84: 45747 | L84: OFFPEAK | M84: =NETWORKDAYS(A84,B84,koszyki!$M$20:$M$898) -> 21 | N84: =B84-A84+1- NETWORKDAYS(A84,B84,koszyki!$M$20:$M$898) -> 10 | O84: =ROUND(IF((B84-A84+1)>2,IF(C84=75,AVERAGE(INDIRECT("krzywa!C"&MATCH(K84-6,krzywa!A:A,0)&":C"&MATCH(K84-2,krzywa!A:A,0))),AVERAGE(INDIRECT("krzywa!C"&MATCH(A84-$A$2+BQ84,krzywa!A:A,0)&":C"&MATCH(B84-$A$2-AY84,krzywa!A:A,0)))),INDIRECT("krzywa!C"&MATCH(K84,krzywa!A:A,0))),4) ->  | P84: 0 | Q84: =-C84*ABS(D84-F84)*H84*I84*U84+'kompensacja międzyproduktowa'!X84*U84 ->  | R84: =ROUND(IF((B84-A84+1)>2,IF(C84=75,AVERAGE(INDIRECT("krzywa!D"&MATCH(K84-6,krzywa!A:A,0)&":D"&MATCH(K84-2,krzywa!A:A,0))),AVERAGE(INDIRECT("krzywa!D"&MATCH(A84-$A$2+BQ84,krzywa!A:A,0)&":D"&MATCH(B84-$A$2-AY84,krzywa!A:A,0)))),INDIRECT("krzywa!D"&MATCH(K84,krzywa!A:A,0))),4) ->  | S84: =VLOOKUP(A84,krzywa!L:N,3,1) -> 0 | T84: =VLOOKUP(B84,krzywa!L:N,3,1) -> 0 | U84: =IF('Kalkulator Depozytów'!$B$35=TRUE,1,(1+S84/100)*W84+(1+T84/100)*(1-W84)) -> 1 | V84: =IF(S84<>T84,VLOOKUP(A84,krzywa!L:M,2,1)) -> FALSE | W84: =IF(V84<>FALSE,IF(L84="BASE",(V84-A84+1)*24+J84,IF(L84="OFFPEAK",NETWORKDAYS(A84,V84,koszyki!$M$20:$M$898)*9+(N84)*24+J84,IF(L84="L-PEAK5",NETWORKDAYS(A84,V84,koszyki!$M$20:$M$898)*10,IF(L84="H-PEAK5",NETWORKDAYS(A84,V84,koszyki!$M$20:$M$898)*5,NETWORKDAYS(A84,V84,koszyki!$M$20:$M$898)*15))))/C84,1) -> 1 | AJ84: 2025-03-31 | AK84: 2025-03-30 | AL84: 2025-03-29 | AM84: 2025-03-28 | AO84: =NETWORKDAYS(AJ84,AJ84,koszyki!$M$20:$M$89) -> 1 | AP84: =NETWORKDAYS(AK84,AK84,koszyki!$M$20:$M$89) -> 0 | AQ84: =NETWORKDAYS(AL84,AL84,koszyki!$M$20:$M$89) -> 0 | AR84: =NETWORKDAYS(AM84,AM84,koszyki!$M$20:$M$89) -> 1 | AT84: 1 | AU84: 1 | AV84: 1 | AW84: 2 | AY84: 0 | BB84: 2025-03-01 | BC84: 2025-03-02 | BD84: 2025-03-03 | BE84: 2025-03-04 | BG84: =NETWORKDAYS(BB84,BB84,koszyki!$M$20:$M$89) -> 0 | BH84: =NETWORKDAYS(BC84,BC84,koszyki!$M$20:$M$89) -> 0 | BI84: =NETWORKDAYS(BD84,BD84,koszyki!$M$20:$M$89) -> 1 | BJ84: =NETWORKDAYS(BE84,BE84,koszyki!$M$20:$M$89) -> 1 | BL84: 0 | BM84: 0 | BN84: 1 | BO84: 2 | BQ84: 2
A85: 2025-04-01 | B85: 2025-04-30 | C85: 405 | D85: ='Kalkulator Depozytów'!M90 -> 0 | E85: ='Kalkulator Depozytów'!N90 -> 0 | F85: ='Kalkulator Depozytów'!O90 -> 0 | G85: ='Kalkulator Depozytów'!P90 -> 0 | H85: ='Kalkulator Depozytów'!Q90 -> 0 | I85: =ROUND(IF(OR(AND(K85>0,L85="L-PEAK5"),AND(K85>0,L85="H-PEAK5")),R85,IF(AND(K85>0,L85="PEAK5"),O85,IF(K85>0,IF(OR(L85="BASE"),AVERAGE(INDIRECT("krzywa!B"&MATCH(A85-$A$2,krzywa!A:A,0)&":B"&MATCH(B85-$A$2,krzywa!A:A,0),TRUE)),IF(OR(L85="OFFPEAK"),AVERAGE(INDIRECT("krzywa!F"&MATCH(A85-$A$2,krzywa!A:A,0)&":F"&MATCH(B85-$A$2,krzywa!A:A,0)))))))),4) ->  | J85: 0 | K85: 45777 | L85: OFFPEAK | M85: =NETWORKDAYS(A85,B85,koszyki!$M$20:$M$898) -> 21 | N85: =B85-A85+1- NETWORKDAYS(A85,B85,koszyki!$M$20:$M$898) -> 9 | O85: =ROUND(IF((B85-A85+1)>2,IF(C85=75,AVERAGE(INDIRECT("krzywa!C"&MATCH(K85-6,krzywa!A:A,0)&":C"&MATCH(K85-2,krzywa!A:A,0))),AVERAGE(INDIRECT("krzywa!C"&MATCH(A85-$A$2+BQ85,krzywa!A:A,0)&":C"&MATCH(B85-$A$2-AY85,krzywa!A:A,0)))),INDIRECT("krzywa!C"&MATCH(K85,krzywa!A:A,0))),4) ->  | P85: 0 | Q85: =-C85*ABS(D85-F85)*H85*I85*U85+'kompensacja międzyproduktowa'!X85*U85 ->  | R85: =ROUND(IF((B85-A85+1)>2,IF(C85=75,AVERAGE(INDIRECT("krzywa!D"&MATCH(K85-6,krzywa!A:A,0)&":D"&MATCH(K85-2,krzywa!A:A,0))),AVERAGE(INDIRECT("krzywa!D"&MATCH(A85-$A$2+BQ85,krzywa!A:A,0)&":D"&MATCH(B85-$A$2-AY85,krzywa!A:A,0)))),INDIRECT("krzywa!D"&MATCH(K85,krzywa!A:A,0))),4) ->  | S85: =VLOOKUP(A85,krzywa!L:N,3,1) -> 0 | T85: =VLOOKUP(B85,krzywa!L:N,3,1) -> 0 | U85: =IF('Kalkulator Depozytów'!$B$35=TRUE,1,(1+S85/100)*W85+(1+T85/100)*(1-W85)) -> 1 | V85: =IF(S85<>T85,VLOOKUP(A85,krzywa!L:M,2,1)) -> FALSE | W85: =IF(V85<>FALSE,IF(L85="BASE",(V85-A85+1)*24+J85,IF(L85="OFFPEAK",NETWORKDAYS(A85,V85,koszyki!$M$20:$M$898)*9+(N85)*24+J85,IF(L85="L-PEAK5",NETWORKDAYS(A85,V85,koszyki!$M$20:$M$898)*10,IF(L85="H-PEAK5",NETWORKDAYS(A85,V85,koszyki!$M$20:$M$898)*5,NETWORKDAYS(A85,V85,koszyki!$M$20:$M$898)*15))))/C85,1) -> 1 | AJ85: 2025-04-30 | AK85: 2025-04-29 | AL85: 2025-04-28 | AM85: 2025-04-27 | AO85: =NETWORKDAYS(AJ85,AJ85,koszyki!$M$20:$M$89) -> 1 | AP85: =NETWORKDAYS(AK85,AK85,koszyki!$M$20:$M$89) -> 1 | AQ85: =NETWORKDAYS(AL85,AL85,koszyki!$M$20:$M$89) -> 1 | AR85: =NETWORKDAYS(AM85,AM85,koszyki!$M$20:$M$89) -> 0 | AT85: 1 | AU85: 2 | AV85: 3 | AW85: 3 | AY85: 0 | BB85: 2025-04-01 | BC85: 2025-04-02 | BD85: 2025-04-03 | BE85: 2025-04-04 | BG85: =NETWORKDAYS(BB85,BB85,koszyki!$M$20:$M$89) -> 1 | BH85: =NETWORKDAYS(BC85,BC85,koszyki!$M$20:$M$89) -> 1 | BI85: =NETWORKDAYS(BD85,BD85,koszyki!$M$20:$M$89) -> 1 | BJ85: =NETWORKDAYS(BE85,BE85,koszyki!$M$20:$M$89) -> 1 | BL85: 1 | BM85: 2 | BN85: 3 | BO85: 4 | BQ85: 0
A86: 2025-05-01 | B86: 2025-05-31 | C86: 429 | D86: ='Kalkulator Depozytów'!M91 -> 0 | E86: ='Kalkulator Depozytów'!N91 -> 0 | F86: ='Kalkulator Depozytów'!O91 -> 0 | G86: ='Kalkulator Depozytów'!P91 -> 0 | H86: ='Kalkulator Depozytów'!Q91 -> 0 | I86: =ROUND(IF(OR(AND(K86>0,L86="L-PEAK5"),AND(K86>0,L86="H-PEAK5")),R86,IF(AND(K86>0,L86="PEAK5"),O86,IF(K86>0,IF(OR(L86="BASE"),AVERAGE(INDIRECT("krzywa!B"&MATCH(A86-$A$2,krzywa!A:A,0)&":B"&MATCH(B86-$A$2,krzywa!A:A,0),TRUE)),IF(OR(L86="OFFPEAK"),AVERAGE(INDIRECT("krzywa!F"&MATCH(A86-$A$2,krzywa!A:A,0)&":F"&MATCH(B86-$A$2,krzywa!A:A,0)))))))),4) ->  | J86: 0 | K86: 45808 | L86: OFFPEAK | M86: =NETWORKDAYS(A86,B86,koszyki!$M$20:$M$898) -> 21 | N86: =B86-A86+1- NETWORKDAYS(A86,B86,koszyki!$M$20:$M$898) -> 10 | O86: =ROUND(IF((B86-A86+1)>2,IF(C86=75,AVERAGE(INDIRECT("krzywa!C"&MATCH(K86-6,krzywa!A:A,0)&":C"&MATCH(K86-2,krzywa!A:A,0))),AVERAGE(INDIRECT("krzywa!C"&MATCH(A86-$A$2+BQ86,krzywa!A:A,0)&":C"&MATCH(B86-$A$2-AY86,krzywa!A:A,0)))),INDIRECT("krzywa!C"&MATCH(K86,krzywa!A:A,0))),4) ->  | P86: 0 | Q86: =-C86*ABS(D86-F86)*H86*I86*U86+'kompensacja międzyproduktowa'!X86*U86 ->  | R86: =ROUND(IF((B86-A86+1)>2,IF(C86=75,AVERAGE(INDIRECT("krzywa!D"&MATCH(K86-6,krzywa!A:A,0)&":D"&MATCH(K86-2,krzywa!A:A,0))),AVERAGE(INDIRECT("krzywa!D"&MATCH(A86-$A$2+BQ86,krzywa!A:A,0)&":D"&MATCH(B86-$A$2-AY86,krzywa!A:A,0)))),INDIRECT("krzywa!D"&MATCH(K86,krzywa!A:A,0))),4) ->  | S86: =VLOOKUP(A86,krzywa!L:N,3,1) -> 0 | T86: =VLOOKUP(B86,krzywa!L:N,3,1) -> 0 | U86: =IF('Kalkulator Depozytów'!$B$35=TRUE,1,(1+S86/100)*W86+(1+T86/100)*(1-W86)) -> 1 | V86: =IF(S86<>T86,VLOOKUP(A86,krzywa!L:M,2,1)) -> FALSE | W86: =IF(V86<>FALSE,IF(L86="BASE",(V86-A86+1)*24+J86,IF(L86="OFFPEAK",NETWORKDAYS(A86,V86,koszyki!$M$20:$M$898)*9+(N86)*24+J86,IF(L86="L-PEAK5",NETWORKDAYS(A86,V86,koszyki!$M$20:$M$898)*10,IF(L86="H-PEAK5",NETWORKDAYS(A86,V86,koszyki!$M$20:$M$898)*5,NETWORKDAYS(A86,V86,koszyki!$M$20:$M$898)*15))))/C86,1) -> 1 | AJ86: 2025-05-31 | AK86: 2025-05-30 | AL86: 2025-05-29 | AM86: 2025-05-28 | AO86: =NETWORKDAYS(AJ86,AJ86,koszyki!$M$20:$M$89) -> 0 | AP86: =NETWORKDAYS(AK86,AK86,koszyki!$M$20:$M$89) -> 1 | AQ86: =NETWORKDAYS(AL86,AL86,koszyki!$M$20:$M$89) -> 1 | AR86: =NETWORKDAYS(AM86,AM86,koszyki!$M$20:$M$89) -> 1 | AT86: 0 | AU86: 1 | AV86: 2 | AW86: 3 | AY86: 1 | BB86: 2025-05-01 | BC86: 2025-05-02 | BD86: 2025-05-03 | BE86: 2025-05-04 | BG86: =NETWORKDAYS(BB86,BB86,koszyki!$M$20:$M$89) -> 1 | BH86: =NETWORKDAYS(BC86,BC86,koszyki!$M$20:$M$89) -> 1 | BI86: =NETWORKDAYS(BD86,BD86,koszyki!$M$20:$M$89) -> 0 | BJ86: =NETWORKDAYS(BE86,BE86,koszyki!$M$20:$M$89) -> 0 | BL86: 1 | BM86: 2 | BN86: 2 | BO86: 2 | BQ86: 0
A87: 2025-06-01 | B87: 2025-06-30 | C87: 420 | D87: ='Kalkulator Depozytów'!M92 -> 0 | E87: ='Kalkulator Depozytów'!N92 -> 0 | F87: ='Kalkulator Depozytów'!O92 -> 0 | G87: ='Kalkulator Depozytów'!P92 -> 0 | H87: ='Kalkulator Depozytów'!Q92 -> 0 | I87: =ROUND(IF(OR(AND(K87>0,L87="L-PEAK5"),AND(K87>0,L87="H-PEAK5")),R87,IF(AND(K87>0,L87="PEAK5"),O87,IF(K87>0,IF(OR(L87="BASE"),AVERAGE(INDIRECT("krzywa!B"&MATCH(A87-$A$2,krzywa!A:A,0)&":B"&MATCH(B87-$A$2,krzywa!A:A,0),TRUE)),IF(OR(L87="OFFPEAK"),AVERAGE(INDIRECT("krzywa!F"&MATCH(A87-$A$2,krzywa!A:A,0)&":F"&MATCH(B87-$A$2,krzywa!A:A,0)))))))),4) ->  | J87: 0 | K87: 45838 | L87: OFFPEAK | M87: =NETWORKDAYS(A87,B87,koszyki!$M$20:$M$898) -> 20 | N87: =B87-A87+1- NETWORKDAYS(A87,B87,koszyki!$M$20:$M$898) -> 10 | O87: =ROUND(IF((B87-A87+1)>2,IF(C87=75,AVERAGE(INDIRECT("krzywa!C"&MATCH(K87-6,krzywa!A:A,0)&":C"&MATCH(K87-2,krzywa!A:A,0))),AVERAGE(INDIRECT("krzywa!C"&MATCH(A87-$A$2+BQ87,krzywa!A:A,0)&":C"&MATCH(B87-$A$2-AY87,krzywa!A:A,0)))),INDIRECT("krzywa!C"&MATCH(K87,krzywa!A:A,0))),4) ->  | P87: 0 | Q87: =-C87*ABS(D87-F87)*H87*I87*U87+'kompensacja międzyproduktowa'!X87*U87 ->  | R87: =ROUND(IF((B87-A87+1)>2,IF(C87=75,AVERAGE(INDIRECT("krzywa!D"&MATCH(K87-6,krzywa!A:A,0)&":D"&MATCH(K87-2,krzywa!A:A,0))),AVERAGE(INDIRECT("krzywa!D"&MATCH(A87-$A$2+BQ87,krzywa!A:A,0)&":D"&MATCH(B87-$A$2-AY87,krzywa!A:A,0)))),INDIRECT("krzywa!D"&MATCH(K87,krzywa!A:A,0))),4) ->  | S87: =VLOOKUP(A87,krzywa!L:N,3,1) -> 0 | T87: =VLOOKUP(B87,krzywa!L:N,3,1) -> 0 | U87: =IF('Kalkulator Depozytów'!$B$35=TRUE,1,(1+S87/100)*W87+(1+T87/100)*(1-W87)) -> 1 | V87: =IF(S87<>T87,VLOOKUP(A87,krzywa!L:M,2,1)) -> FALSE | W87: =IF(V87<>FALSE,IF(L87="BASE",(V87-A87+1)*24+J87,IF(L87="OFFPEAK",NETWORKDAYS(A87,V87,koszyki!$M$20:$M$898)*9+(N87)*24+J87,IF(L87="L-PEAK5",NETWORKDAYS(A87,V87,koszyki!$M$20:$M$898)*10,IF(L87="H-PEAK5",NETWORKDAYS(A87,V87,koszyki!$M$20:$M$898)*5,NETWORKDAYS(A87,V87,koszyki!$M$20:$M$898)*15))))/C87,1) -> 1 | AJ87: 2025-06-30 | AK87: 2025-06-29 | AL87: 2025-06-28 | AM87: 2025-06-27 | AO87: =NETWORKDAYS(AJ87,AJ87,koszyki!$M$20:$M$89) -> 1 | AP87: =NETWORKDAYS(AK87,AK87,koszyki!$M$20:$M$89) -> 0 | AQ87: =NETWORKDAYS(AL87,AL87,koszyki!$M$20:$M$89) -> 0 | AR87: =NETWORKDAYS(AM87,AM87,koszyki!$M$20:$M$89) -> 1 | AT87: 1 | AU87: 1 | AV87: 1 | AW87: 2 | AY87: 0 | BB87: 2025-06-01 | BC87: 2025-06-02 | BD87: 2025-06-03 | BE87: 2025-06-04 | BG87: =NETWORKDAYS(BB87,BB87,koszyki!$M$20:$M$89) -> 0 | BH87: =NETWORKDAYS(BC87,BC87,koszyki!$M$20:$M$89) -> 1 | BI87: =NETWORKDAYS(BD87,BD87,koszyki!$M$20:$M$89) -> 1 | BJ87: =NETWORKDAYS(BE87,BE87,koszyki!$M$20:$M$89) -> 1 | BL87: 0 | BM87: 1 | BN87: 2 | BO87: 3 | BQ87: 1
A88: 2025-07-01 | B88: 2025-09-30 | C88: 1233 | D88: ='Kalkulator Depozytów'!M93 -> 0 | E88: ='Kalkulator Depozytów'!N93 -> 0 | F88: ='Kalkulator Depozytów'!O93 -> 0 | G88: ='Kalkulator Depozytów'!P93 -> 0 | H88: ='Kalkulator Depozytów'!Q93 -> 0 | I88: =ROUND(IF(OR(AND(K88>0,L88="L-PEAK5"),AND(K88>0,L88="H-PEAK5")),R88,IF(AND(K88>0,L88="PEAK5"),O88,IF(K88>0,IF(OR(L88="BASE"),AVERAGE(INDIRECT("krzywa!B"&MATCH(A88-$A$2,krzywa!A:A,0)&":B"&MATCH(B88-$A$2,krzywa!A:A,0),TRUE)),IF(OR(L88="OFFPEAK"),AVERAGE(INDIRECT("krzywa!F"&MATCH(A88-$A$2,krzywa!A:A,0)&":F"&MATCH(B88-$A$2,krzywa!A:A,0)))))))),4) ->  | J88: 0 | K88: 45930 | L88: OFFPEAK | M88: =NETWORKDAYS(A88,B88,koszyki!$M$20:$M$898) -> 65 | N88: =B88-A88+1- NETWORKDAYS(A88,B88,koszyki!$M$20:$M$898) -> 27 | O88: =ROUND(IF((B88-A88+1)>2,IF(C88=75,AVERAGE(INDIRECT("krzywa!C"&MATCH(K88-6,krzywa!A:A,0)&":C"&MATCH(K88-2,krzywa!A:A,0))),AVERAGE(INDIRECT("krzywa!C"&MATCH(A88-$A$2+BQ88,krzywa!A:A,0)&":C"&MATCH(B88-$A$2-AY88,krzywa!A:A,0)))),INDIRECT("krzywa!C"&MATCH(K88,krzywa!A:A,0))),4) ->  | P88: 0 | Q88: =-C88*ABS(D88-F88)*H88*I88*U88+'kompensacja międzyproduktowa'!X88*U88 ->  | R88: =ROUND(IF((B88-A88+1)>2,IF(C88=75,AVERAGE(INDIRECT("krzywa!D"&MATCH(K88-6,krzywa!A:A,0)&":D"&MATCH(K88-2,krzywa!A:A,0))),AVERAGE(INDIRECT("krzywa!D"&MATCH(A88-$A$2+BQ88,krzywa!A:A,0)&":D"&MATCH(B88-$A$2-AY88,krzywa!A:A,0)))),INDIRECT("krzywa!D"&MATCH(K88,krzywa!A:A,0))),4) ->  | S88: =VLOOKUP(A88,krzywa!L:N,3,1) -> 0 | T88: =VLOOKUP(B88,krzywa!L:N,3,1) -> 0 | U88: =IF('Kalkulator Depozytów'!$B$35=TRUE,1,(1+S88/100)*W88+(1+T88/100)*(1-W88)) -> 1 | V88: =IF(S88<>T88,VLOOKUP(A88,krzywa!L:M,2,1)) -> FALSE | W88: =IF(V88<>FALSE,IF(L88="BASE",(V88-A88+1)*24+J88,IF(L88="OFFPEAK",NETWORKDAYS(A88,V88,koszyki!$M$20:$M$898)*9+(N88)*24+J88,IF(L88="L-PEAK5",NETWORKDAYS(A88,V88,koszyki!$M$20:$M$898)*10,IF(L88="H-PEAK5",NETWORKDAYS(A88,V88,koszyki!$M$20:$M$898)*5,NETWORKDAYS(A88,V88,koszyki!$M$20:$M$898)*15))))/C88,1) -> 1 | AJ88: 2025-09-30 | AK88: =AJ88-1 -> 2025-09-29 | AL88: 2025-09-28 | AM88: 2025-09-27 | AO88: =NETWORKDAYS(AJ88,AJ88,koszyki!$M$20:$M$89) -> 1 | AP88: =NETWORKDAYS(AK88,AK88,koszyki!$M$20:$M$89) -> 1 | AQ88: =NETWORKDAYS(AL88,AL88,koszyki!$M$20:$M$89) -> 0 | AR88: =NETWORKDAYS(AM88,AM88,koszyki!$M$20:$M$89) -> 0 | AT88: 1 | AU88: 2 | AV88: 2 | AW88: 2 | AY88: 0 | BB88: 2025-07-01 | BC88: 2025-07-02 | BD88: 2025-07-03 | BE88: 2025-07-04 | BG88: =NETWORKDAYS(BB88,BB88,koszyki!$M$20:$M$89) -> 1 | BH88: =NETWORKDAYS(BC88,BC88,koszyki!$M$20:$M$89) -> 1 | BI88: =NETWORKDAYS(BD88,BD88,koszyki!$M$20:$M$89) -> 1 | BJ88: =NETWORKDAYS(BE88,BE88,koszyki!$M$20:$M$89) -> 1 | BL88: 1 | BM88: 2 | BN88: 3 | BO88: 4 | BQ88: 0
A89: 2025-10-01 | B89: 2025-12-31 | C89: 1264 | D89: ='Kalkulator Depozytów'!M94 -> 0 | E89: ='Kalkulator Depozytów'!N94 -> 0 | F89: ='Kalkulator Depozytów'!O94 -> 0 | G89: ='Kalkulator Depozytów'!P94 -> 0 | H89: ='Kalkulator Depozytów'!Q94 -> 0 | I89: =ROUND(IF(OR(AND(K89>0,L89="L-PEAK5"),AND(K89>0,L89="H-PEAK5")),R89,IF(AND(K89>0,L89="PEAK5"),O89,IF(K89>0,IF(OR(L89="BASE"),AVERAGE(INDIRECT("krzywa!B"&MATCH(A89-$A$2,krzywa!A:A,0)&":B"&MATCH(B89-$A$2,krzywa!A:A,0),TRUE)),IF(OR(L89="OFFPEAK"),AVERAGE(INDIRECT("krzywa!F"&MATCH(A89-$A$2,krzywa!A:A,0)&":F"&MATCH(B89-$A$2,krzywa!A:A,0)))))))),4) ->  | J89: 1 | K89: 46022 | L89: OFFPEAK | M89: =NETWORKDAYS(A89,B89,koszyki!$M$20:$M$898) -> 63 | N89: =B89-A89+1- NETWORKDAYS(A89,B89,koszyki!$M$20:$M$898) -> 29 | O89: =ROUND(IF((B89-A89+1)>2,IF(C89=75,AVERAGE(INDIRECT("krzywa!C"&MATCH(K89-6,krzywa!A:A,0)&":C"&MATCH(K89-2,krzywa!A:A,0))),AVERAGE(INDIRECT("krzywa!C"&MATCH(A89-$A$2+BQ89,krzywa!A:A,0)&":C"&MATCH(B89-$A$2-AY89,krzywa!A:A,0)))),INDIRECT("krzywa!C"&MATCH(K89,krzywa!A:A,0))),4) ->  | P89: 0 | Q89: =-C89*ABS(D89-F89)*H89*I89*U89+'kompensacja międzyproduktowa'!X89*U89 ->  | R89: =ROUND(IF((B89-A89+1)>2,IF(C89=75,AVERAGE(INDIRECT("krzywa!D"&MATCH(K89-6,krzywa!A:A,0)&":D"&MATCH(K89-2,krzywa!A:A,0))),AVERAGE(INDIRECT("krzywa!D"&MATCH(A89-$A$2+BQ89,krzywa!A:A,0)&":D"&MATCH(B89-$A$2-AY89,krzywa!A:A,0)))),INDIRECT("krzywa!D"&MATCH(K89,krzywa!A:A,0))),4) ->  | S89: =VLOOKUP(A89,krzywa!L:N,3,1) -> 0 | T89: =VLOOKUP(B89,krzywa!L:N,3,1) -> 0 | U89: =IF('Kalkulator Depozytów'!$B$35=TRUE,1,(1+S89/100)*W89+(1+T89/100)*(1-W89)) -> 1 | V89: =IF(S89<>T89,VLOOKUP(A89,krzywa!L:M,2,1)) -> FALSE | W89: =IF(V89<>FALSE,IF(L89="BASE",(V89-A89+1)*24+J89,IF(L89="OFFPEAK",NETWORKDAYS(A89,V89,koszyki!$M$20:$M$898)*9+(N89)*24+J89,IF(L89="L-PEAK5",NETWORKDAYS(A89,V89,koszyki!$M$20:$M$898)*10,IF(L89="H-PEAK5",NETWORKDAYS(A89,V89,koszyki!$M$20:$M$898)*5,NETWORKDAYS(A89,V89,koszyki!$M$20:$M$898)*15))))/C89,1) -> 1
A90: 2026-01-01 | B90: 2026-03-31 | C90: 1229 | D90: ='Kalkulator Depozytów'!M95 -> 0 | E90: ='Kalkulator Depozytów'!N95 -> 0 | F90: ='Kalkulator Depozytów'!O95 -> 0 | G90: ='Kalkulator Depozytów'!P95 -> 0 | H90: ='Kalkulator Depozytów'!Q95 -> 0 | I90: =ROUND(IF(OR(AND(K90>0,L90="L-PEAK5"),AND(K90>0,L90="H-PEAK5")),R90,IF(AND(K90>0,L90="PEAK5"),O90,IF(K90>0,IF(OR(L90="BASE"),AVERAGE(INDIRECT("krzywa!B"&MATCH(A90-$A$2,krzywa!A:A,0)&":B"&MATCH(B90-$A$2,krzywa!A:A,0),TRUE)),IF(OR(L90="OFFPEAK"),AVERAGE(INDIRECT("krzywa!F"&MATCH(A90-$A$2,krzywa!A:A,0)&":F"&MATCH(B90-$A$2,krzywa!A:A,0)))))))),4) ->  | J90: -1 | K90: 46112 | L90: OFFPEAK | M90: =NETWORKDAYS(A90,B90,koszyki!$M$20:$M$898) -> 62 | N90: =B90-A90+1- NETWORKDAYS(A90,B90,koszyki!$M$20:$M$898) -> 28 | O90: =ROUND(IF((B90-A90+1)>2,IF(C90=75,AVERAGE(INDIRECT("krzywa!C"&MATCH(K90-6,krzywa!A:A,0)&":C"&MATCH(K90-2,krzywa!A:A,0))),AVERAGE(INDIRECT("krzywa!C"&MATCH(A90-$A$2+BQ90,krzywa!A:A,0)&":C"&MATCH(B90-$A$2-AY90,krzywa!A:A,0)))),INDIRECT("krzywa!C"&MATCH(K90,krzywa!A:A,0))),4) ->  | P90: 0 | Q90: =-C90*ABS(D90-F90)*H90*I90*U90+'kompensacja międzyproduktowa'!X90*U90 ->  | R90: =ROUND(IF((B90-A90+1)>2,IF(C90=75,AVERAGE(INDIRECT("krzywa!D"&MATCH(K90-6,krzywa!A:A,0)&":D"&MATCH(K90-2,krzywa!A:A,0))),AVERAGE(INDIRECT("krzywa!D"&MATCH(A90-$A$2+BQ90,krzywa!A:A,0)&":D"&MATCH(B90-$A$2-AY90,krzywa!A:A,0)))),INDIRECT("krzywa!D"&MATCH(K90,krzywa!A:A,0))),4) ->  | S90: =VLOOKUP(A90,krzywa!L:N,3,1) -> 0 | T90: =VLOOKUP(B90,krzywa!L:N,3,1) -> 0 | U90: =IF('Kalkulator Depozytów'!$B$35=TRUE,1,(1+S90/100)*W90+(1+T90/100)*(1-W90)) -> 1 | V90: =IF(S90<>T90,VLOOKUP(A90,krzywa!L:M,2,1)) -> FALSE | W90: =IF(V90<>FALSE,IF(L90="BASE",(V90-A90+1)*24+J90,IF(L90="OFFPEAK",NETWORKDAYS(A90,V90,koszyki!$M$20:$M$898)*9+(N90)*24+J90,IF(L90="L-PEAK5",NETWORKDAYS(A90,V90,koszyki!$M$20:$M$898)*10,IF(L90="H-PEAK5",NETWORKDAYS(A90,V90,koszyki!$M$20:$M$898)*5,NETWORKDAYS(A90,V90,koszyki!$M$20:$M$898)*15))))/C90,1) -> 1
A91: 2026-04-01 | B91: 2026-06-30 | C91: 1254 | D91: ='Kalkulator Depozytów'!M96 -> 0 | E91: ='Kalkulator Depozytów'!N96 -> 0 | F91: ='Kalkulator Depozytów'!O96 -> 0 | G91: ='Kalkulator Depozytów'!P96 -> 0 | H91: ='Kalkulator Depozytów'!Q96 -> 0 | I91: =ROUND(IF(OR(AND(K91>0,L91="L-PEAK5"),AND(K91>0,L91="H-PEAK5")),R91,IF(AND(K91>0,L91="PEAK5"),O91,IF(K91>0,IF(OR(L91="BASE"),AVERAGE(INDIRECT("krzywa!B"&MATCH(A91-$A$2,krzywa!A:A,0)&":B"&MATCH(B91-$A$2,krzywa!A:A,0),TRUE)),IF(OR(L91="OFFPEAK"),AVERAGE(INDIRECT("krzywa!F"&MATCH(A91-$A$2,krzywa!A:A,0)&":F"&MATCH(B91-$A$2,krzywa!A:A,0)))))))),4) ->  | J91: 0 | K91: 46203 | L91: OFFPEAK | M91: =NETWORKDAYS(A91,B91,koszyki!$M$20:$M$898) -> 62 | N91: =B91-A91+1- NETWORKDAYS(A91,B91,koszyki!$M$20:$M$898) -> 29 | O91: =ROUND(IF((B91-A91+1)>2,IF(C91=75,AVERAGE(INDIRECT("krzywa!C"&MATCH(K91-6,krzywa!A:A,0)&":C"&MATCH(K91-2,krzywa!A:A,0))),AVERAGE(INDIRECT("krzywa!C"&MATCH(A91-$A$2+BQ91,krzywa!A:A,0)&":C"&MATCH(B91-$A$2-AY91,krzywa!A:A,0)))),INDIRECT("krzywa!C"&MATCH(K91,krzywa!A:A,0))),4) ->  | P91: 0 | Q91: =-C91*ABS(D91-F91)*H91*I91*U91+'kompensacja międzyproduktowa'!X91*U91 ->  | R91: =ROUND(IF((B91-A91+1)>2,IF(C91=75,AVERAGE(INDIRECT("krzywa!D"&MATCH(K91-6,krzywa!A:A,0)&":D"&MATCH(K91-2,krzywa!A:A,0))),AVERAGE(INDIRECT("krzywa!D"&MATCH(A91-$A$2+BQ91,krzywa!A:A,0)&":D"&MATCH(B91-$A$2-AY91,krzywa!A:A,0)))),INDIRECT("krzywa!D"&MATCH(K91,krzywa!A:A,0))),4) ->  | S91: =VLOOKUP(A91,krzywa!L:N,3,1) -> 0 | T91: =VLOOKUP(B91,krzywa!L:N,3,1) -> 0 | U91: =IF('Kalkulator Depozytów'!$B$35=TRUE,1,(1+S91/100)*W91+(1+T91/100)*(1-W91)) -> 1 | V91: =IF(S91<>T91,VLOOKUP(A91,krzywa!L:M,2,1)) -> FALSE | W91: =IF(V91<>FALSE,IF(L91="BASE",(V91-A91+1)*24+J91,IF(L91="OFFPEAK",NETWORKDAYS(A91,V91,koszyki!$M$20:$M$898)*9+(N91)*24+J91,IF(L91="L-PEAK5",NETWORKDAYS(A91,V91,koszyki!$M$20:$M$898)*10,IF(L91="H-PEAK5",NETWORKDAYS(A91,V91,koszyki!$M$20:$M$898)*5,NETWORKDAYS(A91,V91,koszyki!$M$20:$M$898)*15))))/C91,1) -> 1
A92: 2026-07-01 | B92: 2026-12-31 | C92: 2467 | D92: ='Kalkulator Depozytów'!M97 -> 0 | E92: ='Kalkulator Depozytów'!N97 -> 0 | F92: ='Kalkulator Depozytów'!O97 -> 0 | G92: ='Kalkulator Depozytów'!P97 -> 0 | H92: ='Kalkulator Depozytów'!Q97 -> 0 | I92: =ROUND(IF(OR(AND(K92>0,L92="L-PEAK5"),AND(K92>0,L92="H-PEAK5")),R92,IF(AND(K92>0,L92="PEAK5"),O92,IF(K92>0,IF(OR(L92="BASE"),AVERAGE(INDIRECT("krzywa!B"&MATCH(A92-$A$2,krzywa!A:A,0)&":B"&MATCH(B92-$A$2,krzywa!A:A,0),TRUE)),IF(OR(L92="OFFPEAK"),AVERAGE(INDIRECT("krzywa!F"&MATCH(A92-$A$2,krzywa!A:A,0)&":F"&MATCH(B92-$A$2,krzywa!A:A,0)))))))),4) ->  | J92: 1 | K92: 46387 | L92: OFFPEAK | M92: =NETWORKDAYS(A92,B92,koszyki!$M$20:$M$898) -> 130 | N92: =B92-A92+1- NETWORKDAYS(A92,B92,koszyki!$M$20:$M$898) -> 54 | O92: =ROUND(IF((B92-A92+1)>2,IF(C92=75,AVERAGE(INDIRECT("krzywa!C"&MATCH(K92-6,krzywa!A:A,0)&":C"&MATCH(K92-2,krzywa!A:A,0))),AVERAGE(INDIRECT("krzywa!C"&MATCH(A92-$A$2+BQ92,krzywa!A:A,0)&":C"&MATCH(B92-$A$2-AY92,krzywa!A:A,0)))),INDIRECT("krzywa!C"&MATCH(K92,krzywa!A:A,0))),4) ->  | P92: 0 | Q92: =-C92*ABS(D92-F92)*H92*I92*U92+'kompensacja międzyproduktowa'!X92*U92 ->  | R92: =ROUND(IF((B92-A92+1)>2,IF(C92=75,AVERAGE(INDIRECT("krzywa!D"&MATCH(K92-6,krzywa!A:A,0)&":D"&MATCH(K92-2,krzywa!A:A,0))),AVERAGE(INDIRECT("krzywa!D"&MATCH(A92-$A$2+BQ92,krzywa!A:A,0)&":D"&MATCH(B92-$A$2-AY92,krzywa!A:A,0)))),INDIRECT("krzywa!D"&MATCH(K92,krzywa!A:A,0))),4) ->  | S92: =VLOOKUP(A92,krzywa!L:N,3,1) -> 0 | T92: =VLOOKUP(B92,krzywa!L:N,3,1) -> 0 | U92: =IF('Kalkulator Depozytów'!$B$35=TRUE,1,(1+S92/100)*W92+(1+T92/100)*(1-W92)) -> 1 | V92: =IF(S92<>T92,VLOOKUP(A92,krzywa!L:M,2,1)) -> FALSE | W92: =IF(V92<>FALSE,IF(L92="BASE",(V92-A92+1)*24+J92,IF(L92="OFFPEAK",NETWORKDAYS(A92,V92,koszyki!$M$20:$M$898)*9+(N92)*24+J92,IF(L92="L-PEAK5",NETWORKDAYS(A92,V92,koszyki!$M$20:$M$898)*10,IF(L92="H-PEAK5",NETWORKDAYS(A92,V92,koszyki!$M$20:$M$898)*5,NETWORKDAYS(A92,V92,koszyki!$M$20:$M$898)*15))))/C92,1) -> 1
A93: 2027-01-01 | B93: 2027-12-31 | C93: 4965 | D93: ='Kalkulator Depozytów'!M98 -> 0 | E93: ='Kalkulator Depozytów'!N98 -> 0 | F93: ='Kalkulator Depozytów'!O98 -> 0 | G93: ='Kalkulator Depozytów'!P98 -> 0 | H93: ='Kalkulator Depozytów'!Q98 -> 0 | I93: =ROUND(IF(OR(AND(K93>0,L93="L-PEAK5"),AND(K93>0,L93="H-PEAK5")),R93,IF(AND(K93>0,L93="PEAK5"),O93,IF(K93>0,IF(OR(L93="BASE"),AVERAGE(INDIRECT("krzywa!B"&MATCH(A93-$A$2,krzywa!A:A,0)&":B"&MATCH(B93-$A$2,krzywa!A:A,0),TRUE)),IF(OR(L93="OFFPEAK"),AVERAGE(INDIRECT("krzywa!F"&MATCH(A93-$A$2,krzywa!A:A,0)&":F"&MATCH(B93-$A$2,krzywa!A:A,0)))))))),4) ->  | J93: 0 | K93: 46752 | L93: OFFPEAK | M93: =NETWORKDAYS(A93,B93,koszyki!$M$20:$M$898) -> 253 | N93: =B93-A93+1- NETWORKDAYS(A93,B93,koszyki!$M$20:$M$898) -> 112 | O93: =ROUND(IF((B93-A93+1)>2,IF(C93=75,AVERAGE(INDIRECT("krzywa!C"&MATCH(K93-6,krzywa!A:A,0)&":C"&MATCH(K93-2,krzywa!A:A,0))),AVERAGE(INDIRECT("krzywa!C"&MATCH(A93-$A$2+BQ93,krzywa!A:A,0)&":C"&MATCH(B93-$A$2-AY93,krzywa!A:A,0)))),INDIRECT("krzywa!C"&MATCH(K93,krzywa!A:A,0))),4) ->  | P93: 0 | Q93: =-C93*ABS(D93-F93)*H93*I93*U93+'kompensacja międzyproduktowa'!X93*U93 ->  | R93: =ROUND(IF((B93-A93+1)>2,IF(C93=75,AVERAGE(INDIRECT("krzywa!D"&MATCH(K93-6,krzywa!A:A,0)&":D"&MATCH(K93-2,krzywa!A:A,0))),AVERAGE(INDIRECT("krzywa!D"&MATCH(A93-$A$2+BQ93,krzywa!A:A,0)&":D"&MATCH(B93-$A$2-AY93,krzywa!A:A,0)))),INDIRECT("krzywa!D"&MATCH(K93,krzywa!A:A,0))),4) ->  | S93: =VLOOKUP(A93,krzywa!L:N,3,1) -> 23 | T93: =VLOOKUP(B93,krzywa!L:N,3,1) -> 23 | U93: =IF('Kalkulator Depozytów'!$B$35=TRUE,1,(1+S93/100)*W93+(1+T93/100)*(1-W93)) -> 1.23 | V93: =IF(S93<>T93,VLOOKUP(A93,krzywa!L:M,2,1)) -> FALSE | W93: =IF(V93<>FALSE,IF(L93="BASE",(V93-A93+1)*24+J93,IF(L93="OFFPEAK",NETWORKDAYS(A93,V93,koszyki!$M$20:$M$898)*9+(N93)*24+J93,IF(L93="L-PEAK5",NETWORKDAYS(A93,V93,koszyki!$M$20:$M$898)*10,IF(L93="H-PEAK5",NETWORKDAYS(A93,V93,koszyki!$M$20:$M$898)*5,NETWORKDAYS(A93,V93,koszyki!$M$20:$M$898)*15))))/C93,1) -> 1
A94: 2028-01-01 | B94: 2028-12-31 | C94: 5019 | D94: ='Kalkulator Depozytów'!M99 -> 0 | E94: ='Kalkulator Depozytów'!N99 -> 0 | F94: ='Kalkulator Depozytów'!O99 -> 0 | G94: ='Kalkulator Depozytów'!P99 -> 0 | H94: ='Kalkulator Depozytów'!Q99 -> 0 | I94: =ROUND(IF(OR(AND(K94>0,L94="L-PEAK5"),AND(K94>0,L94="H-PEAK5")),R94,IF(AND(K94>0,L94="PEAK5"),O94,IF(K94>0,IF(OR(L94="BASE"),AVERAGE(INDIRECT("krzywa!B"&MATCH(A94-$A$2,krzywa!A:A,0)&":B"&MATCH(B94-$A$2,krzywa!A:A,0),TRUE)),IF(OR(L94="OFFPEAK"),AVERAGE(INDIRECT("krzywa!F"&MATCH(A94-$A$2,krzywa!A:A,0)&":F"&MATCH(B94-$A$2,krzywa!A:A,0)))))))),4) ->  | J94: 0 | K94: 47118 | L94: OFFPEAK | M94: =NETWORKDAYS(A94,B94,koszyki!$M$20:$M$898) -> 251 | N94: =B94-A94+1- NETWORKDAYS(A94,B94,koszyki!$M$20:$M$898) -> 115 | O94: =ROUND(IF((B94-A94+1)>2,IF(C94=75,AVERAGE(INDIRECT("krzywa!C"&MATCH(K94-6,krzywa!A:A,0)&":C"&MATCH(K94-2,krzywa!A:A,0))),AVERAGE(INDIRECT("krzywa!C"&MATCH(A94-$A$2+BQ94,krzywa!A:A,0)&":C"&MATCH(B94-$A$2-AY94,krzywa!A:A,0)))),INDIRECT("krzywa!C"&MATCH(K94,krzywa!A:A,0))),4) ->  | P94: 0 | Q94: =-C94*ABS(D94-F94)*H94*I94*U94+'kompensacja międzyproduktowa'!X94*U94 ->  | R94: =ROUND(IF((B94-A94+1)>2,IF(C94=75,AVERAGE(INDIRECT("krzywa!D"&MATCH(K94-6,krzywa!A:A,0)&":D"&MATCH(K94-2,krzywa!A:A,0))),AVERAGE(INDIRECT("krzywa!D"&MATCH(A94-$A$2+BQ94,krzywa!A:A,0)&":D"&MATCH(B94-$A$2-AY94,krzywa!A:A,0)))),INDIRECT("krzywa!D"&MATCH(K94,krzywa!A:A,0))),4) ->  | S94: =VLOOKUP(A94,krzywa!L:N,3,1) -> 23 | T94: =VLOOKUP(B94,krzywa!L:N,3,1) -> 23 | U94: =IF('Kalkulator Depozytów'!$B$35=TRUE,1,(1+S94/100)*W94+(1+T94/100)*(1-W94)) -> 1.23 | V94: =IF(S94<>T94,VLOOKUP(A94,krzywa!L:M,2,1)) -> FALSE | W94: =IF(V94<>FALSE,IF(L94="BASE",(V94-A94+1)*24+J94,IF(L94="OFFPEAK",NETWORKDAYS(A94,V94,koszyki!$M$20:$M$898)*9+(N94)*24+J94,IF(L94="L-PEAK5",NETWORKDAYS(A94,V94,koszyki!$M$20:$M$898)*10,IF(L94="H-PEAK5",NETWORKDAYS(A94,V94,koszyki!$M$20:$M$898)*5,NETWORKDAYS(A94,V94,koszyki!$M$20:$M$898)*15))))/C94,1) -> 1
A95: 2024-11-28 | B95: 2024-11-28 | C95: 10 | D95: ='Kalkulator Depozytów'!M100 -> 0 | E95: ='Kalkulator Depozytów'!N100 -> 0 | F95: ='Kalkulator Depozytów'!O100 -> 0 | G95: ='Kalkulator Depozytów'!P100 -> 0 | H95: ='Kalkulator Depozytów'!Q100 -> 0 | I95: =ROUND(IF(OR(AND(K95>0,L95="L-PEAK5"),AND(K95>0,L95="H-PEAK5")),R95,IF(AND(K95>0,L95="PEAK5"),O95,IF(K95>0,IF(OR(L95="BASE"),AVERAGE(INDIRECT("krzywa!B"&MATCH(A95-$A$2,krzywa!A:A,0)&":B"&MATCH(B95-$A$2,krzywa!A:A,0),TRUE)),IF(OR(L95="OFFPEAK"),AVERAGE(INDIRECT("krzywa!F"&MATCH(A95-$A$2,krzywa!A:A,0)&":F"&MATCH(B95-$A$2,krzywa!A:A,0)))))))),4) ->  | K95: 45624 | L95: L-PEAK5 | M95: =NETWORKDAYS(A95,B95,koszyki!$M$20:$M$898) -> 1 | N95: =B95-A95+1- NETWORKDAYS(A95,B95,koszyki!$M$20:$M$898) -> 0 | O95: =ROUND(IF((B95-A95+1)>2,IF(C95=75,AVERAGE(INDIRECT("krzywa!C"&MATCH(K95-6,krzywa!A:A,0)&":C"&MATCH(K95-2,krzywa!A:A,0))),AVERAGE(INDIRECT("krzywa!C"&MATCH(A95-$A$2+BQ95,krzywa!A:A,0)&":C"&MATCH(B95-$A$2-AY95,krzywa!A:A,0)))),INDIRECT("krzywa!C"&MATCH(K95,krzywa!A:A,0))),4) ->  | P95: 0 | Q95: =-C95*ABS(D95-F95)*H95*I95*U95+'kompensacja międzyproduktowa'!X95*U95 ->  | R95: =ROUND(IF((B95-A95+1)>2,IF(C95=75,AVERAGE(INDIRECT("krzywa!D"&MATCH(K95-6,krzywa!A:A,0)&":D"&MATCH(K95-2,krzywa!A:A,0))),AVERAGE(INDIRECT("krzywa!D"&MATCH(A95-$A$2+BQ95,krzywa!A:A,0)&":D"&MATCH(B95-$A$2-AY95,krzywa!A:A,0)))),INDIRECT("krzywa!D"&MATCH(K95,krzywa!A:A,0))),4) ->  | S95: =VLOOKUP(A95,krzywa!L:N,3,1) -> 0 | T95: =VLOOKUP(B95,krzywa!L:N,3,1) -> 0 | U95: =IF('Kalkulator Depozytów'!$B$35=TRUE,1,(1+S95/100)*W95+(1+T95/100)*(1-W95)) -> 1 | V95: =IF(S95<>T95,VLOOKUP(A95,krzywa!L:M,2,1)) -> FALSE | W95: =IF(V95<>FALSE,IF(L95="BASE",(V95-A95+1)*24+J95,IF(L95="OFFPEAK",NETWORKDAYS(A95,V95,koszyki!$M$20:$M$898)*9+(N95)*24+J95,IF(L95="L-PEAK5",NETWORKDAYS(A95,V95,koszyki!$M$20:$M$898)*10,IF(L95="H-PEAK5",NETWORKDAYS(A95,V95,koszyki!$M$20:$M$898)*5,NETWORKDAYS(A95,V95,koszyki!$M$20:$M$898)*15))))/C95,1) -> 1
A96: 2024-11-29 | B96: 2024-11-29 | C96: 10 | D96: ='Kalkulator Depozytów'!M101 -> 0 | E96: ='Kalkulator Depozytów'!N101 -> 0 | F96: ='Kalkulator Depozytów'!O101 -> 0 | G96: ='Kalkulator Depozytów'!P101 -> 0 | H96: ='Kalkulator Depozytów'!Q101 -> 0 | I96: =ROUND(IF(OR(AND(K96>0,L96="L-PEAK5"),AND(K96>0,L96="H-PEAK5")),R96,IF(AND(K96>0,L96="PEAK5"),O96,IF(K96>0,IF(OR(L96="BASE"),AVERAGE(INDIRECT("krzywa!B"&MATCH(A96-$A$2,krzywa!A:A,0)&":B"&MATCH(B96-$A$2,krzywa!A:A,0),TRUE)),IF(OR(L96="OFFPEAK"),AVERAGE(INDIRECT("krzywa!F"&MATCH(A96-$A$2,krzywa!A:A,0)&":F"&MATCH(B96-$A$2,krzywa!A:A,0)))))))),4) ->  | K96: 45625 | L96: L-PEAK5 | M96: =NETWORKDAYS(A96,B96,koszyki!$M$20:$M$898) -> 1 | N96: =B96-A96+1- NETWORKDAYS(A96,B96,koszyki!$M$20:$M$898) -> 0 | O96: =ROUND(IF((B96-A96+1)>2,IF(C96=75,AVERAGE(INDIRECT("krzywa!C"&MATCH(K96-6,krzywa!A:A,0)&":C"&MATCH(K96-2,krzywa!A:A,0))),AVERAGE(INDIRECT("krzywa!C"&MATCH(A96-$A$2+BQ96,krzywa!A:A,0)&":C"&MATCH(B96-$A$2-AY96,krzywa!A:A,0)))),INDIRECT("krzywa!C"&MATCH(K96,krzywa!A:A,0))),4) ->  | P96: 0 | Q96: =-C96*ABS(D96-F96)*H96*I96*U96+'kompensacja międzyproduktowa'!X96*U96 ->  | R96: =ROUND(IF((B96-A96+1)>2,IF(C96=75,AVERAGE(INDIRECT("krzywa!D"&MATCH(K96-6,krzywa!A:A,0)&":D"&MATCH(K96-2,krzywa!A:A,0))),AVERAGE(INDIRECT("krzywa!D"&MATCH(A96-$A$2+BQ96,krzywa!A:A,0)&":D"&MATCH(B96-$A$2-AY96,krzywa!A:A,0)))),INDIRECT("krzywa!D"&MATCH(K96,krzywa!A:A,0))),4) ->  | S96: =VLOOKUP(A96,krzywa!L:N,3,1) -> 0 | T96: =VLOOKUP(B96,krzywa!L:N,3,1) -> 0 | U96: =IF('Kalkulator Depozytów'!$B$35=TRUE,1,(1+S96/100)*W96+(1+T96/100)*(1-W96)) -> 1 | V96: =IF(S96<>T96,VLOOKUP(A96,krzywa!L:M,2,1)) -> FALSE | W96: =IF(V96<>FALSE,IF(L96="BASE",(V96-A96+1)*24+J96,IF(L96="OFFPEAK",NETWORKDAYS(A96,V96,koszyki!$M$20:$M$898)*9+(N96)*24+J96,IF(L96="L-PEAK5",NETWORKDAYS(A96,V96,koszyki!$M$20:$M$898)*10,IF(L96="H-PEAK5",NETWORKDAYS(A96,V96,koszyki!$M$20:$M$898)*5,NETWORKDAYS(A96,V96,koszyki!$M$20:$M$898)*15))))/C96,1) -> 1
A97: 2024-11-30 | B97: 2024-11-30 | C97: 0 | D97: ='Kalkulator Depozytów'!M102 -> 0 | E97: ='Kalkulator Depozytów'!N102 -> 0 | F97: ='Kalkulator Depozytów'!O102 -> 0 | G97: ='Kalkulator Depozytów'!P102 -> 0 | H97: ='Kalkulator Depozytów'!Q102 -> 0 | I97: =ROUND(IF(OR(AND(K97>0,L97="L-PEAK5"),AND(K97>0,L97="H-PEAK5")),R97,IF(AND(K97>0,L97="PEAK5"),O97,IF(K97>0,IF(OR(L97="BASE"),AVERAGE(INDIRECT("krzywa!B"&MATCH(A97-$A$2,krzywa!A:A,0)&":B"&MATCH(B97-$A$2,krzywa!A:A,0),TRUE)),IF(OR(L97="OFFPEAK"),AVERAGE(INDIRECT("krzywa!F"&MATCH(A97-$A$2,krzywa!A:A,0)&":F"&MATCH(B97-$A$2,krzywa!A:A,0)))))))),4) ->  | K97: 45626 | L97: L-PEAK5 | M97: =NETWORKDAYS(A97,B97,koszyki!$M$20:$M$898) -> 0 | N97: =B97-A97+1- NETWORKDAYS(A97,B97,koszyki!$M$20:$M$898) -> 1 | O97: =ROUND(IF((B97-A97+1)>2,IF(C97=75,AVERAGE(INDIRECT("krzywa!C"&MATCH(K97-6,krzywa!A:A,0)&":C"&MATCH(K97-2,krzywa!A:A,0))),AVERAGE(INDIRECT("krzywa!C"&MATCH(A97-$A$2+BQ97,krzywa!A:A,0)&":C"&MATCH(B97-$A$2-AY97,krzywa!A:A,0)))),INDIRECT("krzywa!C"&MATCH(K97,krzywa!A:A,0))),4) ->  | P97: 0 | Q97: =-C97*ABS(D97-F97)*H97*I97*U97+'kompensacja międzyproduktowa'!X97*U97 ->  | R97: =ROUND(IF((B97-A97+1)>2,IF(C97=75,AVERAGE(INDIRECT("krzywa!D"&MATCH(K97-6,krzywa!A:A,0)&":D"&MATCH(K97-2,krzywa!A:A,0))),AVERAGE(INDIRECT("krzywa!D"&MATCH(A97-$A$2+BQ97,krzywa!A:A,0)&":D"&MATCH(B97-$A$2-AY97,krzywa!A:A,0)))),INDIRECT("krzywa!D"&MATCH(K97,krzywa!A:A,0))),4) ->  | S97: =VLOOKUP(A97,krzywa!L:N,3,1) -> 0 | T97: =VLOOKUP(B97,krzywa!L:N,3,1) -> 0 | U97: =IF('Kalkulator Depozytów'!$B$35=TRUE,1,(1+S97/100)*W97+(1+T97/100)*(1-W97)) -> 1 | V97: =IF(S97<>T97,VLOOKUP(A97,krzywa!L:M,2,1)) -> FALSE | W97: =IF(V97<>FALSE,IF(L97="BASE",(V97-A97+1)*24+J97,IF(L97="OFFPEAK",NETWORKDAYS(A97,V97,koszyki!$M$20:$M$898)*9+(N97)*24+J97,IF(L97="L-PEAK5",NETWORKDAYS(A97,V97,koszyki!$M$20:$M$898)*10,IF(L97="H-PEAK5",NETWORKDAYS(A97,V97,koszyki!$M$20:$M$898)*5,NETWORKDAYS(A97,V97,koszyki!$M$20:$M$898)*15))))/C97,1) -> 1
A98: 2024-12-01 | B98: 2024-12-01 | C98: 0 | D98: ='Kalkulator Depozytów'!M103 -> 0 | E98: ='Kalkulator Depozytów'!N103 -> 0 | F98: ='Kalkulator Depozytów'!O103 -> 0 | G98: ='Kalkulator Depozytów'!P103 -> 0 | H98: ='Kalkulator Depozytów'!Q103 -> 0 | I98: =ROUND(IF(OR(AND(K98>0,L98="L-PEAK5"),AND(K98>0,L98="H-PEAK5")),R98,IF(AND(K98>0,L98="PEAK5"),O98,IF(K98>0,IF(OR(L98="BASE"),AVERAGE(INDIRECT("krzywa!B"&MATCH(A98-$A$2,krzywa!A:A,0)&":B"&MATCH(B98-$A$2,krzywa!A:A,0),TRUE)),IF(OR(L98="OFFPEAK"),AVERAGE(INDIRECT("krzywa!F"&MATCH(A98-$A$2,krzywa!A:A,0)&":F"&MATCH(B98-$A$2,krzywa!A:A,0)))))))),4) ->  | K98: 45627 | L98: L-PEAK5 | M98: =NETWORKDAYS(A98,B98,koszyki!$M$20:$M$898) -> 0 | N98: =B98-A98+1- NETWORKDAYS(A98,B98,koszyki!$M$20:$M$898) -> 1 | O98: =ROUND(IF((B98-A98+1)>2,IF(C98=75,AVERAGE(INDIRECT("krzywa!C"&MATCH(K98-6,krzywa!A:A,0)&":C"&MATCH(K98-2,krzywa!A:A,0))),AVERAGE(INDIRECT("krzywa!C"&MATCH(A98-$A$2+BQ98,krzywa!A:A,0)&":C"&MATCH(B98-$A$2-AY98,krzywa!A:A,0)))),INDIRECT("krzywa!C"&MATCH(K98,krzywa!A:A,0))),4) ->  | P98: 0 | Q98: =-C98*ABS(D98-F98)*H98*I98*U98+'kompensacja międzyproduktowa'!X98*U98 ->  | R98: =ROUND(IF((B98-A98+1)>2,IF(C98=75,AVERAGE(INDIRECT("krzywa!D"&MATCH(K98-6,krzywa!A:A,0)&":D"&MATCH(K98-2,krzywa!A:A,0))),AVERAGE(INDIRECT("krzywa!D"&MATCH(A98-$A$2+BQ98,krzywa!A:A,0)&":D"&MATCH(B98-$A$2-AY98,krzywa!A:A,0)))),INDIRECT("krzywa!D"&MATCH(K98,krzywa!A:A,0))),4) ->  | S98: =VLOOKUP(A98,krzywa!L:N,3,1) -> 0 | T98: =VLOOKUP(B98,krzywa!L:N,3,1) -> 0 | U98: =IF('Kalkulator Depozytów'!$B$35=TRUE,1,(1+S98/100)*W98+(1+T98/100)*(1-W98)) -> 1 | V98: =IF(S98<>T98,VLOOKUP(A98,krzywa!L:M,2,1)) -> FALSE | W98: =IF(V98<>FALSE,IF(L98="BASE",(V98-A98+1)*24+J98,IF(L98="OFFPEAK",NETWORKDAYS(A98,V98,koszyki!$M$20:$M$898)*9+(N98)*24+J98,IF(L98="L-PEAK5",NETWORKDAYS(A98,V98,koszyki!$M$20:$M$898)*10,IF(L98="H-PEAK5",NETWORKDAYS(A98,V98,koszyki!$M$20:$M$898)*5,NETWORKDAYS(A98,V98,koszyki!$M$20:$M$898)*15))))/C98,1) -> 1
A99: 2024-12-02 | B99: 2024-12-02 | C99: 10 | D99: ='Kalkulator Depozytów'!M104 -> 0 | E99: ='Kalkulator Depozytów'!N104 -> 0 | F99: ='Kalkulator Depozytów'!O104 -> 0 | G99: ='Kalkulator Depozytów'!P104 -> 0 | H99: ='Kalkulator Depozytów'!Q104 -> 0 | I99: =ROUND(IF(OR(AND(K99>0,L99="L-PEAK5"),AND(K99>0,L99="H-PEAK5")),R99,IF(AND(K99>0,L99="PEAK5"),O99,IF(K99>0,IF(OR(L99="BASE"),AVERAGE(INDIRECT("krzywa!B"&MATCH(A99-$A$2,krzywa!A:A,0)&":B"&MATCH(B99-$A$2,krzywa!A:A,0),TRUE)),IF(OR(L99="OFFPEAK"),AVERAGE(INDIRECT("krzywa!F"&MATCH(A99-$A$2,krzywa!A:A,0)&":F"&MATCH(B99-$A$2,krzywa!A:A,0)))))))),4) ->  | K99: 45628 | L99: L-PEAK5 | M99: =NETWORKDAYS(A99,B99,koszyki!$M$20:$M$898) -> 1 | N99: =B99-A99+1- NETWORKDAYS(A99,B99,koszyki!$M$20:$M$898) -> 0 | O99: =ROUND(IF((B99-A99+1)>2,IF(C99=75,AVERAGE(INDIRECT("krzywa!C"&MATCH(K99-6,krzywa!A:A,0)&":C"&MATCH(K99-2,krzywa!A:A,0))),AVERAGE(INDIRECT("krzywa!C"&MATCH(A99-$A$2+BQ99,krzywa!A:A,0)&":C"&MATCH(B99-$A$2-AY99,krzywa!A:A,0)))),INDIRECT("krzywa!C"&MATCH(K99,krzywa!A:A,0))),4) ->  | P99: 0 | Q99: =-C99*ABS(D99-F99)*H99*I99*U99+'kompensacja międzyproduktowa'!X99*U99 ->  | R99: =ROUND(IF((B99-A99+1)>2,IF(C99=75,AVERAGE(INDIRECT("krzywa!D"&MATCH(K99-6,krzywa!A:A,0)&":D"&MATCH(K99-2,krzywa!A:A,0))),AVERAGE(INDIRECT("krzywa!D"&MATCH(A99-$A$2+BQ99,krzywa!A:A,0)&":D"&MATCH(B99-$A$2-AY99,krzywa!A:A,0)))),INDIRECT("krzywa!D"&MATCH(K99,krzywa!A:A,0))),4) ->  | S99: =VLOOKUP(A99,krzywa!L:N,3,1) -> 0 | T99: =VLOOKUP(B99,krzywa!L:N,3,1) -> 0 | U99: =IF('Kalkulator Depozytów'!$B$35=TRUE,1,(1+S99/100)*W99+(1+T99/100)*(1-W99)) -> 1 | V99: =IF(S99<>T99,VLOOKUP(A99,krzywa!L:M,2,1)) -> FALSE | W99: =IF(V99<>FALSE,IF(L99="BASE",(V99-A99+1)*24+J99,IF(L99="OFFPEAK",NETWORKDAYS(A99,V99,koszyki!$M$20:$M$898)*9+(N99)*24+J99,IF(L99="L-PEAK5",NETWORKDAYS(A99,V99,koszyki!$M$20:$M$898)*10,IF(L99="H-PEAK5",NETWORKDAYS(A99,V99,koszyki!$M$20:$M$898)*5,NETWORKDAYS(A99,V99,koszyki!$M$20:$M$898)*15))))/C99,1) -> 1
A100: 2024-12-03 | B100: 2024-12-03 | C100: 10 | D100: ='Kalkulator Depozytów'!M105 -> 0 | E100: ='Kalkulator Depozytów'!N105 -> 0 | F100: ='Kalkulator Depozytów'!O105 -> 0 | G100: ='Kalkulator Depozytów'!P105 -> 0 | H100: ='Kalkulator Depozytów'!Q105 -> 0 | I100: =ROUND(IF(OR(AND(K100>0,L100="L-PEAK5"),AND(K100>0,L100="H-PEAK5")),R100,IF(AND(K100>0,L100="PEAK5"),O100,IF(K100>0,IF(OR(L100="BASE"),AVERAGE(INDIRECT("krzywa!B"&MATCH(A100-$A$2,krzywa!A:A,0)&":B"&MATCH(B100-$A$2,krzywa!A:A,0),TRUE)),IF(OR(L100="OFFPEAK"),AVERAGE(INDIRECT("krzywa!F"&MATCH(A100-$A$2,krzywa!A:A,0)&":F"&MATCH(B100-$A$2,krzywa!A:A,0)))))))),4) ->  | K100: 45629 | L100: L-PEAK5 | M100: =NETWORKDAYS(A100,B100,koszyki!$M$20:$M$898) -> 1 | N100: =B100-A100+1- NETWORKDAYS(A100,B100,koszyki!$M$20:$M$898) -> 0 | O100: =ROUND(IF((B100-A100+1)>2,IF(C100=75,AVERAGE(INDIRECT("krzywa!C"&MATCH(K100-6,krzywa!A:A,0)&":C"&MATCH(K100-2,krzywa!A:A,0))),AVERAGE(INDIRECT("krzywa!C"&MATCH(A100-$A$2+BQ100,krzywa!A:A,0)&":C"&MATCH(B100-$A$2-AY100,krzywa!A:A,0)))),INDIRECT("krzywa!C"&MATCH(K100,krzywa!A:A,0))),4) ->  | P100: 0 | Q100: =-C100*ABS(D100-F100)*H100*I100*U100+'kompensacja międzyproduktowa'!X100*U100 ->  | R100: =ROUND(IF((B100-A100+1)>2,IF(C100=75,AVERAGE(INDIRECT("krzywa!D"&MATCH(K100-6,krzywa!A:A,0)&":D"&MATCH(K100-2,krzywa!A:A,0))),AVERAGE(INDIRECT("krzywa!D"&MATCH(A100-$A$2+BQ100,krzywa!A:A,0)&":D"&MATCH(B100-$A$2-AY100,krzywa!A:A,0)))),INDIRECT("krzywa!D"&MATCH(K100,krzywa!A:A,0))),4) ->  | S100: =VLOOKUP(A100,krzywa!L:N,3,1) -> 0 | T100: =VLOOKUP(B100,krzywa!L:N,3,1) -> 0 | U100: =IF('Kalkulator Depozytów'!$B$35=TRUE,1,(1+S100/100)*W100+(1+T100/100)*(1-W100)) -> 1 | V100: =IF(S100<>T100,VLOOKUP(A100,krzywa!L:M,2,1)) -> FALSE | W100: =IF(V100<>FALSE,IF(L100="BASE",(V100-A100+1)*24+J100,IF(L100="OFFPEAK",NETWORKDAYS(A100,V100,koszyki!$M$20:$M$898)*9+(N100)*24+J100,IF(L100="L-PEAK5",NETWORKDAYS(A100,V100,koszyki!$M$20:$M$898)*10,IF(L100="H-PEAK5",NETWORKDAYS(A100,V100,koszyki!$M$20:$M$898)*5,NETWORKDAYS(A100,V100,koszyki!$M$20:$M$898)*15))))/C100,1) -> 1
A101: 2024-12-04 | B101: 2024-12-04 | C101: 10 | D101: ='Kalkulator Depozytów'!M106 -> 0 | E101: ='Kalkulator Depozytów'!N106 -> 0 | F101: ='Kalkulator Depozytów'!O106 -> 0 | G101: ='Kalkulator Depozytów'!P106 -> 0 | H101: ='Kalkulator Depozytów'!Q106 -> 0 | I101: =ROUND(IF(OR(AND(K101>0,L101="L-PEAK5"),AND(K101>0,L101="H-PEAK5")),R101,IF(AND(K101>0,L101="PEAK5"),O101,IF(K101>0,IF(OR(L101="BASE"),AVERAGE(INDIRECT("krzywa!B"&MATCH(A101-$A$2,krzywa!A:A,0)&":B"&MATCH(B101-$A$2,krzywa!A:A,0),TRUE)),IF(OR(L101="OFFPEAK"),AVERAGE(INDIRECT("krzywa!F"&MATCH(A101-$A$2,krzywa!A:A,0)&":F"&MATCH(B101-$A$2,krzywa!A:A,0)))))))),4) ->  | K101: 45630 | L101: L-PEAK5 | M101: =NETWORKDAYS(A101,B101,koszyki!$M$20:$M$898) -> 1 | N101: =B101-A101+1- NETWORKDAYS(A101,B101,koszyki!$M$20:$M$898) -> 0 | O101: =ROUND(IF((B101-A101+1)>2,IF(C101=75,AVERAGE(INDIRECT("krzywa!C"&MATCH(K101-6,krzywa!A:A,0)&":C"&MATCH(K101-2,krzywa!A:A,0))),AVERAGE(INDIRECT("krzywa!C"&MATCH(A101-$A$2+BQ101,krzywa!A:A,0)&":C"&MATCH(B101-$A$2-AY101,krzywa!A:A,0)))),INDIRECT("krzywa!C"&MATCH(K101,krzywa!A:A,0))),4) ->  | P101: 0 | Q101: =-C101*ABS(D101-F101)*H101*I101*U101+'kompensacja międzyproduktowa'!X101*U101 ->  | R101: =ROUND(IF((B101-A101+1)>2,IF(C101=75,AVERAGE(INDIRECT("krzywa!D"&MATCH(K101-6,krzywa!A:A,0)&":D"&MATCH(K101-2,krzywa!A:A,0))),AVERAGE(INDIRECT("krzywa!D"&MATCH(A101-$A$2+BQ101,krzywa!A:A,0)&":D"&MATCH(B101-$A$2-AY101,krzywa!A:A,0)))),INDIRECT("krzywa!D"&MATCH(K101,krzywa!A:A,0))),4) ->  | S101: =VLOOKUP(A101,krzywa!L:N,3,1) -> 0 | T101: =VLOOKUP(B101,krzywa!L:N,3,1) -> 0 | U101: =IF('Kalkulator Depozytów'!$B$35=TRUE,1,(1+S101/100)*W101+(1+T101/100)*(1-W101)) -> 1 | V101: =IF(S101<>T101,VLOOKUP(A101,krzywa!L:M,2,1)) -> FALSE | W101: =IF(V101<>FALSE,IF(L101="BASE",(V101-A101+1)*24+J101,IF(L101="OFFPEAK",NETWORKDAYS(A101,V101,koszyki!$M$20:$M$898)*9+(N101)*24+J101,IF(L101="L-PEAK5",NETWORKDAYS(A101,V101,koszyki!$M$20:$M$898)*10,IF(L101="H-PEAK5",NETWORKDAYS(A101,V101,koszyki!$M$20:$M$898)*5,NETWORKDAYS(A101,V101,koszyki!$M$20:$M$898)*15))))/C101,1) -> 1
A102: 2024-12-05 | B102: 2024-12-05 | C102: 10 | D102: ='Kalkulator Depozytów'!M107 -> 0 | E102: ='Kalkulator Depozytów'!N107 -> 0 | F102: ='Kalkulator Depozytów'!O107 -> 0 | G102: ='Kalkulator Depozytów'!P107 -> 0 | H102: ='Kalkulator Depozytów'!Q107 -> 0 | I102: =ROUND(IF(OR(AND(K102>0,L102="L-PEAK5"),AND(K102>0,L102="H-PEAK5")),R102,IF(AND(K102>0,L102="PEAK5"),O102,IF(K102>0,IF(OR(L102="BASE"),AVERAGE(INDIRECT("krzywa!B"&MATCH(A102-$A$2,krzywa!A:A,0)&":B"&MATCH(B102-$A$2,krzywa!A:A,0),TRUE)),IF(OR(L102="OFFPEAK"),AVERAGE(INDIRECT("krzywa!F"&MATCH(A102-$A$2,krzywa!A:A,0)&":F"&MATCH(B102-$A$2,krzywa!A:A,0)))))))),4) ->  | K102: 45631 | L102: L-PEAK5 | M102: =NETWORKDAYS(A102,B102,koszyki!$M$20:$M$898) -> 1 | N102: =B102-A102+1- NETWORKDAYS(A102,B102,koszyki!$M$20:$M$898) -> 0 | O102: =ROUND(IF((B102-A102+1)>2,IF(C102=75,AVERAGE(INDIRECT("krzywa!C"&MATCH(K102-6,krzywa!A:A,0)&":C"&MATCH(K102-2,krzywa!A:A,0))),AVERAGE(INDIRECT("krzywa!C"&MATCH(A102-$A$2+BQ102,krzywa!A:A,0)&":C"&MATCH(B102-$A$2-AY102,krzywa!A:A,0)))),INDIRECT("krzywa!C"&MATCH(K102,krzywa!A:A,0))),4) ->  | P102: 0 | Q102: =-C102*ABS(D102-F102)*H102*I102*U102+'kompensacja międzyproduktowa'!X102*U102 ->  | R102: =ROUND(IF((B102-A102+1)>2,IF(C102=75,AVERAGE(INDIRECT("krzywa!D"&MATCH(K102-6,krzywa!A:A,0)&":D"&MATCH(K102-2,krzywa!A:A,0))),AVERAGE(INDIRECT("krzywa!D"&MATCH(A102-$A$2+BQ102,krzywa!A:A,0)&":D"&MATCH(B102-$A$2-AY102,krzywa!A:A,0)))),INDIRECT("krzywa!D"&MATCH(K102,krzywa!A:A,0))),4) ->  | S102: =VLOOKUP(A102,krzywa!L:N,3,1) -> 0 | T102: =VLOOKUP(B102,krzywa!L:N,3,1) -> 0 | U102: =IF('Kalkulator Depozytów'!$B$35=TRUE,1,(1+S102/100)*W102+(1+T102/100)*(1-W102)) -> 1 | V102: =IF(S102<>T102,VLOOKUP(A102,krzywa!L:M,2,1)) -> FALSE | W102: =IF(V102<>FALSE,IF(L102="BASE",(V102-A102+1)*24+J102,IF(L102="OFFPEAK",NETWORKDAYS(A102,V102,koszyki!$M$20:$M$898)*9+(N102)*24+J102,IF(L102="L-PEAK5",NETWORKDAYS(A102,V102,koszyki!$M$20:$M$898)*10,IF(L102="H-PEAK5",NETWORKDAYS(A102,V102,koszyki!$M$20:$M$898)*5,NETWORKDAYS(A102,V102,koszyki!$M$20:$M$898)*15))))/C102,1) -> 1
A103: 2024-12-06 | B103: 2024-12-06 | C103: 10 | D103: ='Kalkulator Depozytów'!M108 -> 0 | E103: ='Kalkulator Depozytów'!N108 -> 0 | F103: ='Kalkulator Depozytów'!O108 -> 0 | G103: ='Kalkulator Depozytów'!P108 -> 0 | H103: ='Kalkulator Depozytów'!Q108 -> 0 | I103: =ROUND(IF(OR(AND(K103>0,L103="L-PEAK5"),AND(K103>0,L103="H-PEAK5")),R103,IF(AND(K103>0,L103="PEAK5"),O103,IF(K103>0,IF(OR(L103="BASE"),AVERAGE(INDIRECT("krzywa!B"&MATCH(A103-$A$2,krzywa!A:A,0)&":B"&MATCH(B103-$A$2,krzywa!A:A,0),TRUE)),IF(OR(L103="OFFPEAK"),AVERAGE(INDIRECT("krzywa!F"&MATCH(A103-$A$2,krzywa!A:A,0)&":F"&MATCH(B103-$A$2,krzywa!A:A,0)))))))),4) ->  | K103: 45632 | L103: L-PEAK5 | M103: =NETWORKDAYS(A103,B103,koszyki!$M$20:$M$898) -> 1 | N103: =B103-A103+1- NETWORKDAYS(A103,B103,koszyki!$M$20:$M$898) -> 0 | O103: =ROUND(IF((B103-A103+1)>2,IF(C103=75,AVERAGE(INDIRECT("krzywa!C"&MATCH(K103-6,krzywa!A:A,0)&":C"&MATCH(K103-2,krzywa!A:A,0))),AVERAGE(INDIRECT("krzywa!C"&MATCH(A103-$A$2+BQ103,krzywa!A:A,0)&":C"&MATCH(B103-$A$2-AY103,krzywa!A:A,0)))),INDIRECT("krzywa!C"&MATCH(K103,krzywa!A:A,0))),4) ->  | P103: 0 | Q103: =-C103*ABS(D103-F103)*H103*I103*U103+'kompensacja międzyproduktowa'!X103*U103 ->  | R103: =ROUND(IF((B103-A103+1)>2,IF(C103=75,AVERAGE(INDIRECT("krzywa!D"&MATCH(K103-6,krzywa!A:A,0)&":D"&MATCH(K103-2,krzywa!A:A,0))),AVERAGE(INDIRECT("krzywa!D"&MATCH(A103-$A$2+BQ103,krzywa!A:A,0)&":D"&MATCH(B103-$A$2-AY103,krzywa!A:A,0)))),INDIRECT("krzywa!D"&MATCH(K103,krzywa!A:A,0))),4) ->  | S103: =VLOOKUP(A103,krzywa!L:N,3,1) -> 0 | T103: =VLOOKUP(B103,krzywa!L:N,3,1) -> 0 | U103: =IF('Kalkulator Depozytów'!$B$35=TRUE,1,(1+S103/100)*W103+(1+T103/100)*(1-W103)) -> 1 | V103: =IF(S103<>T103,VLOOKUP(A103,krzywa!L:M,2,1)) -> FALSE | W103: =IF(V103<>FALSE,IF(L103="BASE",(V103-A103+1)*24+J103,IF(L103="OFFPEAK",NETWORKDAYS(A103,V103,koszyki!$M$20:$M$898)*9+(N103)*24+J103,IF(L103="L-PEAK5",NETWORKDAYS(A103,V103,koszyki!$M$20:$M$898)*10,IF(L103="H-PEAK5",NETWORKDAYS(A103,V103,koszyki!$M$20:$M$898)*5,NETWORKDAYS(A103,V103,koszyki!$M$20:$M$898)*15))))/C103,1) -> 1
A104: 2024-12-07 | B104: 2024-12-07 | C104: 0 | D104: ='Kalkulator Depozytów'!M109 -> 0 | E104: ='Kalkulator Depozytów'!N109 -> 0 | F104: ='Kalkulator Depozytów'!O109 -> 0 | G104: ='Kalkulator Depozytów'!P109 -> 0 | H104: ='Kalkulator Depozytów'!Q109 -> 0 | I104: =ROUND(IF(OR(AND(K104>0,L104="L-PEAK5"),AND(K104>0,L104="H-PEAK5")),R104,IF(AND(K104>0,L104="PEAK5"),O104,IF(K104>0,IF(OR(L104="BASE"),AVERAGE(INDIRECT("krzywa!B"&MATCH(A104-$A$2,krzywa!A:A,0)&":B"&MATCH(B104-$A$2,krzywa!A:A,0),TRUE)),IF(OR(L104="OFFPEAK"),AVERAGE(INDIRECT("krzywa!F"&MATCH(A104-$A$2,krzywa!A:A,0)&":F"&MATCH(B104-$A$2,krzywa!A:A,0)))))))),4) ->  | K104: 45633 | L104: L-PEAK5 | M104: =NETWORKDAYS(A104,B104,koszyki!$M$20:$M$898) -> 0 | N104: =B104-A104+1- NETWORKDAYS(A104,B104,koszyki!$M$20:$M$898) -> 1 | O104: =ROUND(IF((B104-A104+1)>2,IF(C104=75,AVERAGE(INDIRECT("krzywa!C"&MATCH(K104-6,krzywa!A:A,0)&":C"&MATCH(K104-2,krzywa!A:A,0))),AVERAGE(INDIRECT("krzywa!C"&MATCH(A104-$A$2+BQ104,krzywa!A:A,0)&":C"&MATCH(B104-$A$2-AY104,krzywa!A:A,0)))),INDIRECT("krzywa!C"&MATCH(K104,krzywa!A:A,0))),4) ->  | P104: 0 | Q104: =-C104*ABS(D104-F104)*H104*I104*U104+'kompensacja międzyproduktowa'!X104*U104 ->  | R104: =ROUND(IF((B104-A104+1)>2,IF(C104=75,AVERAGE(INDIRECT("krzywa!D"&MATCH(K104-6,krzywa!A:A,0)&":D"&MATCH(K104-2,krzywa!A:A,0))),AVERAGE(INDIRECT("krzywa!D"&MATCH(A104-$A$2+BQ104,krzywa!A:A,0)&":D"&MATCH(B104-$A$2-AY104,krzywa!A:A,0)))),INDIRECT("krzywa!D"&MATCH(K104,krzywa!A:A,0))),4) ->  | S104: =VLOOKUP(A104,krzywa!L:N,3,1) -> 0 | T104: =VLOOKUP(B104,krzywa!L:N,3,1) -> 0 | U104: =IF('Kalkulator Depozytów'!$B$35=TRUE,1,(1+S104/100)*W104+(1+T104/100)*(1-W104)) -> 1 | V104: =IF(S104<>T104,VLOOKUP(A104,krzywa!L:M,2,1)) -> FALSE | W104: =IF(V104<>FALSE,IF(L104="BASE",(V104-A104+1)*24+J104,IF(L104="OFFPEAK",NETWORKDAYS(A104,V104,koszyki!$M$20:$M$898)*9+(N104)*24+J104,IF(L104="L-PEAK5",NETWORKDAYS(A104,V104,koszyki!$M$20:$M$898)*10,IF(L104="H-PEAK5",NETWORKDAYS(A104,V104,koszyki!$M$20:$M$898)*5,NETWORKDAYS(A104,V104,koszyki!$M$20:$M$898)*15))))/C104,1) -> 1
A105: 2024-12-08 | B105: 2024-12-08 | C105: 0 | D105: ='Kalkulator Depozytów'!M110 -> 0 | E105: ='Kalkulator Depozytów'!N110 -> 0 | F105: ='Kalkulator Depozytów'!O110 -> 0 | G105: ='Kalkulator Depozytów'!P110 -> 0 | H105: ='Kalkulator Depozytów'!Q110 -> 0 | I105: =ROUND(IF(OR(AND(K105>0,L105="L-PEAK5"),AND(K105>0,L105="H-PEAK5")),R105,IF(AND(K105>0,L105="PEAK5"),O105,IF(K105>0,IF(OR(L105="BASE"),AVERAGE(INDIRECT("krzywa!B"&MATCH(A105-$A$2,krzywa!A:A,0)&":B"&MATCH(B105-$A$2,krzywa!A:A,0),TRUE)),IF(OR(L105="OFFPEAK"),AVERAGE(INDIRECT("krzywa!F"&MATCH(A105-$A$2,krzywa!A:A,0)&":F"&MATCH(B105-$A$2,krzywa!A:A,0)))))))),4) ->  | K105: 45634 | L105: L-PEAK5 | M105: =NETWORKDAYS(A105,B105,koszyki!$M$20:$M$898) -> 0 | N105: =B105-A105+1- NETWORKDAYS(A105,B105,koszyki!$M$20:$M$898) -> 1 | O105: =ROUND(IF((B105-A105+1)>2,IF(C105=75,AVERAGE(INDIRECT("krzywa!C"&MATCH(K105-6,krzywa!A:A,0)&":C"&MATCH(K105-2,krzywa!A:A,0))),AVERAGE(INDIRECT("krzywa!C"&MATCH(A105-$A$2+BQ105,krzywa!A:A,0)&":C"&MATCH(B105-$A$2-AY105,krzywa!A:A,0)))),INDIRECT("krzywa!C"&MATCH(K105,krzywa!A:A,0))),4) ->  | P105: 0 | Q105: =-C105*ABS(D105-F105)*H105*I105*U105+'kompensacja międzyproduktowa'!X105*U105 ->  | R105: =ROUND(IF((B105-A105+1)>2,IF(C105=75,AVERAGE(INDIRECT("krzywa!D"&MATCH(K105-6,krzywa!A:A,0)&":D"&MATCH(K105-2,krzywa!A:A,0))),AVERAGE(INDIRECT("krzywa!D"&MATCH(A105-$A$2+BQ105,krzywa!A:A,0)&":D"&MATCH(B105-$A$2-AY105,krzywa!A:A,0)))),INDIRECT("krzywa!D"&MATCH(K105,krzywa!A:A,0))),4) ->  | S105: =VLOOKUP(A105,krzywa!L:N,3,1) -> 0 | T105: =VLOOKUP(B105,krzywa!L:N,3,1) -> 0 | U105: =IF('Kalkulator Depozytów'!$B$35=TRUE,1,(1+S105/100)*W105+(1+T105/100)*(1-W105)) -> 1 | V105: =IF(S105<>T105,VLOOKUP(A105,krzywa!L:M,2,1)) -> FALSE | W105: =IF(V105<>FALSE,IF(L105="BASE",(V105-A105+1)*24+J105,IF(L105="OFFPEAK",NETWORKDAYS(A105,V105,koszyki!$M$20:$M$898)*9+(N105)*24+J105,IF(L105="L-PEAK5",NETWORKDAYS(A105,V105,koszyki!$M$20:$M$898)*10,IF(L105="H-PEAK5",NETWORKDAYS(A105,V105,koszyki!$M$20:$M$898)*5,NETWORKDAYS(A105,V105,koszyki!$M$20:$M$898)*15))))/C105,1) -> 1
A106: 2024-12-09 | B106: 2024-12-15 | C106: 50 | D106: ='Kalkulator Depozytów'!M111 -> 0 | E106: ='Kalkulator Depozytów'!N111 -> 0 | F106: ='Kalkulator Depozytów'!O111 -> 0 | G106: ='Kalkulator Depozytów'!P111 -> 0 | H106: ='Kalkulator Depozytów'!Q111 -> 0 | I106: =ROUND(IF(OR(AND(K106>0,L106="L-PEAK5"),AND(K106>0,L106="H-PEAK5")),R106,IF(AND(K106>0,L106="PEAK5"),O106,IF(K106>0,IF(OR(L106="BASE"),AVERAGE(INDIRECT("krzywa!B"&MATCH(A106-$A$2,krzywa!A:A,0)&":B"&MATCH(B106-$A$2,krzywa!A:A,0),TRUE)),IF(OR(L106="OFFPEAK"),AVERAGE(INDIRECT("krzywa!F"&MATCH(A106-$A$2,krzywa!A:A,0)&":F"&MATCH(B106-$A$2,krzywa!A:A,0)))))))),4) ->  | K106: 45641 | L106: L-PEAK5 | M106: =NETWORKDAYS(A106,B106,koszyki!$M$20:$M$898) -> 5 | N106: =B106-A106+1- NETWORKDAYS(A106,B106,koszyki!$M$20:$M$898) -> 2 | O106: =ROUND(IF((B106-A106+1)>2,IF(C106=75,AVERAGE(INDIRECT("krzywa!C"&MATCH(K106-6,krzywa!A:A,0)&":C"&MATCH(K106-2,krzywa!A:A,0))),AVERAGE(INDIRECT("krzywa!C"&MATCH(A106-$A$2+BQ106,krzywa!A:A,0)&":C"&MATCH(B106-$A$2-AY106,krzywa!A:A,0)))),INDIRECT("krzywa!C"&MATCH(K106,krzywa!A:A,0))),4) ->  | P106: 0 | Q106: =-C106*ABS(D106-F106)*H106*I106*U106+'kompensacja międzyproduktowa'!X106*U106 ->  | R106: =ROUND(IF((B106-A106+1)>2,IF(C106=75,AVERAGE(INDIRECT("krzywa!D"&MATCH(K106-6,krzywa!A:A,0)&":D"&MATCH(K106-2,krzywa!A:A,0))),AVERAGE(INDIRECT("krzywa!D"&MATCH(A106-$A$2+BQ106,krzywa!A:A,0)&":D"&MATCH(B106-$A$2-AY106,krzywa!A:A,0)))),INDIRECT("krzywa!D"&MATCH(K106,krzywa!A:A,0))),4) ->  | S106: =VLOOKUP(A106,krzywa!L:N,3,1) -> 0 | T106: =VLOOKUP(B106,krzywa!L:N,3,1) -> 0 | U106: =IF('Kalkulator Depozytów'!$B$35=TRUE,1,(1+S106/100)*W106+(1+T106/100)*(1-W106)) -> 1 | V106: =IF(S106<>T106,VLOOKUP(A106,krzywa!L:M,2,1)) -> FALSE | W106: =IF(V106<>FALSE,IF(L106="BASE",(V106-A106+1)*24+J106,IF(L106="OFFPEAK",NETWORKDAYS(A106,V106,koszyki!$M$20:$M$898)*9+(N106)*24+J106,IF(L106="L-PEAK5",NETWORKDAYS(A106,V106,koszyki!$M$20:$M$898)*10,IF(L106="H-PEAK5",NETWORKDAYS(A106,V106,koszyki!$M$20:$M$898)*5,NETWORKDAYS(A106,V106,koszyki!$M$20:$M$898)*15))))/C106,1) -> 1
A107: 2024-12-16 | B107: 2024-12-22 | C107: 50 | D107: ='Kalkulator Depozytów'!M112 -> 0 | E107: ='Kalkulator Depozytów'!N112 -> 0 | F107: ='Kalkulator Depozytów'!O112 -> 0 | G107: ='Kalkulator Depozytów'!P112 -> 0 | H107: ='Kalkulator Depozytów'!Q112 -> 0 | I107: =ROUND(IF(OR(AND(K107>0,L107="L-PEAK5"),AND(K107>0,L107="H-PEAK5")),R107,IF(AND(K107>0,L107="PEAK5"),O107,IF(K107>0,IF(OR(L107="BASE"),AVERAGE(INDIRECT("krzywa!B"&MATCH(A107-$A$2,krzywa!A:A,0)&":B"&MATCH(B107-$A$2,krzywa!A:A,0),TRUE)),IF(OR(L107="OFFPEAK"),AVERAGE(INDIRECT("krzywa!F"&MATCH(A107-$A$2,krzywa!A:A,0)&":F"&MATCH(B107-$A$2,krzywa!A:A,0)))))))),4) ->  | K107: 45648 | L107: L-PEAK5 | M107: =NETWORKDAYS(A107,B107,koszyki!$M$20:$M$898) -> 5 | N107: =B107-A107+1- NETWORKDAYS(A107,B107,koszyki!$M$20:$M$898) -> 2 | O107: =ROUND(IF((B107-A107+1)>2,IF(C107=75,AVERAGE(INDIRECT("krzywa!C"&MATCH(K107-6,krzywa!A:A,0)&":C"&MATCH(K107-2,krzywa!A:A,0))),AVERAGE(INDIRECT("krzywa!C"&MATCH(A107-$A$2+BQ107,krzywa!A:A,0)&":C"&MATCH(B107-$A$2-AY107,krzywa!A:A,0)))),INDIRECT("krzywa!C"&MATCH(K107,krzywa!A:A,0))),4) ->  | P107: 0 | Q107: =-C107*ABS(D107-F107)*H107*I107*U107+'kompensacja międzyproduktowa'!X107*U107 ->  | R107: =ROUND(IF((B107-A107+1)>2,IF(C107=75,AVERAGE(INDIRECT("krzywa!D"&MATCH(K107-6,krzywa!A:A,0)&":D"&MATCH(K107-2,krzywa!A:A,0))),AVERAGE(INDIRECT("krzywa!D"&MATCH(A107-$A$2+BQ107,krzywa!A:A,0)&":D"&MATCH(B107-$A$2-AY107,krzywa!A:A,0)))),INDIRECT("krzywa!D"&MATCH(K107,krzywa!A:A,0))),4) ->  | S107: =VLOOKUP(A107,krzywa!L:N,3,1) -> 0 | T107: =VLOOKUP(B107,krzywa!L:N,3,1) -> 0 | U107: =IF('Kalkulator Depozytów'!$B$35=TRUE,1,(1+S107/100)*W107+(1+T107/100)*(1-W107)) -> 1 | V107: =IF(S107<>T107,VLOOKUP(A107,krzywa!L:M,2,1)) -> FALSE | W107: =IF(V107<>FALSE,IF(L107="BASE",(V107-A107+1)*24+J107,IF(L107="OFFPEAK",NETWORKDAYS(A107,V107,koszyki!$M$20:$M$898)*9+(N107)*24+J107,IF(L107="L-PEAK5",NETWORKDAYS(A107,V107,koszyki!$M$20:$M$898)*10,IF(L107="H-PEAK5",NETWORKDAYS(A107,V107,koszyki!$M$20:$M$898)*5,NETWORKDAYS(A107,V107,koszyki!$M$20:$M$898)*15))))/C107,1) -> 1
A108: 2024-12-23 | B108: 2024-12-29 | C108: 30 | D108: ='Kalkulator Depozytów'!M113 -> 0 | E108: ='Kalkulator Depozytów'!N113 -> 0 | F108: ='Kalkulator Depozytów'!O113 -> 0 | G108: ='Kalkulator Depozytów'!P113 -> 0 | H108: ='Kalkulator Depozytów'!Q113 -> 0 | I108: =ROUND(IF(OR(AND(K108>0,L108="L-PEAK5"),AND(K108>0,L108="H-PEAK5")),R108,IF(AND(K108>0,L108="PEAK5"),O108,IF(K108>0,IF(OR(L108="BASE"),AVERAGE(INDIRECT("krzywa!B"&MATCH(A108-$A$2,krzywa!A:A,0)&":B"&MATCH(B108-$A$2,krzywa!A:A,0),TRUE)),IF(OR(L108="OFFPEAK"),AVERAGE(INDIRECT("krzywa!F"&MATCH(A108-$A$2,krzywa!A:A,0)&":F"&MATCH(B108-$A$2,krzywa!A:A,0)))))))),4) ->  | K108: 45655 | L108: L-PEAK5 | M108: =NETWORKDAYS(A108,B108,koszyki!$M$20:$M$898) -> 3 | N108: =B108-A108+1- NETWORKDAYS(A108,B108,koszyki!$M$20:$M$898) -> 4 | O108: =ROUND(IF((B108-A108+1)>2,IF(C108=75,AVERAGE(INDIRECT("krzywa!C"&MATCH(K108-6,krzywa!A:A,0)&":C"&MATCH(K108-2,krzywa!A:A,0))),AVERAGE(INDIRECT("krzywa!C"&MATCH(A108-$A$2+BQ108,krzywa!A:A,0)&":C"&MATCH(B108-$A$2-AY108,krzywa!A:A,0)))),INDIRECT("krzywa!C"&MATCH(K108,krzywa!A:A,0))),4) ->  | P108: 0 | Q108: =-C108*ABS(D108-F108)*H108*I108*U108+'kompensacja międzyproduktowa'!X108*U108 ->  | R108: =ROUND(IF((B108-A108+1)>2,IF(C108=75,AVERAGE(INDIRECT("krzywa!D"&MATCH(K108-6,krzywa!A:A,0)&":D"&MATCH(K108-2,krzywa!A:A,0))),AVERAGE(INDIRECT("krzywa!D"&MATCH(A108-$A$2+BQ108,krzywa!A:A,0)&":D"&MATCH(B108-$A$2-AY108,krzywa!A:A,0)))),INDIRECT("krzywa!D"&MATCH(K108,krzywa!A:A,0))),4) ->  | S108: =VLOOKUP(A108,krzywa!L:N,3,1) -> 0 | T108: =VLOOKUP(B108,krzywa!L:N,3,1) -> 0 | U108: =IF('Kalkulator Depozytów'!$B$35=TRUE,1,(1+S108/100)*W108+(1+T108/100)*(1-W108)) -> 1 | V108: =IF(S108<>T108,VLOOKUP(A108,krzywa!L:M,2,1)) -> FALSE | W108: =IF(V108<>FALSE,IF(L108="BASE",(V108-A108+1)*24+J108,IF(L108="OFFPEAK",NETWORKDAYS(A108,V108,koszyki!$M$20:$M$898)*9+(N108)*24+J108,IF(L108="L-PEAK5",NETWORKDAYS(A108,V108,koszyki!$M$20:$M$898)*10,IF(L108="H-PEAK5",NETWORKDAYS(A108,V108,koszyki!$M$20:$M$898)*5,NETWORKDAYS(A108,V108,koszyki!$M$20:$M$898)*15))))/C108,1) -> 1
A109: 2024-12-30 | B109: 2024-12-31 | C109: 20 | D109: ='Kalkulator Depozytów'!M114 -> 0 | E109: ='Kalkulator Depozytów'!N114 -> 0 | F109: ='Kalkulator Depozytów'!O114 -> 0 | G109: ='Kalkulator Depozytów'!P114 -> 0 | H109: ='Kalkulator Depozytów'!Q114 -> 0 | I109: =ROUND(IF(OR(AND(K109>0,L109="L-PEAK5"),AND(K109>0,L109="H-PEAK5")),R109,IF(AND(K109>0,L109="PEAK5"),O109,IF(K109>0,IF(OR(L109="BASE"),AVERAGE(INDIRECT("krzywa!B"&MATCH(A109-$A$2,krzywa!A:A,0)&":B"&MATCH(B109-$A$2,krzywa!A:A,0),TRUE)),IF(OR(L109="OFFPEAK"),AVERAGE(INDIRECT("krzywa!F"&MATCH(A109-$A$2,krzywa!A:A,0)&":F"&MATCH(B109-$A$2,krzywa!A:A,0)))))))),4) ->  | K109: 45657 | L109: L-PEAK5 | M109: =NETWORKDAYS(A109,B109,koszyki!$M$20:$M$898) -> 2 | N109: =B109-A109+1- NETWORKDAYS(A109,B109,koszyki!$M$20:$M$898) -> 0 | O109: =ROUND(IF((B109-A109+1)>2,IF(C109=75,AVERAGE(INDIRECT("krzywa!C"&MATCH(K109-6,krzywa!A:A,0)&":C"&MATCH(K109-2,krzywa!A:A,0))),AVERAGE(INDIRECT("krzywa!C"&MATCH(A109-$A$2+BQ109,krzywa!A:A,0)&":C"&MATCH(B109-$A$2-AY109,krzywa!A:A,0)))),INDIRECT("krzywa!C"&MATCH(K109,krzywa!A:A,0))),4) ->  | P109: 0 | Q109: =-C109*ABS(D109-F109)*H109*I109*U109+'kompensacja międzyproduktowa'!X109*U109 ->  | R109: =ROUND(IF((B109-A109+1)>2,IF(C109=75,AVERAGE(INDIRECT("krzywa!D"&MATCH(K109-6,krzywa!A:A,0)&":D"&MATCH(K109-2,krzywa!A:A,0))),AVERAGE(INDIRECT("krzywa!D"&MATCH(A109-$A$2+BQ109,krzywa!A:A,0)&":D"&MATCH(B109-$A$2-AY109,krzywa!A:A,0)))),INDIRECT("krzywa!D"&MATCH(K109,krzywa!A:A,0))),4) ->  | S109: =VLOOKUP(A109,krzywa!L:N,3,1) -> 0 | T109: =VLOOKUP(B109,krzywa!L:N,3,1) -> 0 | U109: =IF('Kalkulator Depozytów'!$B$35=TRUE,1,(1+S109/100)*W109+(1+T109/100)*(1-W109)) -> 1 | V109: =IF(S109<>T109,VLOOKUP(A109,krzywa!L:M,2,1)) -> FALSE | W109: =IF(V109<>FALSE,IF(L109="BASE",(V109-A109+1)*24+J109,IF(L109="OFFPEAK",NETWORKDAYS(A109,V109,koszyki!$M$20:$M$898)*9+(N109)*24+J109,IF(L109="L-PEAK5",NETWORKDAYS(A109,V109,koszyki!$M$20:$M$898)*10,IF(L109="H-PEAK5",NETWORKDAYS(A109,V109,koszyki!$M$20:$M$898)*5,NETWORKDAYS(A109,V109,koszyki!$M$20:$M$898)*15))))/C109,1) -> 1
A110: 2025-01-01 | B110: 2025-01-31 | C110: 210 | D110: ='Kalkulator Depozytów'!M115 -> 0 | E110: ='Kalkulator Depozytów'!N115 -> 0 | F110: ='Kalkulator Depozytów'!O115 -> 0 | G110: ='Kalkulator Depozytów'!P115 -> 0 | H110: ='Kalkulator Depozytów'!Q115 -> 0 | I110: =ROUND(IF(OR(AND(K110>0,L110="L-PEAK5"),AND(K110>0,L110="H-PEAK5")),R110,IF(AND(K110>0,L110="PEAK5"),O110,IF(K110>0,IF(OR(L110="BASE"),AVERAGE(INDIRECT("krzywa!B"&MATCH(A110-$A$2,krzywa!A:A,0)&":B"&MATCH(B110-$A$2,krzywa!A:A,0),TRUE)),IF(OR(L110="OFFPEAK"),AVERAGE(INDIRECT("krzywa!F"&MATCH(A110-$A$2,krzywa!A:A,0)&":F"&MATCH(B110-$A$2,krzywa!A:A,0)))))))),4) ->  | K110: 45688 | L110: L-PEAK5 | M110: =NETWORKDAYS(A110,B110,koszyki!$M$20:$M$898) -> 21 | N110: =B110-A110+1- NETWORKDAYS(A110,B110,koszyki!$M$20:$M$898) -> 10 | O110: =ROUND(IF((B110-A110+1)>2,IF(C110=75,AVERAGE(INDIRECT("krzywa!C"&MATCH(K110-6,krzywa!A:A,0)&":C"&MATCH(K110-2,krzywa!A:A,0))),AVERAGE(INDIRECT("krzywa!C"&MATCH(A110-$A$2+BQ110,krzywa!A:A,0)&":C"&MATCH(B110-$A$2-AY110,krzywa!A:A,0)))),INDIRECT("krzywa!C"&MATCH(K110,krzywa!A:A,0))),4) ->  | P110: 0 | Q110: =-C110*ABS(D110-F110)*H110*I110*U110+'kompensacja międzyproduktowa'!X110*U110 ->  | R110: =ROUND(IF((B110-A110+1)>2,IF(C110=75,AVERAGE(INDIRECT("krzywa!D"&MATCH(K110-6,krzywa!A:A,0)&":D"&MATCH(K110-2,krzywa!A:A,0))),AVERAGE(INDIRECT("krzywa!D"&MATCH(A110-$A$2+BQ110,krzywa!A:A,0)&":D"&MATCH(B110-$A$2-AY110,krzywa!A:A,0)))),INDIRECT("krzywa!D"&MATCH(K110,krzywa!A:A,0))),4) ->  | S110: =VLOOKUP(A110,krzywa!L:N,3,1) -> 0 | T110: =VLOOKUP(B110,krzywa!L:N,3,1) -> 0 | U110: =IF('Kalkulator Depozytów'!$B$35=TRUE,1,(1+S110/100)*W110+(1+T110/100)*(1-W110)) -> 1 | V110: =IF(S110<>T110,VLOOKUP(A110,krzywa!L:M,2,1)) -> FALSE | W110: =IF(V110<>FALSE,IF(L110="BASE",(V110-A110+1)*24+J110,IF(L110="OFFPEAK",NETWORKDAYS(A110,V110,koszyki!$M$20:$M$898)*9+(N110)*24+J110,IF(L110="L-PEAK5",NETWORKDAYS(A110,V110,koszyki!$M$20:$M$898)*10,IF(L110="H-PEAK5",NETWORKDAYS(A110,V110,koszyki!$M$20:$M$898)*5,NETWORKDAYS(A110,V110,koszyki!$M$20:$M$898)*15))))/C110,1) -> 1
A111: 2025-02-01 | B111: 2025-03-31 | C111: 410 | D111: ='Kalkulator Depozytów'!M116 -> 0 | E111: ='Kalkulator Depozytów'!N116 -> 0 | F111: ='Kalkulator Depozytów'!O116 -> 0 | G111: ='Kalkulator Depozytów'!P116 -> 0 | H111: ='Kalkulator Depozytów'!Q116 -> 0 | I111: =ROUND(IF(OR(AND(K111>0,L111="L-PEAK5"),AND(K111>0,L111="H-PEAK5")),R111,IF(AND(K111>0,L111="PEAK5"),O111,IF(K111>0,IF(OR(L111="BASE"),AVERAGE(INDIRECT("krzywa!B"&MATCH(A111-$A$2,krzywa!A:A,0)&":B"&MATCH(B111-$A$2,krzywa!A:A,0),TRUE)),IF(OR(L111="OFFPEAK"),AVERAGE(INDIRECT("krzywa!F"&MATCH(A111-$A$2,krzywa!A:A,0)&":F"&MATCH(B111-$A$2,krzywa!A:A,0)))))))),4) ->  | K111: 45747 | L111: L-PEAK5 | M111: =NETWORKDAYS(A111,B111,koszyki!$M$20:$M$898) -> 41 | N111: =B111-A111+1- NETWORKDAYS(A111,B111,koszyki!$M$20:$M$898) -> 18 | O111: =ROUND(IF((B111-A111+1)>2,IF(C111=75,AVERAGE(INDIRECT("krzywa!C"&MATCH(K111-6,krzywa!A:A,0)&":C"&MATCH(K111-2,krzywa!A:A,0))),AVERAGE(INDIRECT("krzywa!C"&MATCH(A111-$A$2+BQ111,krzywa!A:A,0)&":C"&MATCH(B111-$A$2-AY111,krzywa!A:A,0)))),INDIRECT("krzywa!C"&MATCH(K111,krzywa!A:A,0))),4) ->  | P111: 0 | Q111: =-C111*ABS(D111-F111)*H111*I111*U111+'kompensacja międzyproduktowa'!X111*U111 ->  | R111: =ROUND(IF((B111-A111+1)>2,IF(C111=75,AVERAGE(INDIRECT("krzywa!D"&MATCH(K111-6,krzywa!A:A,0)&":D"&MATCH(K111-2,krzywa!A:A,0))),AVERAGE(INDIRECT("krzywa!D"&MATCH(A111-$A$2+BQ111,krzywa!A:A,0)&":D"&MATCH(B111-$A$2-AY111,krzywa!A:A,0)))),INDIRECT("krzywa!D"&MATCH(K111,krzywa!A:A,0))),4) ->  | S111: =VLOOKUP(A111,krzywa!L:N,3,1) -> 0 | T111: =VLOOKUP(B111,krzywa!L:N,3,1) -> 0 | U111: =IF('Kalkulator Depozytów'!$B$35=TRUE,1,(1+S111/100)*W111+(1+T111/100)*(1-W111)) -> 1 | V111: =IF(S111<>T111,VLOOKUP(A111,krzywa!L:M,2,1)) -> FALSE | W111: =IF(V111<>FALSE,IF(L111="BASE",(V111-A111+1)*24+J111,IF(L111="OFFPEAK",NETWORKDAYS(A111,V111,koszyki!$M$20:$M$898)*9+(N111)*24+J111,IF(L111="L-PEAK5",NETWORKDAYS(A111,V111,koszyki!$M$20:$M$898)*10,IF(L111="H-PEAK5",NETWORKDAYS(A111,V111,koszyki!$M$20:$M$898)*5,NETWORKDAYS(A111,V111,koszyki!$M$20:$M$898)*15))))/C111,1) -> 1
A112: 2025-04-01 | B112: 2025-06-30 | C112: 620 | D112: ='Kalkulator Depozytów'!M117 -> 0 | E112: ='Kalkulator Depozytów'!N117 -> 0 | F112: ='Kalkulator Depozytów'!O117 -> 0 | G112: ='Kalkulator Depozytów'!P117 -> 0 | H112: ='Kalkulator Depozytów'!Q117 -> 0 | I112: =ROUND(IF(OR(AND(K112>0,L112="L-PEAK5"),AND(K112>0,L112="H-PEAK5")),R112,IF(AND(K112>0,L112="PEAK5"),O112,IF(K112>0,IF(OR(L112="BASE"),AVERAGE(INDIRECT("krzywa!B"&MATCH(A112-$A$2,krzywa!A:A,0)&":B"&MATCH(B112-$A$2,krzywa!A:A,0),TRUE)),IF(OR(L112="OFFPEAK"),AVERAGE(INDIRECT("krzywa!F"&MATCH(A112-$A$2,krzywa!A:A,0)&":F"&MATCH(B112-$A$2,krzywa!A:A,0)))))))),4) ->  | K112: 45838 | L112: L-PEAK5 | M112: =NETWORKDAYS(A112,B112,koszyki!$M$20:$M$898) -> 62 | N112: =B112-A112+1- NETWORKDAYS(A112,B112,koszyki!$M$20:$M$898) -> 29 | O112: =ROUND(IF((B112-A112+1)>2,IF(C112=75,AVERAGE(INDIRECT("krzywa!C"&MATCH(K112-6,krzywa!A:A,0)&":C"&MATCH(K112-2,krzywa!A:A,0))),AVERAGE(INDIRECT("krzywa!C"&MATCH(A112-$A$2+BQ112,krzywa!A:A,0)&":C"&MATCH(B112-$A$2-AY112,krzywa!A:A,0)))),INDIRECT("krzywa!C"&MATCH(K112,krzywa!A:A,0))),4) ->  | P112: 0 | Q112: =-C112*ABS(D112-F112)*H112*I112*U112+'kompensacja międzyproduktowa'!X112*U112 ->  | R112: =ROUND(IF((B112-A112+1)>2,IF(C112=75,AVERAGE(INDIRECT("krzywa!D"&MATCH(K112-6,krzywa!A:A,0)&":D"&MATCH(K112-2,krzywa!A:A,0))),AVERAGE(INDIRECT("krzywa!D"&MATCH(A112-$A$2+BQ112,krzywa!A:A,0)&":D"&MATCH(B112-$A$2-AY112,krzywa!A:A,0)))),INDIRECT("krzywa!D"&MATCH(K112,krzywa!A:A,0))),4) ->  | S112: =VLOOKUP(A112,krzywa!L:N,3,1) -> 0 | T112: =VLOOKUP(B112,krzywa!L:N,3,1) -> 0 | U112: =IF('Kalkulator Depozytów'!$B$35=TRUE,1,(1+S112/100)*W112+(1+T112/100)*(1-W112)) -> 1 | V112: =IF(S112<>T112,VLOOKUP(A112,krzywa!L:M,2,1)) -> FALSE | W112: =IF(V112<>FALSE,IF(L112="BASE",(V112-A112+1)*24+J112,IF(L112="OFFPEAK",NETWORKDAYS(A112,V112,koszyki!$M$20:$M$898)*9+(N112)*24+J112,IF(L112="L-PEAK5",NETWORKDAYS(A112,V112,koszyki!$M$20:$M$898)*10,IF(L112="H-PEAK5",NETWORKDAYS(A112,V112,koszyki!$M$20:$M$898)*5,NETWORKDAYS(A112,V112,koszyki!$M$20:$M$898)*15))))/C112,1) -> 1
A113: 2024-11-28 | B113: 2024-11-28 | C113: 5 | D113: ='Kalkulator Depozytów'!M118 -> 0 | E113: ='Kalkulator Depozytów'!N118 -> 0 | F113: ='Kalkulator Depozytów'!O118 -> 0 | G113: ='Kalkulator Depozytów'!P118 -> 0 | H113: ='Kalkulator Depozytów'!Q118 -> 0 | I113: =ROUND(IF(OR(AND(K113>0,L113="L-PEAK5"),AND(K113>0,L113="H-PEAK5")),R113,IF(AND(K113>0,L113="PEAK5"),O113,IF(K113>0,IF(OR(L113="BASE"),AVERAGE(INDIRECT("krzywa!B"&MATCH(A113-$A$2,krzywa!A:A,0)&":B"&MATCH(B113-$A$2,krzywa!A:A,0),TRUE)),IF(OR(L113="OFFPEAK"),AVERAGE(INDIRECT("krzywa!F"&MATCH(A113-$A$2,krzywa!A:A,0)&":F"&MATCH(B113-$A$2,krzywa!A:A,0)))))))),4) ->  | K113: 45624 | L113: H-PEAK5 | M113: =NETWORKDAYS(A113,B113,koszyki!$M$20:$M$898) -> 1 | N113: =B113-A113+1- NETWORKDAYS(A113,B113,koszyki!$M$20:$M$898) -> 0 | O113: =ROUND(IF((B113-A113+1)>2,IF(C113=75,AVERAGE(INDIRECT("krzywa!C"&MATCH(K113-6,krzywa!A:A,0)&":C"&MATCH(K113-2,krzywa!A:A,0))),AVERAGE(INDIRECT("krzywa!C"&MATCH(A113-$A$2+BQ113,krzywa!A:A,0)&":C"&MATCH(B113-$A$2-AY113,krzywa!A:A,0)))),INDIRECT("krzywa!C"&MATCH(K113,krzywa!A:A,0))),4) ->  | P113: 0 | Q113: =-C113*ABS(D113-F113)*H113*I113*U113+'kompensacja międzyproduktowa'!X113*U113 ->  | R113: =ROUND(IF((B113-A113+1)>2,IF(C113=75,AVERAGE(INDIRECT("krzywa!D"&MATCH(K113-6,krzywa!A:A,0)&":D"&MATCH(K113-2,krzywa!A:A,0))),AVERAGE(INDIRECT("krzywa!D"&MATCH(A113-$A$2+BQ113,krzywa!A:A,0)&":D"&MATCH(B113-$A$2-AY113,krzywa!A:A,0)))),INDIRECT("krzywa!D"&MATCH(K113,krzywa!A:A,0))),4) ->  | S113: =VLOOKUP(A113,krzywa!L:N,3,1) -> 0 | T113: =VLOOKUP(B113,krzywa!L:N,3,1) -> 0 | U113: =IF('Kalkulator Depozytów'!$B$35=TRUE,1,(1+S113/100)*W113+(1+T113/100)*(1-W113)) -> 1 | V113: =IF(S113<>T113,VLOOKUP(A113,krzywa!L:M,2,1)) -> FALSE | W113: =IF(V113<>FALSE,IF(L113="BASE",(V113-A113+1)*24+J113,IF(L113="OFFPEAK",NETWORKDAYS(A113,V113,koszyki!$M$20:$M$898)*9+(N113)*24+J113,IF(L113="L-PEAK5",NETWORKDAYS(A113,V113,koszyki!$M$20:$M$898)*10,IF(L113="H-PEAK5",NETWORKDAYS(A113,V113,koszyki!$M$20:$M$898)*5,NETWORKDAYS(A113,V113,koszyki!$M$20:$M$898)*15))))/C113,1) -> 1
A114: 2024-11-29 | B114: 2024-11-29 | C114: 5 | D114: ='Kalkulator Depozytów'!M119 -> 0 | E114: ='Kalkulator Depozytów'!N119 -> 0 | F114: ='Kalkulator Depozytów'!O119 -> 0 | G114: ='Kalkulator Depozytów'!P119 -> 0 | H114: ='Kalkulator Depozytów'!Q119 -> 0 | I114: =ROUND(IF(OR(AND(K114>0,L114="L-PEAK5"),AND(K114>0,L114="H-PEAK5")),R114,IF(AND(K114>0,L114="PEAK5"),O114,IF(K114>0,IF(OR(L114="BASE"),AVERAGE(INDIRECT("krzywa!B"&MATCH(A114-$A$2,krzywa!A:A,0)&":B"&MATCH(B114-$A$2,krzywa!A:A,0),TRUE)),IF(OR(L114="OFFPEAK"),AVERAGE(INDIRECT("krzywa!F"&MATCH(A114-$A$2,krzywa!A:A,0)&":F"&MATCH(B114-$A$2,krzywa!A:A,0)))))))),4) ->  | K114: 45625 | L114: H-PEAK5 | M114: =NETWORKDAYS(A114,B114,koszyki!$M$20:$M$898) -> 1 | N114: =B114-A114+1- NETWORKDAYS(A114,B114,koszyki!$M$20:$M$898) -> 0 | O114: =ROUND(IF((B114-A114+1)>2,IF(C114=75,AVERAGE(INDIRECT("krzywa!C"&MATCH(K114-6,krzywa!A:A,0)&":C"&MATCH(K114-2,krzywa!A:A,0))),AVERAGE(INDIRECT("krzywa!C"&MATCH(A114-$A$2+BQ114,krzywa!A:A,0)&":C"&MATCH(B114-$A$2-AY114,krzywa!A:A,0)))),INDIRECT("krzywa!C"&MATCH(K114,krzywa!A:A,0))),4) ->  | P114: 0 | Q114: =-C114*ABS(D114-F114)*H114*I114*U114+'kompensacja międzyproduktowa'!X114*U114 ->  | R114: =ROUND(IF((B114-A114+1)>2,IF(C114=75,AVERAGE(INDIRECT("krzywa!D"&MATCH(K114-6,krzywa!A:A,0)&":D"&MATCH(K114-2,krzywa!A:A,0))),AVERAGE(INDIRECT("krzywa!D"&MATCH(A114-$A$2+BQ114,krzywa!A:A,0)&":D"&MATCH(B114-$A$2-AY114,krzywa!A:A,0)))),INDIRECT("krzywa!D"&MATCH(K114,krzywa!A:A,0))),4) ->  | S114: =VLOOKUP(A114,krzywa!L:N,3,1) -> 0 | T114: =VLOOKUP(B114,krzywa!L:N,3,1) -> 0 | U114: =IF('Kalkulator Depozytów'!$B$35=TRUE,1,(1+S114/100)*W114+(1+T114/100)*(1-W114)) -> 1 | V114: =IF(S114<>T114,VLOOKUP(A114,krzywa!L:M,2,1)) -> FALSE | W114: =IF(V114<>FALSE,IF(L114="BASE",(V114-A114+1)*24+J114,IF(L114="OFFPEAK",NETWORKDAYS(A114,V114,koszyki!$M$20:$M$898)*9+(N114)*24+J114,IF(L114="L-PEAK5",NETWORKDAYS(A114,V114,koszyki!$M$20:$M$898)*10,IF(L114="H-PEAK5",NETWORKDAYS(A114,V114,koszyki!$M$20:$M$898)*5,NETWORKDAYS(A114,V114,koszyki!$M$20:$M$898)*15))))/C114,1) -> 1
A115: 2024-11-30 | B115: 2024-11-30 | C115: 0 | D115: ='Kalkulator Depozytów'!M120 -> 0 | E115: ='Kalkulator Depozytów'!N120 -> 0 | F115: ='Kalkulator Depozytów'!O120 -> 0 | G115: ='Kalkulator Depozytów'!P120 -> 0 | H115: ='Kalkulator Depozytów'!Q120 -> 0 | I115: =ROUND(IF(OR(AND(K115>0,L115="L-PEAK5"),AND(K115>0,L115="H-PEAK5")),R115,IF(AND(K115>0,L115="PEAK5"),O115,IF(K115>0,IF(OR(L115="BASE"),AVERAGE(INDIRECT("krzywa!B"&MATCH(A115-$A$2,krzywa!A:A,0)&":B"&MATCH(B115-$A$2,krzywa!A:A,0),TRUE)),IF(OR(L115="OFFPEAK"),AVERAGE(INDIRECT("krzywa!F"&MATCH(A115-$A$2,krzywa!A:A,0)&":F"&MATCH(B115-$A$2,krzywa!A:A,0)))))))),4) ->  | K115: 45626 | L115: H-PEAK5 | M115: =NETWORKDAYS(A115,B115,koszyki!$M$20:$M$898) -> 0 | N115: =B115-A115+1- NETWORKDAYS(A115,B115,koszyki!$M$20:$M$898) -> 1 | O115: =ROUND(IF((B115-A115+1)>2,IF(C115=75,AVERAGE(INDIRECT("krzywa!C"&MATCH(K115-6,krzywa!A:A,0)&":C"&MATCH(K115-2,krzywa!A:A,0))),AVERAGE(INDIRECT("krzywa!C"&MATCH(A115-$A$2+BQ115,krzywa!A:A,0)&":C"&MATCH(B115-$A$2-AY115,krzywa!A:A,0)))),INDIRECT("krzywa!C"&MATCH(K115,krzywa!A:A,0))),4) ->  | P115: 0 | Q115: =-C115*ABS(D115-F115)*H115*I115*U115+'kompensacja międzyproduktowa'!X115*U115 ->  | R115: =ROUND(IF((B115-A115+1)>2,IF(C115=75,AVERAGE(INDIRECT("krzywa!D"&MATCH(K115-6,krzywa!A:A,0)&":D"&MATCH(K115-2,krzywa!A:A,0))),AVERAGE(INDIRECT("krzywa!D"&MATCH(A115-$A$2+BQ115,krzywa!A:A,0)&":D"&MATCH(B115-$A$2-AY115,krzywa!A:A,0)))),INDIRECT("krzywa!D"&MATCH(K115,krzywa!A:A,0))),4) ->  | S115: =VLOOKUP(A115,krzywa!L:N,3,1) -> 0 | T115: =VLOOKUP(B115,krzywa!L:N,3,1) -> 0 | U115: =IF('Kalkulator Depozytów'!$B$35=TRUE,1,(1+S115/100)*W115+(1+T115/100)*(1-W115)) -> 1 | V115: =IF(S115<>T115,VLOOKUP(A115,krzywa!L:M,2,1)) -> FALSE | W115: =IF(V115<>FALSE,IF(L115="BASE",(V115-A115+1)*24+J115,IF(L115="OFFPEAK",NETWORKDAYS(A115,V115,koszyki!$M$20:$M$898)*9+(N115)*24+J115,IF(L115="L-PEAK5",NETWORKDAYS(A115,V115,koszyki!$M$20:$M$898)*10,IF(L115="H-PEAK5",NETWORKDAYS(A115,V115,koszyki!$M$20:$M$898)*5,NETWORKDAYS(A115,V115,koszyki!$M$20:$M$898)*15))))/C115,1) -> 1
A116: 2024-12-01 | B116: 2024-12-01 | C116: 0 | D116: ='Kalkulator Depozytów'!M121 -> 0 | E116: ='Kalkulator Depozytów'!N121 -> 0 | F116: ='Kalkulator Depozytów'!O121 -> 0 | G116: ='Kalkulator Depozytów'!P121 -> 0 | H116: ='Kalkulator Depozytów'!Q121 -> 0 | I116: =ROUND(IF(OR(AND(K116>0,L116="L-PEAK5"),AND(K116>0,L116="H-PEAK5")),R116,IF(AND(K116>0,L116="PEAK5"),O116,IF(K116>0,IF(OR(L116="BASE"),AVERAGE(INDIRECT("krzywa!B"&MATCH(A116-$A$2,krzywa!A:A,0)&":B"&MATCH(B116-$A$2,krzywa!A:A,0),TRUE)),IF(OR(L116="OFFPEAK"),AVERAGE(INDIRECT("krzywa!F"&MATCH(A116-$A$2,krzywa!A:A,0)&":F"&MATCH(B116-$A$2,krzywa!A:A,0)))))))),4) ->  | K116: 45627 | L116: H-PEAK5 | M116: =NETWORKDAYS(A116,B116,koszyki!$M$20:$M$898) -> 0 | N116: =B116-A116+1- NETWORKDAYS(A116,B116,koszyki!$M$20:$M$898) -> 1 | O116: =ROUND(IF((B116-A116+1)>2,IF(C116=75,AVERAGE(INDIRECT("krzywa!C"&MATCH(K116-6,krzywa!A:A,0)&":C"&MATCH(K116-2,krzywa!A:A,0))),AVERAGE(INDIRECT("krzywa!C"&MATCH(A116-$A$2+BQ116,krzywa!A:A,0)&":C"&MATCH(B116-$A$2-AY116,krzywa!A:A,0)))),INDIRECT("krzywa!C"&MATCH(K116,krzywa!A:A,0))),4) ->  | P116: 0 | Q116: =-C116*ABS(D116-F116)*H116*I116*U116+'kompensacja międzyproduktowa'!X116*U116 ->  | R116: =ROUND(IF((B116-A116+1)>2,IF(C116=75,AVERAGE(INDIRECT("krzywa!D"&MATCH(K116-6,krzywa!A:A,0)&":D"&MATCH(K116-2,krzywa!A:A,0))),AVERAGE(INDIRECT("krzywa!D"&MATCH(A116-$A$2+BQ116,krzywa!A:A,0)&":D"&MATCH(B116-$A$2-AY116,krzywa!A:A,0)))),INDIRECT("krzywa!D"&MATCH(K116,krzywa!A:A,0))),4) ->  | S116: =VLOOKUP(A116,krzywa!L:N,3,1) -> 0 | T116: =VLOOKUP(B116,krzywa!L:N,3,1) -> 0 | U116: =IF('Kalkulator Depozytów'!$B$35=TRUE,1,(1+S116/100)*W116+(1+T116/100)*(1-W116)) -> 1 | V116: =IF(S116<>T116,VLOOKUP(A116,krzywa!L:M,2,1)) -> FALSE | W116: =IF(V116<>FALSE,IF(L116="BASE",(V116-A116+1)*24+J116,IF(L116="OFFPEAK",NETWORKDAYS(A116,V116,koszyki!$M$20:$M$898)*9+(N116)*24+J116,IF(L116="L-PEAK5",NETWORKDAYS(A116,V116,koszyki!$M$20:$M$898)*10,IF(L116="H-PEAK5",NETWORKDAYS(A116,V116,koszyki!$M$20:$M$898)*5,NETWORKDAYS(A116,V116,koszyki!$M$20:$M$898)*15))))/C116,1) -> 1
A117: 2024-12-02 | B117: 2024-12-02 | C117: 5 | D117: ='Kalkulator Depozytów'!M122 -> 0 | E117: ='Kalkulator Depozytów'!N122 -> 0 | F117: ='Kalkulator Depozytów'!O122 -> 0 | G117: ='Kalkulator Depozytów'!P122 -> 0 | H117: ='Kalkulator Depozytów'!Q122 -> 0 | I117: =ROUND(IF(OR(AND(K117>0,L117="L-PEAK5"),AND(K117>0,L117="H-PEAK5")),R117,IF(AND(K117>0,L117="PEAK5"),O117,IF(K117>0,IF(OR(L117="BASE"),AVERAGE(INDIRECT("krzywa!B"&MATCH(A117-$A$2,krzywa!A:A,0)&":B"&MATCH(B117-$A$2,krzywa!A:A,0),TRUE)),IF(OR(L117="OFFPEAK"),AVERAGE(INDIRECT("krzywa!F"&MATCH(A117-$A$2,krzywa!A:A,0)&":F"&MATCH(B117-$A$2,krzywa!A:A,0)))))))),4) ->  | K117: 45628 | L117: H-PEAK5 | M117: =NETWORKDAYS(A117,B117,koszyki!$M$20:$M$898) -> 1 | N117: =B117-A117+1- NETWORKDAYS(A117,B117,koszyki!$M$20:$M$898) -> 0 | O117: =ROUND(IF((B117-A117+1)>2,IF(C117=75,AVERAGE(INDIRECT("krzywa!C"&MATCH(K117-6,krzywa!A:A,0)&":C"&MATCH(K117-2,krzywa!A:A,0))),AVERAGE(INDIRECT("krzywa!C"&MATCH(A117-$A$2+BQ117,krzywa!A:A,0)&":C"&MATCH(B117-$A$2-AY117,krzywa!A:A,0)))),INDIRECT("krzywa!C"&MATCH(K117,krzywa!A:A,0))),4) ->  | P117: 0 | Q117: =-C117*ABS(D117-F117)*H117*I117*U117+'kompensacja międzyproduktowa'!X117*U117 ->  | R117: =ROUND(IF((B117-A117+1)>2,IF(C117=75,AVERAGE(INDIRECT("krzywa!D"&MATCH(K117-6,krzywa!A:A,0)&":D"&MATCH(K117-2,krzywa!A:A,0))),AVERAGE(INDIRECT("krzywa!D"&MATCH(A117-$A$2+BQ117,krzywa!A:A,0)&":D"&MATCH(B117-$A$2-AY117,krzywa!A:A,0)))),INDIRECT("krzywa!D"&MATCH(K117,krzywa!A:A,0))),4) ->  | S117: =VLOOKUP(A117,krzywa!L:N,3,1) -> 0 | T117: =VLOOKUP(B117,krzywa!L:N,3,1) -> 0 | U117: =IF('Kalkulator Depozytów'!$B$35=TRUE,1,(1+S117/100)*W117+(1+T117/100)*(1-W117)) -> 1 | V117: =IF(S117<>T117,VLOOKUP(A117,krzywa!L:M,2,1)) -> FALSE | W117: =IF(V117<>FALSE,IF(L117="BASE",(V117-A117+1)*24+J117,IF(L117="OFFPEAK",NETWORKDAYS(A117,V117,koszyki!$M$20:$M$898)*9+(N117)*24+J117,IF(L117="L-PEAK5",NETWORKDAYS(A117,V117,koszyki!$M$20:$M$898)*10,IF(L117="H-PEAK5",NETWORKDAYS(A117,V117,koszyki!$M$20:$M$898)*5,NETWORKDAYS(A117,V117,koszyki!$M$20:$M$898)*15))))/C117,1) -> 1
A118: 2024-12-03 | B118: 2024-12-03 | C118: 5 | D118: ='Kalkulator Depozytów'!M123 -> 0 | E118: ='Kalkulator Depozytów'!N123 -> 0 | F118: ='Kalkulator Depozytów'!O123 -> 0 | G118: ='Kalkulator Depozytów'!P123 -> 0 | H118: ='Kalkulator Depozytów'!Q123 -> 0 | I118: =ROUND(IF(OR(AND(K118>0,L118="L-PEAK5"),AND(K118>0,L118="H-PEAK5")),R118,IF(AND(K118>0,L118="PEAK5"),O118,IF(K118>0,IF(OR(L118="BASE"),AVERAGE(INDIRECT("krzywa!B"&MATCH(A118-$A$2,krzywa!A:A,0)&":B"&MATCH(B118-$A$2,krzywa!A:A,0),TRUE)),IF(OR(L118="OFFPEAK"),AVERAGE(INDIRECT("krzywa!F"&MATCH(A118-$A$2,krzywa!A:A,0)&":F"&MATCH(B118-$A$2,krzywa!A:A,0)))))))),4) ->  | K118: 45629 | L118: H-PEAK5 | M118: =NETWORKDAYS(A118,B118,koszyki!$M$20:$M$898) -> 1 | N118: =B118-A118+1- NETWORKDAYS(A118,B118,koszyki!$M$20:$M$898) -> 0 | O118: =ROUND(IF((B118-A118+1)>2,IF(C118=75,AVERAGE(INDIRECT("krzywa!C"&MATCH(K118-6,krzywa!A:A,0)&":C"&MATCH(K118-2,krzywa!A:A,0))),AVERAGE(INDIRECT("krzywa!C"&MATCH(A118-$A$2+BQ118,krzywa!A:A,0)&":C"&MATCH(B118-$A$2-AY118,krzywa!A:A,0)))),INDIRECT("krzywa!C"&MATCH(K118,krzywa!A:A,0))),4) ->  | P118: 0 | Q118: =-C118*ABS(D118-F118)*H118*I118*U118+'kompensacja międzyproduktowa'!X118*U118 ->  | R118: =ROUND(IF((B118-A118+1)>2,IF(C118=75,AVERAGE(INDIRECT("krzywa!D"&MATCH(K118-6,krzywa!A:A,0)&":D"&MATCH(K118-2,krzywa!A:A,0))),AVERAGE(INDIRECT("krzywa!D"&MATCH(A118-$A$2+BQ118,krzywa!A:A,0)&":D"&MATCH(B118-$A$2-AY118,krzywa!A:A,0)))),INDIRECT("krzywa!D"&MATCH(K118,krzywa!A:A,0))),4) ->  | S118: =VLOOKUP(A118,krzywa!L:N,3,1) -> 0 | T118: =VLOOKUP(B118,krzywa!L:N,3,1) -> 0 | U118: =IF('Kalkulator Depozytów'!$B$35=TRUE,1,(1+S118/100)*W118+(1+T118/100)*(1-W118)) -> 1 | V118: =IF(S118<>T118,VLOOKUP(A118,krzywa!L:M,2,1)) -> FALSE | W118: =IF(V118<>FALSE,IF(L118="BASE",(V118-A118+1)*24+J118,IF(L118="OFFPEAK",NETWORKDAYS(A118,V118,koszyki!$M$20:$M$898)*9+(N118)*24+J118,IF(L118="L-PEAK5",NETWORKDAYS(A118,V118,koszyki!$M$20:$M$898)*10,IF(L118="H-PEAK5",NETWORKDAYS(A118,V118,koszyki!$M$20:$M$898)*5,NETWORKDAYS(A118,V118,koszyki!$M$20:$M$898)*15))))/C118,1) -> 1
A119: 2024-12-04 | B119: 2024-12-04 | C119: 5 | D119: ='Kalkulator Depozytów'!M124 -> 0 | E119: ='Kalkulator Depozytów'!N124 -> 0 | F119: ='Kalkulator Depozytów'!O124 -> 0 | G119: ='Kalkulator Depozytów'!P124 -> 0 | H119: ='Kalkulator Depozytów'!Q124 -> 0 | I119: =ROUND(IF(OR(AND(K119>0,L119="L-PEAK5"),AND(K119>0,L119="H-PEAK5")),R119,IF(AND(K119>0,L119="PEAK5"),O119,IF(K119>0,IF(OR(L119="BASE"),AVERAGE(INDIRECT("krzywa!B"&MATCH(A119-$A$2,krzywa!A:A,0)&":B"&MATCH(B119-$A$2,krzywa!A:A,0),TRUE)),IF(OR(L119="OFFPEAK"),AVERAGE(INDIRECT("krzywa!F"&MATCH(A119-$A$2,krzywa!A:A,0)&":F"&MATCH(B119-$A$2,krzywa!A:A,0)))))))),4) ->  | K119: 45630 | L119: H-PEAK5 | M119: =NETWORKDAYS(A119,B119,koszyki!$M$20:$M$898) -> 1 | N119: =B119-A119+1- NETWORKDAYS(A119,B119,koszyki!$M$20:$M$898) -> 0 | O119: =ROUND(IF((B119-A119+1)>2,IF(C119=75,AVERAGE(INDIRECT("krzywa!C"&MATCH(K119-6,krzywa!A:A,0)&":C"&MATCH(K119-2,krzywa!A:A,0))),AVERAGE(INDIRECT("krzywa!C"&MATCH(A119-$A$2+BQ119,krzywa!A:A,0)&":C"&MATCH(B119-$A$2-AY119,krzywa!A:A,0)))),INDIRECT("krzywa!C"&MATCH(K119,krzywa!A:A,0))),4) ->  | P119: 0 | Q119: =-C119*ABS(D119-F119)*H119*I119*U119+'kompensacja międzyproduktowa'!X119*U119 ->  | R119: =ROUND(IF((B119-A119+1)>2,IF(C119=75,AVERAGE(INDIRECT("krzywa!D"&MATCH(K119-6,krzywa!A:A,0)&":D"&MATCH(K119-2,krzywa!A:A,0))),AVERAGE(INDIRECT("krzywa!D"&MATCH(A119-$A$2+BQ119,krzywa!A:A,0)&":D"&MATCH(B119-$A$2-AY119,krzywa!A:A,0)))),INDIRECT("krzywa!D"&MATCH(K119,krzywa!A:A,0))),4) ->  | S119: =VLOOKUP(A119,krzywa!L:N,3,1) -> 0 | T119: =VLOOKUP(B119,krzywa!L:N,3,1) -> 0 | U119: =IF('Kalkulator Depozytów'!$B$35=TRUE,1,(1+S119/100)*W119+(1+T119/100)*(1-W119)) -> 1 | V119: =IF(S119<>T119,VLOOKUP(A119,krzywa!L:M,2,1)) -> FALSE | W119: =IF(V119<>FALSE,IF(L119="BASE",(V119-A119+1)*24+J119,IF(L119="OFFPEAK",NETWORKDAYS(A119,V119,koszyki!$M$20:$M$898)*9+(N119)*24+J119,IF(L119="L-PEAK5",NETWORKDAYS(A119,V119,koszyki!$M$20:$M$898)*10,IF(L119="H-PEAK5",NETWORKDAYS(A119,V119,koszyki!$M$20:$M$898)*5,NETWORKDAYS(A119,V119,koszyki!$M$20:$M$898)*15))))/C119,1) -> 1
A120: 2024-12-05 | B120: 2024-12-05 | C120: 5 | D120: ='Kalkulator Depozytów'!M125 -> 0 | E120: ='Kalkulator Depozytów'!N125 -> 0 | F120: ='Kalkulator Depozytów'!O125 -> 0 | G120: ='Kalkulator Depozytów'!P125 -> 0 | H120: ='Kalkulator Depozytów'!Q125 -> 0 | I120: =ROUND(IF(OR(AND(K120>0,L120="L-PEAK5"),AND(K120>0,L120="H-PEAK5")),R120,IF(AND(K120>0,L120="PEAK5"),O120,IF(K120>0,IF(OR(L120="BASE"),AVERAGE(INDIRECT("krzywa!B"&MATCH(A120-$A$2,krzywa!A:A,0)&":B"&MATCH(B120-$A$2,krzywa!A:A,0),TRUE)),IF(OR(L120="OFFPEAK"),AVERAGE(INDIRECT("krzywa!F"&MATCH(A120-$A$2,krzywa!A:A,0)&":F"&MATCH(B120-$A$2,krzywa!A:A,0)))))))),4) ->  | K120: 45631 | L120: H-PEAK5 | M120: =NETWORKDAYS(A120,B120,koszyki!$M$20:$M$898) -> 1 | N120: =B120-A120+1- NETWORKDAYS(A120,B120,koszyki!$M$20:$M$898) -> 0 | O120: =ROUND(IF((B120-A120+1)>2,IF(C120=75,AVERAGE(INDIRECT("krzywa!C"&MATCH(K120-6,krzywa!A:A,0)&":C"&MATCH(K120-2,krzywa!A:A,0))),AVERAGE(INDIRECT("krzywa!C"&MATCH(A120-$A$2+BQ120,krzywa!A:A,0)&":C"&MATCH(B120-$A$2-AY120,krzywa!A:A,0)))),INDIRECT("krzywa!C"&MATCH(K120,krzywa!A:A,0))),4) ->  | P120: 0 | Q120: =-C120*ABS(D120-F120)*H120*I120*U120+'kompensacja międzyproduktowa'!X120*U120 ->  | R120: =ROUND(IF((B120-A120+1)>2,IF(C120=75,AVERAGE(INDIRECT("krzywa!D"&MATCH(K120-6,krzywa!A:A,0)&":D"&MATCH(K120-2,krzywa!A:A,0))),AVERAGE(INDIRECT("krzywa!D"&MATCH(A120-$A$2+BQ120,krzywa!A:A,0)&":D"&MATCH(B120-$A$2-AY120,krzywa!A:A,0)))),INDIRECT("krzywa!D"&MATCH(K120,krzywa!A:A,0))),4) ->  | S120: =VLOOKUP(A120,krzywa!L:N,3,1) -> 0 | T120: =VLOOKUP(B120,krzywa!L:N,3,1) -> 0 | U120: =IF('Kalkulator Depozytów'!$B$35=TRUE,1,(1+S120/100)*W120+(1+T120/100)*(1-W120)) -> 1 | V120: =IF(S120<>T120,VLOOKUP(A120,krzywa!L:M,2,1)) -> FALSE | W120: =IF(V120<>FALSE,IF(L120="BASE",(V120-A120+1)*24+J120,IF(L120="OFFPEAK",NETWORKDAYS(A120,V120,koszyki!$M$20:$M$898)*9+(N120)*24+J120,IF(L120="L-PEAK5",NETWORKDAYS(A120,V120,koszyki!$M$20:$M$898)*10,IF(L120="H-PEAK5",NETWORKDAYS(A120,V120,koszyki!$M$20:$M$898)*5,NETWORKDAYS(A120,V120,koszyki!$M$20:$M$898)*15))))/C120,1) -> 1
A121: 2024-12-06 | B121: 2024-12-06 | C121: 5 | D121: ='Kalkulator Depozytów'!M126 -> 0 | E121: ='Kalkulator Depozytów'!N126 -> 0 | F121: ='Kalkulator Depozytów'!O126 -> 0 | G121: ='Kalkulator Depozytów'!P126 -> 0 | H121: ='Kalkulator Depozytów'!Q126 -> 0 | I121: =ROUND(IF(OR(AND(K121>0,L121="L-PEAK5"),AND(K121>0,L121="H-PEAK5")),R121,IF(AND(K121>0,L121="PEAK5"),O121,IF(K121>0,IF(OR(L121="BASE"),AVERAGE(INDIRECT("krzywa!B"&MATCH(A121-$A$2,krzywa!A:A,0)&":B"&MATCH(B121-$A$2,krzywa!A:A,0),TRUE)),IF(OR(L121="OFFPEAK"),AVERAGE(INDIRECT("krzywa!F"&MATCH(A121-$A$2,krzywa!A:A,0)&":F"&MATCH(B121-$A$2,krzywa!A:A,0)))))))),4) ->  | K121: 45632 | L121: H-PEAK5 | M121: =NETWORKDAYS(A121,B121,koszyki!$M$20:$M$898) -> 1 | N121: =B121-A121+1- NETWORKDAYS(A121,B121,koszyki!$M$20:$M$898) -> 0 | O121: =ROUND(IF((B121-A121+1)>2,IF(C121=75,AVERAGE(INDIRECT("krzywa!C"&MATCH(K121-6,krzywa!A:A,0)&":C"&MATCH(K121-2,krzywa!A:A,0))),AVERAGE(INDIRECT("krzywa!C"&MATCH(A121-$A$2+BQ121,krzywa!A:A,0)&":C"&MATCH(B121-$A$2-AY121,krzywa!A:A,0)))),INDIRECT("krzywa!C"&MATCH(K121,krzywa!A:A,0))),4) ->  | P121: 0 | Q121: =-C121*ABS(D121-F121)*H121*I121*U121+'kompensacja międzyproduktowa'!X121*U121 ->  | R121: =ROUND(IF((B121-A121+1)>2,IF(C121=75,AVERAGE(INDIRECT("krzywa!D"&MATCH(K121-6,krzywa!A:A,0)&":D"&MATCH(K121-2,krzywa!A:A,0))),AVERAGE(INDIRECT("krzywa!D"&MATCH(A121-$A$2+BQ121,krzywa!A:A,0)&":D"&MATCH(B121-$A$2-AY121,krzywa!A:A,0)))),INDIRECT("krzywa!D"&MATCH(K121,krzywa!A:A,0))),4) ->  | S121: =VLOOKUP(A121,krzywa!L:N,3,1) -> 0 | T121: =VLOOKUP(B121,krzywa!L:N,3,1) -> 0 | U121: =IF('Kalkulator Depozytów'!$B$35=TRUE,1,(1+S121/100)*W121+(1+T121/100)*(1-W121)) -> 1 | V121: =IF(S121<>T121,VLOOKUP(A121,krzywa!L:M,2,1)) -> FALSE | W121: =IF(V121<>FALSE,IF(L121="BASE",(V121-A121+1)*24+J121,IF(L121="OFFPEAK",NETWORKDAYS(A121,V121,koszyki!$M$20:$M$898)*9+(N121)*24+J121,IF(L121="L-PEAK5",NETWORKDAYS(A121,V121,koszyki!$M$20:$M$898)*10,IF(L121="H-PEAK5",NETWORKDAYS(A121,V121,koszyki!$M$20:$M$898)*5,NETWORKDAYS(A121,V121,koszyki!$M$20:$M$898)*15))))/C121,1) -> 1
A122: 2024-12-07 | B122: 2024-12-07 | C122: 0 | D122: ='Kalkulator Depozytów'!M127 -> 0 | E122: ='Kalkulator Depozytów'!N127 -> 0 | F122: ='Kalkulator Depozytów'!O127 -> 0 | G122: ='Kalkulator Depozytów'!P127 -> 0 | H122: ='Kalkulator Depozytów'!Q127 -> 0 | I122: =ROUND(IF(OR(AND(K122>0,L122="L-PEAK5"),AND(K122>0,L122="H-PEAK5")),R122,IF(AND(K122>0,L122="PEAK5"),O122,IF(K122>0,IF(OR(L122="BASE"),AVERAGE(INDIRECT("krzywa!B"&MATCH(A122-$A$2,krzywa!A:A,0)&":B"&MATCH(B122-$A$2,krzywa!A:A,0),TRUE)),IF(OR(L122="OFFPEAK"),AVERAGE(INDIRECT("krzywa!F"&MATCH(A122-$A$2,krzywa!A:A,0)&":F"&MATCH(B122-$A$2,krzywa!A:A,0)))))))),4) ->  | K122: 45633 | L122: H-PEAK5 | M122: =NETWORKDAYS(A122,B122,koszyki!$M$20:$M$898) -> 0 | N122: =B122-A122+1- NETWORKDAYS(A122,B122,koszyki!$M$20:$M$898) -> 1 | O122: =ROUND(IF((B122-A122+1)>2,IF(C122=75,AVERAGE(INDIRECT("krzywa!C"&MATCH(K122-6,krzywa!A:A,0)&":C"&MATCH(K122-2,krzywa!A:A,0))),AVERAGE(INDIRECT("krzywa!C"&MATCH(A122-$A$2+BQ122,krzywa!A:A,0)&":C"&MATCH(B122-$A$2-AY122,krzywa!A:A,0)))),INDIRECT("krzywa!C"&MATCH(K122,krzywa!A:A,0))),4) ->  | P122: 0 | Q122: =-C122*ABS(D122-F122)*H122*I122*U122+'kompensacja międzyproduktowa'!X122*U122 ->  | R122: =ROUND(IF((B122-A122+1)>2,IF(C122=75,AVERAGE(INDIRECT("krzywa!D"&MATCH(K122-6,krzywa!A:A,0)&":D"&MATCH(K122-2,krzywa!A:A,0))),AVERAGE(INDIRECT("krzywa!D"&MATCH(A122-$A$2+BQ122,krzywa!A:A,0)&":D"&MATCH(B122-$A$2-AY122,krzywa!A:A,0)))),INDIRECT("krzywa!D"&MATCH(K122,krzywa!A:A,0))),4) ->  | S122: =VLOOKUP(A122,krzywa!L:N,3,1) -> 0 | T122: =VLOOKUP(B122,krzywa!L:N,3,1) -> 0 | U122: =IF('Kalkulator Depozytów'!$B$35=TRUE,1,(1+S122/100)*W122+(1+T122/100)*(1-W122)) -> 1 | V122: =IF(S122<>T122,VLOOKUP(A122,krzywa!L:M,2,1)) -> FALSE | W122: =IF(V122<>FALSE,IF(L122="BASE",(V122-A122+1)*24+J122,IF(L122="OFFPEAK",NETWORKDAYS(A122,V122,koszyki!$M$20:$M$898)*9+(N122)*24+J122,IF(L122="L-PEAK5",NETWORKDAYS(A122,V122,koszyki!$M$20:$M$898)*10,IF(L122="H-PEAK5",NETWORKDAYS(A122,V122,koszyki!$M$20:$M$898)*5,NETWORKDAYS(A122,V122,koszyki!$M$20:$M$898)*15))))/C122,1) -> 1
A123: 2024-12-08 | B123: 2024-12-08 | C123: 0 | D123: ='Kalkulator Depozytów'!M128 -> 0 | E123: ='Kalkulator Depozytów'!N128 -> 0 | F123: ='Kalkulator Depozytów'!O128 -> 0 | G123: ='Kalkulator Depozytów'!P128 -> 0 | H123: ='Kalkulator Depozytów'!Q128 -> 0 | I123: =ROUND(IF(OR(AND(K123>0,L123="L-PEAK5"),AND(K123>0,L123="H-PEAK5")),R123,IF(AND(K123>0,L123="PEAK5"),O123,IF(K123>0,IF(OR(L123="BASE"),AVERAGE(INDIRECT("krzywa!B"&MATCH(A123-$A$2,krzywa!A:A,0)&":B"&MATCH(B123-$A$2,krzywa!A:A,0),TRUE)),IF(OR(L123="OFFPEAK"),AVERAGE(INDIRECT("krzywa!F"&MATCH(A123-$A$2,krzywa!A:A,0)&":F"&MATCH(B123-$A$2,krzywa!A:A,0)))))))),4) ->  | K123: 45634 | L123: H-PEAK5 | M123: =NETWORKDAYS(A123,B123,koszyki!$M$20:$M$898) -> 0 | N123: =B123-A123+1- NETWORKDAYS(A123,B123,koszyki!$M$20:$M$898) -> 1 | O123: =ROUND(IF((B123-A123+1)>2,IF(C123=75,AVERAGE(INDIRECT("krzywa!C"&MATCH(K123-6,krzywa!A:A,0)&":C"&MATCH(K123-2,krzywa!A:A,0))),AVERAGE(INDIRECT("krzywa!C"&MATCH(A123-$A$2+BQ123,krzywa!A:A,0)&":C"&MATCH(B123-$A$2-AY123,krzywa!A:A,0)))),INDIRECT("krzywa!C"&MATCH(K123,krzywa!A:A,0))),4) ->  | P123: 0 | Q123: =-C123*ABS(D123-F123)*H123*I123*U123+'kompensacja międzyproduktowa'!X123*U123 ->  | R123: =ROUND(IF((B123-A123+1)>2,IF(C123=75,AVERAGE(INDIRECT("krzywa!D"&MATCH(K123-6,krzywa!A:A,0)&":D"&MATCH(K123-2,krzywa!A:A,0))),AVERAGE(INDIRECT("krzywa!D"&MATCH(A123-$A$2+BQ123,krzywa!A:A,0)&":D"&MATCH(B123-$A$2-AY123,krzywa!A:A,0)))),INDIRECT("krzywa!D"&MATCH(K123,krzywa!A:A,0))),4) ->  | S123: =VLOOKUP(A123,krzywa!L:N,3,1) -> 0 | T123: =VLOOKUP(B123,krzywa!L:N,3,1) -> 0 | U123: =IF('Kalkulator Depozytów'!$B$35=TRUE,1,(1+S123/100)*W123+(1+T123/100)*(1-W123)) -> 1 | V123: =IF(S123<>T123,VLOOKUP(A123,krzywa!L:M,2,1)) -> FALSE | W123: =IF(V123<>FALSE,IF(L123="BASE",(V123-A123+1)*24+J123,IF(L123="OFFPEAK",NETWORKDAYS(A123,V123,koszyki!$M$20:$M$898)*9+(N123)*24+J123,IF(L123="L-PEAK5",NETWORKDAYS(A123,V123,koszyki!$M$20:$M$898)*10,IF(L123="H-PEAK5",NETWORKDAYS(A123,V123,koszyki!$M$20:$M$898)*5,NETWORKDAYS(A123,V123,koszyki!$M$20:$M$898)*15))))/C123,1) -> 1
A124: 2024-12-09 | B124: 2024-12-15 | C124: 25 | D124: ='Kalkulator Depozytów'!M129 -> 0 | E124: ='Kalkulator Depozytów'!N129 -> 0 | F124: ='Kalkulator Depozytów'!O129 -> 0 | G124: ='Kalkulator Depozytów'!P129 -> 0 | H124: ='Kalkulator Depozytów'!Q129 -> 0 | I124: =ROUND(IF(OR(AND(K124>0,L124="L-PEAK5"),AND(K124>0,L124="H-PEAK5")),R124,IF(AND(K124>0,L124="PEAK5"),O124,IF(K124>0,IF(OR(L124="BASE"),AVERAGE(INDIRECT("krzywa!B"&MATCH(A124-$A$2,krzywa!A:A,0)&":B"&MATCH(B124-$A$2,krzywa!A:A,0),TRUE)),IF(OR(L124="OFFPEAK"),AVERAGE(INDIRECT("krzywa!F"&MATCH(A124-$A$2,krzywa!A:A,0)&":F"&MATCH(B124-$A$2,krzywa!A:A,0)))))))),4) ->  | K124: 45641 | L124: H-PEAK5 | M124: =NETWORKDAYS(A124,B124,koszyki!$M$20:$M$898) -> 5 | N124: =B124-A124+1- NETWORKDAYS(A124,B124,koszyki!$M$20:$M$898) -> 2 | O124: =ROUND(IF((B124-A124+1)>2,IF(C124=75,AVERAGE(INDIRECT("krzywa!C"&MATCH(K124-6,krzywa!A:A,0)&":C"&MATCH(K124-2,krzywa!A:A,0))),AVERAGE(INDIRECT("krzywa!C"&MATCH(A124-$A$2+BQ124,krzywa!A:A,0)&":C"&MATCH(B124-$A$2-AY124,krzywa!A:A,0)))),INDIRECT("krzywa!C"&MATCH(K124,krzywa!A:A,0))),4) ->  | P124: 0 | Q124: =-C124*ABS(D124-F124)*H124*I124*U124+'kompensacja międzyproduktowa'!X124*U124 ->  | R124: =ROUND(IF((B124-A124+1)>2,IF(C124=75,AVERAGE(INDIRECT("krzywa!D"&MATCH(K124-6,krzywa!A:A,0)&":D"&MATCH(K124-2,krzywa!A:A,0))),AVERAGE(INDIRECT("krzywa!D"&MATCH(A124-$A$2+BQ124,krzywa!A:A,0)&":D"&MATCH(B124-$A$2-AY124,krzywa!A:A,0)))),INDIRECT("krzywa!D"&MATCH(K124,krzywa!A:A,0))),4) ->  | S124: =VLOOKUP(A124,krzywa!L:N,3,1) -> 0 | T124: =VLOOKUP(B124,krzywa!L:N,3,1) -> 0 | U124: =IF('Kalkulator Depozytów'!$B$35=TRUE,1,(1+S124/100)*W124+(1+T124/100)*(1-W124)) -> 1 | V124: =IF(S124<>T124,VLOOKUP(A124,krzywa!L:M,2,1)) -> FALSE | W124: =IF(V124<>FALSE,IF(L124="BASE",(V124-A124+1)*24+J124,IF(L124="OFFPEAK",NETWORKDAYS(A124,V124,koszyki!$M$20:$M$898)*9+(N124)*24+J124,IF(L124="L-PEAK5",NETWORKDAYS(A124,V124,koszyki!$M$20:$M$898)*10,IF(L124="H-PEAK5",NETWORKDAYS(A124,V124,koszyki!$M$20:$M$898)*5,NETWORKDAYS(A124,V124,koszyki!$M$20:$M$898)*15))))/C124,1) -> 1
A125: 2024-12-16 | B125: 2024-12-22 | C125: 25 | D125: ='Kalkulator Depozytów'!M130 -> 0 | E125: ='Kalkulator Depozytów'!N130 -> 0 | F125: ='Kalkulator Depozytów'!O130 -> 0 | G125: ='Kalkulator Depozytów'!P130 -> 0 | H125: ='Kalkulator Depozytów'!Q130 -> 0 | I125: =ROUND(IF(OR(AND(K125>0,L125="L-PEAK5"),AND(K125>0,L125="H-PEAK5")),R125,IF(AND(K125>0,L125="PEAK5"),O125,IF(K125>0,IF(OR(L125="BASE"),AVERAGE(INDIRECT("krzywa!B"&MATCH(A125-$A$2,krzywa!A:A,0)&":B"&MATCH(B125-$A$2,krzywa!A:A,0),TRUE)),IF(OR(L125="OFFPEAK"),AVERAGE(INDIRECT("krzywa!F"&MATCH(A125-$A$2,krzywa!A:A,0)&":F"&MATCH(B125-$A$2,krzywa!A:A,0)))))))),4) ->  | K125: 45648 | L125: H-PEAK5 | M125: =NETWORKDAYS(A125,B125,koszyki!$M$20:$M$898) -> 5 | N125: =B125-A125+1- NETWORKDAYS(A125,B125,koszyki!$M$20:$M$898) -> 2 | O125: =ROUND(IF((B125-A125+1)>2,IF(C125=75,AVERAGE(INDIRECT("krzywa!C"&MATCH(K125-6,krzywa!A:A,0)&":C"&MATCH(K125-2,krzywa!A:A,0))),AVERAGE(INDIRECT("krzywa!C"&MATCH(A125-$A$2+BQ125,krzywa!A:A,0)&":C"&MATCH(B125-$A$2-AY125,krzywa!A:A,0)))),INDIRECT("krzywa!C"&MATCH(K125,krzywa!A:A,0))),4) ->  | P125: 0 | Q125: =-C125*ABS(D125-F125)*H125*I125*U125+'kompensacja międzyproduktowa'!X125*U125 ->  | R125: =ROUND(IF((B125-A125+1)>2,IF(C125=75,AVERAGE(INDIRECT("krzywa!D"&MATCH(K125-6,krzywa!A:A,0)&":D"&MATCH(K125-2,krzywa!A:A,0))),AVERAGE(INDIRECT("krzywa!D"&MATCH(A125-$A$2+BQ125,krzywa!A:A,0)&":D"&MATCH(B125-$A$2-AY125,krzywa!A:A,0)))),INDIRECT("krzywa!D"&MATCH(K125,krzywa!A:A,0))),4) ->  | S125: =VLOOKUP(A125,krzywa!L:N,3,1) -> 0 | T125: =VLOOKUP(B125,krzywa!L:N,3,1) -> 0 | U125: =IF('Kalkulator Depozytów'!$B$35=TRUE,1,(1+S125/100)*W125+(1+T125/100)*(1-W125)) -> 1 | V125: =IF(S125<>T125,VLOOKUP(A125,krzywa!L:M,2,1)) -> FALSE | W125: =IF(V125<>FALSE,IF(L125="BASE",(V125-A125+1)*24+J125,IF(L125="OFFPEAK",NETWORKDAYS(A125,V125,koszyki!$M$20:$M$898)*9+(N125)*24+J125,IF(L125="L-PEAK5",NETWORKDAYS(A125,V125,koszyki!$M$20:$M$898)*10,IF(L125="H-PEAK5",NETWORKDAYS(A125,V125,koszyki!$M$20:$M$898)*5,NETWORKDAYS(A125,V125,koszyki!$M$20:$M$898)*15))))/C125,1) -> 1
A126: 2024-12-23 | B126: 2024-12-29 | C126: 15 | D126: ='Kalkulator Depozytów'!M131 -> 0 | E126: ='Kalkulator Depozytów'!N131 -> 0 | F126: ='Kalkulator Depozytów'!O131 -> 0 | G126: ='Kalkulator Depozytów'!P131 -> 0 | H126: ='Kalkulator Depozytów'!Q131 -> 0 | I126: =ROUND(IF(OR(AND(K126>0,L126="L-PEAK5"),AND(K126>0,L126="H-PEAK5")),R126,IF(AND(K126>0,L126="PEAK5"),O126,IF(K126>0,IF(OR(L126="BASE"),AVERAGE(INDIRECT("krzywa!B"&MATCH(A126-$A$2,krzywa!A:A,0)&":B"&MATCH(B126-$A$2,krzywa!A:A,0),TRUE)),IF(OR(L126="OFFPEAK"),AVERAGE(INDIRECT("krzywa!F"&MATCH(A126-$A$2,krzywa!A:A,0)&":F"&MATCH(B126-$A$2,krzywa!A:A,0)))))))),4) ->  | K126: 45655 | L126: H-PEAK5 | M126: =NETWORKDAYS(A126,B126,koszyki!$M$20:$M$898) -> 3 | N126: =B126-A126+1- NETWORKDAYS(A126,B126,koszyki!$M$20:$M$898) -> 4 | O126: =ROUND(IF((B126-A126+1)>2,IF(C126=75,AVERAGE(INDIRECT("krzywa!C"&MATCH(K126-6,krzywa!A:A,0)&":C"&MATCH(K126-2,krzywa!A:A,0))),AVERAGE(INDIRECT("krzywa!C"&MATCH(A126-$A$2+BQ126,krzywa!A:A,0)&":C"&MATCH(B126-$A$2-AY126,krzywa!A:A,0)))),INDIRECT("krzywa!C"&MATCH(K126,krzywa!A:A,0))),4) ->  | P126: 0 | Q126: =-C126*ABS(D126-F126)*H126*I126*U126+'kompensacja międzyproduktowa'!X126*U126 ->  | R126: =ROUND(IF((B126-A126+1)>2,IF(C126=75,AVERAGE(INDIRECT("krzywa!D"&MATCH(K126-6,krzywa!A:A,0)&":D"&MATCH(K126-2,krzywa!A:A,0))),AVERAGE(INDIRECT("krzywa!D"&MATCH(A126-$A$2+BQ126,krzywa!A:A,0)&":D"&MATCH(B126-$A$2-AY126,krzywa!A:A,0)))),INDIRECT("krzywa!D"&MATCH(K126,krzywa!A:A,0))),4) ->  | S126: =VLOOKUP(A126,krzywa!L:N,3,1) -> 0 | T126: =VLOOKUP(B126,krzywa!L:N,3,1) -> 0 | U126: =IF('Kalkulator Depozytów'!$B$35=TRUE,1,(1+S126/100)*W126+(1+T126/100)*(1-W126)) -> 1 | V126: =IF(S126<>T126,VLOOKUP(A126,krzywa!L:M,2,1)) -> FALSE | W126: =IF(V126<>FALSE,IF(L126="BASE",(V126-A126+1)*24+J126,IF(L126="OFFPEAK",NETWORKDAYS(A126,V126,koszyki!$M$20:$M$898)*9+(N126)*24+J126,IF(L126="L-PEAK5",NETWORKDAYS(A126,V126,koszyki!$M$20:$M$898)*10,IF(L126="H-PEAK5",NETWORKDAYS(A126,V126,koszyki!$M$20:$M$898)*5,NETWORKDAYS(A126,V126,koszyki!$M$20:$M$898)*15))))/C126,1) -> 1
A127: 2024-12-30 | B127: 2024-12-31 | C127: 10 | D127: ='Kalkulator Depozytów'!M132 -> 0 | E127: ='Kalkulator Depozytów'!N132 -> 0 | F127: ='Kalkulator Depozytów'!O132 -> 0 | G127: ='Kalkulator Depozytów'!P132 -> 0 | H127: ='Kalkulator Depozytów'!Q132 -> 0 | I127: =ROUND(IF(OR(AND(K127>0,L127="L-PEAK5"),AND(K127>0,L127="H-PEAK5")),R127,IF(AND(K127>0,L127="PEAK5"),O127,IF(K127>0,IF(OR(L127="BASE"),AVERAGE(INDIRECT("krzywa!B"&MATCH(A127-$A$2,krzywa!A:A,0)&":B"&MATCH(B127-$A$2,krzywa!A:A,0),TRUE)),IF(OR(L127="OFFPEAK"),AVERAGE(INDIRECT("krzywa!F"&MATCH(A127-$A$2,krzywa!A:A,0)&":F"&MATCH(B127-$A$2,krzywa!A:A,0)))))))),4) ->  | K127: 45657 | L127: H-PEAK5 | M127: =NETWORKDAYS(A127,B127,koszyki!$M$20:$M$898) -> 2 | N127: =B127-A127+1- NETWORKDAYS(A127,B127,koszyki!$M$20:$M$898) -> 0 | O127: =ROUND(IF((B127-A127+1)>2,IF(C127=75,AVERAGE(INDIRECT("krzywa!C"&MATCH(K127-6,krzywa!A:A,0)&":C"&MATCH(K127-2,krzywa!A:A,0))),AVERAGE(INDIRECT("krzywa!C"&MATCH(A127-$A$2+BQ127,krzywa!A:A,0)&":C"&MATCH(B127-$A$2-AY127,krzywa!A:A,0)))),INDIRECT("krzywa!C"&MATCH(K127,krzywa!A:A,0))),4) ->  | P127: 0 | Q127: =-C127*ABS(D127-F127)*H127*I127*U127+'kompensacja międzyproduktowa'!X127*U127 ->  | R127: =ROUND(IF((B127-A127+1)>2,IF(C127=75,AVERAGE(INDIRECT("krzywa!D"&MATCH(K127-6,krzywa!A:A,0)&":D"&MATCH(K127-2,krzywa!A:A,0))),AVERAGE(INDIRECT("krzywa!D"&MATCH(A127-$A$2+BQ127,krzywa!A:A,0)&":D"&MATCH(B127-$A$2-AY127,krzywa!A:A,0)))),INDIRECT("krzywa!D"&MATCH(K127,krzywa!A:A,0))),4) ->  | S127: =VLOOKUP(A127,krzywa!L:N,3,1) -> 0 | T127: =VLOOKUP(B127,krzywa!L:N,3,1) -> 0 | U127: =IF('Kalkulator Depozytów'!$B$35=TRUE,1,(1+S127/100)*W127+(1+T127/100)*(1-W127)) -> 1 | V127: =IF(S127<>T127,VLOOKUP(A127,krzywa!L:M,2,1)) -> FALSE | W127: =IF(V127<>FALSE,IF(L127="BASE",(V127-A127+1)*24+J127,IF(L127="OFFPEAK",NETWORKDAYS(A127,V127,koszyki!$M$20:$M$898)*9+(N127)*24+J127,IF(L127="L-PEAK5",NETWORKDAYS(A127,V127,koszyki!$M$20:$M$898)*10,IF(L127="H-PEAK5",NETWORKDAYS(A127,V127,koszyki!$M$20:$M$898)*5,NETWORKDAYS(A127,V127,koszyki!$M$20:$M$898)*15))))/C127,1) -> 1
